Workbook

Sheet CAPA
B1: SPARTA | C1: 45114 | R1: DF | S1: Sudeste/Centro Oeste
B2: Helenístico LX | C2: 0.93 | M2: =C23 -> 146 | N2: =C22 -> 26
C3: Macro Ver.
C4: 4.03
B6: EAC | L6: CodigoSamp | M6: Empresa | N6: Nome Completo | O6: IdSgtAg | P6: CodigoSamp | Q6: Supridora/suprida | R6: Financeiro 243 (TUSD) | S6: Databse Fin. 243 | T6: Contrato de Concessão | U6: Data Aditivo (Cont Novo) | V6: Cidade Sede | W6: CNPJ | X6: Novo/Antigo
B7: =VLOOKUP(B6,TabEmpresas[],2,FALSE) -> Energisa Acre - Distribuidora de Energia S.A | C7: Revisão | G7: Últ. Atualização | L7: 7019 | M7: Amazonas Energia | N7: Amazonas Energia S.A. | O7: 102 | P7: 7019 | Q7: NÃO SUPRIDA | T7: 1/2019 | U7: 42579 | V7: Manaus - AM | W7: 02.341.467/0001-20 | X7: N
B8: CÓDIGO DA EMPRESA | C8: ="D" & TEXT(C23-100,"00") -> D46 | F8: Info iniciais | G8: 2023-11-29T08:39:45 | L8: 31 | M8: CEA | N8: Companhia de Eletricidade do Amapá | O8: 107 | P8: 31 | Q8: NÃO SUPRIDA | T8: 01/2021 | U8: 42606 | V8: Macapá - AP | W8: 05.965.546/0001-09 | X8: N
B9: Data do Reajuste/Revisão Anterior | C9: 44908 | F9: Energia do ano anterior (CM compra, MWh Mercado, R$ Mercado) | L9: 5707 | M9: CEEE-D | N9: Companhia Estadual de Distribuição de Energia Elétrica | O9: 110 | P9: 5707 | Q9: NÃO SUPRIDA | T9: 81/1999 | U9: 42347 | V9: Porto Alegre - RS | W9: 08.467.115/0001-00 | X9: N
B10: Data de Reajuste/Revisão em Processamento | C10: 45273 | F10: Perda de RB /Perdas Regulatórias /TUSDgONS-RB | L10: 5697 | M10: Celesc-Dis | N10: Celesc Distribuição S.A. | O10: 111 | P10: 5697 | Q10: NÃO SUPRIDA | T10: 56/1999 | U10: 42347 | V10: Florianópolis - SC | W10: 08.336.783/0001-90 | X10: N
F11: Financeiros ano anterior (CVA 5º dia útil, RTE restante) | L11: 4950 | M11: Cemig-D | N11: Cemig Distribuição S.A. | O11: 118 | P11: 4950 | Q11: NÃO SUPRIDA | T11: 3/1997 | U11: 42359 | V11: Belo Horizonte - MG | W11: 06.981.180/0001-16 | X11: N
F12: Encargos ano anterior (não RTE) | L12: 103 | M12: CHESP | N12: Companhia Hidroelétrica São Patrício | O12: 123 | P12: 103 | Q12: SUPRIDA | T12: 44/1999 | U12: 42347 | V12: Ceres - GO | W12: 01.377.555/0001-10 | X12: N
F13: Dados da Revisão, Fator X e DecFec | L13: 82 | M13: Cocel | N13: Companhia Campolarguense de Energia | O13: 128 | P13: 82 | Q13: SUPRIDA | T13: 27/1998 | U13: 42347 | V13: Campo Largo - PR | W13: 75.805.895/0001-30 | X13: N
F14: Previsão de Subsidios dos Processos Anteriores | L14: 2904 | M14: Cooperaliança | N14: Cooperativa Aliança | O14: 131 | P14: 2904 | Q14: SUPRIDA | T14: 145/2002 | U14: 42347 | V14: Iraça - SC | W14: 83.647.990/0001-81 | X14: N
B15: Período de Referencia final | C15: =DATE(YEAR($C$10),MONTH($C$10)-1,1) -> 45231 | F15: Conexão ano anterior | L15: 2866 | M15: Copel-Dis | N15: Copel Distribuição S.A. | O15: 132 | P15: 2866 | Q15: NÃO SUPRIDA | T15: 46/1999 | U15: 42347 | V15: Curitiba - PR | W15: 04.368.898/0001-06 | X15: N
B16: Período de Referencia inicial | C16: =DATE(YEAR($C$10)-1,MONTH($C$10),1) -> 44896 | F16: Energia (CCEAR, Bil., Itaipu) | G16: 2023-11-29T08:42:39 | L16: 63 | M16: CPFL Paulista | N16: Companhia Paulista de Força e Luz | O16: 136 | P16: 63 | Q16: NÃO SUPRIDA | T16: 14/1997 | V16: Campinas - SP | W16: 33.050.196/0001-88 | X16: A
B17: Índice IGPM na data Revisão/Reajuste | C17: =VLOOKUP(C15,Índices!$B$7:$F$500,2,FALSE) -> 1115.815 | F17: CCEAR | L17: 2937 | M17: CPFL Piratininga | N17: Companhia Piratininga de Força e Luz | O17: 135 | P17: 2937 | Q17: NÃO SUPRIDA | T17: 9/2002 | V17: Sorocaba - SP | W17: 04.172.213/0001-51 | X17: A
B18: Índice IPCA na data Revisão/Reajuste | C18: =VLOOKUP(C15,Índices!$B$7:$F$500,3,FALSE) -> 6735.67449 | L18: 1000041 | M18: CPFL Santa Cruz | N18: Companhia Jaguari de Energia | O18: 166 | P18: 1000041 | Q18: NÃO SUPRIDA | T18: 15/1999 | U18: 42347 | V18: Jaguariúna - SP | W18: 53.859.112/0001-69 | X18: N
B19: IGPM para o período de Referência | C19: =VLOOKUP(DATE(YEAR($C$10),MONTH($C$10)-1,1),Índices!$B$7:$F$500,2,FALSE)/VLOOKUP(DATE(YEAR($C$9),MONTH($C$9)-1,1),Índices!$B$7:$F$500,2,FALSE)-1 -> -0.03461930787 | F19: Itaipu (Energia, Transporte, MUST) | L19: 87 | M19: DCELT | N19: Distribuidora Catarinense de Energia Elétrica Ltda | O19: 158 | P19: 87 | Q19: NÃO SUPRIDA | T19: 50/1999 | U19: 42353 | V19: Xanxerê - SC | W19: 83.855.973/0001-30 | X19: N
B20: IPCA para o período de Referência | C20: =VLOOKUP(DATE(YEAR(C10),MONTH(C10)-1,1),Índices!$B$7:$F$500,3,FALSE)/VLOOKUP(DATE(YEAR($C$9),MONTH($C$9)-1,1),Índices!$B$7:$F$500,3,FALSE)-1 -> 0.04685500762 | F20: Cotas Lei/Angra | L20: 95 | M20: Demei | N20: Departamento Municipal de Energia de Ijuí | O20: 138 | P20: 95 | Q20: SUPRIDA | T20: 85/2000 | U20: 42347 | V20: Ijuí - RS | W20: 95.289.500/0001-00 | X20: N
B21: Dados Gerenciais | F21: Encargos DRP | G21: 2023-11-03T11:16:03 | L21: 51 | M21: DME-D | N21: DME Distribuição S.A. | O21: 139 | P21: 51 | Q21: NÃO SUPRIDA | T21: 49/1999 | U21: 42347 | V21: Poços de Caldas - MG | W21: 23.664.303/0001-04 | X21: N
B22: IdAgente | C22: =VLOOKUP(B6,TabEmpresas[],4,FALSE) -> 26 | F22: Indicadores Econômicos / Dólar | G22: 2023-11-29T12:18:26 | L22: 26 | M22: EAC | N22: Energisa Acre - Distribuidora de Energia S.A | O22: 146 | P22: 26 | Q22: NÃO SUPRIDA | T22: 3/2018 | U22: 42579 | V22: Rio Branco - AC | W22: 04.065.033/0001-70 | X22: N
B23: ID Concessão | C23: =VLOOKUP(B6,TabEmpresas[],3,FALSE) -> 146 | F23: Tudo de Mercado | G23: 2023-11-17T11:08:55 | L23: 6611 | M23: EBO | N23: Energisa Borborema - Distribuidora de Energia S.A | O23: 140 | P23: 6611 | Q23: NÃO SUPRIDA | T23: 8/2000 | V23: Campina Grande - PB | W23: 08.826.596/0001-95 | X23: A
F24: Rede Básica e Conexão | G24: 2023-11-20T16:24:05 | L24: 380 | M24: EDP ES | N24: EDP Espírito Santo Distribuição de Energia S.A. | O24: 154 | P24: 380 | Q24: NÃO SUPRIDA | T24: 1/1995 | V24: Vitória - ES | W24: 28.152.650/0001-71 | X24: A
B25: Quadro para vínculos | F25: Histórico de Tarifas B1 Residencial | L25: 391 | M25: EDP SP | N25: EDP São Paulo Distribuição de Energia S.A. | O25: 104 | P25: 391 | Q25: NÃO SUPRIDA | T25: 202/1998 | V25: São Paulo - SP | W25: 02.302.100/0001-06 | X25: A
B26: Descrição | C26: valor | F26: CVA | G26: 2023-11-28T08:28:50 | L26: 86 | M26: EFLUL | N26: Empresa Força e Luz de Urussanga Ltda | O26: 144 | P26: 86 | Q26: SUPRIDA | T26: 25/1999 | U26: 42347 | V26: Urussanga - SC | W26: 86.531.175/0001-40 | X26: N
B27: Tipo de contrato | C27: =IF(VLOOKUP(B6,TabEmpresas[],12,FALSE)="A", "Antigo","Novo") -> Novo | F27: CUSD | G27: 2023-11-03T11:17:01 | L27: 398 | M27: Eletrocar | N27: Centrais Elétricas de Carazinho S.A. | O27: 147 | P27: 398 | Q27: SUPRIDA | T27: 84/2000 | U27: 42347 | V27: Carazinho - RS | W27: 88.446.034/0001-55 | X27: N
B28: Contrato de concessão | C28: =VLOOKUP(B6,TabEmpresas[],8,FALSE) -> 3/2018 | F28: Suprimento: Financeiro de Ultrapassagem e Sobrecontratação | G28: 2023-11-03T14:11:29 | L28: 6585 | M28: EMG | N28: Energisa Minas Gerais - Distribuidora de Energia S.A. | O28: 150 | P28: 6585 | Q28: NÃO SUPRIDA | T28: 40/1999 | U28: 42347 | V28: Cataguases - MG | W28: 19.527.639/0001-58 | X28: N
B29: Número do Processo | C29: 48500.006877/2022-13 | F29: UDEROR | G29: 2023-11-16T16:39:30 | L29: 404 | M29: EMS | N29: Energisa Mato Grossodo Sul - Distribuidora de Energia S.A. | O29: 151 | P29: 404 | Q29: NÃO SUPRIDA | T29: 1/1997 | V29: Campo Grande - MS | W29: 15.413.826/0001-50 | X29: A
B30: Período de Referencia | C30: =TEXT(C16,"mmmm/aaaa")& " a "&TEXT(C15,"mmmm/aaaa") -> dezembro/2022 a novembro/2023 | F30: BMP/RIT | G30: 2023-11-03T11:18:28 | L30: 405 | M30: EMT | N30: Energisa Mato Grosso - Distribuidora de Energia S.A. | O30: 117 | P30: 405 | Q30: NÃO SUPRIDA | T30: 3/1997 | V30: Cuibá - MT | W30: 03.467.321/0001-99 | X30: A
B31: Início da vigênica por extenso | C31: =DAY(LnkTxtDRPData)&" de "&TEXT(LnkTxtDRPData,"mmmmmm")&" de "&YEAR(LnkTxtDRPData) -> 13 de dezembro de 2023 | F31: Componente Q do Fator X | G31: 2023-11-03T11:18:32 | L31: 39 | M31: ENEL CE | N31: Companhia Energética do Ceará | O31: 130 | P31: 39 | Q31: NÃO SUPRIDA | T31: 1/1998 | V31: Fortaleza - CE | W31: 07.047.251/0001-70 | X31: A
B32: CNPJ | C32: =VLOOKUP(B6,TabEmpresas[],11,FALSE) -> 04.065.033/0001-70 | L32: 6072 | M32: ENEL GO | N32: Enel Distribuição Goiás | O32: 112 | P32: 6072 | Q32: NÃO SUPRIDA | T32: 63/2000 | U32: 42367 | V32: Goiânia - GO | W32: 01.543.032/0001-04 | X32: N
B33: Período de competência de previsão de subsídios | C33: =TEXT(EDATE(Aj.Subsidio!G19,12),"mmmmmm")&"/"&TEXT(EDATE(Aj.Subsidio!G19,12),"aaaa")&" a "&TEXT(EDATE(Aj.Subsidio!R19,12),"mmmmmm")&"/"&TEXT(EDATE(Aj.Subsidio!R19,12),"aaaa") -> dezembro/2023 a novembro/2024 | L33: 383 | M33: ENEL RJ | N33: Ampla Energia e Serviços S.A. | O33: 103 | P33: 383 | Q33: NÃO SUPRIDA | T33: 5/1996 | U33: 42808 | V33: Rio de Janeiro - RJ | W33: 33.050.071/0001-58 | X33: N
B34: Período de competência de ajuste de subsídios | C34: =TEXT(Aj.Subsidio!G19,"mmmmmm")&"/"&TEXT(Aj.Subsidio!G19,"aaaa")&" a "&TEXT(Aj.Subsidio!R19,"mmmmmm")&"/"&TEXT(Aj.Subsidio!R19,"aaaa") -> dezembro/2022 a novembro/2023 | L34: 390 | M34: ENEL SP | N34: Eletropaulo Metropolitana Eletricidade de São Paulo S.A. | O34: 148 | P34: 390 | Q34: NÃO SUPRIDA | T34: 162/1998 | V34: São Paulo - SP | W34: 61.695.227/0001-93 | X34: A
B35: Cidade Sede | C35: =VLOOKUP(B6,TabEmpresas[],10,FALSE) -> Rio Branco - AC | L35: 6612 | M35: ENF | N35: Energisa Nova Friburgo - Distribuidora de Energia S.A. | O35: 152 | P35: 6612 | Q35: SUPRIDA | T35: 42/1999 | U35: 42347 | V35: Nova Friburgo - RJ | W35: 33.249.046/0001-06 | X35: N
B36: Receita | C36: =IF(Mercado!D24>2000000000,ROUND(Mercado!D24/1000000000,2)&" bilhões",IF(Mercado!D24>1000000000,ROUND(Mercado!D24/1000000000,2)&" bilhão",IF(Mercado!D24>100000000,ROUND(Mercado!D24/1000000,0)&" milhões",IF(Mercado!D24>10000000,ROUND(Mercado!D24/1000000,1)&" milhões",IF(Mercado!D24>2000000,ROUND(Mercado!D24/1000000,2)&" milhões",IF(Mercado!D24>1000000,ROUND(Mercado!D24/1000000,2)&" milhão",ROUND(Mercado!D24/1000,0)&" mil")))))) -> 820 milhões | F36: Pendências | L36: 6600 | M36: EPB | N36: Energisa Paraíba - Distribuidora de Energia S.A. | O36: 153 | P36: 6600 | Q36: NÃO SUPRIDA | T36: 19/2001 | V36: João Pessoa - PB | W36: 09.095.183/0001-40 | X36: A
B37: Unidades Consumidoras | C37: =IF(Mercado!E38>2000000,ROUND(Mercado!E38/1000000,2)&" milhões",IF(Mercado!E38>1000000,ROUND(Mercado!E38/1000000,2)&" milhão",IF(Mercado!E38>100000,ROUND(Mercado!E38/1000,0)&" mil",IF(Mercado!E38>10000,ROUND(Mercado!E38/1000,1)&" mil",IF(Mercado!E38>1000,ROUND(Mercado!E38/1000,2)&" mil",Mercado!E38))))) -> 291 mil | F37: - Dados de UDER 09-23 a 11-23 (SFF Ivam) | L37: 44 | M37: Equatorial AL | N37: Equatorial Alagoas Distribuidora de Energia S.A. | O37: 108 | P37: 44 | Q37: NÃO SUPRIDA | T37: 2/2019 | U37: 42579 | V37: Maceió - AL | W37: 12.272.084/0001-00 | X37: N
B38: Data SAMP | C38: =TEXT(_xlfn.MAXIFS(Mercado_Receita!K:K,Mercado_Receita!B:B,"regular"),"mmmmmm")&"/"&YEAR(_xlfn.MAXIFS(Mercado_Receita!K:K,Mercado_Receita!B:B,"regular")) -> outubro/2023 | F38: - Dados de outras receitas entre 9-23 e 11-23 (SFF Ivam) | L38: 37 | M38: Equatorial MA | N38: Equatorial Maranhão Distribuidora de Energia S.A. | O38: 116 | P38: 37 | Q38: NÃO SUPRIDA | T38: 60/2000 | V38: São Luís - MA | W38: 06.272.793/0001-84 | X38: A
B39: Classificação mercado próprio | C39: >700 | F39: - ACRmed de 2024 (STR coord encargos) | L39: 371 | M39: Equatorial PA | N39: Equatorial Pará Distribuidora de Energia S.A. | O39: 113 | P39: 371 | Q39: NÃO SUPRIDA | T39: 182/1998 | V39: Belém - PA | W39: 04.895.728/0001-80 | X39: A
F40: - Devolução de conselho de consumidores 2018 e anteriores (nós) | L40: 38 | M40: Equatorial PI | N40: Equatorial Piauí Distribuidora de Energia S.A. | O40: 119 | P40: 38 | Q40: NÃO SUPRIDA | T40: 1/2018 | U40: 42579 | V40: Teresina - PI | W40: 06.840.748/0001-89 | X40: N
F41: - Atualizar mercado de out-23 (Empresa e STR, Adriano) | G41: Perguntar à Enerigsa AC sobre encaminhamento dos dados de mercado de outubro. | L41: 369 | M41: ERO | N41: Energisa Rondônia - Distribuidora de Energia S.A. | O41: 120 | P41: 369 | Q41: NÃO SUPRIDA | T41: 2/2018 | U41: 42579 | V41: Porto Velho - RO | W41: 05.914.650/0001-66 | X41: N
F42: - Atualizar custos de RB e RB fronteira (nós, Godoy) | L42: 6587 | M42: ESE | N42: Energisa Sergipe - Distribuidora de Energia S.A. | O42: 155 | P42: 6587 | Q42: NÃO SUPRIDA | T42: 7/1997 | V42: Aracajú - SE | W42: 13.017.462/0001-63 | X42: A
F43: - Incluir ajuste de PB associado ao SCEE (Empresa, vão mandar no final até 24/nov) | L43: 1000040 | M43: ESS | N43: Energisa Sul-Sudeste - Distribuidora de Energia S.A. | O43: 165 | P43: 1000040 | Q43: NÃO SUPRIDA | T43: 13/1999 | U43: 42347 | V43: Presidente Prudente - SP | W43: 07.282.377/0001-20 | X43: N
F44: - Consultar Energisa AC sobre os montantes contratados pela AmE , para fins de apuração de ultrapassagem de suprimento (empresa) | L44: 32 | M44: ETO | N44: Energisa Tocantins Distribuidora de Energia S.A. | O44: 115 | P44: 32 | Q44: NÃO SUPRIDA | T44: 52/1999 | U44: 43805 | V44: Palmas - TO | W44: 25.086.034/0001-71 | X44: N
F45: - Atualizar dados de PIS/COFINS (Ed SFF, mandarão em 15/nov) | L45: 83 | M45: Forcel | N45: Força e Luz Coronel Vivida Ltda. | O45: 156 | P45: 83 | Q45: SUPRIDA | T45: 69/1999 | U45: 42347 | V45: Coronel Vivida - PR | W45: 79.850.574/0001-09 | X45: N
F46: - Atualizar arrecadação de CDE Covid migrantes, itens extraordinários (empresa) | L46: 399 | M46: Hidropan | N46: Hidropan Distribuição de Energia S.A. | O46: 157 | P46: 399 | Q46: SUPRIDA | T46: 86/2000 | U46: 42347 | V46: Panambi - RS | W46: 91.982.348/0001-87 | X46: N
B47: Deslocar mercado | C47: Não | F47: - Atualizar Reversão de créditos de rescisão contratual, REN 1000 (empresa) | L47: 88 | M47: João Cesa | N47: Empresa Força e Luz João Cesa Ltda. | O47: 143 | P47: 88 | Q47: SUPRIDA | T47: 26/1999 | U47: 42347 | V47: Siderópolis - RS | W47: 86.301.124/0001-22 | X47: N
B48: Data de processamento em simulação | F48: - Spread da conta Escassez Hídrica. | L48: 382 | M48: Light | N48: Light Serviços de Eletricidade S.A. | O48: 160 | P48: 382 | Q48: NÃO SUPRIDA | T48: 1/1996 | U48: 42803 | V48: Rio de Janeiro - RJ | W48: 60.444.437/0001-46 | X48: N
L49: 401 | M49: Mux Energia | N49: Muxfeldt Marin E Cia Ltda | O49: 161 | P49: 401 | Q49: SUPRIDA | T49: 87/2000 | U49: 42347 | V49: Tapejara - RS | W49: 97.578.090/0001-34 | X49: N
L50: 5160 | M50: Neoenergia Brasília | N50: Neoenergia Distribuição Brasília S.A. | O50: 109 | P50: 5160 | Q50: NÃO SUPRIDA | T50: 66/1999 | U50: 42347 | V50: Brasília - DF | W50: 07.522.669/0001-92 | X50: N
L51: 47 | M51: Neoenergia Coelba | N51: Companhia de Eletricidadedo Estado da Bahia | O51: 129 | P51: 47 | Q51: NÃO SUPRIDA | T51: 10/1997 | V51: Salvador - BA | W51: 15.139.629/0001-94 | X51: A
L52: 40 | M52: Neoenergia Cosern | N52: Companhia Energetica do Rio Grande do Norte | O52: 133 | P52: 40 | Q52: NÃO SUPRIDA | T52: 8/1997 | V52: Natal - RN | W52: 08.324.196/0001-81 | X52: A
L53: 385 | M53: Neoenergia Elektro | N53: Elektro Redes S.A. | O53: 145 | P53: 385 | Q53: NÃO SUPRIDA | T53: 187/1998 | V53: Campinas - SP | W53: 02.328.280/0001-97 | X53: A
L54: 43 | M54: Neoenergia Pernambuco | N54: Companhia Energética de Pernambuco | O54: 114 | P54: 43 | Q54: NÃO SUPRIDA | T54: 26/2000 | V54: Recife - PE | W54: 10.835.932/0001-08 | X54: A
L55: 400 | M55: Nova Palma | N55: Nova Palma Energia Ltda. | O55: 164 | P55: 400 | Q55: SUPRIDA | T55: 107/2001 | U55: 42347 | V55: Faxinal do Soturno - RS | W55: 89.889.604/0001-44 | X55: N
L56: 1000042 | M56: RGE | N56: RGE Sul Distribuidora de Energia S.A. | O56: 167 | P56: 1000042 | Q56: NÃO SUPRIDA | T56: 12/1997 | V56: São Leopoldo - RS | W56: 02.016.440/0001-62 | X56: A
L57: 370 | M57: Roraima Energia | N57: Roraima Energia S.A. | O57: 105 | P57: 370 | Q57: NÃO SUPRIDA | T57: 4/2018 | U57: 42579 | V57: Boa Vista - RR | W57: 02.341.470/0001-44 | X57: N
L58: 381 | M58: Santa Maria | N58: Empresa Luz e Força Santa Maria S/A | O58: 149 | P58: 381 | Q58: SUPRIDA | T58: 20/1999 | U58: 42347 | V58: Colatina - ES | W58: 27.485.069/0001-09 | X58: N
L59: 46 | M59: Sulgipe | N59: Companhia Sul Sergipana de Eletricidade | O59: 163 | P59: 46 | Q59: SUPRIDA | T59: 91/1999 | U59: 42347 | V59: Estância - SE | W59: 13.255.658/0001-96 | X59: N

Sheet Spread Escassez
J1: Distribuidora | K1: Importação - R$ | L1: Bônus - R$ | M1: Diferimento - R$ | N1: Total - R$ | P1: Data de cálculo do Spread | Q1: 1ª devolução | R1: % da PB | S1: 2ª decolução | T1: % da PB
B2: Empresa | C2: =INDIRECT("'Spread Escassez'!L"&G2+1&"C"&10,FALSE) -> ENERGISA AC | E2: 44690 | G2: 46 | J2: AMAZONAS | K2: 17654742.83 | L2: 29854383.91 | M2: 0 | N2: 47509126.74 | P2: 2025-05-05 | Q2: 2022-11-01 | S2: 2023-11-01
B3: Data devolução 1 | C3: =LOOKUP(C2,J2:J67,Q2:Q67) -> 44543 | D3: % devolvido do dif de PB | E3: =LOOKUP(C2,J2:J67,R2:R67) -> 0 | J3: CEA | K3: 4727576.35 | L3: 7723195.92 | M3: 173856202.8 | N3: 186306975.1 | P3: 2023-12-13 | Q3: =EDATE(P3,-24) -> 2021-12-13 | R3: 0 | S3: =EDATE(P3,-12) -> 2022-12-13 | T3: 1
B4: Data devolução 2 | C4: =LOOKUP(C2,J2:J67,S2:S67) -> 44908 | D4: % devolvido do dif de PB | E4: =LOOKUP(C2,J2:J67,T2:T67) -> 1 | J4: CEEE | K4: 15712142.35 | L4: 45203763.61 | M4: 0 | N4: 60915905.96 | P4: 2024-11-22 | Q4: =EDATE(P4,-24) -> 2022-11-22 | S4: =EDATE(P4,-12) -> 2023-11-22
B5: data de Cálculo do Spread | C5: =LOOKUP(C2,J2:J67,P2:P67) -> 45273 | J5: CEGERO | K5: 0 | L5: 823958.04 | M5: 2115448.3 | N5: 2939406.34 | P5: 2024-09-30 | Q5: =EDATE(P5,-24) -> 2022-09-30 | R5: 1 | S5: 2023-09-30 | T5: 0
J6: CELESC | K6: 39152349.76 | L6: 94451547.06 | M6: 0 | N6: 133603896.8 | P6: 2024-08-22 | Q6: 2022-08-22 | S6: 2023-08-22
J7: CELPE | K7: 26675115.32 | L7: 59879409.54 | M7: 0 | N7: 86554524.86 | P7: 2024-04-29 | Q7: 2022-04-29 | S7: 2023-04-29
B8: Diferimento de Parcela B | D8: =LOOKUP(C2,J2:J67,M2:M67) -> 45613938.41 | J8: CEMIG | K8: 66267454.07 | L8: 124390975.5 | M8: 0 | N8: 190658429.5 | P8: 2024-05-28 | Q8: 2022-05-28 | S8: 2023-05-28
F9: FINANCEIRO de Spread - Conta Escassez | H9: =-(G39+G64) -> -5363865.599 | J9: CEPRAG | K9: 0 | L9: 0 | M9: 1287028.31 | N9: 1287028.31 | P9: 2023-12-22 | Q9: 2021-12-22 | R9: 0 | S9: 2022-12-22 | T9: 1
B10: Spread anual | D10: 0.028 | J10: CERBRANORTE | K10: 0 | L10: 719791.34 | M10: 0 | N10: 719791.34 | P10: 2024-09-30 | Q10: 2022-09-30 | S10: 2023-09-30
F11: Atenção!: O valor do Spread calculado acima deve ser lançado como componente financeiro negativo usando-se como referência os mesmos itens de custo usados para os "diferimentos" da Conta Escassez Hídrica, sendo necessário consultar processos anteriores. | J11: CERGAL | K11: 0 | L11: 0 | M11: 1586586.23 | N11: 1586586.23 | P11: 2024-09-30 | Q11: 2022-09-30 | R11: 1 | S11: 2023-09-30 | T11: 0
J12: CERGAPA | K12: 0 | L12: 0 | M12: 467235.38 | N12: 467235.38 | P12: 2024-09-30 | Q12: 2022-09-30 | R12: 1 | S12: 2023-09-30 | T12: 0
B13: CAFT diferimentos/Estruturação | D13: 72662559.7 | J13: CERGRAL | K13: 0 | L13: 0 | M13: 330680.28 | N13: 330680.28 | P13: 2024-09-30 | Q13: 2022-09-30 | R13: 1 | S13: 2023-09-30 | T13: 0
B14: diferimentos | D14: =M68 -> 2362687491 | J14: CERILUZ | K14: 203687.65 | L14: 767499.34 | M14: 0 | N14: 971186.99 | P14: 2024-07-30 | Q14: 2022-07-30 | S14: 2023-07-30
B15: Parcela CAFT (devolução 1) | D15: =D13*SUM(C21)/D14 -> 0 | J15: CERIPA | K15: 0 | L15: 0 | M15: 2402219 | N15: 2402219 | P15: 2024-04-29 | Q15: 2022-04-29 | R15: 1 | S15: 2023-04-29 | T15: 0
B16: Parcela CAFT (devolução 2) | D16: =D13*SUM(C46)/D14 -> 1402820.109 | J16: CERMISSÕES | K16: 0 | L16: 1076365.77 | M16: 0 | N16: 1076365.77 | P16: 2024-07-30 | Q16: 2022-07-30 | S16: 2023-07-30
D17: =D15+D16 -> 1402820.109 | J17: CERPALO | K17: 0 | L17: 0 | M17: 3649148.32 | N17: 3649148.32 | P17: 2024-09-30 | Q17: 2022-09-30 | R17: 1 | S17: 2023-09-30 | T17: 0
J18: CERSAD | K18: 0 | L18: 43253.58 | M18: 0 | N18: 43253.58 | P18: 2024-09-30 | Q18: 2022-09-30 | S18: 2023-09-30
B19: Primeira Devolução | E19: =C3 -> 44543 | F19: =C3 -> 44543 | J19: CERTAJA | K19: 234493.53 | L19: 680568.42 | M19: 0 | N19: 915061.95 | P19: 2024-07-30 | Q19: 2022-07-30 | S19: 2023-07-30
B20: Competência | C20: Parcela B (valor original) | D20: Parcela CAFT/Estruturação | E20: Total atualizado Selic | F20: Total atualizado Spread | J20: CERTEL | K20: 0 | L20: 2292080.11 | M20: 0 | N20: 2292080.11 | P20: 2024-07-30 | Q20: 2022-07-30 | S20: 2023-07-30
B21: =E2 -> 44690 | C21: =LOOKUP(C2,J2:J67,M2:M67)*E3 -> 0 | D21: =D15 -> 0 | E21: =IFERROR((VLOOKUP($C$3,Índices!$K$10:$Q$5000,4,FALSE)/VLOOKUP(B21,Índices!$K$10:$Q$5000,4,FALSE))*SUM(C21:D21),0) -> 0 | F21: =IFERROR((VLOOKUP($C$3,Índices!$K$10:$Q$5000,4,FALSE)/VLOOKUP(B21,Índices!$K$10:$Q$5000,4,FALSE))*SUM(C21:D21)*VLOOKUP($C$3,Índices!$K$10:$Q$5000,7,FALSE)/VLOOKUP($B21,Índices!$K$10:$Q$5000,7,FALSE),0) -> 0 | J21: CERTHIL | K21: 0 | L21: 278553.52 | M21: 0 | N21: 278553.52 | P21: 2024-07-30 | Q21: 2022-07-30 | S21: 2023-07-30
J22: CERVAM | K22: 0 | L22: 112884.56 | M22: 0 | N22: 112884.56 | P22: 2024-09-30 | Q22: 2022-09-30 | S22: 2023-09-30
G23: Em processamento | J23: CETRIL | K23: 0 | L23: 387565.9 | M23: 2266749.05 | N23: 2654314.95 | P23: 2024-11-30 | Q23: 2022-11-30 | R23: 1 | S23: 2023-11-30 | T23: 0
C24: Custo Spread após data de aniversário (até a efetiva devolução) | J24: CHESP | K24: 321926.64 | L24: 537901.05 | M24: 0 | N24: 859827.69 | P24: 2024-11-22 | Q24: 2022-11-22 | S24: 2023-11-22
C25: Devolução mensal do processo tarifário | D25: Custo mensal atualizado com Spread | E25: Delta Spread | F25: Delta atualizado até data de aniverário (Selic + spread) | G25: Projeção para compensação nos próximos 12 meses | H25: Teste de consistência (amortização mensal) | J25: COCEL | K25: 511055.86 | L25: 948670.6 | M25: 0 | N25: 1459726.46 | P25: 2024-06-29 | Q25: 2022-06-29 | S25: 2023-06-29
A26: 0 | B26: =C3+0*DATE(YEAR(C3),MONTH(C3)+1,1) -> 44543 | C26: =E21/12 -> 0 | D26: =F21/12 -> 0 | E26: =D26-C26 -> 0 | F26: =E26*VLOOKUP($C$5,Índices!$K$7:$O$4000,4,0)/VLOOKUP($B26,Índices!$K$7:$O$4000,4,0)*VLOOKUP($C$5,Índices!$K$7:$S$4000,7,0)/VLOOKUP($B26,Índices!$K$7:$S$4000,7,0) -> 0 | H26: =F21*E3-C26 -> 0 | J26: COOPERALIANÇA | K26: 0 | L26: 1182007.97 | M26: 0 | N26: 1182007.97 | P26: 2024-08-29 | Q26: 2022-08-29 | S26: 2023-08-29
A27: 1 | B27: =EDATE(B26,1) -> 44574 | C27: =C26 -> 0 | D27: =$D$26*VLOOKUP($B27,Índices!$K$7:$Q$4000,7,0)/VLOOKUP($B$26,Índices!$K$7:$Q$4000,7,0)*VLOOKUP($B27,Índices!$K$7:$Q$4000,4,0)/VLOOKUP($B$26,Índices!$K$7:$Q$4000,4,0) -> 0 | E27: =D27-C27 -> 0 | F27: =E27*VLOOKUP($C$5,Índices!$K$7:$O$4000,4,0)/VLOOKUP($B27,Índices!$K$7:$O$4000,4,0)*VLOOKUP($C$5,Índices!$K$7:$S$4000,7,0)/VLOOKUP($B27,Índices!$K$7:$S$4000,7,0) -> 0 | G27: =$F$39/12*VLOOKUP(EDATE($C$5,A27),Índices!$K$7:$Q$4000,7,0)/VLOOKUP($C$5,Índices!$K$7:$Q$4000,7,0)*VLOOKUP(EDATE($C$5,A27),Índices!$K$7:$Q$4000,4,0)/VLOOKUP($C$5,Índices!$K$7:$Q$4000,4,0) -> 0 | H27: =H26*VLOOKUP(B27,Índices!$K$7:$Q$4000,7,0)/VLOOKUP(B26,Índices!$K$7:$Q$4000,7,0)*VLOOKUP(B27,Índices!$K$7:$Q$4000,4,0)/VLOOKUP(B26,Índices!$K$7:$Q$4000,4,0)-C27 -> 0 | J27: COPEL | K27: 45362057.54 | L27: 100481686.8 | M27: 0 | N27: 145843744.3 | P27: 2024-06-24 | Q27: 2022-06-24 | S27: 2023-06-24
A28: =A27+1 -> 2 | B28: =EDATE(B27,1) -> 44605 | C28: =C27 -> 0 | D28: =$D$26*VLOOKUP($B28,Índices!$K$7:$Q$4000,7,0)/VLOOKUP($B$26,Índices!$K$7:$Q$4000,7,0)*VLOOKUP($B28,Índices!$K$7:$Q$4000,4,0)/VLOOKUP($B$26,Índices!$K$7:$Q$4000,4,0) -> 0 | E28: 0 | F28: =E28*VLOOKUP($C$5,Índices!$K$7:$O$4000,4,0)/VLOOKUP($B28,Índices!$K$7:$O$4000,4,0)*VLOOKUP($C$5,Índices!$K$7:$S$4000,7,0)/VLOOKUP($B28,Índices!$K$7:$S$4000,7,0) -> 0 | G28: =$F$39/12*VLOOKUP(EDATE($C$5,A28),Índices!$K$7:$Q$4000,7,0)/VLOOKUP($C$5,Índices!$K$7:$Q$4000,7,0)*VLOOKUP(EDATE($C$5,A28),Índices!$K$7:$Q$4000,4,0)/VLOOKUP($C$5,Índices!$K$7:$Q$4000,4,0) -> 0 | H28: =H27*VLOOKUP(B28,Índices!$K$7:$Q$4000,7,0)/VLOOKUP(B27,Índices!$K$7:$Q$4000,7,0)*VLOOKUP(B28,Índices!$K$7:$Q$4000,4,0)/VLOOKUP(B27,Índices!$K$7:$Q$4000,4,0)-C28 -> 0 | J28: COPREL | K28: 905519.74 | L28: 2554072.79 | M28: 0 | N28: 3459592.53 | P28: 2024-07-30 | Q28: 2022-07-30 | S28: 2023-07-30
A29: =A28+1 -> 3 | B29: 44633 | C29: 0 | D29: =$D$26*VLOOKUP($B29,Índices!$K$7:$Q$4000,7,0)/VLOOKUP($B$26,Índices!$K$7:$Q$4000,7,0)*VLOOKUP($B29,Índices!$K$7:$Q$4000,4,0)/VLOOKUP($B$26,Índices!$K$7:$Q$4000,4,0) -> 0 | E29: 0 | F29: =E29*VLOOKUP($C$5,Índices!$K$7:$O$4000,4,0)/VLOOKUP($B29,Índices!$K$7:$O$4000,4,0)*VLOOKUP($C$5,Índices!$K$7:$S$4000,7,0)/VLOOKUP($B29,Índices!$K$7:$S$4000,7,0) -> 0 | G29: =$F$39/12*VLOOKUP(EDATE($C$5,A29),Índices!$K$7:$Q$4000,7,0)/VLOOKUP($C$5,Índices!$K$7:$Q$4000,7,0)*VLOOKUP(EDATE($C$5,A29),Índices!$K$7:$Q$4000,4,0)/VLOOKUP($C$5,Índices!$K$7:$Q$4000,4,0) -> 0 | H29: =H28*VLOOKUP(B29,Índices!$K$7:$Q$4000,7,0)/VLOOKUP(B28,Índices!$K$7:$Q$4000,7,0)*VLOOKUP(B29,Índices!$K$7:$Q$4000,4,0)/VLOOKUP(B28,Índices!$K$7:$Q$4000,4,0)-C29 -> 0 | J29: CPFL PAULISTA | K29: 49527617.29 | L29: 101923018 | M29: 234986811.4 | N29: 386437446.7 | P29: 2024-04-08 | Q29: 2022-04-08 | R29: 1 | S29: 2023-04-08 | T29: 0
A30: 4 | B30: 44664 | C30: 0 | D30: =$D$26*VLOOKUP($B30,Índices!$K$7:$Q$4000,7,0)/VLOOKUP($B$26,Índices!$K$7:$Q$4000,7,0)*VLOOKUP($B30,Índices!$K$7:$Q$4000,4,0)/VLOOKUP($B$26,Índices!$K$7:$Q$4000,4,0) -> 0 | E30: 0 | F30: =E30*VLOOKUP($C$5,Índices!$K$7:$O$4000,4,0)/VLOOKUP($B30,Índices!$K$7:$O$4000,4,0)*VLOOKUP($C$5,Índices!$K$7:$S$4000,7,0)/VLOOKUP($B30,Índices!$K$7:$S$4000,7,0) -> 0 | G30: =$F$39/12*VLOOKUP(EDATE($C$5,A30),Índices!$K$7:$Q$4000,7,0)/VLOOKUP($C$5,Índices!$K$7:$Q$4000,7,0)*VLOOKUP(EDATE($C$5,A30),Índices!$K$7:$Q$4000,4,0)/VLOOKUP($C$5,Índices!$K$7:$Q$4000,4,0) -> 0 | H30: =H29*VLOOKUP(B30,Índices!$K$7:$Q$4000,7,0)/VLOOKUP(B29,Índices!$K$7:$Q$4000,7,0)*VLOOKUP(B30,Índices!$K$7:$Q$4000,4,0)/VLOOKUP(B29,Índices!$K$7:$Q$4000,4,0)-C30 -> 0 | J30: CPFL PIRATININGA | K30: 18166960.09 | L30: 40258568.11 | M30: 0 | N30: 58425528.2 | P30: 2024-10-23 | Q30: 2022-10-23 | S30: 2023-10-23
A31: 5 | B31: 44694 | C31: 0 | D31: =$D$26*VLOOKUP($B31,Índices!$K$7:$Q$4000,7,0)/VLOOKUP($B$26,Índices!$K$7:$Q$4000,7,0)*VLOOKUP($B31,Índices!$K$7:$Q$4000,4,0)/VLOOKUP($B$26,Índices!$K$7:$Q$4000,4,0) -> 0 | E31: 0 | F31: =E31*VLOOKUP($C$5,Índices!$K$7:$O$4000,4,0)/VLOOKUP($B31,Índices!$K$7:$O$4000,4,0)*VLOOKUP($C$5,Índices!$K$7:$S$4000,7,0)/VLOOKUP($B31,Índices!$K$7:$S$4000,7,0) -> 0 | G31: =$F$39/12*VLOOKUP(EDATE($C$5,A31),Índices!$K$7:$Q$4000,7,0)/VLOOKUP($C$5,Índices!$K$7:$Q$4000,7,0)*VLOOKUP(EDATE($C$5,A31),Índices!$K$7:$Q$4000,4,0)/VLOOKUP($C$5,Índices!$K$7:$Q$4000,4,0) -> 0 | H31: =H30*VLOOKUP(B31,Índices!$K$7:$Q$4000,7,0)/VLOOKUP(B30,Índices!$K$7:$Q$4000,7,0)*VLOOKUP(B31,Índices!$K$7:$Q$4000,4,0)/VLOOKUP(B30,Índices!$K$7:$Q$4000,4,0)-C31 -> 0 | J31: CPFL Santa Cruz | K31: 5658297 | L31: 10542228.37 | M31: 49730626.84 | N31: 65931152.21 | P31: 2024-03-22 | Q31: 2022-03-22 | R31: 1 | S31: 2023-03-22 | T31: 0
A32: 6 | B32: 44725 | C32: =C31 -> 0 | D32: =$D$26*VLOOKUP($B32,Índices!$K$7:$Q$4000,7,0)/VLOOKUP($B$26,Índices!$K$7:$Q$4000,7,0)*VLOOKUP($B32,Índices!$K$7:$Q$4000,4,0)/VLOOKUP($B$26,Índices!$K$7:$Q$4000,4,0) -> 0 | E32: 0 | F32: =E32*VLOOKUP($C$5,Índices!$K$7:$O$4000,4,0)/VLOOKUP($B32,Índices!$K$7:$O$4000,4,0)*VLOOKUP($C$5,Índices!$K$7:$S$4000,7,0)/VLOOKUP($B32,Índices!$K$7:$S$4000,7,0) -> 0 | G32: =$F$39/12*VLOOKUP(EDATE($C$5,A32),Índices!$K$7:$Q$4000,7,0)/VLOOKUP($C$5,Índices!$K$7:$Q$4000,7,0)*VLOOKUP(EDATE($C$5,A32),Índices!$K$7:$Q$4000,4,0)/VLOOKUP($C$5,Índices!$K$7:$Q$4000,4,0) -> 0 | H32: =H31*VLOOKUP(B32,Índices!$K$7:$Q$4000,7,0)/VLOOKUP(B31,Índices!$K$7:$Q$4000,7,0)*VLOOKUP(B32,Índices!$K$7:$Q$4000,4,0)/VLOOKUP(B31,Índices!$K$7:$Q$4000,4,0)-C32 -> 0 | J32: CRELUZ | K32: 196790.32 | L32: 697993.13 | M32: 0 | N32: 894783.45 | P32: 2024-07-30 | Q32: 2022-07-30 | S32: 2023-07-30
A33: 7 | B33: 44755 | C33: 0 | D33: =$D$26*VLOOKUP($B33,Índices!$K$7:$Q$4000,7,0)/VLOOKUP($B$26,Índices!$K$7:$Q$4000,7,0)*VLOOKUP($B33,Índices!$K$7:$Q$4000,4,0)/VLOOKUP($B$26,Índices!$K$7:$Q$4000,4,0) -> 0 | E33: 0 | F33: =E33*VLOOKUP($C$5,Índices!$K$7:$O$4000,4,0)/VLOOKUP($B33,Índices!$K$7:$O$4000,4,0)*VLOOKUP($C$5,Índices!$K$7:$S$4000,7,0)/VLOOKUP($B33,Índices!$K$7:$S$4000,7,0) -> 0 | G33: =$F$39/12*VLOOKUP(EDATE($C$5,A33),Índices!$K$7:$Q$4000,7,0)/VLOOKUP($C$5,Índices!$K$7:$Q$4000,7,0)*VLOOKUP(EDATE($C$5,A33),Índices!$K$7:$Q$4000,4,0)/VLOOKUP($C$5,Índices!$K$7:$Q$4000,4,0) -> 0 | H33: =H32*VLOOKUP(B33,Índices!$K$7:$Q$4000,7,0)/VLOOKUP(B32,Índices!$K$7:$Q$4000,7,0)*VLOOKUP(B33,Índices!$K$7:$Q$4000,4,0)/VLOOKUP(B32,Índices!$K$7:$Q$4000,4,0)-C33 -> 0 | J33: CRERAL | K33: 0 | L33: 360449.03 | M33: 0 | N33: 360449.03 | P33: 2024-07-30 | Q33: 2022-07-30 | S33: 2023-07-30
A34: 8 | B34: 44786 | C34: 0 | D34: =$D$26*VLOOKUP($B34,Índices!$K$7:$Q$4000,7,0)/VLOOKUP($B$26,Índices!$K$7:$Q$4000,7,0)*VLOOKUP($B34,Índices!$K$7:$Q$4000,4,0)/VLOOKUP($B$26,Índices!$K$7:$Q$4000,4,0) -> 0 | E34: 0 | F34: =E34*VLOOKUP($C$5,Índices!$K$7:$O$4000,4,0)/VLOOKUP($B34,Índices!$K$7:$O$4000,4,0)*VLOOKUP($C$5,Índices!$K$7:$S$4000,7,0)/VLOOKUP($B34,Índices!$K$7:$S$4000,7,0) -> 0 | G34: =$F$39/12*VLOOKUP(EDATE($C$5,A34),Índices!$K$7:$Q$4000,7,0)/VLOOKUP($C$5,Índices!$K$7:$Q$4000,7,0)*VLOOKUP(EDATE($C$5,A34),Índices!$K$7:$Q$4000,4,0)/VLOOKUP($C$5,Índices!$K$7:$Q$4000,4,0) -> 0 | H34: =H33*VLOOKUP(B34,Índices!$K$7:$Q$4000,7,0)/VLOOKUP(B33,Índices!$K$7:$Q$4000,7,0)*VLOOKUP(B34,Índices!$K$7:$Q$4000,4,0)/VLOOKUP(B33,Índices!$K$7:$Q$4000,4,0)-C34 -> 0 | J34: DCELT | K34: 464725.65 | L34: 997922.44 | M34: 0 | N34: 1462648.09 | P34: 2024-08-29 | Q34: 2022-08-29 | S34: 2023-08-29
A35: 9 | B35: 44817 | C35: 0 | D35: =$D$26*VLOOKUP($B35,Índices!$K$7:$Q$4000,7,0)/VLOOKUP($B$26,Índices!$K$7:$Q$4000,7,0)*VLOOKUP($B35,Índices!$K$7:$Q$4000,4,0)/VLOOKUP($B$26,Índices!$K$7:$Q$4000,4,0) -> 0 | E35: 0 | F35: =E35*VLOOKUP($C$5,Índices!$K$7:$O$4000,4,0)/VLOOKUP($B35,Índices!$K$7:$O$4000,4,0)*VLOOKUP($C$5,Índices!$K$7:$S$4000,7,0)/VLOOKUP($B35,Índices!$K$7:$S$4000,7,0) -> 0 | G35: =$F$39/12*VLOOKUP(EDATE($C$5,A35),Índices!$K$7:$Q$4000,7,0)/VLOOKUP($C$5,Índices!$K$7:$Q$4000,7,0)*VLOOKUP(EDATE($C$5,A35),Índices!$K$7:$Q$4000,4,0)/VLOOKUP($C$5,Índices!$K$7:$Q$4000,4,0) -> 0 | H35: =H34*VLOOKUP(B35,Índices!$K$7:$Q$4000,7,0)/VLOOKUP(B34,Índices!$K$7:$Q$4000,7,0)*VLOOKUP(B35,Índices!$K$7:$Q$4000,4,0)/VLOOKUP(B34,Índices!$K$7:$Q$4000,4,0)-C35 -> 0 | J35: DEMEI | K35: 296951.33 | L35: 884802.41 | M35: 0 | N35: 1181753.74 | P35: 2024-07-22 | Q35: 2022-07-22 | S35: 2023-07-22
A36: 10 | B36: 44847 | C36: 0 | D36: =$D$26*VLOOKUP($B36,Índices!$K$7:$Q$4000,7,0)/VLOOKUP($B$26,Índices!$K$7:$Q$4000,7,0)*VLOOKUP($B36,Índices!$K$7:$Q$4000,4,0)/VLOOKUP($B$26,Índices!$K$7:$Q$4000,4,0) -> 0 | E36: 0 | F36: =E36*VLOOKUP($C$5,Índices!$K$7:$O$4000,4,0)/VLOOKUP($B36,Índices!$K$7:$O$4000,4,0)*VLOOKUP($C$5,Índices!$K$7:$S$4000,7,0)/VLOOKUP($B36,Índices!$K$7:$S$4000,7,0) -> 0 | G36: =$F$39/12*VLOOKUP(EDATE($C$5,A36),Índices!$K$7:$Q$4000,7,0)/VLOOKUP($C$5,Índices!$K$7:$Q$4000,7,0)*VLOOKUP(EDATE($C$5,A36),Índices!$K$7:$Q$4000,4,0)/VLOOKUP($C$5,Índices!$K$7:$Q$4000,4,0) -> 0 | H36: =H35*VLOOKUP(B36,Índices!$K$7:$Q$4000,7,0)/VLOOKUP(B35,Índices!$K$7:$Q$4000,7,0)*VLOOKUP(B36,Índices!$K$7:$Q$4000,4,0)/VLOOKUP(B35,Índices!$K$7:$Q$4000,4,0)-C36 -> 0 | J36: DMED | K36: 627615.61 | L36: 784760.2 | M36: 0 | N36: 1412375.81 | P36: 2024-11-22 | Q36: 2022-11-22 | S36: 2023-11-22
A37: 11 | B37: 44878 | C37: 0 | D37: =$D$26*VLOOKUP($B37,Índices!$K$7:$Q$4000,7,0)/VLOOKUP($B$26,Índices!$K$7:$Q$4000,7,0)*VLOOKUP($B37,Índices!$K$7:$Q$4000,4,0)/VLOOKUP($B$26,Índices!$K$7:$Q$4000,4,0) -> 0 | E37: 0 | F37: =E37*VLOOKUP($C$5,Índices!$K$7:$O$4000,4,0)/VLOOKUP($B37,Índices!$K$7:$O$4000,4,0)*VLOOKUP($C$5,Índices!$K$7:$S$4000,7,0)/VLOOKUP($B37,Índices!$K$7:$S$4000,7,0) -> 0 | G37: =$F$39/12*VLOOKUP(EDATE($C$5,A37),Índices!$K$7:$Q$4000,7,0)/VLOOKUP($C$5,Índices!$K$7:$Q$4000,7,0)*VLOOKUP(EDATE($C$5,A37),Índices!$K$7:$Q$4000,4,0)/VLOOKUP($C$5,Índices!$K$7:$Q$4000,4,0) -> 0 | H37: =H36*VLOOKUP(B37,Índices!$K$7:$Q$4000,7,0)/VLOOKUP(B36,Índices!$K$7:$Q$4000,7,0)*VLOOKUP(B37,Índices!$K$7:$Q$4000,4,0)/VLOOKUP(B36,Índices!$K$7:$Q$4000,4,0)-C37 -> 0 | J37: EDP ES | K37: 15140735.9 | L37: 34712541.92 | M37: 0 | N37: 49853277.82 | P37: 2024-08-07 | Q37: 2022-08-07 | S37: 2023-08-07
B38: =B39 -> 45273 | G38: =$F$39/12*VLOOKUP(EDATE($C$5,A38),Índices!$K$7:$Q$4000,7,0)/VLOOKUP($C$5,Índices!$K$7:$Q$4000,7,0)*VLOOKUP(EDATE($C$5,A38),Índices!$K$7:$Q$4000,4,0)/VLOOKUP($C$5,Índices!$K$7:$Q$4000,4,0) -> 0 | H38: =H37*VLOOKUP(C5,Índices!$K$7:$Q$4000,7,0)/VLOOKUP(B37,Índices!$K$7:$Q$4000,7,0)*VLOOKUP(C5,Índices!$K$7:$Q$4000,4,0)/VLOOKUP(B37,Índices!$K$7:$Q$4000,4,0) -> 0 | I38: ="<- Atualização até data de devolução" -> <- Atualização até data de devolução | J38: EDP SP | K38: 19142705.03 | L38: 40031036.45 | M38: 0 | N38: 59173741.48 | P38: 2024-10-23 | Q38: 2022-10-23 | S38: 2023-10-23
B39: =C5 -> 45273 | F39: =SUM(F26:F37) -> 0 | G39: =SUM(G26:G38) -> 0 | H39: =IFERROR(G39/F39*H38,0) -> 0 | J39: EFLUL | K39: 0 | L39: 0 | M39: 729882.32 | N39: 729882.32 | P39: 2024-08-29 | Q39: 2022-08-29 | R39: 1 | S39: 2023-08-29 | T39: 0
J40: ELEKTRO | K40: 27219301.64 | L40: 56380475.16 | M40: 0 | N40: 83599776.8 | P40: 2024-08-27 | Q40: 2022-08-27 | S40: 2023-08-27
J41: ELETROCAR | K41: 342496.42 | L41: 852277.93 | M41: 0 | N41: 1194774.35 | P41: 2024-07-22 | Q41: 2022-07-22 | S41: 2023-07-22
J42: ELFSM | K42: 1396956.16 | L42: 2359936.45 | M42: 0 | N42: 3756892.61 | P42: 2024-09-22 | Q42: 2022-09-22 | S42: 2023-09-22
J43: ENEL CE | K43: 27764771.6 | L43: 51445051.66 | M43: 194238557.6 | N43: 273448380.9 | P43: 2024-04-22 | Q43: 2022-04-22 | R43: 1 | S43: 2023-04-22 | T43: 0
B44: Segunda Devolução | E44: =C4 -> 44908 | F44: =C4 -> 44908 | J44: ENEL GO | K44: 28679583.73 | L44: 51049306.18 | M44: 0 | N44: 79728889.91 | P44: 2024-10-22 | Q44: 2022-10-22 | S44: 2023-10-22
B45: Competência | C45: Parcela B (valor original) | D45: Parcela CAFT/Estruturação | E45: Total atualizado Selic | F45: Total atualizado Spread | J45: ENEL RJ | K45: 22181365.5 | L45: 57215406.1 | M45: 110511110.8 | N45: 189907882.4 | P45: 2024-03-15 | Q45: 2022-03-15 | R45: 1 | S45: 2023-03-15 | T45: 0
B46: =E2 -> 44690 | C46: =LOOKUP(C2,J2:J67,M2:M67)*E4 -> 45613938.41 | D46: =D16 -> 1402820.109 | E46: =(VLOOKUP($C$4,Índices!$K$1986:$Q$5000,4,FALSE)/VLOOKUP(B46,Índices!$K$1986:$Q$5000,4,FALSE))*SUM(C46:D46) -> 50685126.55 | F46: =(VLOOKUP($C$4,Índices!$K$1986:$Q$5000,4,FALSE)/VLOOKUP(B46,Índices!$K$1986:$Q$5000,4,FALSE))*SUM(C46:D46)*VLOOKUP($C$4,Índices!$K$1986:$Q$5000,7,FALSE)/VLOOKUP($B46,Índices!$K$1986:$Q$5000,7,FALSE) -> 51530800.1 | J46: ENEL SP | K46: 73677773.78 | L46: 146652852.2 | M46: 301103835.8 | N46: 521434461.8 | P46: 2024-07-04 | Q46: 2022-07-04 | R46: 1 | S46: 2023-07-04 | T46: 0
J47: ENERGISA AC | K47: 2333336.35 | L47: 4504833.62 | M47: 45613938.41 | N47: 52452108.38 | P47: 2023-12-13 | Q47: 2021-12-13 | R47: 0 | S47: 2022-12-13 | T47: 1
J48: ENERGISA BO | K48: 1220771.43 | L48: 2589091.73 | M48: 0 | N48: 3809863.16 | P48: 2024-08-28 | Q48: 2022-08-28 | S48: 2023-08-28
C49: Custo Spread após data de aniversário (até a efetiva devolução) | J49: ENERGISA MG | K49: 2797725.1 | L49: 5793230.32 | M49: 0 | N49: 8590955.42 | P49: 2024-06-22 | Q49: 2022-06-22 | S49: 2023-06-22
C50: Total até liquidação (SELIC) | D50: Total até liquidação (Selic + Spread) | E50: Delta | F50: Delta atualizado até data de aniversário (Selic) | G50: Projeção para compensação nos próximos 12 meses | H50: Teste de consistência (amortização mensal) | J50: ENERGISA MS | K50: 10120242.66 | L50: 25038753.82 | M50: 143516604.8 | N50: 178675601.3 | P50: 2024-04-08 | Q50: 2022-04-08 | R50: 1 | S50: 2023-04-08 | T50: 0
A51: 0 | B51: =C4+0*DATE(YEAR(C4),MONTH(C4),1) -> 44908 | C51: =E46/12 -> 4223760.546 | D51: =F46/12 -> 4294233.342 | E51: =D51-C51 -> 70472.79562 | F51: =E51*VLOOKUP($C$5,Índices!$K$7:$O$4000,4,0)/VLOOKUP($B51,Índices!$K$7:$O$4000,4,0)*VLOOKUP($C$5,Índices!$K$7:$S$4000,7,0)/VLOOKUP($B51,Índices!$K$7:$S$4000,7,0) -> 82030.35949 | H51: =F46*E4-C51 -> 47307039.55 | J51: ENERGISA MT | K51: 19358684.84 | L51: 34597057.3 | M51: 492122448 | N51: 546078190.1 | P51: 2024-04-08 | Q51: 2022-04-08 | R51: 1 | S51: 2023-04-08 | T51: 0
A52: 1 | B52: =EDATE(B51,1) -> 44939 | C52: =C51 -> 4223760.546 | D52: =$D$51*VLOOKUP($B52,Índices!$K$7:$Q$4000,7,0)/VLOOKUP($B$51,Índices!$K$7:$Q$4000,7,0)*VLOOKUP($B52,Índices!$K$7:$O$4000,4,0)/VLOOKUP($B$51,Índices!$K$7:$O$4000,4,0) -> 4355640.823 | E52: =D52-C52 -> 131880.2766 | F52: =E52*VLOOKUP($C$5,Índices!$K$7:$O$4000,4,0)/VLOOKUP($B52,Índices!$K$7:$O$4000,4,0)*VLOOKUP($C$5,Índices!$K$7:$S$4000,7,0)/VLOOKUP($B52,Índices!$K$7:$S$4000,7,0) -> 151344.4656 | G52: =$F$64/12*VLOOKUP(EDATE($C$5,A52),Índices!$K$7:$Q$4000,7,0)/VLOOKUP($C$5,Índices!$K$7:$Q$4000,7,0)*VLOOKUP(EDATE($C$5,A52),Índices!$K$7:$Q$4000,4,0)/VLOOKUP($C$5,Índices!$K$7:$Q$4000,4,0) -> 418394.3826 | H52: =H51*VLOOKUP(B52,Índices!$K$7:$Q$4000,7,0)/VLOOKUP(B51,Índices!$K$7:$Q$4000,7,0)*VLOOKUP(B52,Índices!$K$7:$Q$4000,4,0)/VLOOKUP(B51,Índices!$K$7:$Q$4000,4,0)-C52 -> 43759769.06 | J52: ENERGISA PB | K52: 9199261.93 | L52: 19682709.89 | M52: 0 | N52: 28881971.82 | P52: 2024-08-28 | Q52: 2022-08-28 | S52: 2023-08-28
A53: =A52+1 -> 2 | B53: =EDATE(B52,1) -> 44970 | C53: =C52 -> 4223760.546 | D53: =$D$51*VLOOKUP($B53,Índices!$K$7:$Q$4000,7,0)/VLOOKUP($B$51,Índices!$K$7:$Q$4000,7,0)*VLOOKUP($B53,Índices!$K$7:$O$4000,4,0)/VLOOKUP($B$51,Índices!$K$7:$O$4000,4,0) -> 4412475.114 | E53: 188714.5679 | F53: =E53*VLOOKUP($C$5,Índices!$K$7:$O$4000,4,0)/VLOOKUP($B53,Índices!$K$7:$O$4000,4,0)*VLOOKUP($C$5,Índices!$K$7:$S$4000,7,0)/VLOOKUP($B53,Índices!$K$7:$S$4000,7,0) -> 213777.4598 | G53: =$F$64/12*VLOOKUP(EDATE($C$5,A53),Índices!$K$7:$Q$4000,7,0)/VLOOKUP($C$5,Índices!$K$7:$Q$4000,7,0)*VLOOKUP(EDATE($C$5,A53),Índices!$K$7:$Q$4000,4,0)/VLOOKUP($C$5,Índices!$K$7:$Q$4000,4,0) -> 423145.7557 | H53: =H52*VLOOKUP(B53,Índices!$K$7:$Q$4000,7,0)/VLOOKUP(B52,Índices!$K$7:$Q$4000,7,0)*VLOOKUP(B53,Índices!$K$7:$Q$4000,4,0)/VLOOKUP(B52,Índices!$K$7:$Q$4000,4,0)-C53 -> 40107004.97 | J53: ENERGISA RO | K53: 9253058.91 | L53: 16593870.43 | M53: 0 | N53: 25846929.34 | P53: 2023-12-13 | Q53: 2021-12-13 | S53: 2022-12-13
A54: =A53+1 -> 3 | B54: 44998 | C54: 4223760.546 | D54: =$D$51*VLOOKUP($B54,Índices!$K$7:$Q$4000,7,0)/VLOOKUP($B$51,Índices!$K$7:$Q$4000,7,0)*VLOOKUP($B54,Índices!$K$7:$O$4000,4,0)/VLOOKUP($B$51,Índices!$K$7:$O$4000,4,0) -> 4461780.107 | E54: 238019.5611 | F54: =E54*VLOOKUP($C$5,Índices!$K$7:$O$4000,4,0)/VLOOKUP($B54,Índices!$K$7:$O$4000,4,0)*VLOOKUP($C$5,Índices!$K$7:$S$4000,7,0)/VLOOKUP($B54,Índices!$K$7:$S$4000,7,0) -> 266651.0153 | G54: =$F$64/12*VLOOKUP(EDATE($C$5,A54),Índices!$K$7:$Q$4000,7,0)/VLOOKUP($C$5,Índices!$K$7:$Q$4000,7,0)*VLOOKUP(EDATE($C$5,A54),Índices!$K$7:$Q$4000,4,0)/VLOOKUP($C$5,Índices!$K$7:$Q$4000,4,0) -> 428145.8598 | H54: =H53*VLOOKUP(B54,Índices!$K$7:$Q$4000,7,0)/VLOOKUP(B53,Índices!$K$7:$Q$4000,7,0)*VLOOKUP(B54,Índices!$K$7:$Q$4000,4,0)/VLOOKUP(B53,Índices!$K$7:$Q$4000,4,0)-C54 -> 36331400.06 | J54: ENERGISA SE | K54: 6064448.75 | L54: 12407038.76 | M54: 62876524.19 | N54: 81348011.7 | P54: 2024-04-22 | Q54: 2022-04-22 | R54: 1 | S54: 2023-04-22 | T54: 0
A55: 4 | B55: 45029 | C55: 4223760.546 | D55: =$D$51*VLOOKUP($B55,Índices!$K$7:$Q$4000,7,0)/VLOOKUP($B$51,Índices!$K$7:$Q$4000,7,0)*VLOOKUP($B55,Índices!$K$7:$O$4000,4,0)/VLOOKUP($B$51,Índices!$K$7:$O$4000,4,0) -> 4522790.565 | E55: 299030.0194 | F55: =E55*VLOOKUP($C$5,Índices!$K$7:$O$4000,4,0)/VLOOKUP($B55,Índices!$K$7:$O$4000,4,0)*VLOOKUP($C$5,Índices!$K$7:$S$4000,7,0)/VLOOKUP($B55,Índices!$K$7:$S$4000,7,0) -> 330481.4335 | G55: =$F$64/12*VLOOKUP(EDATE($C$5,A55),Índices!$K$7:$Q$4000,7,0)/VLOOKUP($C$5,Índices!$K$7:$Q$4000,7,0)*VLOOKUP(EDATE($C$5,A55),Índices!$K$7:$Q$4000,4,0)/VLOOKUP($C$5,Índices!$K$7:$Q$4000,4,0) -> 433300.0027 | H55: =H54*VLOOKUP(B55,Índices!$K$7:$Q$4000,7,0)/VLOOKUP(B54,Índices!$K$7:$Q$4000,7,0)*VLOOKUP(B55,Índices!$K$7:$Q$4000,4,0)/VLOOKUP(B54,Índices!$K$7:$Q$4000,4,0)-C55 -> 32604435.71 | J55: ENERGISA SS | K55: 7898702.94 | L55: 16188590.08 | M55: 20310139.72 | N55: 44397432.74 | P55: 2024-07-12 | Q55: 2022-07-12 | R55: 1 | S55: 2023-07-12 | T55: 0
A56: 5 | B56: 45059 | C56: 4223760.546 | D56: =$D$51*VLOOKUP($B56,Índices!$K$7:$Q$4000,7,0)/VLOOKUP($B$51,Índices!$K$7:$Q$4000,7,0)*VLOOKUP($B56,Índices!$K$7:$O$4000,4,0)/VLOOKUP($B$51,Índices!$K$7:$O$4000,4,0) -> 4576653.872 | E56: 352893.3255 | F56: =E56*VLOOKUP($C$5,Índices!$K$7:$O$4000,4,0)/VLOOKUP($B56,Índices!$K$7:$O$4000,4,0)*VLOOKUP($C$5,Índices!$K$7:$S$4000,7,0)/VLOOKUP($B56,Índices!$K$7:$S$4000,7,0) -> 385419.8964 | G56: =$F$64/12*VLOOKUP(EDATE($C$5,A56),Índices!$K$7:$Q$4000,7,0)/VLOOKUP($C$5,Índices!$K$7:$Q$4000,7,0)*VLOOKUP(EDATE($C$5,A56),Índices!$K$7:$Q$4000,4,0)/VLOOKUP($C$5,Índices!$K$7:$Q$4000,4,0) -> 438172.6278 | H56: =H55*VLOOKUP(B56,Índices!$K$7:$Q$4000,7,0)/VLOOKUP(B55,Índices!$K$7:$Q$4000,7,0)*VLOOKUP(B56,Índices!$K$7:$Q$4000,4,0)/VLOOKUP(B55,Índices!$K$7:$Q$4000,4,0)-C56 -> 28768971.43 | J56: ENERGISA TO | K56: 5701098.38 | L56: 9285860.09 | M56: 0 | N56: 14986958.47 | P56: 2024-07-04 | Q56: 2022-07-04 | S56: 2023-07-04
A57: 6 | B57: 45090 | C57: 4223760.546 | D57: =$D$51*VLOOKUP($B57,Índices!$K$7:$Q$4000,7,0)/VLOOKUP($B$51,Índices!$K$7:$Q$4000,7,0)*VLOOKUP($B57,Índices!$K$7:$O$4000,4,0)/VLOOKUP($B$51,Índices!$K$7:$O$4000,4,0) -> 4635863.993 | E57: 412103.4466 | F57: =E57*VLOOKUP($C$5,Índices!$K$7:$O$4000,4,0)/VLOOKUP($B57,Índices!$K$7:$O$4000,4,0)*VLOOKUP($C$5,Índices!$K$7:$S$4000,7,0)/VLOOKUP($B57,Índices!$K$7:$S$4000,7,0) -> 444338.879 | G57: =$F$64/12*VLOOKUP(EDATE($C$5,A57),Índices!$K$7:$Q$4000,7,0)/VLOOKUP($C$5,Índices!$K$7:$Q$4000,7,0)*VLOOKUP(EDATE($C$5,A57),Índices!$K$7:$Q$4000,4,0)/VLOOKUP($C$5,Índices!$K$7:$Q$4000,4,0) -> 443649.3021 | H57: =H56*VLOOKUP(B57,Índices!$K$7:$Q$4000,7,0)/VLOOKUP(B56,Índices!$K$7:$Q$4000,7,0)*VLOOKUP(B57,Índices!$K$7:$Q$4000,4,0)/VLOOKUP(B56,Índices!$K$7:$Q$4000,4,0)-C57 -> 24917407.32 | J57: EQUATORIAL AL | K57: 8199058.37 | L57: 20476639.84 | M57: 259450361.1 | N57: 288126059.3 | P57: 2024-05-03 | Q57: 2022-05-03 | R57: 1 | S57: 2023-05-03 | T57: 0
A58: 7 | B58: 45120 | C58: 4223760.546 | D58: =$D$51*VLOOKUP($B58,Índices!$K$7:$Q$4000,7,0)/VLOOKUP($B$51,Índices!$K$7:$Q$4000,7,0)*VLOOKUP($B58,Índices!$K$7:$O$4000,4,0)/VLOOKUP($B$51,Índices!$K$7:$O$4000,4,0) -> 4699254.877 | E58: 475494.331 | F58: =E58*VLOOKUP($C$5,Índices!$K$7:$O$4000,4,0)/VLOOKUP($B58,Índices!$K$7:$O$4000,4,0)*VLOOKUP($C$5,Índices!$K$7:$S$4000,7,0)/VLOOKUP($B58,Índices!$K$7:$S$4000,7,0) -> 505772.366 | G58: =$F$64/12*VLOOKUP(EDATE($C$5,A58),Índices!$K$7:$Q$4000,7,0)/VLOOKUP($C$5,Índices!$K$7:$Q$4000,7,0)*VLOOKUP(EDATE($C$5,A58),Índices!$K$7:$Q$4000,4,0)/VLOOKUP($C$5,Índices!$K$7:$Q$4000,4,0) -> 448990.0799 | H58: =H57*VLOOKUP(B58,Índices!$K$7:$Q$4000,7,0)/VLOOKUP(B57,Índices!$K$7:$Q$4000,7,0)*VLOOKUP(B58,Índices!$K$7:$Q$4000,4,0)/VLOOKUP(B57,Índices!$K$7:$Q$4000,4,0)-C58 -> 21034367.84 | J58: EQUATORIAL MA | K58: 17612582.94 | L58: 30843428.25 | M58: 0 | N58: 48456011.19 | P58: 2024-08-28 | Q58: 2022-08-28 | S58: 2023-08-28
A59: 8 | B59: 45151 | C59: 4223760.546 | D59: =$D$51*VLOOKUP($B59,Índices!$K$7:$Q$4000,7,0)/VLOOKUP($B$51,Índices!$K$7:$Q$4000,7,0)*VLOOKUP($B59,Índices!$K$7:$O$4000,4,0)/VLOOKUP($B$51,Índices!$K$7:$O$4000,4,0) -> 4760511.264 | E59: 536750.7182 | F59: =E59*VLOOKUP($C$5,Índices!$K$7:$O$4000,4,0)/VLOOKUP($B59,Índices!$K$7:$O$4000,4,0)*VLOOKUP($C$5,Índices!$K$7:$S$4000,7,0)/VLOOKUP($B59,Índices!$K$7:$S$4000,7,0) -> 563582.8792 | G59: =$F$64/12*VLOOKUP(EDATE($C$5,A59),Índices!$K$7:$Q$4000,7,0)/VLOOKUP($C$5,Índices!$K$7:$Q$4000,7,0)*VLOOKUP(EDATE($C$5,A59),Índices!$K$7:$Q$4000,4,0)/VLOOKUP($C$5,Índices!$K$7:$Q$4000,4,0) -> 454552.146 | H59: =H58*VLOOKUP(B59,Índices!$K$7:$Q$4000,7,0)/VLOOKUP(B58,Índices!$K$7:$Q$4000,7,0)*VLOOKUP(B59,Índices!$K$7:$Q$4000,4,0)/VLOOKUP(B58,Índices!$K$7:$Q$4000,4,0)-C59 -> 17084797.44 | J59: EQUATORIAL PA | K59: 25659797.83 | L59: 44526703.54 | M59: 0 | N59: 70186501.37 | P59: 2024-08-07 | Q59: 2022-08-07 | S59: 2023-08-07
A60: 9 | B60: 45182 | C60: 4223760.546 | D60: =$D$51*VLOOKUP($B60,Índices!$K$7:$Q$4000,7,0)/VLOOKUP($B$51,Índices!$K$7:$Q$4000,7,0)*VLOOKUP($B60,Índices!$K$7:$O$4000,4,0)/VLOOKUP($B$51,Índices!$K$7:$O$4000,4,0) -> 4823220.366 | E60: 599459.8197 | F60: =E60*VLOOKUP($C$5,Índices!$K$7:$O$4000,4,0)/VLOOKUP($B60,Índices!$K$7:$O$4000,4,0)*VLOOKUP($C$5,Índices!$K$7:$S$4000,7,0)/VLOOKUP($B60,Índices!$K$7:$S$4000,7,0) -> 621243.3149 | G60: =$F$64/12*VLOOKUP(EDATE($C$5,A60),Índices!$K$7:$Q$4000,7,0)/VLOOKUP($C$5,Índices!$K$7:$Q$4000,7,0)*VLOOKUP(EDATE($C$5,A60),Índices!$K$7:$Q$4000,4,0)/VLOOKUP($C$5,Índices!$K$7:$Q$4000,4,0) -> 460493.4722 | H60: =H59*VLOOKUP(B60,Índices!$K$7:$Q$4000,7,0)/VLOOKUP(B59,Índices!$K$7:$Q$4000,7,0)*VLOOKUP(B60,Índices!$K$7:$Q$4000,4,0)/VLOOKUP(B59,Índices!$K$7:$Q$4000,4,0)-C60 -> 13086090.93 | J60: EQUATORIAL PI | K60: 10226718.77 | L60: 16701350.62 | M60: 77646611.37 | N60: 104574680.8 | P60: 2023-12-02 | Q60: 2021-12-02 | R60: 0 | S60: 2022-12-02 | T60: 1
A61: 10 | B61: 45212 | C61: 4223760.546 | D61: =$D$51*VLOOKUP($B61,Índices!$K$7:$Q$4000,7,0)/VLOOKUP($B$51,Índices!$K$7:$Q$4000,7,0)*VLOOKUP($B61,Índices!$K$7:$O$4000,4,0)/VLOOKUP($B$51,Índices!$K$7:$O$4000,4,0) -> 4882987.357 | E61: 659226.8111 | F61: =E61*VLOOKUP($C$5,Índices!$K$7:$O$4000,4,0)/VLOOKUP($B61,Índices!$K$7:$O$4000,4,0)*VLOOKUP($C$5,Índices!$K$7:$S$4000,7,0)/VLOOKUP($B61,Índices!$K$7:$S$4000,7,0) -> 674820.1103 | G61: =$F$64/12*VLOOKUP(EDATE($C$5,A61),Índices!$K$7:$Q$4000,7,0)/VLOOKUP($C$5,Índices!$K$7:$Q$4000,7,0)*VLOOKUP(EDATE($C$5,A61),Índices!$K$7:$Q$4000,4,0)/VLOOKUP($C$5,Índices!$K$7:$Q$4000,4,0) -> 465773.9699 | H61: =H60*VLOOKUP(B61,Índices!$K$7:$Q$4000,7,0)/VLOOKUP(B60,Índices!$K$7:$Q$4000,7,0)*VLOOKUP(B61,Índices!$K$7:$Q$4000,4,0)/VLOOKUP(B60,Índices!$K$7:$Q$4000,4,0)-C61 -> 9024486.833 | J61: LIGHT | K61: 45683008.92 | L61: 128169334.7 | M61: 0 | N61: 173852343.6 | P61: 2024-03-15 | Q61: 2022-03-15 | S61: 2023-03-15
A62: 11 | B62: 45243 | C62: 4223760.546 | D62: =$D$51*VLOOKUP($B62,Índices!$K$7:$Q$4000,7,0)/VLOOKUP($B$51,Índices!$K$7:$Q$4000,7,0)*VLOOKUP($B62,Índices!$K$7:$O$4000,4,0)/VLOOKUP($B$51,Índices!$K$7:$O$4000,4,0) -> 4939572.942 | E62: 715812.3964 | F62: =E62*VLOOKUP($C$5,Índices!$K$7:$O$4000,4,0)/VLOOKUP($B62,Índices!$K$7:$O$4000,4,0)*VLOOKUP($C$5,Índices!$K$7:$S$4000,7,0)/VLOOKUP($B62,Índices!$K$7:$S$4000,7,0) -> 724350.1702 | G62: =$F$64/12*VLOOKUP(EDATE($C$5,A62),Índices!$K$7:$Q$4000,7,0)/VLOOKUP($C$5,Índices!$K$7:$Q$4000,7,0)*VLOOKUP(EDATE($C$5,A62),Índices!$K$7:$Q$4000,4,0)/VLOOKUP($C$5,Índices!$K$7:$Q$4000,4,0) -> 471810.2678 | H62: =H61*VLOOKUP(B62,Índices!$K$7:$Q$4000,7,0)/VLOOKUP(B61,Índices!$K$7:$Q$4000,7,0)*VLOOKUP(B62,Índices!$K$7:$Q$4000,4,0)/VLOOKUP(B61,Índices!$K$7:$Q$4000,4,0)-C62 -> 4905304.864 | J62: MUX ENERGIA | K62: 140217.83 | L62: 293441.14 | M62: 0 | N62: 433658.97 | P62: 2024-07-22 | Q62: 2022-07-22 | S62: 2023-07-22
A63: 12 | B63: 45273 | G63: =$F$64/12*VLOOKUP(EDATE($C$5,A63),Índices!$K$7:$Q$4000,7,0)/VLOOKUP($C$5,Índices!$K$7:$Q$4000,7,0)*VLOOKUP(EDATE($C$5,A63),Índices!$K$7:$Q$4000,4,0)/VLOOKUP($C$5,Índices!$K$7:$Q$4000,4,0) -> 477437.733 | H63: =H62*VLOOKUP(B63,Índices!$K$7:$Q$4000,7,0)/VLOOKUP(B62,Índices!$K$7:$Q$4000,7,0)*VLOOKUP(B63,Índices!$K$7:$Q$4000,4,0)/VLOOKUP(B62,Índices!$K$7:$Q$4000,4,0)-C63 -> 4963812.35 | J63: NDB | K63: 13714135.48 | L63: 27468454.24 | M63: 0 | N63: 41182589.72 | P63: 2024-10-22 | Q63: 2022-10-22 | S63: 2023-10-22
B64: =C5 -> 45273 | F64: =SUM(F51:F62) -> 4963812.35 | G64: =SUM(G51:G63) -> 5363865.599 | H64: =IFERROR(G64/F64*H63,0) -> 5363865.599 | J64: Neoenergia BA | K64: 41628847.65 | L64: 85519593.7 | M64: 0 | N64: 127148441.3 | P64: 2024-04-22 | Q64: 2022-04-22 | S64: 2023-04-22
J65: Neoenergia RN | K65: 10933623.89 | L65: 22188087.3 | M65: 0 | N65: 33121711.19 | P65: 2024-04-22 | Q65: 2022-04-22 | S65: 2023-04-22
J66: NOVA PALMA | K66: 150108.38 | L66: 476068.17 | M66: 1774361.89 | N66: 2400538.44 | P66: 2024-07-22 | Q66: 2022-07-22 | R66: 1 | S66: 2023-07-22 | T66: 0
J67: RGE | K67: 29950786.02 | L67: 77840253.57 | M67: 180114378.9 | N67: 287905418.5 | P67: 2024-06-19 | Q67: 2022-06-19 | R67: 1 | S67: 2023-06-19 | T67: 0
J68: Total Primeiro | K68: 786058986.1 | L68: 1672723152 | M68: 2362687491 | N68: 4821469629
J69: Repasse
K70: =SUM(K2:K67) -> 786058986.1 | L70: 1672723152 | M70: 2362687491 | N70: =SUM(N2:N67) -> 4821469629
F74: RTA 2022 | G74: Proporção por item
B75: Empr. Escassez Hídrica- Diferimento de energia - Energia de Revenda | F75: -37599501.11 | G75: =F75/$F$80 -> 0.7755879221 | H75: =$H$9*G75 -> -4160149.375
B76: Empr. Escassez Hídrica- Diferimento de energia - Perda Não Técnica | F76: -4925251.927 | G76: =F76/$F$80 -> 0.101596186 | H76: =$H$9*G76 -> -544948.2871
B77: Empr. Escassez Hídrica- Diferimento de energia - Perda Técnica | F77: -4865061.381 | G77: 0.1003545988 | H77: -538288.58
B78: Empr. Escassez Hídrica- Diferimento de energia - Perda RB Perda RB sobre Dist. | F78: -224955.8976 | G78: 0.004640302984 | H78: -24889.96155
B79: Empr. Escassez Hídrica- Diferimento de energia - Perda RB sobre Merc. Cat. | F79: -863938.5948 | G79: 0.01782099017 | H79: -95589.39611
B80: Total revertido no RTA de 2022 | F80: =SUM(F75:F79) -> -48478708.91 | G80: 1 | H80: =SUM(H75:H79) -> -5363865.599

Sheet BD_Uderor
K1: Número de lançamentos por item e por competência
A2: Dados SAMP Opção:Cativo Classe:Industrial | K2: Descrição | L2: =DATE(YEAR(LnkTxtDRPData),MONTH(LnkTxtDRPData),1) -> 2023-12-01 | M2: =EDATE(L2,-1) -> 2023-11-01 | N2: =EDATE(M2,-1) -> 2023-10-01 | O2: 2023-09-01 | P2: 2023-08-01 | Q2: 2023-07-01 | R2: 2023-06-01 | S2: 2023-05-01 | T2: 2023-04-01 | U2: 2023-03-01 | V2: 2023-02-01 | W2: 2023-01-01 | X2: 2022-12-01 | Y2: 2022-11-01 | Z2: 2022-10-01 | AA2: 2022-09-01
A3: Competencia | B3: COFINS (R$) | C3: ICMS (R$) | D3: PIS/PASEP (R$) | E3: Receita Bandeiras (R$) | F3: Receita Demanda (R$) | G3: Receita Energia (R$) | H3: PIS_Cofins_% | I3: ICMS_% | K3: =Entrada!P8 -> Serviços Cobráveis | L3: =IF(COUNTIFS($C$30:$C$200000,$K3,$H$30:$H$200000,L$2)=0,"",COUNTIFS($C$30:$C$200000,$K3,$H$30:$H$200000,L$2)) ->  | M3: =IF(COUNTIFS($C$30:$C$200000,$K3,$H$30:$H$200000,M$2)=0,"",COUNTIFS($C$30:$C$200000,$K3,$H$30:$H$200000,M$2)) -> 1 | N3: 1 | O3: 1 | P3: 1 | Q3: 1 | R3: 1 | S3: 1 | T3: 1 | U3: 1 | V3: 1 | W3: 1 | X3: 1 | Y3: 1 | Z3: 1 | AA3: 1
A4: 44805 | B4: 82700.65 | C4: 341499.37 | D4: 17953.23 | E4: 177.13 | F4: 381822.94 | G4: 1115978.16 | H4: 0.05188940202 | I4: 0.1760508199 | K4: =Entrada!P9 -> Arrecadação de convênios ou valores pela fatura | L4: =IF(COUNTIFS($C$30:$C$200000,$K4,$H$30:$H$200000,L$2)=0,"",COUNTIFS($C$30:$C$200000,$K4,$H$30:$H$200000,L$2)) ->  | M4: 1 | N4: 1 | O4: 1 | P4: 1 | Q4: 1 | R4: 1 | S4: 1 | T4: 1 | U4: 1 | V4: 1 | W4: 1 | X4: 1 | Y4: 1 | Z4: 1 | AA4: 1
A5: 44835 | B5: 81099.18 | C5: 332292.92 | D5: 17593.8 | E5: -273.5 | F5: 387181.91 | G5: 1085073.34 | H5: 0.05184776487 | I5: 0.1745680917 | K5: =Entrada!P10 -> Arrecadação de faturas de terceiros por estrutura própria
A6: 44866 | B6: 72970.92 | C6: 329983.14 | D6: 15842.15 | F6: 394963.92 | G6: 1084313.1 | H6: 0.04679117149 | I6: 0.173851638 | K6: =Entrada!P11 -> Veiculação de publicidade
A7: 44896 | B7: 84871.64 | C7: 348576.05 | D7: 18424.83 | E7: -4487.3 | F7: 407551.58 | G7: 1185923.24 | H7: 0.05039258679 | I7: 0.1700508144 | K7: =Entrada!P12 -> Aluguel ou cessão onerosa de imóveis e espaços físicos
A8: 44927 | B8: 80793.66 | C8: 354060.06 | D8: 17540.05 | F8: 415055.86 | G8: 1168220.52 | H8: 0.04830532589 | I8: 0.1739280109 | K8: =Entrada!P13 -> Compartilhamento de infraestrutura | M8: 1 | N8: 1 | O8: 1 | P8: 1 | Q8: 1 | R8: 1 | S8: 1 | T8: 1 | U8: 1 | V8: 1 | W8: 1 | X8: 1 | Y8: 1 | Z8: 1 | AA8: 1
A9: 44958 | B9: 49062.8 | C9: 285262.03 | D9: 10650.58 | E9: -1424.97 | F9: 339099.78 | G9: 967005.07 | H9: 0.03613506264 | I9: 0.1726239801 | K9: =Entrada!P14 -> Serviços de avaliação técnica e aferição de medidores.
A10: 44986 | B10: 71348.11 | C10: 330049.73 | D10: 15488.62 | F10: 347323.01 | G10: 1125290.09 | H10: 0.04595752856 | I10: 0.174675738 | K10: =Entrada!P15 -> Operacionalização de serviço de créditos tributários
A11: 45017 | B11: 80705.38 | C11: 359687.94 | D11: 17520.05 | F11: 353046.75 | G11: 1118830.9 | H11: 0.05089951657 | I11: 0.1863869902 | K11: =Entrada!P16 -> Elaboração de projeto, construção, operação, manutenção ou reforma de:
A12: 45047 | B12: 89640.29 | C12: 416403.25 | D12: 19459.75 | F12: 369017.68 | G12: 1274672.37 | H12: 0.05029521251 | I12: 0.1919622573 | K12: =Entrada!P17 -> (1) redes de distribuição de energia elétrica destinadas à regularização fundiária de interesse específico e ao atendimento dos empreendimentos de múltiplas unidades consumidoras;
A13: 45078 | B13: 90440.82 | C13: 423793.23 | D13: 19633.63 | F13: 360426.41 | G13: 1298772.91 | H13: 0.0501920142 | I13: 0.193242263 | K13: =Entrada!P18 -> (2) redes de energia elétrica destinadas ao acesso dos sistemas de distribuição ou transmissão;
A14: 45108 | B14: 85028.39 | C14: 398472.51 | D14: 18458.58 | F14: 374496.9 | G14: 1182255.1 | H14: 0.05026783549 | I14: 0.1935543246 | K14: =Entrada!P19 -> (3) subestações de energia;
A15: 45139 | B15: 89864.62 | C15: 421567.99 | D15: 19508.6 | F15: 364128.29 | G15: 1285043.69 | H15: 0.05016859698 | I15: 0.1933697718 | K15: =Entrada!P20 -> (4) instalações elétricas internas de unidades consumidoras;
A16: 45170 | B16: 81219.62 | C16: 382060.54 | D16: 17631.73 | F16: 346737.94 | G16: 1147644.47 | H16: 0.05004385929 | I16: 0.1934195527 | K16: =Entrada!P21 -> (5) banco de capacitores;
A17: 45200 | B17: 75073.96 | C17: 355476.34 | D17: 16297.59 | F17: 331680.31 | G17: 1051269.54 | H17: 0.04993532782 | I17: 0.1942708378 | K17: =Entrada!P22 -> (6) padrões de entrada de unidades consumidoras atendidas em baixa tensão;
K18: =Entrada!P23 -> (7) sistemas de medição de energia elétrica;
K19: =Entrada!P24 -> (8) geradores, incluindo-se unidades de microgeração e minigeração distribuída; | AA19: =IF(COUNTIFS($C$30:$C$200000,$K19,$H$30:$H$200000,AA$2)=0,"",COUNTIFS($C$30:$C$200000,$K19,$H$30:$H$200000,AA$2)) -> 
K20: =Entrada!P25 -> (9) sistemas de iluminação pública. | L20: =IF(COUNTIFS($C$30:$C$200000,$K20,$H$30:$H$200000,L$2)=0,"",COUNTIFS($C$30:$C$200000,$K20,$H$30:$H$200000,L$2)) -> 
K21: =Entrada!P26 -> (10) estações de recarga de veículos elétricos, incluindo a prestação de serviços aos usuários
K22: =Entrada!P27 -> Eficientização do consumo de energia elétrica e instalação de cogeração qualificada, desde que não enquadráveis nos projetos de Pesquisa e Desenvolvimento (P&D) ou de Eficiência Energética estabelecidos em lei
K23: =Entrada!P28 -> Serviços de comunicação de dados
K24: =Entrada!P29 -> Serviços de consultoria
K25: =Entrada!P30 -> Receita proveniente da comercialização de resultados de projetos de P&D COM comprovação
K26: =Entrada!P31 -> Receita proveniente da comercialização de resultados de projetos de P&D SEM comprovação
A28: Tab_Uderor | K28: Descrição | L28: =L2 -> 2023-12-01 | M28: =M2 -> 2023-11-01 | N28: 2023-10-01 | O28: 2023-09-01 | P28: 2023-08-01 | Q28: 2023-07-01 | R28: 2023-06-01 | S28: 2023-05-01 | T28: 2023-04-01 | U28: 2023-03-01 | V28: 2023-02-01 | W28: 2023-01-01 | X28: 2022-12-01 | Y28: 2022-11-01 | Z28: 2022-10-01 | AA28: =AA2 -> 2022-09-01
A29: IdeTipoReceita | B29: TipoReceitaArquivo | C29: TipoReceita | D29: CompetenciaArquivo | E29: Data_envio_arquivo | F29: NomeArquivo | G29: Data_Lancamento | H29: Competencia | I29: R$ | K29: =Entrada!P51 -> Ultrapassagem de Demanda | L29: =IF(COUNTIFS($C$30:$C$200000,$K29,$H$30:$H$200000,L$2)=0,"",COUNTIFS($C$30:$C$200000,$K29,$H$30:$H$200000,L$2)) ->  | M29: =IF(COUNTIFS($C$30:$C$200000,$K29,$H$30:$H$200000,M$2)=0,"",COUNTIFS($C$30:$C$200000,$K29,$H$30:$H$200000,M$2)) -> 1 | N29: 1 | O29: 1 | P29: 1 | Q29: 1 | R29: 1 | S29: 1 | T29: 1 | U29: 1 | V29: 1 | W29: 1 | X29: 1 | Y29: 1 | Z29: 1 | AA29: 1
A30: 1 | B30: Serviços Cobráveis | C30: Serviços Cobráveis | D30: 202209 | E30: 44872 | F30: APLCVA00026_FLXPAGAMENTOS_092022_S001.XML | G30: 44805 | H30: 44805 | I30: 112991.71 | K30: =Entrada!P52 -> Excedente Reativo | L30: =IF(COUNTIFS($C$30:$C$200000,$K30,$H$30:$H$200000,L$2)=0,"",COUNTIFS($C$30:$C$200000,$K30,$H$30:$H$200000,L$2)) ->  | M30: 1 | N30: 1 | O30: 1 | P30: 1 | Q30: 1 | R30: 1 | S30: 1 | T30: 1 | U30: 1 | V30: 1 | W30: 1 | X30: 1 | Y30: 1 | Z30: 1 | AA30: 1
A31: 1 | B31: Serviços Cobráveis | C31: Serviços Cobráveis | D31: 202210 | E31: 44968 | F31: APLCVA00026_FLXPAGAMENTOS_102022_S003.XML | G31: 44835 | H31: 44835 | I31: 109950.02
A32: 1 | B32: Serviços Cobráveis | C32: Serviços Cobráveis | D32: 202211 | E32: 45233 | F32: APLCVA00026_FLXPAGAMENTOS_112022_S003.XML | G32: 44866 | H32: 44866 | I32: 82882.29
A33: 1 | B33: Serviços Cobráveis | C33: Serviços Cobráveis | D33: 202212 | E33: 45204 | F33: APLCVA00026_FLXPAGAMENTOS_122022_S001.XML | G33: 44896 | H33: 44896 | I33: 81845.16
A34: 1 | B34: Serviços Cobráveis | C34: Serviços Cobráveis | D34: 202301 | E34: 45026 | F34: APLCVA00026_FLXPAGAMENTOS_012023_S002.XML | G34: 44927 | H34: 44927 | I34: 93497.47 | K34: Data do último Lançamento por item e competência
A35: 1 | B35: Serviços Cobráveis | C35: Serviços Cobráveis | D35: 202302 | E35: 45201 | F35: APLCVA00026_FLXPAGAMENTOS_022023_S006.XML | G35: 44958 | H35: 44958 | I35: 85997.21 | K35: Descrição | L35: =DATE(YEAR(LnkTxtDRPData),MONTH(LnkTxtDRPData),1) -> 2023-12-01 | M35: =EDATE(L35,-1) -> 2023-11-01 | N35: =EDATE(M35,-1) -> 2023-10-01 | O35: 2023-09-01 | P35: 2023-08-01 | Q35: 2023-07-01 | R35: 2023-06-01 | S35: 2023-05-01 | T35: 2023-04-01 | U35: 2023-03-01 | V35: 2023-02-01 | W35: 2023-01-01 | X35: 2022-12-01 | Y35: 2022-11-01 | Z35: 2022-10-01 | AA35: 2022-09-01
A36: 1 | B36: Serviços Cobráveis | C36: Serviços Cobráveis | D36: 202303 | E36: 45201 | F36: APLCVA00026_FLXPAGAMENTOS_032023_S005.XML | G36: 44986 | H36: 44986 | I36: 82147.38 | K36: =Entrada!P8 -> Serviços Cobráveis | L36: =IF(_xlfn.MAXIFS($G$30:$G$200000,$C$30:$C$200000,$K36,$H$30:$H$200000,L$2)=0,"",_xlfn.MAXIFS($G$30:$G$200000,$C$30:$C$200000,$K36,$H$30:$H$200000,L$2)) ->  | M36: 45231 | N36: 45200 | O36: 45170 | P36: 45139 | Q36: 45108 | R36: 45078 | S36: 45047 | T36: 45017 | U36: 44986 | V36: 44958 | W36: 44927 | X36: 44896 | Y36: 44866 | Z36: 44835 | AA36: 44805
A37: 1 | B37: Serviços Cobráveis | C37: Serviços Cobráveis | D37: 202304 | E37: 45209 | F37: APLCVA00026_FLXPAGAMENTOS_042023_S004.XML | G37: 45017 | H37: 45017 | I37: 69835.75 | K37: =Entrada!P9 -> Arrecadação de convênios ou valores pela fatura | M37: 45231 | N37: 45200 | O37: 45170 | P37: 45139 | Q37: 45108 | R37: 45078 | S37: 45047 | T37: 45017 | U37: 44986 | V37: 44958 | W37: 44927 | X37: 44896 | Y37: 44866 | Z37: 44835 | AA37: 44805
A38: 1 | B38: Serviços Cobráveis | C38: Serviços Cobráveis | D38: 202305 | E38: 45201 | F38: APLCVA00026_FLXPAGAMENTOS_052023_S002.XML | G38: 45047 | H38: 45047 | I38: 90207.36 | K38: =Entrada!P10 -> Arrecadação de faturas de terceiros por estrutura própria
A39: 1 | B39: Serviços Cobráveis | C39: Serviços Cobráveis | D39: 202306 | E39: 45201 | F39: APLCVA00026_FLXPAGAMENTOS_062023_S003.XML | G39: 45078 | H39: 45078 | I39: 91402.97 | K39: =Entrada!P11 -> Veiculação de publicidade
A40: 1 | B40: Serviços Cobráveis | C40: Serviços Cobráveis | D40: 202307 | E40: 45240 | F40: APLCVA00026_FLXPAGAMENTOS_072023_S004.XML | G40: 45108 | H40: 45108 | I40: 96550.88 | K40: =Entrada!P12 -> Aluguel ou cessão onerosa de imóveis e espaços físicos
A41: 1 | B41: Serviços Cobráveis | C41: Serviços Cobráveis | D41: 202308 | E41: 45240 | F41: APLCVA00026_FLXPAGAMENTOS_082023_S003.XML | G41: 45139 | H41: 45139 | I41: 106352.5 | K41: =Entrada!P13 -> Compartilhamento de infraestrutura | M41: 45231 | N41: 45200 | O41: 45170 | P41: 45139 | Q41: 45108 | R41: 45078 | S41: 45047 | T41: 45017 | U41: 44986 | V41: 44958 | W41: 44927 | X41: 44896 | Y41: 44866 | Z41: 44835 | AA41: 44805
A42: 1 | B42: Serviços Cobráveis | C42: Serviços Cobráveis | D42: 202309 | E42: 45240 | F42: APLCVA00026_FLXPAGAMENTOS_092023_S002.XML | G42: 45170 | H42: 45170 | I42: 102928.85 | K42: =Entrada!P14 -> Serviços de avaliação técnica e aferição de medidores.
A43: 1 | B43: Serviços Cobráveis | C43: Serviços Cobráveis | D43: 202310 | E43: 45240 | F43: APLCVA00026_FLXPAGAMENTOS_102023_S001.XML | G43: 45200 | H43: 45200 | I43: 89702.74 | K43: =Entrada!P15 -> Operacionalização de serviço de créditos tributários
A44: 1 | B44: Serviços Cobráveis | C44: Serviços Cobráveis | D44: 202311 | E44: 45240 | F44: APLCVA00026_FLXPAGAMENTOS_112023_S000.XML | G44: 45231 | H44: 45231 | I44: 0 | K44: =Entrada!P16 -> Elaboração de projeto, construção, operação, manutenção ou reforma de:
A45: 2 | B45: Arrecadação de convênios ou valores pela fatura | C45: Arrecadação de convênios ou valores pela fatura | D45: 202209 | E45: 44872 | F45: APLCVA00026_FLXPAGAMENTOS_092022_S001.XML | G45: 44805 | H45: 44805 | I45: 0 | K45: =Entrada!P17 -> (1) redes de distribuição de energia elétrica destinadas à regularização fundiária de interesse específico e ao atendimento dos empreendimentos de múltiplas unidades consumidoras;
A46: 2 | B46: Arrecadação de convênios ou valores pela fatura | C46: Arrecadação de convênios ou valores pela fatura | D46: 202210 | E46: 44968 | F46: APLCVA00026_FLXPAGAMENTOS_102022_S003.XML | G46: 44835 | H46: 44835 | I46: 0 | K46: =Entrada!P18 -> (2) redes de energia elétrica destinadas ao acesso dos sistemas de distribuição ou transmissão; | L46: =IF(_xlfn.MAXIFS($G$30:$G$200000,$C$30:$C$200000,$K46,$H$30:$H$200000,L$2)=0,"",_xlfn.MAXIFS($G$30:$G$200000,$C$30:$C$200000,$K46,$H$30:$H$200000,L$2)) -> 
A47: 2 | B47: Arrecadação de convênios ou valores pela fatura | C47: Arrecadação de convênios ou valores pela fatura | D47: 202211 | E47: 45233 | F47: APLCVA00026_FLXPAGAMENTOS_112022_S003.XML | G47: 44866 | H47: 44866 | I47: 0 | K47: =Entrada!P19 -> (3) subestações de energia;
A48: 2 | B48: Arrecadação de convênios ou valores pela fatura | C48: Arrecadação de convênios ou valores pela fatura | D48: 202212 | E48: 45204 | F48: APLCVA00026_FLXPAGAMENTOS_122022_S001.XML | G48: 44896 | H48: 44896 | I48: 0 | K48: =Entrada!P20 -> (4) instalações elétricas internas de unidades consumidoras;
A49: 2 | B49: Arrecadação de convênios ou valores pela fatura | C49: Arrecadação de convênios ou valores pela fatura | D49: 202301 | E49: 45026 | F49: APLCVA00026_FLXPAGAMENTOS_012023_S002.XML | G49: 44927 | H49: 44927 | I49: 0 | K49: =Entrada!P21 -> (5) banco de capacitores;
A50: 2 | B50: Arrecadação de convênios ou valores pela fatura | C50: Arrecadação de convênios ou valores pela fatura | D50: 202302 | E50: 45201 | F50: APLCVA00026_FLXPAGAMENTOS_022023_S006.XML | G50: 44958 | H50: 44958 | I50: 0 | K50: =Entrada!P22 -> (6) padrões de entrada de unidades consumidoras atendidas em baixa tensão;
A51: 2 | B51: Arrecadação de convênios ou valores pela fatura | C51: Arrecadação de convênios ou valores pela fatura | D51: 202303 | E51: 45201 | F51: APLCVA00026_FLXPAGAMENTOS_032023_S005.XML | G51: 44986 | H51: 44986 | I51: 0 | K51: =Entrada!P23 -> (7) sistemas de medição de energia elétrica;
A52: 2 | B52: Arrecadação de convênios ou valores pela fatura | C52: Arrecadação de convênios ou valores pela fatura | D52: 202304 | E52: 45209 | F52: APLCVA00026_FLXPAGAMENTOS_042023_S004.XML | G52: 45017 | H52: 45017 | I52: 0 | K52: =Entrada!P24 -> (8) geradores, incluindo-se unidades de microgeração e minigeração distribuída;
A53: 2 | B53: Arrecadação de convênios ou valores pela fatura | C53: Arrecadação de convênios ou valores pela fatura | D53: 202305 | E53: 45201 | F53: APLCVA00026_FLXPAGAMENTOS_052023_S002.XML | G53: 45047 | H53: 45047 | I53: 0 | K53: =Entrada!P25 -> (9) sistemas de iluminação pública.
A54: 2 | B54: Arrecadação de convênios ou valores pela fatura | C54: Arrecadação de convênios ou valores pela fatura | D54: 202306 | E54: 45201 | F54: APLCVA00026_FLXPAGAMENTOS_062023_S003.XML | G54: 45078 | H54: 45078 | I54: 0 | K54: =Entrada!P26 -> (10) estações de recarga de veículos elétricos, incluindo a prestação de serviços aos usuários
A55: 2 | B55: Arrecadação de convênios ou valores pela fatura | C55: Arrecadação de convênios ou valores pela fatura | D55: 202307 | E55: 45240 | F55: APLCVA00026_FLXPAGAMENTOS_072023_S004.XML | G55: 45108 | H55: 45108 | I55: 0 | K55: =Entrada!P27 -> Eficientização do consumo de energia elétrica e instalação de cogeração qualificada, desde que não enquadráveis nos projetos de Pesquisa e Desenvolvimento (P&D) ou de Eficiência Energética estabelecidos em lei
A56: 2 | B56: Arrecadação de convênios ou valores pela fatura | C56: Arrecadação de convênios ou valores pela fatura | D56: 202308 | E56: 45240 | F56: APLCVA00026_FLXPAGAMENTOS_082023_S003.XML | G56: 45139 | H56: 45139 | I56: 0 | K56: =Entrada!P28 -> Serviços de comunicação de dados
A57: 2 | B57: Arrecadação de convênios ou valores pela fatura | C57: Arrecadação de convênios ou valores pela fatura | D57: 202309 | E57: 45240 | F57: APLCVA00026_FLXPAGAMENTOS_092023_S002.XML | G57: 45170 | H57: 45170 | I57: 0 | K57: =Entrada!P29 -> Serviços de consultoria
A58: 2 | B58: Arrecadação de convênios ou valores pela fatura | C58: Arrecadação de convênios ou valores pela fatura | D58: 202310 | E58: 45240 | F58: APLCVA00026_FLXPAGAMENTOS_102023_S001.XML | G58: 45200 | H58: 45200 | I58: 0 | K58: =Entrada!P30 -> Receita proveniente da comercialização de resultados de projetos de P&D COM comprovação
A59: 2 | B59: Arrecadação de convênios ou valores pela fatura | C59: Arrecadação de convênios ou valores pela fatura | D59: 202311 | E59: 45240 | F59: APLCVA00026_FLXPAGAMENTOS_112023_S000.XML | G59: 45231 | H59: 45231 | I59: 0 | K59: =Entrada!P31 -> Receita proveniente da comercialização de resultados de projetos de P&D SEM comprovação
A60: 6 | B60: Compartilhamento de infraestrutura | C60: Compartilhamento de infraestrutura | D60: 202209 | E60: 44872 | F60: APLCVA00026_FLXPAGAMENTOS_092022_S001.XML | G60: 44805 | H60: 44805 | I60: 260939.1
A61: 6 | B61: Compartilhamento de infraestrutura | C61: Compartilhamento de infraestrutura | D61: 202210 | E61: 44968 | F61: APLCVA00026_FLXPAGAMENTOS_102022_S003.XML | G61: 44835 | H61: 44835 | I61: 261915.59 | K61: Descrição | L61: =L35 -> 2023-12-01 | M61: =M35 -> 2023-11-01 | N61: 2023-10-01 | O61: 2023-09-01 | P61: 2023-08-01 | Q61: 2023-07-01 | R61: 2023-06-01 | S61: 2023-05-01 | T61: 2023-04-01 | U61: 2023-03-01 | V61: 2023-02-01 | W61: 2023-01-01 | X61: 2022-12-01 | Y61: 2022-11-01 | Z61: 2022-10-01 | AA61: 2022-09-01
A62: 6 | B62: Compartilhamento de infraestrutura | C62: Compartilhamento de infraestrutura | D62: 202211 | E62: 45233 | F62: APLCVA00026_FLXPAGAMENTOS_112022_S003.XML | G62: 44866 | H62: 44866 | I62: 242469.41 | K62: =Entrada!P51 -> Ultrapassagem de Demanda | L62: =IF(COUNTIFS($C$30:$C$200000,$K62,$H$30:$H$200000,L$2)=0,"",COUNTIFS($C$30:$C$200000,$K62,$H$30:$H$200000,L$2)) ->  | M62: 1 | N62: 1 | O62: 1 | P62: 1 | Q62: 1 | R62: 1 | S62: 1 | T62: 1 | U62: 1 | V62: 1 | W62: 1 | X62: 1 | Y62: 1 | Z62: 1 | AA62: 1
A63: 6 | B63: Compartilhamento de infraestrutura | C63: Compartilhamento de infraestrutura | D63: 202212 | E63: 45204 | F63: APLCVA00026_FLXPAGAMENTOS_122022_S001.XML | G63: 44896 | H63: 44896 | I63: 289923.33 | K63: =Entrada!P52 -> Excedente Reativo | M63: 1 | N63: =IF(COUNTIFS($C$30:$C$200000,$K63,$H$30:$H$200000,N$2)=0,"",COUNTIFS($C$30:$C$200000,$K63,$H$30:$H$200000,N$2)) -> 1 | O63: 1 | P63: 1 | Q63: 1 | R63: 1 | S63: 1 | T63: 1 | U63: 1 | V63: 1 | W63: 1 | X63: 1 | Y63: 1 | Z63: 1 | AA63: 1
A64: 6 | B64: Compartilhamento de infraestrutura | C64: Compartilhamento de infraestrutura | D64: 202301 | E64: 45026 | F64: APLCVA00026_FLXPAGAMENTOS_012023_S002.XML | G64: 44927 | H64: 44927 | I64: 290628.83
A65: 6 | B65: Compartilhamento de infraestrutura | C65: Compartilhamento de infraestrutura | D65: 202302 | E65: 45201 | F65: APLCVA00026_FLXPAGAMENTOS_022023_S006.XML | G65: 44958 | H65: 44958 | I65: 296213.2
A66: 6 | B66: Compartilhamento de infraestrutura | C66: Compartilhamento de infraestrutura | D66: 202303 | E66: 45201 | F66: APLCVA00026_FLXPAGAMENTOS_032023_S005.XML | G66: 44986 | H66: 44986 | I66: 475421.5
A67: 6 | B67: Compartilhamento de infraestrutura | C67: Compartilhamento de infraestrutura | D67: 202304 | E67: 45209 | F67: APLCVA00026_FLXPAGAMENTOS_042023_S004.XML | G67: 45017 | H67: 45017 | I67: 298856.5
A68: 6 | B68: Compartilhamento de infraestrutura | C68: Compartilhamento de infraestrutura | D68: 202305 | E68: 45201 | F68: APLCVA00026_FLXPAGAMENTOS_052023_S002.XML | G68: 45047 | H68: 45047 | I68: 320773.78
A69: 6 | B69: Compartilhamento de infraestrutura | C69: Compartilhamento de infraestrutura | D69: 202306 | E69: 45201 | F69: APLCVA00026_FLXPAGAMENTOS_062023_S003.XML | G69: 45078 | H69: 45078 | I69: 273546.9
A70: 6 | B70: Compartilhamento de infraestrutura | C70: Compartilhamento de infraestrutura | D70: 202307 | E70: 45240 | F70: APLCVA00026_FLXPAGAMENTOS_072023_S004.XML | G70: 45108 | H70: 45108 | I70: 269934.62
A71: 6 | B71: Compartilhamento de infraestrutura | C71: Compartilhamento de infraestrutura | D71: 202308 | E71: 45240 | F71: APLCVA00026_FLXPAGAMENTOS_082023_S003.XML | G71: 45139 | H71: 45139 | I71: 269934.62
A72: 6 | B72: Compartilhamento de infraestrutura | C72: Compartilhamento de infraestrutura | D72: 202309 | E72: 45240 | F72: APLCVA00026_FLXPAGAMENTOS_092023_S002.XML | G72: 45170 | H72: 45170 | I72: 269934.62
A73: 6 | B73: Compartilhamento de infraestrutura | C73: Compartilhamento de infraestrutura | D73: 202310 | E73: 45240 | F73: APLCVA00026_FLXPAGAMENTOS_102023_S001.XML | G73: 45200 | H73: 45200 | I73: 254843.02
A74: 6 | B74: Compartilhamento de infraestrutura | C74: Compartilhamento de infraestrutura | D74: 202311 | E74: 45240 | F74: APLCVA00026_FLXPAGAMENTOS_112023_S000.XML | G74: 45231 | H74: 45231 | I74: 0
A75: 23 | B75: Ultrapassagem de Demanda | C75: Ultrapassagem de Demanda | D75: 202209 | E75: 44872 | F75: APLCVA00026_FLXPAGAMENTOS_092022_S001.XML | G75: 44805 | H75: 44805 | I75: 270465.7
A76: 23 | B76: Ultrapassagem de Demanda | C76: Ultrapassagem de Demanda | D76: 202210 | E76: 44968 | F76: APLCVA00026_FLXPAGAMENTOS_102022_S003.XML | G76: 44835 | H76: 44835 | I76: 295998.19
A77: 23 | B77: Ultrapassagem de Demanda | C77: Ultrapassagem de Demanda | D77: 202211 | E77: 45233 | F77: APLCVA00026_FLXPAGAMENTOS_112022_S003.XML | G77: 44866 | H77: 44866 | I77: 284401.94
A78: 23 | B78: Ultrapassagem de Demanda | C78: Ultrapassagem de Demanda | D78: 202212 | E78: 45204 | F78: APLCVA00026_FLXPAGAMENTOS_122022_S001.XML | G78: 44896 | H78: 44896 | I78: 259952.08
A79: 23 | B79: Ultrapassagem de Demanda | C79: Ultrapassagem de Demanda | D79: 202301 | E79: 45026 | F79: APLCVA00026_FLXPAGAMENTOS_012023_S002.XML | G79: 44927 | H79: 44927 | I79: 202363.71
A80: 23 | B80: Ultrapassagem de Demanda | C80: Ultrapassagem de Demanda | D80: 202302 | E80: 45201 | F80: APLCVA00026_FLXPAGAMENTOS_022023_S006.XML | G80: 44958 | H80: 44958 | I80: 147901.07
A81: 23 | B81: Ultrapassagem de Demanda | C81: Ultrapassagem de Demanda | D81: 202303 | E81: 45201 | F81: APLCVA00026_FLXPAGAMENTOS_032023_S005.XML | G81: 44986 | H81: 44986 | I81: 181458.4
A82: 23 | B82: Ultrapassagem de Demanda | C82: Ultrapassagem de Demanda | D82: 202304 | E82: 45209 | F82: APLCVA00026_FLXPAGAMENTOS_042023_S004.XML | G82: 45017 | H82: 45017 | I82: 198400.43
A83: 23 | B83: Ultrapassagem de Demanda | C83: Ultrapassagem de Demanda | D83: 202305 | E83: 45201 | F83: APLCVA00026_FLXPAGAMENTOS_052023_S002.XML | G83: 45047 | H83: 45047 | I83: 206008.37
A84: 23 | B84: Ultrapassagem de Demanda | C84: Ultrapassagem de Demanda | D84: 202306 | E84: 45201 | F84: APLCVA00026_FLXPAGAMENTOS_062023_S003.XML | G84: 45078 | H84: 45078 | I84: 204961.46
A85: 23 | B85: Ultrapassagem de Demanda | C85: Ultrapassagem de Demanda | D85: 202307 | E85: 45240 | F85: APLCVA00026_FLXPAGAMENTOS_072023_S004.XML | G85: 45108 | H85: 45108 | I85: 231162.42
A86: 23 | B86: Ultrapassagem de Demanda | C86: Ultrapassagem de Demanda | D86: 202308 | E86: 45240 | F86: APLCVA00026_FLXPAGAMENTOS_082023_S003.XML | G86: 45139 | H86: 45139 | I86: 321825.44
A87: 23 | B87: Ultrapassagem de Demanda | C87: Ultrapassagem de Demanda | D87: 202309 | E87: 45240 | F87: APLCVA00026_FLXPAGAMENTOS_092023_S002.XML | G87: 45170 | H87: 45170 | I87: 332165.74
A88: 23 | B88: Ultrapassagem de Demanda | C88: Ultrapassagem de Demanda | D88: 202310 | E88: 45240 | F88: APLCVA00026_FLXPAGAMENTOS_102023_S001.XML | G88: 45200 | H88: 45200 | I88: 379907.12
A89: 23 | B89: Ultrapassagem de Demanda | C89: Ultrapassagem de Demanda | D89: 202311 | E89: 45240 | F89: APLCVA00026_FLXPAGAMENTOS_112023_S000.XML | G89: 45231 | H89: 45231 | I89: 0
A90: 24 | B90: Excedente Reativo | C90: Excedente Reativo | D90: 202209 | E90: 44872 | F90: APLCVA00026_FLXPAGAMENTOS_092022_S001.XML | G90: 44805 | H90: 44805 | I90: 249600.4
A91: 24 | B91: Excedente Reativo | C91: Excedente Reativo | D91: 202210 | E91: 44968 | F91: APLCVA00026_FLXPAGAMENTOS_102022_S003.XML | G91: 44835 | H91: 44835 | I91: 284818.54
A92: 24 | B92: Excedente Reativo | C92: Excedente Reativo | D92: 202211 | E92: 45233 | F92: APLCVA00026_FLXPAGAMENTOS_112022_S003.XML | G92: 44866 | H92: 44866 | I92: 285634.95
A93: 24 | B93: Excedente Reativo | C93: Excedente Reativo | D93: 202212 | E93: 45204 | F93: APLCVA00026_FLXPAGAMENTOS_122022_S001.XML | G93: 44896 | H93: 44896 | I93: 317733.67
A94: 24 | B94: Excedente Reativo | C94: Excedente Reativo | D94: 202301 | E94: 45026 | F94: APLCVA00026_FLXPAGAMENTOS_012023_S002.XML | G94: 44927 | H94: 44927 | I94: 356379.58
A95: 24 | B95: Excedente Reativo | C95: Excedente Reativo | D95: 202302 | E95: 45201 | F95: APLCVA00026_FLXPAGAMENTOS_022023_S006.XML | G95: 44958 | H95: 44958 | I95: 345964.96
A96: 24 | B96: Excedente Reativo | C96: Excedente Reativo | D96: 202303 | E96: 45201 | F96: APLCVA00026_FLXPAGAMENTOS_032023_S005.XML | G96: 44986 | H96: 44986 | I96: 357784.96
A97: 24 | B97: Excedente Reativo | C97: Excedente Reativo | D97: 202304 | E97: 45209 | F97: APLCVA00026_FLXPAGAMENTOS_042023_S004.XML | G97: 45017 | H97: 45017 | I97: 358154.81
A98: 24 | B98: Excedente Reativo | C98: Excedente Reativo | D98: 202305 | E98: 45201 | F98: APLCVA00026_FLXPAGAMENTOS_052023_S002.XML | G98: 45047 | H98: 45047 | I98: 369414.74
A99: 24 | B99: Excedente Reativo | C99: Excedente Reativo | D99: 202306 | E99: 45201 | F99: APLCVA00026_FLXPAGAMENTOS_062023_S003.XML | G99: 45078 | H99: 45078 | I99: 376019.53
A100: 24 | B100: Excedente Reativo | C100: Excedente Reativo | D100: 202307 | E100: 45240 | F100: APLCVA00026_FLXPAGAMENTOS_072023_S004.XML | G100: 45108 | H100: 45108 | I100: 337356.22
A101: 24 | B101: Excedente Reativo | C101: Excedente Reativo | D101: 202308 | E101: 45240 | F101: APLCVA00026_FLXPAGAMENTOS_082023_S003.XML | G101: 45139 | H101: 45139 | I101: 340824.91
A102: 24 | B102: Excedente Reativo | C102: Excedente Reativo | D102: 202309 | E102: 45240 | F102: APLCVA00026_FLXPAGAMENTOS_092023_S002.XML | G102: 45170 | H102: 45170 | I102: 325233.39
A103: 24 | B103: Excedente Reativo | C103: Excedente Reativo | D103: 202310 | E103: 45240 | F103: APLCVA00026_FLXPAGAMENTOS_102023_S001.XML | G103: 45200 | H103: 45200 | I103: 322839.26
A104: 24 | B104: Excedente Reativo | C104: Excedente Reativo | D104: 202311 | E104: 45240 | F104: APLCVA00026_FLXPAGAMENTOS_112023_S000.XML | G104: 45231 | H104: 45231 | I104: 0

Sheet BD
B1: Banco de Dados | M1: Anexo II | N1: =Resultado!$D$6 -> 0.07236107792
B2: =CAPA!B6 -> EAC | M2: Anexo I | N2: =Resultado!$D$8 -> 0.1299241638
B5: Informações do ano anterior | G5: Dados de abertura (Neutralidade e CVA saldo a compensar) | L5: Dados de Energia | S5: Dados para Revisão | AA5: BMP_RIT | AK5: Avaliação Parcela B
B7: Encargos | G7: Encargo | H7: Valor | I7: Norma | L7: Cotas | M7: Valor da "Cota" | N7: Ano | O7: Custo Médio da Cota | P7: Energia MWh | S7: item | T7: Descrição | U7: Detalhe | V7: Valor | AA7: IDAGENTE | AB7: ANO | AC7: SIGLA | AD7: ContaPrincipal | AE7: ContaDetalhada | AF7: CONTA | AG7: SALDO | AK7: Ano | AL7: DataRevREa | AM7: item | AN7: valor
B8: CDE Covid TE | C8: 5377709.54 | G8: CDE Eletrobras | H8: -2067095.851 | I8: DSP 1120/2023 | L8: Angra | M8: 0.002911 | N8: 2023 | O8: 347.5 | P8: 39054.95491 | S8: 0 | T8: Duração do Ciclo de Revisão | V8: 5 | AA8: 26 | AB8: 2020 | AC8: ELETROACRE | AD8: Pessoal | AE8: Remuneração | AF8: 610530501 | AG8: 23279081.92 | AK8: 2018 | AL8: 21531 | AM8: ANEXO II | AN8: 0.1008474352
B9: CDE Covid TUSD | C9: 21196044.62 | G9: CDE | H9: 39071059.95 | I9: REH 3.175/2023 | S9: 1 | T9: RI Limite de Neutralidade de Encargos (por grupo) | U9: Residencial | V9: 0.0295 | AA9: 26 | AB9: 2020 | AC9: ELETROACRE | AD9: Pessoal | AE9: Encargos | AF9: 610530502 | AG9: 7451792.41 | AK9: 2018 | AL9: 21531 | AM9: CONSUMIDOR DISTRIBUIÇÃO | AN9: 0
B10: TFSEE | C10: 1244777.368 | G10: CFURH | S10: 2 | T10: RI Limite de Neutralidade de Encargos (por grupo) | U10: Industrial | V10: 0.0219 | AA10: 26 | AB10: 2020 | AC10: ELETROACRE | AD10: Pessoal | AE10: Previdência Privada Corrente | AF10: 610530503 | AG10: 272147.58 | AK10: 2018 | AL10: 21531 | AM10: CONSUMIDOR LIVRE | AN10: 35837.13
B11: CDE | C11: 35101782.3 | G11: ESS/EER | H11: 19769864.34 | I11: DSP 2.983/2023 | L11: Ano | M11: Cota Itaipu | S11: 3 | T11: RI Limite de Neutralidade de Encargos (por grupo) | U11: COMERCIAL | V11: 0.0154 | AA11: 26 | AB11: 2020 | AC11: ELETROACRE | AD11: Pessoal | AE11: Despesas Rescisórias | AF11: 610530506 | AG11: 641676.64 | AK11: 2018 | AL11: 21531 | AM11: ENCARGO | AN11: 99755911.9
B12: ESS/ERR | C12: 18851171.78 | G12: PROINFA | H12: 12197276.27 | I12: ReH 3.147/2022 | S12: 4 | T12: RI Limite de Neutralidade de Encargos (por grupo) | U12: RURAL | V12: 0.0317 | AA12: 26 | AB12: 2020 | AC12: ELETROACRE | AD12: Pessoal | AE12: Participação Lucros Resultados | AF12: 610530507 | AG12: 729155.4 | AK12: 2018 | AL12: 21531 | AM12: ENERGIA | AN12: 195001936.4
B13: PROINFA | C13: 13744465.34 | G13: ONS | H13: 43252.22034 | I13: Contribuição 2023 | S13: 5 | T13: RI Limite de Neutralidade de Encargos (por grupo) | U13: PODERPUBLICO | V13: 0.0252 | AA13: 26 | AB13: 2020 | AC13: ELETROACRE | AD13: Pessoal | AE13: Outros Benefícios | AF13: 610530508 | AG13: 539268.03 | AK13: 2018 | AL13: 21531 | AM13: FATOR X | AN13: -0.002713698751
B14: P&D | C14: 6881761.779 | G14: TFSEE | S14: 6 | T14: RI Limite de Neutralidade de Encargos (por grupo) | U14: ILUMPUBLICA | V14: 0.0184 | AA14: 26 | AB14: 2020 | AC14: ELETROACRE | AD14: Pessoal | AE14: (-)Créditos Tributários Recuperáveis | AF14: 610530510 | AG14: 0 | AK14: 2018 | AL14: 21531 | AM14: Fornecimento | AN14: 1001623.204
B15: ONS | C15: 0 | G15: EER | H15: 19360883.8 | I15: DSP 2.983/2023 | S15: 7 | T15: RI Limite de Neutralidade de Encargos (por grupo) | U15: SERVPUBLICO | V15: 0.1299 | AA15: 26 | AB15: 2020 | AC15: ELETROACRE | AD15: Pessoal | AE15: Remuneração | AF15: 610530511 | AG15: 0 | AK15: 2018 | AL15: 21531 | AM15: IGPM | AN15: 0.09675757162
B16: CDE Eletrobras | C16: -17146882.59 | G16: TFSEE Fator de Carga | H16: 0.842 | S16: 11 | T16: RI Limite de outros componentes (por empresa) | U16: Residencial | V16: 0.0181 | AA16: 26 | AB16: 2020 | AC16: ELETROACRE | AD16: Pessoal | AE16: Outros | AF16: 610530599 | AG16: -7088880.77 | AK16: 2018 | AL16: 21531 | AM16: IPCA | AN16: 0.0451543994
G17: CDE Covid | H17: 26573754.16 | I17: DSP 939/2021 | S17: 12 | T17: RI Limite de outros componentes (por empresa) | U17: Industrial | V17: 0.0049 | AA17: 26 | AB17: 2020 | AC17: ELETROACRE | AD17: Pessoal | AE17: Administradores | AF17: 6105306 | AG17: 0 | AK17: 2018 | AL17: 21531 | AM17: Parcela B | AN17: 204367735.7
B18: Pmix | C18: 200.9190062 | G18: CDE Covid TE% | H18: 0.2023692064 | S18: 13 | T18: RI Limite de outros componentes (por empresa) | U18: COMERCIAL | V18: 0.0068 | AA18: 26 | AB18: 2020 | AC18: ELETROACRE | AD18: Materiais | AE18: Materiais | AF18: 610530701 | AG18: 4233163.29 | AK18: 2018 | AL18: 21531 | AM18: Receita Irrecuperável | AN18: 6518580.939
C19: 0.1646 | D19: PN2022 | E19: 0.1646 | G19: CDE Covid TUSD% | H19: 0.7976307936 | S19: 14 | T19: RI Limite de outros componentes (por empresa) | U19: RURAL | V19: 0.0123 | AA19: 26 | AB19: 2020 | AC19: ELETROACRE | AD19: Materiais | AE19: (-)Créditos Tributários Recuperáveis | AF19: 610530710 | AG19: 0 | AK19: 2018 | AL19: 21531 | AM19: Revisão ou Reajuste (1-REVI,0-Reaj) | AN19: 0
B20: PT 2022 | C20: 0.0985 | D20: PT 2022 | E20: 0.0985 | G20: CDE Escassez Hidrica | H20: 23824349.5 | I20: DSP 510/2023 | S20: 15 | T20: RI Limite de outros componentes (por empresa) | U20: PODERPUBLICO | V20: 0.0019 | AA20: 26 | AB20: 2020 | AC20: ELETROACRE | AD20: Materiais | AE20: Outros | AF20: 610530799 | AG20: 0 | AK20: 2018 | AL20: 21531 | AM20: SUPRIMENTO (Mercado TUSD) | AN20: 0
G21: CDE Escassez Hidr TE% | H21: 0.811151926 | S21: 16 | T21: RI Limite de outros componentes (por empresa) | U21: ILUMPUBLICA | V21: 0.0007 | AA21: 26 | AB21: 2020 | AC21: ELETROACRE | AD21: Terceiros | AE21: (-)Créditos Tributários Recuperáveis | AF21: 610530810 | AG21: -4516757.13 | AK21: 2018 | AL21: 21531 | AM21: TRANSPORTE TERCEIROS | AN21: 6970801.459
B22: Perda RB total | C22: 0.02297739516 | G22: CDE Escassez Hidr TUSD% | H22: 0.188848074 | L22: Mês | M22: Potência | N22: Tarifa | O22: Perdas | P22: Energia | S22: 17 | T22: RI Limite de outros componentes (por empresa) | U22: SERVPUBLICO | V22: 0.0003 | AA22: 26 | AB22: 2020 | AC22: ELETROACRE | AD22: Seguros | AE22: Seguros | AF22: 610531001 | AG22: 2280 | AK22: 2019 | AL22: 21896 | AM22: ANEXO II | AN22: -0.01456614854
G23: CDE GD | H23: 2853359.628 | I23: REH 3.175/2023 | S23: 101 | T23: Parâmetros de Custos Operacionais | U23: CO1_Theta_inf | V23: 0.600719942 | AA23: 26 | AB23: 2020 | AC23: ELETROACRE | AD23: Seguros | AE23: (-)Créditos Tributários Recuperáveis | AF23: 610531010 | AG23: 0 | AK23: 2019 | AL23: 21896 | AM23: CONSUMIDOR DISTRIBUIÇÃO | AN23: 0
B24: CVA RB | C24: 5511747.346 | S24: 102 | T24: Parâmetros de Custos Operacionais | U24: CO2_Theta_centro | V24: 0.6254179853 | AA24: 26 | AB24: 2020 | AC24: ELETROACRE | AD24: Seguros | AE24: Outros | AF24: 610531099 | AG24: 0 | AK24: 2019 | AL24: 21896 | AM24: CONSUMIDOR LIVRE | AN24: 39358.237
B25: CVA CCC | C25: 0 | G25: Informações de Postergação | S25: 103 | T25: Parâmetros de Custos Operacionais | U25: CO3_Theta_sup | V25: 0.6522275367 | AA25: 26 | AB25: 2020 | AC25: ELETROACRE | AD25: Demais | AE25: Condenações Trabalhistas | AF25: 610531212 | AG25: 0 | AK25: 2019 | AL25: 21896 | AM25: ENCARGO | AN25: 69657070.6
B26: CVA CDE | C26: 12413438.68 | S26: 104 | T26: Parâmetros de Custos Operacionais | U26: CO4_Theta_ref | V26: 0.786868 | AA26: 26 | AB26: 2020 | AC26: ELETROACRE | AD26: Tributos | AE26: Tributos | AF26: 6105316 | AG26: 262736.1 | AK26: 2019 | AL26: 21896 | AM26: ENERGIA | AN26: 210754967.9
B27: CVA CFURH | G27: Tipo | H27: Valor | S27: 105 | T27: Parâmetros de Custos Operacionais | U27: CO5_Opex_real | V27: 111821.919 | AA27: 26 | AB27: 2020 | AC27: ELETROACRE | AD27: Outros | AE27: Indenização Perdas Danos | AF27: 610531901 | AG27: 154864.4 | AK27: 2019 | AL27: 21896 | AM27: FATOR X | AN27: -0.007518807701
B28: CVA ESS\ERR | C28: 754865.5027 | G28: Data Postergada | H28: 45273 | S28: 106 | T28: Parâmetros de Custos Operacionais | U28: CO6_PMSOcorrigido | V28: 108910.6328 | AA28: 26 | AB28: 2020 | AC28: ELETROACRE | AD28: Outros | AE28: Consumo Próprio Energia | AF28: 610531902 | AG28: 1227544.66 | AK28: 2019 | AL28: 21896 | AM28: Fornecimento | AN28: 1027422.913
B29: CVA PROINFA | C29: 4704946.004 | G29: Data Anterior | H29: 45273 | S29: 107 | T29: Parâmetros de Custos Operacionais | U29: CO7_FatorEscala | V29: 0.002693538529 | AA29: 26 | AB29: 2020 | AC29: ELETROACRE | AD29: Outros | AE29: Taxas Arrecadação | AF29: 610531903 | AG29: 3463012.62 | AK29: 2019 | AL29: 21896 | AM29: IGPM | AN29: 0.03969987388
B30: CVA TRANS. ITAIPU | C30: 0 | G30: Diferença de Dias | H30: 0 | S30: 108 | T30: Parâmetros de Custos Operacionais | U30: CO8_u | V30: 9.181839957e-06 | AA30: 26 | AB30: 2020 | AC30: ELETROACRE | AD30: Outros | AE30: Taxas Bancárias | AF30: 610531904 | AG30: 6877.98 | AK30: 2019 | AL30: 21896 | AM30: IPCA | AN30: 0.03151579
B31: CVA ENERGIA | C31: -3377488.732 | G31: MesesAdin | H31: 0 | S31: 109 | T31: Parâmetros de Custos Operacionais | U31: CO9_Vs_Yrsub | V31: 2.266067282e-05 | AA31: 26 | AB31: 2020 | AC31: ELETROACRE | AD31: Outros | AE31: DespesaConselhoConsumidores | AF31: 610531905 | AG31: 6384.93 | AK31: 2019 | AL31: 21896 | AM31: Parcela B | AN31: 217971442.8
B32: CVA CDE Covid | C32: 952682.3734 | G32: Reversão Subvenção CDE | H32: 0 | S32: 110 | T32: Parâmetros de Custos Operacionais | U32: CO10_Vs_Yrdist_a | V32: 2.266067282e-05 | AA32: 26 | AB32: 2020 | AC32: ELETROACRE | AD32: Outros | AE32: Comunicação e Reprografia | AF32: 610531908 | AG32: 0 | AK32: 2019 | AL32: 21896 | AM32: Receita Irrecuperável | AN32: 6291722.948
G33: Data 4CRT | H33: 45273 | S33: 111 | T33: Parâmetros de Custos Operacionais | U33: CO11_Vs_Yralta | V33: 9.064269129e-06 | AA33: 26 | AB33: 2020 | AC33: ELETROACRE | AD33: Demais | AE33: Gastos com CCEE | AF33: 610531909 | AG33: 0 | AK33: 2019 | AL33: 21896 | AM33: Revisão ou Reajuste (1-REVI,0-Reaj) | AN33: 0
S34: 112 | T34: Parâmetros de Custos Operacionais | U34: CO12_Vs_Ycons | V34: 5.355491817e-07 | AA34: 26 | AB34: 2020 | AC34: ELETROACRE | AD34: Outros | AE34: (-)Créditos Tributários Recuperáveis | AF34: 610531910 | AG34: -123123.17 | AK34: 2019 | AL34: 21896 | AM34: SUPRIMENTO (Mercado TUSD) | AN34: 7911.12
G35: Nome | H35: Valor | S35: 113 | T35: Parâmetros de Custos Operacionais | U35: CO13_Vs_Ymponderado | V35: 1.196897205e-07 | AA35: 26 | AB35: 2020 | AC35: ELETROACRE | AD35: Pessoal | AE35: Remuneração | AF35: 610532501 | AG35: 15862266.47 | AK35: 2019 | AL35: 21896 | AM35: TRANSPORTE TERCEIROS | AN35: 13682355.73
G36: TUSDg Export DRP | H36: 0 | L36: Mês | M36: Potência | N36: Tarifa DRA | O36: Tarifa DRP | P36: Colunas1 | S36: 114 | T36: Parâmetros de Custos Operacionais | U36: CO14_Vs_Yd_perdas_dif2 | V36: 1.149290907e-07 | AA36: 26 | AB36: 2020 | AC36: ELETROACRE | AD36: Pessoal | AE36: Encargos | AF36: 610532502 | AG36: 4167008.63 | AK36: 2020 | AL36: 22262 | AM36: ANEXO II | AN36: 0.08652205326
G37: TUSDg ONS DRP | H37: 0 | S37: 115 | T37: Parâmetros de Custos Operacionais | U37: CO15_Vs_Yd_DEC_V8 | V37: 0 | AA37: 26 | AB37: 2020 | AC37: ELETROACRE | AD37: Pessoal | AE37: Previdência Privada Corrente | AF37: 610532503 | AG37: 206227.83 | AK37: 2020 | AL37: 22262 | AM37: Base de Remuneração Bruta | AN37: 916245625.7
G38: TUSDg ONS DRA | H38: 0 | S38: 116 | T38: Parâmetros de Custos Operacionais | U38: CO16_P_AT | V38: 0 | AA38: 26 | AB38: 2020 | AC38: ELETROACRE | AD38: Pessoal | AE38: Despesas Rescisórias | AF38: 610532506 | AG38: 398182.35 | AK38: 2020 | AL38: 22262 | AM38: Base de Remuneração Líquida | AN38: 596000790.6
B39: Transporte | G39: TUSDg Export DRA | H39: 0 | S39: 117 | T39: Parâmetros de Custos Operacionais | U39: CO17_P_MT | V39: 0.1374502747 | AA39: 26 | AB39: 2020 | AC39: ELETROACRE | AD39: Pessoal | AE39: Participação Lucros Resultados | AF39: 610532507 | AG39: 2606443.58 | AK39: 2020 | AL39: 22262 | AM39: CONSUMIDOR DISTRIBUIÇÃO | AN39: 0
B40: Conexao | C40: 1920298.813 | S40: 118 | T40: Parâmetros de Custos Operacionais | U40: CO18_P_BT | V40: 0.8625497253 | AA40: 26 | AB40: 2020 | AC40: ELETROACRE | AD40: Pessoal | AE40: Outros Benefícios | AF40: 610532508 | AG40: 313669.85 | AK40: 2020 | AL40: 22262 | AM40: CONSUMIDOR LIVRE | AN40: 44193.939
S41: 119 | T41: Parâmetros de Custos Operacionais | U41: CO19_PMSO2013 | AA41: 26 | AB41: 2020 | AC41: ELETROACRE | AD41: Pessoal | AE41: (-)Créditos Tributários Recuperáveis | AF41: 610532510 | AG41: 0 | AK41: 2020 | AL41: 22262 | AM41: ENCARGO | AN41: 46419406.46
G42: Fator X | H42: Valor | S42: 120 | T42: Parâmetros de Custos Operacionais | U42: CO20_Cont_Associativa | V42: 93694.90811 | AA42: 26 | AB42: 2020 | AC42: ELETROACRE | AD42: Pessoal | AE42: Remuneração | AF42: 610532511 | AG42: 0 | AK42: 2020 | AL42: 22262 | AM42: ENERGIA | AN42: 213146135.1
S43: 201 | T43: Parâmetros de Custos Operacionais | U43: pesoAT | V43: 0 | AA43: 26 | AB43: 2020 | AC43: ELETROACRE | AD43: Pessoal | AE43: Outros | AF43: 610532599 | AG43: 12861062.67 | AK43: 2020 | AL43: 22262 | AM43: FATOR X | AN43: 0.001974312044
B44: Mercado | S44: 202 | T44: Parâmetros de Custos Operacionais | U44: pesoMT | V44: 0.1304687573 | AA44: 26 | AB44: 2020 | AC44: ELETROACRE | AD44: Pessoal | AE44: Administradores | AF44: 6105326 | AG44: 2890070.57 | AK44: 2020 | AL44: 22262 | AM44: Fornecimento | AN44: 1044830.725
B45: RA0_MWh_Tusd | C45: 1149620.009 | S45: 203 | T45: Parâmetros de Custos Operacionais | U45: pesoBT | V45: 0.8695312427 | AA45: 26 | AB45: 2020 | AC45: ELETROACRE | AD45: Materiais | AE45: Materiais | AF45: 610532701 | AG45: 769597.02 | AK45: 2020 | AL45: 22262 | AM45: IGPM | AN45: 0.245211537
B46: RA1_R$ | C46: 756652895.5 | G46: DecFec Processo Anterior | H46: Valor | S46: 301 | T46: Financeiro de RTP | U46: Conselho de Consumidor | V46: 75598.21 | AA46: 26 | AB46: 2020 | AC46: ELETROACRE | AD46: Materiais | AE46: (-)Créditos Tributários Recuperáveis | AF46: 610532710 | AG46: 0 | AK46: 2020 | AL46: 22262 | AM46: IPCA | AN46: 0.03970019012
B47: Proinfa | G47: DEC A-2 | S47: 2018 | T47: Financeiro de RTP | U47: Conselho de Consumidor | V47: 116395.18 | AA47: 26 | AB47: 2020 | AC47: ELETROACRE | AD47: Materiais | AE47: Outros | AF47: 610532799 | AG47: 59051.52 | AK47: 2020 | AL47: 22262 | AM47: Parcela B | AN47: 287816729.4
B48: 2023 | C48: 25246.9137 | G48: DEC A-1 | S48: 401 | T48: Duração do Próximo Ciclo de Revisão | V48: 5 | AA48: 26 | AB48: 2020 | AC48: ELETROACRE | AD48: Terceiros | AE48: AdmCentral | AF48: 610532801 | AG48: 26984973.73 | AK48: 2020 | AL48: 22262 | AM48: Receita Irrecuperável | AN48: 6582056.094
B49: Detalhamento de Encargos ESS e CDE | G49: FEC A-2 | AA49: 26 | AB49: 2020 | AC49: ELETROACRE | AD49: Terceiros | AE49: (-)Créditos Tributários Recuperáveis | AF49: 610532810 | AG49: 0 | AK49: 2020 | AL49: 22262 | AM49: Revisão ou Reajuste (1-REVI,0-Reaj) | AN49: 1
G50: FEC A-1 | L50: Dado | M50: Valor | N50: Início | O50: Fim | AA50: 26 | AB50: 2020 | AC50: ELETROACRE | AD50: Seguros | AE50: Seguros | AF50: 610533001 | AG50: 297636.71 | AK50: 2020 | AL50: 22262 | AM50: SUPRIMENTO (Mercado TUSD) | AN50: 8898.4
L51: MUST | M51: 7880 | N51: 44743 | O51: 45107 | AA51: 26 | AB51: 2020 | AC51: ELETROACRE | AD51: Seguros | AE51: (-)Créditos Tributários Recuperáveis | AF51: 610533010 | AG51: 0 | AK51: 2020 | AL51: 22262 | AM51: TRANSPORTE TERCEIROS | AN51: 27331511.47
G52: Dados de dólar | H52: Valor | L52: MUST | M52: 7934 | N52: 45108 | O52: 45473 | AA52: 26 | AB52: 2020 | AC52: ELETROACRE | AD52: Seguros | AE52: Outros | AF52: 610533099 | AG52: 5226 | AK52: 2021 | AL52: 22627 | AM52: ANEXO II | AN52: 0.09921710181
B53: Ciclo de Revisão | C53: 5 | G53: Dólar médio | H53: 4.911252632 | L53: Potência Max | M53: 10775 | N53: 44562 | O53: 44926 | AA53: 26 | AB53: 2020 | AC53: ELETROACRE | AD53: Demais | AE53: Condenações Trabalhistas | AF53: 610533212 | AG53: 0 | AK53: 2021 | AL53: 22627 | AM53: CONSUMIDOR DISTRIBUIÇÃO | AN53: 0
G54: Data Inicial | H54: 45229 | L54: Potência Max | M54: 10555 | N54: 44927 | O54: 45291 | AA54: 26 | AB54: 2020 | AC54: ELETROACRE | AD54: Tributos | AE54: Tributos | AF54: 6105336 | AG54: 1300312.43 | AK54: 2021 | AL54: 22627 | AM54: CONSUMIDOR LIVRE | AN54: 53250.325
G55: Data Final | H55: 45257 | AA55: 26 | AB55: 2020 | AC55: ELETROACRE | AD55: Outros | AE55: Indenização Perdas Danos | AF55: 610533901 | AG55: 0 | AK55: 2021 | AL55: 22627 | AM55: ENCARGO | AN55: 71635306.86
G56: Último Dado Diponível | H56: 45254 | L56: Dados de perda | M56: Valor | N56: Coluna1 | O56: Agente | P56: Ressarcimento P&D | AA56: 26 | AB56: 2020 | AC56: ELETROACRE | AD56: Outros | AE56: Consumo Próprio Energia | AF56: 610533902 | AG56: 0 | AK56: 2021 | AL56: 22627 | AM56: ENERGIA | AN56: 233224795.4
B57: Subsídios Concedidos (sem ajuste) | L57: Perdas RB | M57: 29526.3803 | N57: 29526.3803 | AA57: 26 | AB57: 2020 | AC57: ELETROACRE | AD57: Outros | AE57: Taxas Arrecadação | AF57: 610533903 | AG57: 0 | AK57: 2021 | AL57: 22627 | AM57: FATOR X | AN57: 0
B58: Mês de Início | C58: Carga Fonte | D58: Geração | E58: Distribuição | F58: Água, Esgoto e Saneamento | G58: Rural | H58: Irrigante/Aquicultor | I58: SCEE | J58: Lei 14299/20222 | L58: Perdas DITs | M58: 0 | N58: 0 | AA58: 26 | AB58: 2020 | AC58: ELETROACRE | AD58: Outros | AE58: Taxas Bancárias | AF58: 610533904 | AG58: 0 | AK58: 2021 | AL58: 22627 | AM58: Fornecimento | AN58: 1056293.227
B59: 2022-12-01 | C59: 507099.31 | F59: 71732.94 | G59: 168145.54 | H59: 3107.73 | AA59: 26 | AB59: 2020 | AC59: ELETROACRE | AD59: Outros | AE59: Comunicação e Reprografia | AF59: 610533907 | AG59: 0 | AK59: 2021 | AL59: 22627 | AM59: IGPM | AN59: 0.1878202939
AA60: 26 | AB60: 2020 | AC60: ELETROACRE | AD60: Demais | AE60: Gastos com CCEE | AF60: 610533908 | AG60: 0 | AK60: 2021 | AL60: 22627 | AM60: IPCA | AN60: 0.1038059581
AA61: 26 | AB61: 2020 | AC61: ELETROACRE | AD61: Outros | AE61: (-)Créditos Tributários Recuperáveis | AF61: 610533910 | AG61: 0 | AK61: 2021 | AL61: 22627 | AM61: Parcela B | AN61: 311981967.8
L62: Informações de DR1 | AA62: 26 | AB62: 2020 | AC62: ELETROACRE | AD62: Pessoal | AE62: Remuneração | AF62: 610550501 | AG62: 0 | AK62: 2021 | AL62: 22627 | AM62: Receita Irrecuperável | AN62: 8259192.287
L63: fator PB1 | M63: 1.017637594 | AA63: 26 | AB63: 2020 | AC63: ELETROACRE | AD63: Pessoal | AE63: Encargos | AF63: 610550502 | AG63: 0 | AK63: 2021 | AL63: 22627 | AM63: Revisão ou Reajuste (1-REVI,0-Reaj) | AN63: 0
L64: Informações de RI | AA64: 26 | AB64: 2020 | AC64: ELETROACRE | AD64: Pessoal | AE64: Previdência Privada Corrente | AF64: 610550503 | AG64: 0 | AK64: 2021 | AL64: 22627 | AM64: SUPRIMENTO (Mercado TUSD) | AN64: 9179.465
B65: Data | C65: Tipo | D65: Valor | E65: Valor IGPM | F65: Valor IPCA | G65: EixoRef | AA65: 26 | AB65: 2020 | AC65: ELETROACRE | AD65: Pessoal | AE65: Despesas Rescisórias | AF65: 610550506 | AG65: 0 | AK65: 2021 | AL65: 22627 | AM65: TRANSPORTE TERCEIROS | AN65: 25662454.78
B66: =DATE(YEAR(CAPA!C10),MONTH(CAPA!C10),1) -> 2023-12-01 | C66: =IF(CAPA!C7="Revisão",1,0) -> 1 | D66: =Resultado!L11 -> 828.3106682 | E66: =IFERROR(VLOOKUP(EDATE($B66,-1),Índices!$B$6:$F$500,2,FALSE)/VLOOKUP(EDATE(MIN($B$67:$B$81),-1),Índices!$B$6:$F$500,2,FALSE)*VLOOKUP(MIN($B$67:$B$81),$B$67:$D$81,3,FALSE),0) -> 0 | F66: =IFERROR(VLOOKUP(EDATE($B66,-1),Índices!$B$6:$F$500,3,FALSE)/VLOOKUP(EDATE(MIN($B$67:$B$81),-1),Índices!$B$6:$F$500,3,FALSE)*VLOOKUP(MIN($B$67:$B$81),$B$67:$D$81,3,FALSE),0) -> 0 | G66: =IF(B66<>"",150+1,"") -> 151 | L66: Tipo | M66: % RI | O66: Data | P66: Fat Bandeiras | AA66: 26 | AB66: 2020 | AC66: ELETROACRE | AD66: Pessoal | AE66: Participação Lucros Resultados | AF66: 610550507 | AG66: 0 | AK66: 2022 | AL66: 22992 | AM66: ANEXO II | AN66: 0.140514157
L67: PctRIResidencial | M67: 0.0181 | O67: 44896 | P67: -2508.99 | AA67: 26 | AB67: 2020 | AC67: ELETROACRE | AD67: Pessoal | AE67: Outros Benefícios | AF67: 610550508 | AG67: 0 | AK67: 2022 | AL67: 22992 | AM67: CONSUMIDOR DISTRIBUIÇÃO | AN67: 0
L68: PctRIIndustrial | M68: 0.0049 | O68: 44927 | P68: 9182.33 | AA68: 26 | AB68: 2020 | AC68: ELETROACRE | AD68: Pessoal | AE68: (-)Créditos Tributários Recuperáveis | AF68: 610550510 | AG68: 0 | AK68: 2022 | AL68: 22992 | AM68: CONSUMIDOR LIVRE | AN68: 58108.431
L69: PctRICOMERCIAL | M69: 0.0068 | O69: 44958 | P69: 2486.27 | AA69: 26 | AB69: 2020 | AC69: ELETROACRE | AD69: Pessoal | AE69: Outros | AF69: 610550599 | AG69: 0 | AK69: 2022 | AL69: 22992 | AM69: ENCARGO | AN69: 85250830.14
L70: PctRIRURAL | M70: 0.0123 | O70: 44986 | P70: 5154.29 | AA70: 26 | AB70: 2020 | AC70: ELETROACRE | AD70: Pessoal | AE70: Administradores | AF70: 6105506 | AG70: 0 | AK70: 2022 | AL70: 22992 | AM70: ENERGIA | AN70: 282760234.2
L71: PctRILUMPUBLICA | M71: 0.0007 | O71: 45017 | P71: 13346.86 | AA71: 26 | AB71: 2020 | AC71: ELETROACRE | AD71: Materiais | AE71: Materiais | AF71: 610550701 | AG71: 0 | AK71: 2022 | AL71: 22992 | AM71: FATOR X | AN71: -0.003635519442
L72: PctRIPODERPUBLICO | M72: 0.0019 | O72: 45047 | P72: 1874.75 | AA72: 26 | AB72: 2020 | AC72: ELETROACRE | AD72: Materiais | AE72: (-)Créditos Tributários Recuperáveis | AF72: 610550710 | AG72: 0 | AK72: 2022 | AL72: 22992 | AM72: Fornecimento | AN72: 1081461.943
L73: PctRISERVPUBLICO | M73: 0.0003 | O73: 45078 | P73: 1786.23 | AA73: 26 | AB73: 2020 | AC73: ELETROACRE | AD73: Materiais | AE73: Outros | AF73: 610550799 | AG73: 0 | AK73: 2022 | AL73: 22992 | AM73: IGPM | AN73: 0.05895281924
O74: 45108 | P74: -1994.32 | AA74: 26 | AB74: 2020 | AC74: ELETROACRE | AD74: Terceiros | AE74: (-)Créditos Tributários Recuperáveis | AF74: 610550810 | AG74: 0 | AK74: 2022 | AL74: 22992 | AM74: IPCA | AN74: 0.05900728971
L75: Tipo | M75: % RI Anterior | O75: 45139 | P75: 7378.94 | AA75: 26 | AB75: 2020 | AC75: ELETROACRE | AD75: Seguros | AE75: Seguros | AF75: 610551001 | AG75: 0 | AK75: 2022 | AL75: 22992 | AM75: Parcela B | AN75: 338718926.7
L76: PctRIResidencial | M76: 0.0181 | O76: 45170 | P76: -2289 | AA76: 26 | AB76: 2020 | AC76: ELETROACRE | AD76: Seguros | AE76: (-)Créditos Tributários Recuperáveis | AF76: 610551010 | AG76: 0 | AK76: 2022 | AL76: 22992 | AM76: Receita Irrecuperável | AN76: 12574203.06
L77: PctRIIndustrial | M77: 0.0049 | O77: 45200 | P77: -2289 | AA77: 26 | AB77: 2020 | AC77: ELETROACRE | AD77: Seguros | AE77: Outros | AF77: 610551099 | AG77: 0 | AK77: 2022 | AL77: 22992 | AM77: Revisão ou Reajuste (1-REVI,0-Reaj) | AN77: 0
L78: PctRICOMERCIAL | M78: 0.0068 | O78: 45231 | P78: -2289 | AA78: 26 | AB78: 2020 | AC78: ELETROACRE | AD78: Tributos | AE78: Tributos | AF78: 6105516 | AG78: 0 | AK78: 2022 | AL78: 22992 | AM78: SUPRIMENTO (Mercado TUSD) | AN78: 10049.635
L79: PctRIRURAL | M79: 0.0123 | AA79: 26 | AB79: 2020 | AC79: ELETROACRE | AD79: Outros | AE79: Indenização Perdas Danos | AF79: 610551901 | AG79: 0 | AK79: 2022 | AL79: 22992 | AM79: TRANSPORTE TERCEIROS | AN79: 37348701.35
L80: PctRILUMPUBLICA | M80: 0.0007 | AA80: 26 | AB80: 2020 | AC80: ELETROACRE | AD80: Outros | AE80: Consumo Próprio Energia | AF80: 610551902 | AG80: 0
L81: PctRIPODERPUBLICO | M81: 0.0019 | AA81: 26 | AB81: 2020 | AC81: ELETROACRE | AD81: Outros | AE81: Taxas Arrecadação | AF81: 610551903 | AG81: 0
L82: PctRISERVPUBLICO | M82: 0.0003 | AA82: 26 | AB82: 2020 | AC82: ELETROACRE | AD82: Outros | AE82: Taxas Bancárias | AF82: 610551904 | AG82: 0
AA83: 26 | AB83: 2020 | AC83: ELETROACRE | AD83: Outros | AE83: (-)Créditos Tributários Recuperáveis | AF83: 610551910 | AG83: 0
B84: Tabela de Resumo de Montante DRP ano anterior/ Montante Apurado pelo Mercado | AA84: 26 | AB84: 2020 | AC84: ELETROACRE | AD84: Pessoal | AE84: Remuneração | AF84: 610552501 | AG84: 0
B85: detalhe_grupo | C85: GrupoTarifa | D85: tipoBase | E85: tipofatura | F85: ValorCTAnterior_Sum | G85: ValorAnt_Sum | L85: Prcesso Anterior | N85: RTE | AA85: 26 | AB85: 2020 | AC85: ELETROACRE | AD85: Pessoal | AE85: Encargos | AF85: 610552502 | AG85: 0
L86: MWh | M86: R$ | N86: MWh | O86: R$ | S86: DthEfetivaPagamento | T86: VlrGarantiaFinanceira | V86: Conta Escassez | W86: Valor | X86: Legislacao | AA86: 26 | AB86: 2020 | AC86: ELETROACRE | AD86: Pessoal | AE86: Previdência Privada Corrente | AF86: 610552503 | AG86: 0
I87: BILATERAL | K87: valor | L87: 290102.8504 | M87: 100254310.1 | S87: 44866 | T87: 8029.34 | V87: IMPORTACAO | W87: -2333336.35 | AA87: 26 | AB87: 2020 | AC87: ELETROACRE | AD87: Pessoal | AE87: Despesas Rescisórias | AF87: 610552506 | AG87: 0
I88: CCEAR-DISP | J88: Nova | K88: valor | L88: 237939.7971 | M88: 71190514.85 | S88: 44896 | T88: 8029.34 | V88: BONUS_RED_VOLUNT | W88: -4504833.62 | AA88: 26 | AB88: 2020 | AC88: ELETROACRE | AD88: Pessoal | AE88: Participação Lucros Resultados | AF88: 610552507 | AG88: 0
I89: CCEAR-QTD | J89: Belo Monte | K89: valor | L89: 675460.325 | M89: 104299683.2 | S89: 44927 | T89: 8029.34 | V89: DIFERIMENTOS | W89: -45613938.41 | AA89: 26 | AB89: 2020 | AC89: ELETROACRE | AD89: Pessoal | AE89: Outros Benefícios | AF89: 610552508 | AG89: 0
I90: CCEAR-QTD | J90: Existente | K90: valor | L90: 45.2857377 | M90: 19138.18132 | S90: 44958 | T90: 8029.35 | X90: DSP 1177/2022 | AA90: 26 | AB90: 2020 | AC90: ELETROACRE | AD90: Pessoal | AE90: (-)Créditos Tributários Recuperáveis | AF90: 610552510 | AG90: 0
I91: CCEAR-QTD | J91: Nova | K91: valor | L91: 461283.8397 | M91: 71663297.77 | S91: 44986 | T91: 8029.35 | AA91: 26 | AB91: 2020 | AC91: ELETROACRE | AD91: Pessoal | AE91: Outros | AF91: 610552599 | AG91: 0
I92: CCEN | K92: valor | L92: 37451.19611 | M92: 13076085.12 | S92: 45017 | T92: 8029.35 | AA92: 26 | AB92: 2020 | AC92: ELETROACRE | AD92: Pessoal | AE92: Administradores | AF92: 6105526 | AG92: 0
I93: CCGF | K93: valor | L93: 250641.2023 | M93: 38877185.77 | S93: 45047 | T93: 8029.35 | AA93: 26 | AB93: 2020 | AC93: ELETROACRE | AD93: Materiais | AE93: Materiais | AF93: 610552701 | AG93: 0
I94: GERAÇÃO PRÓPRIA | K94: valor | L94: 206.65 | M94: 71259.32332 | S94: 45078 | T94: 8029.35 | AA94: 26 | AB94: 2020 | AC94: ELETROACRE | AD94: Materiais | AE94: (-)Créditos Tributários Recuperáveis | AF94: 610552710 | AG94: 0
I95: PROINFA | K95: valor | L95: 24768.94336 | S95: 45108 | T95: 8345.37 | AA95: 26 | AB95: 2020 | AC95: ELETROACRE | AD95: Materiais | AE95: Outros | AF95: 610552799 | AG95: 0
I96: SOBRA/EXPOSIÇÃO | K96: valor | L96: -570565.6638 | M96: -116691240.2 | S96: 45139 | T96: 8345.37 | AA96: 26 | AB96: 2020 | AC96: ELETROACRE | AD96: Terceiros | AE96: AdmCentral | AF96: 610552801 | AG96: 0
S97: 45170 | T97: 8345.37 | AA97: 26 | AB97: 2020 | AC97: ELETROACRE | AD97: Terceiros | AE97: (-)Créditos Tributários Recuperáveis | AF97: 610552810 | AG97: 0
S98: 45200 | T98: 8345.37 | AA98: 26 | AB98: 2020 | AC98: ELETROACRE | AD98: Seguros | AE98: Seguros | AF98: 610553001 | AG98: 0
AA99: 26 | AB99: 2020 | AC99: ELETROACRE | AD99: Seguros | AE99: (-)Créditos Tributários Recuperáveis | AF99: 610553010 | AG99: 0
AA100: 26 | AB100: 2020 | AC100: ELETROACRE | AD100: Seguros | AE100: Outros | AF100: 610553099 | AG100: 0
AA101: 26 | AB101: 2020 | AC101: ELETROACRE | AD101: Tributos | AE101: Tributos | AF101: 6105536 | AG101: 0
AA102: 26 | AB102: 2020 | AC102: ELETROACRE | AD102: Outros | AE102: Indenização Perdas Danos | AF102: 610553901 | AG102: 0
AA103: 26 | AB103: 2020 | AC103: ELETROACRE | AD103: Outros | AE103: Consumo Próprio Energia | AF103: 610553902 | AG103: 0
AA104: 26 | AB104: 2020 | AC104: ELETROACRE | AD104: Outros | AE104: Taxas Arrecadação | AF104: 610553903 | AG104: 0
V105: Empresa | W105: AT | X105: MT | Y105: BT | AA105: 26 | AB105: 2020 | AC105: ELETROACRE | AD105: Outros | AE105: Taxas Bancárias | AF105: 610553904 | AG105: 0
V106: 167 | W106: 0.02134 | X106: 0.35825 | Y106: 0.62041 | AA106: 26 | AB106: 2020 | AC106: ELETROACRE | AD106: Outros | AE106: (-)Créditos Tributários Recuperáveis | AF106: 610553910 | AG106: 0
V107: 102 | W107: 0.064 | X107: 0.32003 | Y107: 0.61596 | AA107: 26 | AB107: 2020 | AC107: ELETROACRE | AD107: Demais | AE107: Ganhos Alienação Materiais | AF107: 611112103 | AG107: 0
V108: 103 | W108: 0.02996 | X108: 0.27106 | Y108: 0.69898 | AA108: 26 | AB108: 2020 | AC108: ELETROACRE | AD108: Demais | AE108: Ganhos Alienação Materiais | AF108: 611112203 | AG108: 0
V109: 104 | W109: 0.07171 | X109: 0.2909 | Y109: 0.63739 | AA109: 26 | AB109: 2020 | AC109: ELETROACRE | AD109: Demais | AE109: Ganhos Alienação Materiais | AF109: 611112303 | AG109: 0
V110: 105 | W110: 0.00823 | X110: 0.24677 | Y110: 0.745 | AA110: 26 | AB110: 2020 | AC110: ELETROACRE | AD110: Demais | AE110: Ganhos Alienação Materiais | AF110: 611112403 | AG110: 0
I111: Agente | J111: idagente | K111: indexador | L111: database | M111: RAP do ciclo | N111: Colunas1 | O111: RAP atualizada | V111: 165 | W111: 0.00795 | X111: 0.22554 | Y111: 0.76651 | AA111: 26 | AB111: 2020 | AC111: ELETROACRE | AD111: Demais | AE111: Ganhos Alienação Materiais | AF111: 611112503 | AG111: 0
O112: =M112*VLOOKUP(CAPA!C15,Índices!$B$6:$F$626,IF(BD!K112="IPCA",3,2),FALSE)/VLOOKUP(L112,Índices!$B$6:$F$626,IF(BD!K112="IPCA",3,2),FALSE) ->  | V112: 108 | W112: 0.06098 | X112: 0.1711 | Y112: 0.76792 | AA112: 26 | AB112: 2020 | AC112: ELETROACRE | AD112: Demais | AE112: Perdas Alienação Desativação | AF112: 611511401 | AG112: 64142141.4
O113: =M113*VLOOKUP(CAPA!C16,Índices!$B$6:$F$626,IF(BD!K113="IPCA",3,2),FALSE)/VLOOKUP(L113,Índices!$B$6:$F$626,IF(BD!K113="IPCA",3,2),FALSE) ->  | V113: 109 | W113: 0.01034 | X113: 0.24366 | Y113: 0.746 | AA113: 26 | AB113: 2020 | AC113: ELETROACRE | AD113: Demais | AE113: Perdas Alienação Desativação | AF113: 611512003 | AG113: 0
O114: =M114*VLOOKUP(CAPA!C17,Índices!$B$6:$F$626,IF(BD!K114="IPCA",3,2),FALSE)/VLOOKUP(L114,Índices!$B$6:$F$626,IF(BD!K114="IPCA",3,2),FALSE) ->  | V114: 110 | W114: 0.01165 | X114: 0.24322 | Y114: 0.74513 | AA114: 26 | AB114: 2020 | AC114: ELETROACRE | AD114: Demais | AE114: Perdas Alienação Desativação | AF114: 611512103 | AG114: 0
O115: =M115*VLOOKUP(CAPA!C18,Índices!$B$6:$F$626,IF(BD!K115="IPCA",3,2),FALSE)/VLOOKUP(L115,Índices!$B$6:$F$626,IF(BD!K115="IPCA",3,2),FALSE) ->  | V115: 111 | W115: 0.03791 | X115: 0.37961 | Y115: 0.58248 | AA115: 26 | AB115: 2020 | AC115: ELETROACRE | AD115: Demais | AE115: Perdas Alienação Desativação | AF115: 611512203 | AG115: 0
O116: =M116*VLOOKUP(CAPA!C19,Índices!$B$6:$F$626,IF(BD!K116="IPCA",3,2),FALSE)/VLOOKUP(L116,Índices!$B$6:$F$626,IF(BD!K116="IPCA",3,2),FALSE) ->  | V116: 112 | W116: 0.02273 | X116: 0.26361 | Y116: 0.71367 | AA116: 26 | AB116: 2020 | AC116: ELETROACRE | AD116: Demais | AE116: Perdas Alienação Desativação | AF116: 611512303 | AG116: 0
O117: =M117*VLOOKUP(CAPA!C20,Índices!$B$6:$F$626,IF(BD!K117="IPCA",3,2),FALSE)/VLOOKUP(L117,Índices!$B$6:$F$626,IF(BD!K117="IPCA",3,2),FALSE) ->  | V117: 113 | W117: 0.01263 | X117: 0.23345 | Y117: 0.75392 | AA117: 26 | AB117: 2021 | AC117: ELETROACRE | AD117: Pessoal | AE117: Remuneração | AF117: 610530501 | AG117: 30135123.92
O118: =M118*VLOOKUP(CAPA!C21,Índices!$B$6:$F$626,IF(BD!K118="IPCA",3,2),FALSE)/VLOOKUP(L118,Índices!$B$6:$F$626,IF(BD!K118="IPCA",3,2),FALSE) ->  | V118: 114 | W118: 0.01726 | X118: 0.23794 | Y118: 0.7448 | AA118: 26 | AB118: 2021 | AC118: ELETROACRE | AD118: Pessoal | AE118: Encargos | AF118: 610530502 | AG118: 8420952.86
O119: =M119*VLOOKUP(CAPA!C22,Índices!$B$6:$F$626,IF(BD!K119="IPCA",3,2),FALSE)/VLOOKUP(L119,Índices!$B$6:$F$626,IF(BD!K119="IPCA",3,2),FALSE) ->  | V119: 115 | W119: 0.00993 | X119: 0.23087 | Y119: 0.7592 | AA119: 26 | AB119: 2021 | AC119: ELETROACRE | AD119: Pessoal | AE119: Previdência Privada Corrente | AF119: 610530503 | AG119: 491763.52
O120: =M120*VLOOKUP(CAPA!C23,Índices!$B$6:$F$626,IF(BD!K120="IPCA",3,2),FALSE)/VLOOKUP(L120,Índices!$B$6:$F$626,IF(BD!K120="IPCA",3,2),FALSE) ->  | S120: iddet1 | T120: valor | V120: 116 | W120: 0.00806 | X120: 0.16835 | Y120: 0.82359 | AA120: 26 | AB120: 2021 | AC120: ELETROACRE | AD120: Pessoal | AE120: Despesas Rescisórias | AF120: 610530506 | AG120: 46961.57
O121: =M121*VLOOKUP(CAPA!C24,Índices!$B$6:$F$626,IF(BD!K121="IPCA",3,2),FALSE)/VLOOKUP(L121,Índices!$B$6:$F$626,IF(BD!K121="IPCA",3,2),FALSE) ->  | S121: 56 | T121: 45250 | V121: 117 | W121: 0.03028 | X121: 0.29131 | Y121: 0.67841 | AA121: 26 | AB121: 2021 | AC121: ELETROACRE | AD121: Pessoal | AE121: Participação Lucros Resultados | AF121: 610530507 | AG121: 0
O122: =M122*VLOOKUP(CAPA!C25,Índices!$B$6:$F$626,IF(BD!K122="IPCA",3,2),FALSE)/VLOOKUP(L122,Índices!$B$6:$F$626,IF(BD!K122="IPCA",3,2),FALSE) ->  | S122: 57 | T122: 45215 | V122: 118 | W122: 0.04215 | X122: 0.2081 | Y122: 0.74975 | AA122: 26 | AB122: 2021 | AC122: ELETROACRE | AD122: Pessoal | AE122: Outros Benefícios | AF122: 610530508 | AG122: 10078522.19
O123: =M123*VLOOKUP(CAPA!C26,Índices!$B$6:$F$626,IF(BD!K123="IPCA",3,2),FALSE)/VLOOKUP(L123,Índices!$B$6:$F$626,IF(BD!K123="IPCA",3,2),FALSE) ->  | S123: 58 | T123: 45170 | V123: 119 | W123: 0.01807 | X123: 0.11713 | Y123: 0.8648 | AA123: 26 | AB123: 2021 | AC123: ELETROACRE | AD123: Pessoal | AE123: (-)Créditos Tributários Recuperáveis | AF123: 610530510 | AG123: 0
O124: =M124*VLOOKUP(CAPA!C27,Índices!$B$6:$F$626,IF(BD!K124="IPCA",3,2),FALSE)/VLOOKUP(L124,Índices!$B$6:$F$626,IF(BD!K124="IPCA",3,2),FALSE) ->  | V124: 120 | W124: - | X124: 0.17688 | Y124: 0.82312 | AA124: 26 | AB124: 2021 | AC124: ELETROACRE | AD124: Pessoal | AE124: Remuneração | AF124: 610530511 | AG124: 0
O125: =M125*VLOOKUP(CAPA!C28,Índices!$B$6:$F$626,IF(BD!K125="IPCA",3,2),FALSE)/VLOOKUP(L125,Índices!$B$6:$F$626,IF(BD!K125="IPCA",3,2),FALSE) ->  | V125: 123 | W125: - | X125: 0.13612 | Y125: 0.86388 | AA125: 26 | AB125: 2021 | AC125: ELETROACRE | AD125: Pessoal | AE125: Outros | AF125: 610530599 | AG125: 13988.4
O126: =M126*VLOOKUP(CAPA!C29,Índices!$B$6:$F$626,IF(BD!K126="IPCA",3,2),FALSE)/VLOOKUP(L126,Índices!$B$6:$F$626,IF(BD!K126="IPCA",3,2),FALSE) ->  | V126: 166 | W126: 0.04257 | X126: 0.29652 | Y126: 0.66092 | AA126: 26 | AB126: 2021 | AC126: ELETROACRE | AD126: Pessoal | AE126: Administradores | AF126: 6105306 | AG126: 14357.99
O127: =M127*VLOOKUP(CAPA!C30,Índices!$B$6:$F$626,IF(BD!K127="IPCA",3,2),FALSE)/VLOOKUP(L127,Índices!$B$6:$F$626,IF(BD!K127="IPCA",3,2),FALSE) ->  | V127: 128 | W127: - | X127: 0.40427 | Y127: 0.59573 | AA127: 26 | AB127: 2021 | AC127: ELETROACRE | AD127: Materiais | AE127: Materiais | AF127: 610530701 | AG127: 4485581.97
O128: =M128*VLOOKUP(CAPA!C31,Índices!$B$6:$F$626,IF(BD!K128="IPCA",3,2),FALSE)/VLOOKUP(L128,Índices!$B$6:$F$626,IF(BD!K128="IPCA",3,2),FALSE) ->  | V128: 129 | W128: 0.02905 | X128: 0.24895 | Y128: 0.722 | AA128: 26 | AB128: 2021 | AC128: ELETROACRE | AD128: Materiais | AE128: (-)Créditos Tributários Recuperáveis | AF128: 610530710 | AG128: -5955.32
O129: =M129*VLOOKUP(CAPA!C32,Índices!$B$6:$F$626,IF(BD!K129="IPCA",3,2),FALSE)/VLOOKUP(L129,Índices!$B$6:$F$626,IF(BD!K129="IPCA",3,2),FALSE) ->  | V129: 130 | W129: 0.0175 | X129: 0.14397 | Y129: 0.83853 | AA129: 26 | AB129: 2021 | AC129: ELETROACRE | AD129: Materiais | AE129: Outros | AF129: 610530799 | AG129: 3876654.85
O130: =M130*VLOOKUP(CAPA!C33,Índices!$B$6:$F$626,IF(BD!K130="IPCA",3,2),FALSE)/VLOOKUP(L130,Índices!$B$6:$F$626,IF(BD!K130="IPCA",3,2),FALSE) ->  | S130: Nível | T130: Mercado Faturado A-6 | V130: 131 | W130: - | X130: 0.30099 | Y130: 0.69901 | AA130: 26 | AB130: 2021 | AC130: ELETROACRE | AD130: Terceiros | AE130: (-)Créditos Tributários Recuperáveis | AF130: 610530810 | AG130: -2779120.36
O131: =M131*VLOOKUP(CAPA!C34,Índices!$B$6:$F$626,IF(BD!K131="IPCA",3,2),FALSE)/VLOOKUP(L131,Índices!$B$6:$F$626,IF(BD!K131="IPCA",3,2),FALSE) ->  | S131: AT | T131: 1854.169 | V131: 132 | W131: 0.02757 | X131: 0.26424 | Y131: 0.70819 | AA131: 26 | AB131: 2021 | AC131: ELETROACRE | AD131: Seguros | AE131: Seguros | AF131: 610531001 | AG131: 36222.26
O132: =M132*VLOOKUP(CAPA!C35,Índices!$B$6:$F$626,IF(BD!K132="IPCA",3,2),FALSE)/VLOOKUP(L132,Índices!$B$6:$F$626,IF(BD!K132="IPCA",3,2),FALSE) ->  | S132: BT | T132: 784863.873 | V132: 133 | W132: 0.01856 | X132: 0.19536 | Y132: 0.78608 | AA132: 26 | AB132: 2021 | AC132: ELETROACRE | AD132: Seguros | AE132: (-)Créditos Tributários Recuperáveis | AF132: 610531010 | AG132: 0
S133: MT | T133: 250838.849 | V133: 135 | W133: 0.04788 | X133: 0.27054 | Y133: 0.68158 | AA133: 26 | AB133: 2021 | AC133: ELETROACRE | AD133: Seguros | AE133: Outros | AF133: 610531099 | AG133: 0
V134: 136 | W134: 0.06732 | X134: 0.35547 | Y134: 0.57721 | AA134: 26 | AB134: 2021 | AC134: ELETROACRE | AD134: Demais | AE134: Condenações Trabalhistas | AF134: 610531212 | AG134: 0
V135: 138 | W135: - | X135: 0.07651 | Y135: 0.92349 | AA135: 26 | AB135: 2021 | AC135: ELETROACRE | AD135: Tributos | AE135: Tributos | AF135: 6105316 | AG135: 41718.53
V136: 139 | W136: - | X136: 0.35483 | Y136: 0.64517 | AA136: 26 | AB136: 2021 | AC136: ELETROACRE | AD136: Outros | AE136: Indenização Perdas Danos | AF136: 610531901 | AG136: 1106858.16
V137: 140 | W137: 0.01004 | X137: 0.21058 | Y137: 0.77938 | AA137: 26 | AB137: 2021 | AC137: ELETROACRE | AD137: Outros | AE137: Consumo Próprio Energia | AF137: 610531902 | AG137: 1622766.78
V138: 143 | W138: - | X138: 0.20409 | Y138: 0.79591 | AA138: 26 | AB138: 2021 | AC138: ELETROACRE | AD138: Outros | AE138: Taxas Arrecadação | AF138: 610531903 | AG138: 0
V139: 144 | W139: - | X139: 0.48131 | Y139: 0.51869 | AA139: 26 | AB139: 2021 | AC139: ELETROACRE | AD139: Outros | AE139: Taxas Bancárias | AF139: 610531904 | AG139: 0
A140: NumBar | B140: Nome Conexão | C140: Tensão | D140: Posto Tarifário | E140: Tarifas RB - DRA | F140: Tarifa RB - DRP | G140: Tarifas Fronteira - DRA | H140: Tarifa Fronteira - DRP | I140: M01 | J140: M02 | K140: M03 | L140: M04 | M140: M05 | N140: M06 | O140: M07 | P140: M08 | Q140: M09 | R140: M10 | S140: M11 | T140: M12 | V140: 145 | W140: 0.03725 | X140: 0.29306 | Y140: 0.66969 | AA140: 26 | AB140: 2021 | AC140: ELETROACRE | AD140: Outros | AE140: DespesaConselhoConsumidores | AF140: 610531905 | AG140: 0
A141: 6951 | B141: RIO BRANCO I - 138 kV (A) | C141: 138 | D141: Ponta | E141: 4122 | F141: 4648 | G141: 20595 | H141: 9187 | I141: 16.49 | J141: 17.5 | K141: 17.5 | L141: 17.5 | M141: 17.5 | N141: 17.5 | O141: 17.5 | P141: 17.5 | Q141: 17.5 | R141: 17.5 | S141: 17.5 | T141: 17.5 | V141: 146 | W141: - | X141: 0.14124 | Y141: 0.85876 | AA141: 26 | AB141: 2021 | AC141: ELETROACRE | AD141: Outros | AE141: Comunicação e Reprografia | AF141: 610531908 | AG141: 0
B142: FEIJO69kVA | C142: 69 | D142: Ponta | F142: 4845 | H142: 9987 | I142: 0 | J142: 0 | K142: 0 | L142: 0 | M142: 0 | N142: 0 | O142: 5.826666667 | P142: 9.2 | Q142: 9.2 | R142: 9.2 | S142: 9.2 | T142: 9.2 | V142: 147 | W142: - | X142: 0.20977 | Y142: 0.79023 | AA142: 26 | AB142: 2021 | AC142: ELETROACRE | AD142: Demais | AE142: Gastos com CCEE | AF142: 610531909 | AG142: 0
A143: 6952 | B143: RIO BRANCO I - 69 kV (C) | C143: 69 | D143: Ponta | E143: 4122 | F143: 4648 | G143: 2479 | H143: 1669 | I143: 170.69 | J143: 176.56 | K143: 176.56 | L143: 176.56 | M143: 176.56 | N143: 176.56 | O143: 176.56 | P143: 176.56 | Q143: 176.56 | R143: 176.56 | S143: 176.56 | T143: 176.56 | V143: 148 | W143: 0.03455 | X143: 0.23757 | Y143: 0.72788 | AA143: 26 | AB143: 2021 | AC143: ELETROACRE | AD143: Outros | AE143: (-)Créditos Tributários Recuperáveis | AF143: 610531910 | AG143: -21235.23
A144: 6951 | B144: RIO BRANCO I - 138 kV (A) | C144: 138 | D144: Fora Ponta | E144: 3356 | F144: 4060 | G144: 20595 | H144: 9187 | I144: 17.38 | J144: 19.1 | K144: 19.1 | L144: 19.1 | M144: 19.1 | N144: 19.1 | O144: 19.1 | P144: 19.1 | Q144: 19.1 | R144: 19.1 | S144: 19.1 | T144: 19.1 | V144: 149 | W144: - | X144: 0.17399 | Y144: 0.82601 | AA144: 26 | AB144: 2021 | AC144: ELETROACRE | AD144: Pessoal | AE144: Remuneração | AF144: 610532501 | AG144: -2476766.43
B145: FEIJO69kVA | C145: 69 | D145: Fora Ponta | F145: 4276 | H145: 9987 | I145: 0 | J145: 0 | K145: 0 | L145: 0 | M145: 0 | N145: 0 | O145: 9.4 | P145: 9.4 | Q145: 9.4 | R145: 9.4 | S145: 9.4 | T145: 9.4 | V145: 150 | W145: 0.03635 | X145: 0.17413 | Y145: 0.78952 | AA145: 26 | AB145: 2021 | AC145: ELETROACRE | AD145: Pessoal | AE145: Encargos | AF145: 610532502 | AG145: 3135040.86
A146: 6952 | B146: RIO BRANCO I - 69 kV (C) | C146: 69 | D146: Fora Ponta | E146: 3356 | F146: 4060 | G146: 2479 | H146: 1669 | I146: 173.94 | J146: 179.93 | K146: 179.93 | L146: 179.93 | M146: 179.93 | N146: 179.93 | O146: 179.93 | P146: 179.93 | Q146: 179.93 | R146: 179.93 | S146: 179.93 | T146: 179.93 | V146: 151 | W146: 0.02735 | X146: 0.28351 | Y146: 0.68915 | AA146: 26 | AB146: 2021 | AC146: ELETROACRE | AD146: Pessoal | AE146: Previdência Privada Corrente | AF146: 610532503 | AG146: 801354.23
V147: 152 | W147: 0.00215 | X147: 0.1412 | Y147: 0.85665 | AA147: 26 | AB147: 2021 | AC147: ELETROACRE | AD147: Pessoal | AE147: Despesas Rescisórias | AF147: 610532506 | AG147: 0
V148: 153 | W148: 0.03606 | X148: 0.17601 | Y148: 0.78793 | AA148: 26 | AB148: 2021 | AC148: ELETROACRE | AD148: Pessoal | AE148: Participação Lucros Resultados | AF148: 610532507 | AG148: 3392408.73
V149: 154 | W149: 0.12913 | X149: 0.26626 | Y149: 0.60462 | AA149: 26 | AB149: 2021 | AC149: ELETROACRE | AD149: Pessoal | AE149: Outros Benefícios | AF149: 610532508 | AG149: 1151251.37
V150: 155 | W150: 0.04008 | X150: 0.23225 | Y150: 0.72768 | AA150: 26 | AB150: 2021 | AC150: ELETROACRE | AD150: Pessoal | AE150: (-)Créditos Tributários Recuperáveis | AF150: 610532510 | AG150: 0
V151: 156 | W151: - | X151: 0.35985 | Y151: 0.64015 | AA151: 26 | AB151: 2021 | AC151: ELETROACRE | AD151: Pessoal | AE151: Remuneração | AF151: 610532511 | AG151: 0
V152: 157 | W152: - | X152: 0.15963 | Y152: 0.84037 | AA152: 26 | AB152: 2021 | AC152: ELETROACRE | AD152: Pessoal | AE152: Outros | AF152: 610532599 | AG152: 7239932.56
V153: 158 | W153: - | X153: 0.33049 | Y153: 0.66951 | AA153: 26 | AB153: 2021 | AC153: ELETROACRE | AD153: Pessoal | AE153: Administradores | AF153: 6105326 | AG153: 3164413.53
V154: 160 | W154: 0.1013 | X154: 0.22818 | Y154: 0.67051 | AA154: 26 | AB154: 2021 | AC154: ELETROACRE | AD154: Materiais | AE154: Materiais | AF154: 610532701 | AG154: 4691150.64
V155: 161 | W155: - | X155: 0.28355 | Y155: 0.71645 | AA155: 26 | AB155: 2021 | AC155: ELETROACRE | AD155: Materiais | AE155: (-)Créditos Tributários Recuperáveis | AF155: 610532710 | AG155: 0
V156: 163 | W156: 0.03507 | X156: 0.1664 | Y156: 0.79853 | AA156: 26 | AB156: 2021 | AC156: ELETROACRE | AD156: Materiais | AE156: Outros | AF156: 610532799 | AG156: 0
V157: 164 | W157: - | X157: 0.12897 | Y157: 0.87103 | AA157: 26 | AB157: 2021 | AC157: ELETROACRE | AD157: Terceiros | AE157: AdmCentral | AF157: 610532801 | AG157: 33537382.28
AA158: 26 | AB158: 2021 | AC158: ELETROACRE | AD158: Terceiros | AE158: (-)Créditos Tributários Recuperáveis | AF158: 610532810 | AG158: 0
AA159: 26 | AB159: 2021 | AC159: ELETROACRE | AD159: Seguros | AE159: Seguros | AF159: 610533001 | AG159: 422913.76
AA160: 26 | AB160: 2021 | AC160: ELETROACRE | AD160: Seguros | AE160: (-)Créditos Tributários Recuperáveis | AF160: 610533010 | AG160: 0
AA161: 26 | AB161: 2021 | AC161: ELETROACRE | AD161: Seguros | AE161: Outros | AF161: 610533099 | AG161: 0
AA162: 26 | AB162: 2021 | AC162: ELETROACRE | AD162: Demais | AE162: Condenações Trabalhistas | AF162: 610533212 | AG162: 0
V163: Tab_EnergiaConsumidaMWh | AA163: 26 | AB163: 2021 | AC163: ELETROACRE | AD163: Tributos | AE163: Tributos | AF163: 6105336 | AG163: 298245.28
V164: Competencia | W164: EnergiaConsumidaMWh | X164: EnergiaFaturadaMWh | Y164: Dif_Consumida_FaturadaMWh | AA164: 26 | AB164: 2021 | AC164: ELETROACRE | AD164: Outros | AE164: Indenização Perdas Danos | AF164: 610533901 | AG164: 3511278.22
V165: 44896 | W165: 5420.191 | X165: 2495.668 | Y165: 2924.523 | AA165: 26 | AB165: 2021 | AC165: ELETROACRE | AD165: Outros | AE165: Consumo Próprio Energia | AF165: 610533902 | AG165: 0
V166: 44927 | W166: 5264.311 | X166: 2536.816 | Y166: 2727.495 | AA166: 26 | AB166: 2021 | AC166: ELETROACRE | AD166: Outros | AE166: Taxas Arrecadação | AF166: 610533903 | AG166: 0
V167: 44958 | W167: 5190.526 | X167: 2391.062 | Y167: 2799.464 | AA167: 26 | AB167: 2021 | AC167: ELETROACRE | AD167: Outros | AE167: Taxas Bancárias | AF167: 610533904 | AG167: 0
V168: 44986 | W168: 6137.25 | X168: 2925.79 | Y168: 3211.46 | AA168: 26 | AB168: 2021 | AC168: ELETROACRE | AD168: Outros | AE168: Comunicação e Reprografia | AF168: 610533907 | AG168: 0
V169: 45017 | W169: 5814.202 | X169: 2897.158 | Y169: 2917.044 | AA169: 26 | AB169: 2021 | AC169: ELETROACRE | AD169: Demais | AE169: Gastos com CCEE | AF169: 610533908 | AG169: 0
V170: 45047 | W170: 6763.409 | X170: 3466.624 | Y170: 3296.785 | AA170: 26 | AB170: 2021 | AC170: ELETROACRE | AD170: Outros | AE170: (-)Créditos Tributários Recuperáveis | AF170: 610533910 | AG170: 0
V171: 45078 | W171: 6707.013 | X171: 3069.214 | Y171: 3637.799 | AA171: 26 | AB171: 2021 | AC171: ELETROACRE | AD171: Pessoal | AE171: Remuneração | AF171: 610550501 | AG171: 0
V172: 45108 | W172: 6837.39 | X172: 3134.278 | Y172: 3703.112 | AA172: 26 | AB172: 2021 | AC172: ELETROACRE | AD172: Pessoal | AE172: Encargos | AF172: 610550502 | AG172: 0
V173: 45139 | W173: 8191.865 | X173: 3838.981 | Y173: 4352.884 | AA173: 26 | AB173: 2021 | AC173: ELETROACRE | AD173: Pessoal | AE173: Previdência Privada Corrente | AF173: 610550503 | AG173: 0
V174: 45170 | W174: 8824.339 | X174: 3822.331 | Y174: 5002.008 | AA174: 26 | AB174: 2021 | AC174: ELETROACRE | AD174: Pessoal | AE174: Despesas Rescisórias | AF174: 610550506 | AG174: 0
V175: 45200 | W175: 8928.492 | X175: 4051.849 | Y175: 4876.643 | AA175: 26 | AB175: 2021 | AC175: ELETROACRE | AD175: Pessoal | AE175: Participação Lucros Resultados | AF175: 610550507 | AG175: 0
V176: 45231 | W176: 8928.492 | X176: 4051.849 | Y176: 4876.643 | AA176: 26 | AB176: 2021 | AC176: ELETROACRE | AD176: Pessoal | AE176: Outros Benefícios | AF176: 610550508 | AG176: 0
AA177: 26 | AB177: 2021 | AC177: ELETROACRE | AD177: Pessoal | AE177: (-)Créditos Tributários Recuperáveis | AF177: 610550510 | AG177: 0
AA178: 26 | AB178: 2021 | AC178: ELETROACRE | AD178: Pessoal | AE178: Outros | AF178: 610550599 | AG178: 0
W179: =SUMIFS(Mercado_Receita!N:N,Mercado_Receita!G:G,"SCE*",Mercado_Receita!K:K,BD!V165) -> 0 | X179: =SUMIFS(Mercado_Receita!N:N,Mercado_Receita!B:B,"Sistema de*",Mercado_Receita!K:K,BD!V165) -> 2495.668 | Y179: =X165-X179 -> 0 | AA179: 26 | AB179: 2021 | AC179: ELETROACRE | AD179: Pessoal | AE179: Administradores | AF179: 6105506 | AG179: 0
W180: =SUMIFS(Mercado_Receita!N:N,Mercado_Receita!G:G,"SCE*",Mercado_Receita!K:K,BD!V166) -> 7.767 | X180: =SUMIFS(Mercado_Receita!N:N,Mercado_Receita!B:B,"Sistema de*",Mercado_Receita!K:K,BD!V166) -> 2544.583 | Y180: =X166-X180 -> -7.767 | AA180: 26 | AB180: 2021 | AC180: ELETROACRE | AD180: Materiais | AE180: Materiais | AF180: 610550701 | AG180: 0
W181: =SUMIFS(Mercado_Receita!N:N,Mercado_Receita!G:G,"SCE*",Mercado_Receita!K:K,BD!V167) -> 0 | X181: =SUMIFS(Mercado_Receita!N:N,Mercado_Receita!B:B,"Sistema de*",Mercado_Receita!K:K,BD!V167) -> 2391.062 | Y181: 0 | AA181: 26 | AB181: 2021 | AC181: ELETROACRE | AD181: Materiais | AE181: (-)Créditos Tributários Recuperáveis | AF181: 610550710 | AG181: 0
W182: =SUMIFS(Mercado_Receita!N:N,Mercado_Receita!G:G,"SCE*",Mercado_Receita!K:K,BD!V168) -> 16.976 | X182: =SUMIFS(Mercado_Receita!N:N,Mercado_Receita!B:B,"Sistema de*",Mercado_Receita!K:K,BD!V168) -> 2942.766 | Y182: -16.976 | AA182: 26 | AB182: 2021 | AC182: ELETROACRE | AD182: Materiais | AE182: Outros | AF182: 610550799 | AG182: 0
W183: =SUMIFS(Mercado_Receita!N:N,Mercado_Receita!G:G,"SCE*",Mercado_Receita!K:K,BD!V169) -> 33.748 | X183: =SUMIFS(Mercado_Receita!N:N,Mercado_Receita!B:B,"Sistema de*",Mercado_Receita!K:K,BD!V169) -> 2930.906 | Y183: -33.748 | AA183: 26 | AB183: 2021 | AC183: ELETROACRE | AD183: Terceiros | AE183: (-)Créditos Tributários Recuperáveis | AF183: 610550810 | AG183: 0
W184: =SUMIFS(Mercado_Receita!N:N,Mercado_Receita!G:G,"SCE*",Mercado_Receita!K:K,BD!V170) -> 52.8 | X184: =SUMIFS(Mercado_Receita!N:N,Mercado_Receita!B:B,"Sistema de*",Mercado_Receita!K:K,BD!V170) -> 3519.424 | Y184: -52.8 | AA184: 26 | AB184: 2021 | AC184: ELETROACRE | AD184: Seguros | AE184: Seguros | AF184: 610551001 | AG184: 0
W185: =SUMIFS(Mercado_Receita!N:N,Mercado_Receita!G:G,"SCE*",Mercado_Receita!K:K,BD!V171) -> 210.466 | X185: =SUMIFS(Mercado_Receita!N:N,Mercado_Receita!B:B,"Sistema de*",Mercado_Receita!K:K,BD!V171) -> 3279.68 | Y185: -210.466 | AA185: 26 | AB185: 2021 | AC185: ELETROACRE | AD185: Seguros | AE185: (-)Créditos Tributários Recuperáveis | AF185: 610551010 | AG185: 0
W186: =SUMIFS(Mercado_Receita!N:N,Mercado_Receita!G:G,"SCE*",Mercado_Receita!K:K,BD!V172) -> 266.022 | X186: =SUMIFS(Mercado_Receita!N:N,Mercado_Receita!B:B,"Sistema de*",Mercado_Receita!K:K,BD!V172) -> 3400.3 | Y186: -266.022 | AA186: 26 | AB186: 2021 | AC186: ELETROACRE | AD186: Seguros | AE186: Outros | AF186: 610551099 | AG186: 0
W187: =SUMIFS(Mercado_Receita!N:N,Mercado_Receita!G:G,"SCE*",Mercado_Receita!K:K,BD!V173) -> 248.673 | X187: =SUMIFS(Mercado_Receita!N:N,Mercado_Receita!B:B,"Sistema de*",Mercado_Receita!K:K,BD!V173) -> 4087.654 | Y187: -248.673 | AA187: 26 | AB187: 2021 | AC187: ELETROACRE | AD187: Tributos | AE187: Tributos | AF187: 6105516 | AG187: 0
W188: =SUMIFS(Mercado_Receita!N:N,Mercado_Receita!G:G,"SCE*",Mercado_Receita!K:K,BD!V174) -> 541.946 | X188: =SUMIFS(Mercado_Receita!N:N,Mercado_Receita!B:B,"Sistema de*",Mercado_Receita!K:K,BD!V174) -> 4364.277 | Y188: -541.946 | AA188: 26 | AB188: 2021 | AC188: ELETROACRE | AD188: Outros | AE188: Indenização Perdas Danos | AF188: 610551901 | AG188: 0
W189: =SUMIFS(Mercado_Receita!N:N,Mercado_Receita!G:G,"SCE*",Mercado_Receita!K:K,BD!V175) -> 559.69 | X189: =SUMIFS(Mercado_Receita!N:N,Mercado_Receita!B:B,"Sistema de*",Mercado_Receita!K:K,BD!V175) -> 4611.539 | Y189: -559.69 | AA189: 26 | AB189: 2021 | AC189: ELETROACRE | AD189: Outros | AE189: Consumo Próprio Energia | AF189: 610551902 | AG189: 0
AA190: 26 | AB190: 2021 | AC190: ELETROACRE | AD190: Outros | AE190: Taxas Arrecadação | AF190: 610551903 | AG190: 0
AA191: 26 | AB191: 2021 | AC191: ELETROACRE | AD191: Outros | AE191: Taxas Bancárias | AF191: 610551904 | AG191: 0
AA192: 26 | AB192: 2021 | AC192: ELETROACRE | AD192: Outros | AE192: (-)Créditos Tributários Recuperáveis | AF192: 610551910 | AG192: 0
AA193: 26 | AB193: 2021 | AC193: ELETROACRE | AD193: Pessoal | AE193: Remuneração | AF193: 610552501 | AG193: 0
AA194: 26 | AB194: 2021 | AC194: ELETROACRE | AD194: Pessoal | AE194: Encargos | AF194: 610552502 | AG194: 0
AA195: 26 | AB195: 2021 | AC195: ELETROACRE | AD195: Pessoal | AE195: Previdência Privada Corrente | AF195: 610552503 | AG195: 0
AA196: 26 | AB196: 2021 | AC196: ELETROACRE | AD196: Pessoal | AE196: Despesas Rescisórias | AF196: 610552506 | AG196: 0
AA197: 26 | AB197: 2021 | AC197: ELETROACRE | AD197: Pessoal | AE197: Participação Lucros Resultados | AF197: 610552507 | AG197: 0
AA198: 26 | AB198: 2021 | AC198: ELETROACRE | AD198: Pessoal | AE198: Outros Benefícios | AF198: 610552508 | AG198: 0
AA199: 26 | AB199: 2021 | AC199: ELETROACRE | AD199: Pessoal | AE199: (-)Créditos Tributários Recuperáveis | AF199: 610552510 | AG199: 0
AA200: 26 | AB200: 2021 | AC200: ELETROACRE | AD200: Pessoal | AE200: Outros | AF200: 610552599 | AG200: 0
AA201: 26 | AB201: 2021 | AC201: ELETROACRE | AD201: Pessoal | AE201: Administradores | AF201: 6105526 | AG201: 0
AA202: 26 | AB202: 2021 | AC202: ELETROACRE | AD202: Materiais | AE202: Materiais | AF202: 610552701 | AG202: 0
AA203: 26 | AB203: 2021 | AC203: ELETROACRE | AD203: Materiais | AE203: (-)Créditos Tributários Recuperáveis | AF203: 610552710 | AG203: 0
... 204 more rows

Sheet Entrada
B1: Entrada de parâmetros para cálculo tarifário
B4: Energia | D4: Últ. Atualização | F4: Parâmetros para Revisão | P4: ="Caso de OR para a empresa é: " &IF(BD!C53=4,"caso 1","caso 3") -> Caso de OR para a empresa é: caso 3
D6: 44825 | F6: CAPEX - Ativos de Distribuição | J6: Custo Operacional Real do(s) último(s) ano(s) | P6: Outras Receitas - Caso 1 e 2 | AC6: =" Diferenças em relação ao RTA "&YEAR(AC7) -> Diferenças em relação ao RTA 2022 | AG6: ="Valores RTA "&YEAR(AG7) -> Valores RTA 2022
B7: Montante de Geração Própria | C7: 206.65 | D7: 45246 | F7: (1) Ativo Imobilizado em Serviço (Valor Novo de Reposição) | G7: =G71*VLOOKUP(DATE(YEAR(CAPA!$C$10),MONTH(CAPA!$C$10)-1,1),Índices!$B$135:$D$638,3,0)/VLOOKUP(DATE(YEAR($G$70),MONTH($G$70)-1,1),Índices!$B$135:$D$638,3,0) -> 2594685496 | J7: Ano do Custo Operacional | L7: =MAX(Tab_RIT_BMP[ANO])-1 -> 2021 | M7: =MAX(Tab_RIT_BMP[ANO]) -> 2022 | P7: Tipo de Receita | Q7: =DATE(YEAR(LnkTxtDRPData),MONTH(LnkTxtDRPData)-1,1) -> 2023-11-01 | R7: =DATE(YEAR(Q7),MONTH(Q7)-1,1) -> 2023-10-01 | S7: =DATE(YEAR(R7),MONTH(R7)-1,1) -> 2023-09-01 | T7: 2023-08-01 | U7: 2023-07-01 | V7: 2023-06-01 | W7: 2023-05-01 | X7: 2023-04-01 | Y7: 2023-03-01 | Z7: 2023-02-01 | AA7: 2023-01-01 | AB7: 2022-12-01 | AC7: =EDATE(AB7,-1) -> 2022-11-01 | AD7: =EDATE(AC7,-1) -> 2022-10-01 | AE7: 2022-09-01 | AF7: =AC7 -> 2022-11-01 | AG7: =AD7 -> 2022-10-01 | AH7: 2022-09-01 | AI7: =UDEROR!Y12 -> 00:00:00 | AJ7: =UDEROR!Z12 -> 00:00:00 | AK7: =UDEROR!AA12 -> 00:00:00 | AL7: =UDEROR!AB12 -> 00:00:00 | AM7: =UDEROR!AC12 -> 00:00:00 | AN7: =UDEROR!AD12 -> 00:00:00 | AO7: =UDEROR!AE12 -> 00:00:00 | AP7: =UDEROR!AF12 -> 00:00:00 | AQ7: =UDEROR!AG12 -> 00:00:00 | AR7: =UDEROR!AH12 -> 00:00:00 | AS7: =UDEROR!AI12 -> 00:00:00 | AT7: =UDEROR!AJ12 -> 00:00:00 | AU7: =UDEROR!AK12 -> 00:00:00 | AV7: =UDEROR!AL12 -> 00:00:00 | AW7: =UDEROR!AM12 -> 00:00:00 | AX7: =UDEROR!AN12 -> 00:00:00 | AY7: =UDEROR!AO12 -> 00:00:00 | AZ7: =UDEROR!AP12 -> 00:00:00 | BA7: =UDEROR!AQ12 -> 00:00:00 | BB7: =UDEROR!AR12 -> 00:00:00 | BC7: =UDEROR!AS12 -> 00:00:00 | BD7: =UDEROR!AT12 -> 00:00:00
B8: Custo médio da Geração Própria | C8: =C15*(18/365)+C14*(365-18)/365 -> 302.5737534 | D8: 45233 | F8: (2) Índice de Aproveitamento Integral | G8: =G72*VLOOKUP(DATE(YEAR(CAPA!$C$10),MONTH(CAPA!$C$10)-1,1),Índices!$B$135:$D$638,3,0)/VLOOKUP(DATE(YEAR($G$70),MONTH($G$70)-1,1),Índices!$B$135:$D$638,3,0) -> 13324719.44 | J8: CONTA PESSOAL | P8: Serviços Cobráveis | Q8: =SUMIFS(Tab_Uderor[R$],Tab_Uderor[Competencia],Entrada!Q$7,Tab_Uderor[TipoReceita],Entrada!$P8)*0+R8 -> 89702.74 | R8: =SUMIFS(Tab_Uderor[R$],Tab_Uderor[Competencia],Entrada!R$7,Tab_Uderor[TipoReceita],Entrada!$P8) -> 89702.74 | S8: =SUMIFS(Tab_Uderor[R$],Tab_Uderor[Competencia],Entrada!S$7,Tab_Uderor[TipoReceita],Entrada!$P8) -> 102928.85 | T8: =SUMIFS(Tab_Uderor[R$],Tab_Uderor[Competencia],Entrada!T$7,Tab_Uderor[TipoReceita],Entrada!$P8) -> 106352.5 | U8: =SUMIFS(Tab_Uderor[R$],Tab_Uderor[Competencia],Entrada!U$7,Tab_Uderor[TipoReceita],Entrada!$P8) -> 96550.88 | V8: =SUMIFS(Tab_Uderor[R$],Tab_Uderor[Competencia],Entrada!V$7,Tab_Uderor[TipoReceita],Entrada!$P8) -> 91402.97 | W8: =SUMIFS(Tab_Uderor[R$],Tab_Uderor[Competencia],Entrada!W$7,Tab_Uderor[TipoReceita],Entrada!$P8) -> 90207.36 | X8: =SUMIFS(Tab_Uderor[R$],Tab_Uderor[Competencia],Entrada!X$7,Tab_Uderor[TipoReceita],Entrada!$P8) -> 69835.75 | Y8: =SUMIFS(Tab_Uderor[R$],Tab_Uderor[Competencia],Entrada!Y$7,Tab_Uderor[TipoReceita],Entrada!$P8) -> 82147.38 | Z8: =SUMIFS(Tab_Uderor[R$],Tab_Uderor[Competencia],Entrada!Z$7,Tab_Uderor[TipoReceita],Entrada!$P8) -> 85997.21 | AA8: =SUMIFS(Tab_Uderor[R$],Tab_Uderor[Competencia],Entrada!AA$7,Tab_Uderor[TipoReceita],Entrada!$P8) -> 93497.47 | AB8: =SUMIFS(Tab_Uderor[R$],Tab_Uderor[Competencia],Entrada!AB$7,Tab_Uderor[TipoReceita],Entrada!$P8) -> 81845.16 | AC8: =SUMIFS(Tab_Uderor[R$],Tab_Uderor[Competencia],Entrada!AC$7,Tab_Uderor[TipoReceita],Entrada!$P8)-AF8 -> -27067.73 | AD8: =SUMIFS(Tab_Uderor[R$],Tab_Uderor[Competencia],Entrada!AD$7,Tab_Uderor[TipoReceita],Entrada!$P8)-AG8 -> 0 | AE8: =SUMIFS(Tab_Uderor[R$],Tab_Uderor[Competencia],Entrada!AE$7,Tab_Uderor[TipoReceita],Entrada!$P8)-AH8 -> 0 | AF8: 109950.02 | AG8: 109950.02 | AH8: 112991.71
D9: 44825 | F9: (3) Obrigações Especiais Bruta | G9: =G73*VLOOKUP(DATE(YEAR(CAPA!$C$10),MONTH(CAPA!$C$10)-1,1),Índices!$B$135:$D$638,3,0)/VLOOKUP(DATE(YEAR($G$70),MONTH($G$70)-1,1),Índices!$B$135:$D$638,3,0) -> 957028983.9 | J9: BMP - 610530501; 610550501; 610532501; 610552501; 610530511; 610532511 | K9: Remuneração | L9: =SUMIFS(Tab_RIT_BMP[SALDO],Tab_RIT_BMP[CONTA],610530501,Tab_RIT_BMP[ANO],$L$7)+SUMIFS(Tab_RIT_BMP[SALDO],Tab_RIT_BMP[CONTA],610550501,Tab_RIT_BMP[ANO],$L$7)+ SUMIFS(Tab_RIT_BMP[SALDO],Tab_RIT_BMP[CONTA],610532501,Tab_RIT_BMP[ANO],$L$7)+SUMIFS(Tab_RIT_BMP[SALDO],Tab_RIT_BMP[CONTA],610552501,Tab_RIT_BMP[ANO],$L$7)+ SUMIFS(Tab_RIT_BMP[SALDO],Tab_RIT_BMP[CONTA],610530511,Tab_RIT_BMP[ANO],$L$7)+SUMIFS(Tab_RIT_BMP[SALDO],Tab_RIT_BMP[CONTA],610532511,Tab_RIT_BMP[ANO],$L$7) -> 27658357.49 | M9: =SUMIFS(Tab_RIT_BMP[SALDO],Tab_RIT_BMP[CONTA],610530501,Tab_RIT_BMP[ANO],$M$7)+SUMIFS(Tab_RIT_BMP[SALDO],Tab_RIT_BMP[CONTA],610550501,Tab_RIT_BMP[ANO],$M$7)+ SUMIFS(Tab_RIT_BMP[SALDO],Tab_RIT_BMP[CONTA],610532501,Tab_RIT_BMP[ANO],$M$7)+SUMIFS(Tab_RIT_BMP[SALDO],Tab_RIT_BMP[CONTA],610552501,Tab_RIT_BMP[ANO],$M$7)+ SUMIFS(Tab_RIT_BMP[SALDO],Tab_RIT_BMP[CONTA],610530511,Tab_RIT_BMP[ANO],$M$7)+SUMIFS(Tab_RIT_BMP[SALDO],Tab_RIT_BMP[CONTA],610532511,Tab_RIT_BMP[ANO],$M$7) -> 22963051.35 | P9: Arrecadação de convênios ou valores pela fatura | Q9: =SUMIFS(Tab_Uderor[R$],Tab_Uderor[Competencia],Entrada!Q$7,Tab_Uderor[TipoReceita],Entrada!$P9)*0+R9 -> 0 | R9: =SUMIFS(Tab_Uderor[R$],Tab_Uderor[Competencia],Entrada!R$7,Tab_Uderor[TipoReceita],Entrada!$P9) -> 0 | S9: =SUMIFS(Tab_Uderor[R$],Tab_Uderor[Competencia],Entrada!S$7,Tab_Uderor[TipoReceita],Entrada!$P9) -> 0 | T9: =SUMIFS(Tab_Uderor[R$],Tab_Uderor[Competencia],Entrada!T$7,Tab_Uderor[TipoReceita],Entrada!$P9) -> 0 | U9: =SUMIFS(Tab_Uderor[R$],Tab_Uderor[Competencia],Entrada!U$7,Tab_Uderor[TipoReceita],Entrada!$P9) -> 0 | V9: =SUMIFS(Tab_Uderor[R$],Tab_Uderor[Competencia],Entrada!V$7,Tab_Uderor[TipoReceita],Entrada!$P9) -> 0 | W9: =SUMIFS(Tab_Uderor[R$],Tab_Uderor[Competencia],Entrada!W$7,Tab_Uderor[TipoReceita],Entrada!$P9) -> 0 | X9: =SUMIFS(Tab_Uderor[R$],Tab_Uderor[Competencia],Entrada!X$7,Tab_Uderor[TipoReceita],Entrada!$P9) -> 0 | Y9: =SUMIFS(Tab_Uderor[R$],Tab_Uderor[Competencia],Entrada!Y$7,Tab_Uderor[TipoReceita],Entrada!$P9) -> 0 | Z9: =SUMIFS(Tab_Uderor[R$],Tab_Uderor[Competencia],Entrada!Z$7,Tab_Uderor[TipoReceita],Entrada!$P9) -> 0 | AA9: =SUMIFS(Tab_Uderor[R$],Tab_Uderor[Competencia],Entrada!AA$7,Tab_Uderor[TipoReceita],Entrada!$P9) -> 0 | AB9: =SUMIFS(Tab_Uderor[R$],Tab_Uderor[Competencia],Entrada!AB$7,Tab_Uderor[TipoReceita],Entrada!$P9) -> 0 | AC9: =SUMIFS(Tab_Uderor[R$],Tab_Uderor[Competencia],Entrada!AC$7,Tab_Uderor[TipoReceita],Entrada!$P9)-AF9 -> 0 | AD9: =SUMIFS(Tab_Uderor[R$],Tab_Uderor[Competencia],Entrada!AD$7,Tab_Uderor[TipoReceita],Entrada!$P9)-AG9 -> 0 | AE9: =SUMIFS(Tab_Uderor[R$],Tab_Uderor[Competencia],Entrada!AE$7,Tab_Uderor[TipoReceita],Entrada!$P9)-AH9 -> 0 | AF9: 0 | AG9: 0 | AH9: 0
D10: 44825 | F10: (4) Bens Totalmente Depreciados | G10: =G74*VLOOKUP(DATE(YEAR(CAPA!$C$10),MONTH(CAPA!$C$10)-1,1),Índices!$B$135:$D$638,3,0)/VLOOKUP(DATE(YEAR($G$70),MONTH($G$70)-1,1),Índices!$B$135:$D$638,3,0) -> 197618957.9 | J10: BMP - 610530502; 610550502; 610532502; 610552502 | K10: Encargos | L10: =SUMIFS(Tab_RIT_BMP[SALDO],Tab_RIT_BMP[CONTA],610530502,Tab_RIT_BMP[ANO],$L$7)+SUMIFS(Tab_RIT_BMP[SALDO],Tab_RIT_BMP[CONTA],610550502,Tab_RIT_BMP[ANO],$L$7)+ SUMIFS(Tab_RIT_BMP[SALDO],Tab_RIT_BMP[CONTA],610532502,Tab_RIT_BMP[ANO],$L$7)+SUMIFS(Tab_RIT_BMP[SALDO],Tab_RIT_BMP[CONTA],610552502,Tab_RIT_BMP[ANO],$L$7) -> 11555993.72 | M10: =SUMIFS(Tab_RIT_BMP[SALDO],Tab_RIT_BMP[CONTA],610530502,Tab_RIT_BMP[ANO],$M$7)+SUMIFS(Tab_RIT_BMP[SALDO],Tab_RIT_BMP[CONTA],610550502,Tab_RIT_BMP[ANO],$M$7)+ SUMIFS(Tab_RIT_BMP[SALDO],Tab_RIT_BMP[CONTA],610532502,Tab_RIT_BMP[ANO],$M$7)+SUMIFS(Tab_RIT_BMP[SALDO],Tab_RIT_BMP[CONTA],610552502,Tab_RIT_BMP[ANO],$M$7) -> 13444355.37 | P10: Arrecadação de faturas de terceiros por estrutura própria | Q10: =SUMIFS(Tab_Uderor[R$],Tab_Uderor[Competencia],Entrada!Q$7,Tab_Uderor[TipoReceita],Entrada!$P10)*0+R10 -> 0 | R10: =SUMIFS(Tab_Uderor[R$],Tab_Uderor[Competencia],Entrada!R$7,Tab_Uderor[TipoReceita],Entrada!$P10) -> 0 | S10: =SUMIFS(Tab_Uderor[R$],Tab_Uderor[Competencia],Entrada!S$7,Tab_Uderor[TipoReceita],Entrada!$P10) -> 0 | T10: =SUMIFS(Tab_Uderor[R$],Tab_Uderor[Competencia],Entrada!T$7,Tab_Uderor[TipoReceita],Entrada!$P10) -> 0 | U10: =SUMIFS(Tab_Uderor[R$],Tab_Uderor[Competencia],Entrada!U$7,Tab_Uderor[TipoReceita],Entrada!$P10) -> 0 | V10: =SUMIFS(Tab_Uderor[R$],Tab_Uderor[Competencia],Entrada!V$7,Tab_Uderor[TipoReceita],Entrada!$P10) -> 0 | W10: =SUMIFS(Tab_Uderor[R$],Tab_Uderor[Competencia],Entrada!W$7,Tab_Uderor[TipoReceita],Entrada!$P10) -> 0 | X10: =SUMIFS(Tab_Uderor[R$],Tab_Uderor[Competencia],Entrada!X$7,Tab_Uderor[TipoReceita],Entrada!$P10) -> 0 | Y10: =SUMIFS(Tab_Uderor[R$],Tab_Uderor[Competencia],Entrada!Y$7,Tab_Uderor[TipoReceita],Entrada!$P10) -> 0 | Z10: =SUMIFS(Tab_Uderor[R$],Tab_Uderor[Competencia],Entrada!Z$7,Tab_Uderor[TipoReceita],Entrada!$P10) -> 0 | AA10: =SUMIFS(Tab_Uderor[R$],Tab_Uderor[Competencia],Entrada!AA$7,Tab_Uderor[TipoReceita],Entrada!$P10) -> 0 | AB10: =SUMIFS(Tab_Uderor[R$],Tab_Uderor[Competencia],Entrada!AB$7,Tab_Uderor[TipoReceita],Entrada!$P10) -> 0 | AC10: =SUMIFS(Tab_Uderor[R$],Tab_Uderor[Competencia],Entrada!AC$7,Tab_Uderor[TipoReceita],Entrada!$P10)-AF10 -> 0 | AD10: =SUMIFS(Tab_Uderor[R$],Tab_Uderor[Competencia],Entrada!AD$7,Tab_Uderor[TipoReceita],Entrada!$P10)-AG10 -> 0 | AE10: =SUMIFS(Tab_Uderor[R$],Tab_Uderor[Competencia],Entrada!AE$7,Tab_Uderor[TipoReceita],Entrada!$P10)-AH10 -> 0 | AF10: 0 | AG10: 0 | AH10: 0
B11: *Pendência: verificar necessidade de cálculo de VGP | F11: (5) Base de Remuneração Bruta = (1)-(2)-(3)-(4) | G11: =G7-G8-G9-G10 -> 1426712835 | J11: BMP - 610530503; 610550503; 610532503; 610552503 | K11: Previdência Privada - Corrente | L11: =SUMIFS(Tab_RIT_BMP[SALDO],Tab_RIT_BMP[CONTA],610530503,Tab_RIT_BMP[ANO],$L$7)+SUMIFS(Tab_RIT_BMP[SALDO],Tab_RIT_BMP[CONTA],610550503,Tab_RIT_BMP[ANO],$L$7)+ SUMIFS(Tab_RIT_BMP[SALDO],Tab_RIT_BMP[CONTA],610532503,Tab_RIT_BMP[ANO],$L$7)+SUMIFS(Tab_RIT_BMP[SALDO],Tab_RIT_BMP[CONTA],610552503,Tab_RIT_BMP[ANO],$L$7) -> 1293117.75 | M11: =SUMIFS(Tab_RIT_BMP[SALDO],Tab_RIT_BMP[CONTA],610530503,Tab_RIT_BMP[ANO],$M$7)+SUMIFS(Tab_RIT_BMP[SALDO],Tab_RIT_BMP[CONTA],610550503,Tab_RIT_BMP[ANO],$M$7)+ SUMIFS(Tab_RIT_BMP[SALDO],Tab_RIT_BMP[CONTA],610532503,Tab_RIT_BMP[ANO],$M$7)+SUMIFS(Tab_RIT_BMP[SALDO],Tab_RIT_BMP[CONTA],610552503,Tab_RIT_BMP[ANO],$M$7) -> 787450.45 | P11: Veiculação de publicidade | Q11: =SUMIFS(Tab_Uderor[R$],Tab_Uderor[Competencia],Entrada!Q$7,Tab_Uderor[TipoReceita],Entrada!$P11)*0+R11 -> 0 | R11: =SUMIFS(Tab_Uderor[R$],Tab_Uderor[Competencia],Entrada!R$7,Tab_Uderor[TipoReceita],Entrada!$P11) -> 0 | S11: =SUMIFS(Tab_Uderor[R$],Tab_Uderor[Competencia],Entrada!S$7,Tab_Uderor[TipoReceita],Entrada!$P11) -> 0 | T11: =SUMIFS(Tab_Uderor[R$],Tab_Uderor[Competencia],Entrada!T$7,Tab_Uderor[TipoReceita],Entrada!$P11) -> 0 | U11: =SUMIFS(Tab_Uderor[R$],Tab_Uderor[Competencia],Entrada!U$7,Tab_Uderor[TipoReceita],Entrada!$P11) -> 0 | V11: =SUMIFS(Tab_Uderor[R$],Tab_Uderor[Competencia],Entrada!V$7,Tab_Uderor[TipoReceita],Entrada!$P11) -> 0 | W11: =SUMIFS(Tab_Uderor[R$],Tab_Uderor[Competencia],Entrada!W$7,Tab_Uderor[TipoReceita],Entrada!$P11) -> 0 | X11: =SUMIFS(Tab_Uderor[R$],Tab_Uderor[Competencia],Entrada!X$7,Tab_Uderor[TipoReceita],Entrada!$P11) -> 0 | Y11: =SUMIFS(Tab_Uderor[R$],Tab_Uderor[Competencia],Entrada!Y$7,Tab_Uderor[TipoReceita],Entrada!$P11) -> 0 | Z11: =SUMIFS(Tab_Uderor[R$],Tab_Uderor[Competencia],Entrada!Z$7,Tab_Uderor[TipoReceita],Entrada!$P11) -> 0 | AA11: =SUMIFS(Tab_Uderor[R$],Tab_Uderor[Competencia],Entrada!AA$7,Tab_Uderor[TipoReceita],Entrada!$P11) -> 0 | AB11: =SUMIFS(Tab_Uderor[R$],Tab_Uderor[Competencia],Entrada!AB$7,Tab_Uderor[TipoReceita],Entrada!$P11) -> 0 | AC11: =SUMIFS(Tab_Uderor[R$],Tab_Uderor[Competencia],Entrada!AC$7,Tab_Uderor[TipoReceita],Entrada!$P11)-AF11 -> 0 | AD11: =SUMIFS(Tab_Uderor[R$],Tab_Uderor[Competencia],Entrada!AD$7,Tab_Uderor[TipoReceita],Entrada!$P11)-AG11 -> 0 | AE11: =SUMIFS(Tab_Uderor[R$],Tab_Uderor[Competencia],Entrada!AE$7,Tab_Uderor[TipoReceita],Entrada!$P11)-AH11 -> 0 | AF11: 0 | AG11: 0 | AH11: 0
F12: (6) Depreciação Acumulada | G12: =G76*VLOOKUP(DATE(YEAR(CAPA!$C$10),MONTH(CAPA!$C$10)-1,1),Índices!$B$135:$D$638,3,0)/VLOOKUP(DATE(YEAR($G$70),MONTH($G$70)-1,1),Índices!$B$135:$D$638,3,0) -> 913041871.2 | J12: BMP - 610530508; 610550508; 610532508; 610552508 | K12: Outros Benefícios | L12: =SUMIFS(Tab_RIT_BMP[SALDO],Tab_RIT_BMP[CONTA],610530508,Tab_RIT_BMP[ANO],$L$7)+SUMIFS(Tab_RIT_BMP[SALDO],Tab_RIT_BMP[CONTA],610550508,Tab_RIT_BMP[ANO],$L$7)+ SUMIFS(Tab_RIT_BMP[SALDO],Tab_RIT_BMP[CONTA],610532508,Tab_RIT_BMP[ANO],$L$7)+SUMIFS(Tab_RIT_BMP[SALDO],Tab_RIT_BMP[CONTA],610552508,Tab_RIT_BMP[ANO],$L$7) -> 11229773.56 | M12: =SUMIFS(Tab_RIT_BMP[SALDO],Tab_RIT_BMP[CONTA],610530508,Tab_RIT_BMP[ANO],$M$7)+SUMIFS(Tab_RIT_BMP[SALDO],Tab_RIT_BMP[CONTA],610550508,Tab_RIT_BMP[ANO],$M$7)+ SUMIFS(Tab_RIT_BMP[SALDO],Tab_RIT_BMP[CONTA],610532508,Tab_RIT_BMP[ANO],$M$7)+SUMIFS(Tab_RIT_BMP[SALDO],Tab_RIT_BMP[CONTA],610552508,Tab_RIT_BMP[ANO],$M$7) -> 15535571.33 | P12: Aluguel ou cessão onerosa de imóveis e espaços físicos | Q12: =SUMIFS(Tab_Uderor[R$],Tab_Uderor[Competencia],Entrada!Q$7,Tab_Uderor[TipoReceita],Entrada!$P12)*0+R12 -> 0 | R12: =SUMIFS(Tab_Uderor[R$],Tab_Uderor[Competencia],Entrada!R$7,Tab_Uderor[TipoReceita],Entrada!$P12) -> 0 | S12: =SUMIFS(Tab_Uderor[R$],Tab_Uderor[Competencia],Entrada!S$7,Tab_Uderor[TipoReceita],Entrada!$P12) -> 0 | T12: =SUMIFS(Tab_Uderor[R$],Tab_Uderor[Competencia],Entrada!T$7,Tab_Uderor[TipoReceita],Entrada!$P12) -> 0 | U12: =SUMIFS(Tab_Uderor[R$],Tab_Uderor[Competencia],Entrada!U$7,Tab_Uderor[TipoReceita],Entrada!$P12) -> 0 | V12: =SUMIFS(Tab_Uderor[R$],Tab_Uderor[Competencia],Entrada!V$7,Tab_Uderor[TipoReceita],Entrada!$P12) -> 0 | W12: =SUMIFS(Tab_Uderor[R$],Tab_Uderor[Competencia],Entrada!W$7,Tab_Uderor[TipoReceita],Entrada!$P12) -> 0 | X12: =SUMIFS(Tab_Uderor[R$],Tab_Uderor[Competencia],Entrada!X$7,Tab_Uderor[TipoReceita],Entrada!$P12) -> 0 | Y12: =SUMIFS(Tab_Uderor[R$],Tab_Uderor[Competencia],Entrada!Y$7,Tab_Uderor[TipoReceita],Entrada!$P12) -> 0 | Z12: =SUMIFS(Tab_Uderor[R$],Tab_Uderor[Competencia],Entrada!Z$7,Tab_Uderor[TipoReceita],Entrada!$P12) -> 0 | AA12: =SUMIFS(Tab_Uderor[R$],Tab_Uderor[Competencia],Entrada!AA$7,Tab_Uderor[TipoReceita],Entrada!$P12) -> 0 | AB12: =SUMIFS(Tab_Uderor[R$],Tab_Uderor[Competencia],Entrada!AB$7,Tab_Uderor[TipoReceita],Entrada!$P12) -> 0 | AC12: =SUMIFS(Tab_Uderor[R$],Tab_Uderor[Competencia],Entrada!AC$7,Tab_Uderor[TipoReceita],Entrada!$P12)-AF12 -> 0 | AD12: =SUMIFS(Tab_Uderor[R$],Tab_Uderor[Competencia],Entrada!AD$7,Tab_Uderor[TipoReceita],Entrada!$P12)-AG12 -> 0 | AE12: =SUMIFS(Tab_Uderor[R$],Tab_Uderor[Competencia],Entrada!AE$7,Tab_Uderor[TipoReceita],Entrada!$P12)-AH12 -> 0 | AF12: 0 | AG12: 0 | AH12: 0
F13: (7) AIS Líquido (Valor de Mercado em Uso) | G13: =G7-G12 -> 1681643625 | J13: BMP - 610530506; 610550506; 610532506; 610552506 | K13: Despesas Rescisórias | L13: =SUMIFS(Tab_RIT_BMP[SALDO],Tab_RIT_BMP[CONTA],610530506,Tab_RIT_BMP[ANO],$L$7)+SUMIFS(Tab_RIT_BMP[SALDO],Tab_RIT_BMP[CONTA],610550506,Tab_RIT_BMP[ANO],$L$7)+ SUMIFS(Tab_RIT_BMP[SALDO],Tab_RIT_BMP[CONTA],610532506,Tab_RIT_BMP[ANO],$L$7)+SUMIFS(Tab_RIT_BMP[SALDO],Tab_RIT_BMP[CONTA],610552506,Tab_RIT_BMP[ANO],$L$7) -> 46961.57 | M13: =SUMIFS(Tab_RIT_BMP[SALDO],Tab_RIT_BMP[CONTA],610530506,Tab_RIT_BMP[ANO],$M$7)+SUMIFS(Tab_RIT_BMP[SALDO],Tab_RIT_BMP[CONTA],610550506,Tab_RIT_BMP[ANO],$M$7)+ SUMIFS(Tab_RIT_BMP[SALDO],Tab_RIT_BMP[CONTA],610532506,Tab_RIT_BMP[ANO],$M$7)+SUMIFS(Tab_RIT_BMP[SALDO],Tab_RIT_BMP[CONTA],610552506,Tab_RIT_BMP[ANO],$M$7) -> 0 | P13: Compartilhamento de infraestrutura | Q13: =SUMIFS(Tab_Uderor[R$],Tab_Uderor[Competencia],Entrada!Q$7,Tab_Uderor[TipoReceita],Entrada!$P13)*0+R13 -> 254843.02 | R13: =SUMIFS(Tab_Uderor[R$],Tab_Uderor[Competencia],Entrada!R$7,Tab_Uderor[TipoReceita],Entrada!$P13) -> 254843.02 | S13: =SUMIFS(Tab_Uderor[R$],Tab_Uderor[Competencia],Entrada!S$7,Tab_Uderor[TipoReceita],Entrada!$P13) -> 269934.62 | T13: =SUMIFS(Tab_Uderor[R$],Tab_Uderor[Competencia],Entrada!T$7,Tab_Uderor[TipoReceita],Entrada!$P13) -> 269934.62 | U13: =SUMIFS(Tab_Uderor[R$],Tab_Uderor[Competencia],Entrada!U$7,Tab_Uderor[TipoReceita],Entrada!$P13) -> 269934.62 | V13: =SUMIFS(Tab_Uderor[R$],Tab_Uderor[Competencia],Entrada!V$7,Tab_Uderor[TipoReceita],Entrada!$P13) -> 273546.9 | W13: =SUMIFS(Tab_Uderor[R$],Tab_Uderor[Competencia],Entrada!W$7,Tab_Uderor[TipoReceita],Entrada!$P13) -> 320773.78 | X13: =SUMIFS(Tab_Uderor[R$],Tab_Uderor[Competencia],Entrada!X$7,Tab_Uderor[TipoReceita],Entrada!$P13) -> 298856.5 | Y13: =SUMIFS(Tab_Uderor[R$],Tab_Uderor[Competencia],Entrada!Y$7,Tab_Uderor[TipoReceita],Entrada!$P13) -> 475421.5 | Z13: =SUMIFS(Tab_Uderor[R$],Tab_Uderor[Competencia],Entrada!Z$7,Tab_Uderor[TipoReceita],Entrada!$P13) -> 296213.2 | AA13: =SUMIFS(Tab_Uderor[R$],Tab_Uderor[Competencia],Entrada!AA$7,Tab_Uderor[TipoReceita],Entrada!$P13) -> 290628.83 | AB13: =SUMIFS(Tab_Uderor[R$],Tab_Uderor[Competencia],Entrada!AB$7,Tab_Uderor[TipoReceita],Entrada!$P13) -> 289923.33 | AC13: =SUMIFS(Tab_Uderor[R$],Tab_Uderor[Competencia],Entrada!AC$7,Tab_Uderor[TipoReceita],Entrada!$P13)-AF13 -> -19446.18 | AD13: =SUMIFS(Tab_Uderor[R$],Tab_Uderor[Competencia],Entrada!AD$7,Tab_Uderor[TipoReceita],Entrada!$P13)-AG13 -> 0 | AE13: =SUMIFS(Tab_Uderor[R$],Tab_Uderor[Competencia],Entrada!AE$7,Tab_Uderor[TipoReceita],Entrada!$P13)-AH13 -> 0 | AF13: 261915.59 | AG13: 261915.59 | AH13: 260939.1
B14: ACR Médio de 2024 | C14: =300.18 -> 300.18 | D14: Desp 4.109/2023 | F14: (8) Índice de Aproveitamento Depreciado | G14: =G78*VLOOKUP(DATE(YEAR(CAPA!$C$10),MONTH(CAPA!$C$10)-1,1),Índices!$B$135:$D$638,3,0)/VLOOKUP(DATE(YEAR($G$70),MONTH($G$70)-1,1),Índices!$B$135:$D$638,3,0) -> 11217325.51 | J14: BMP - 610530507; 610550507; 610532507; 610552507 | K14: Participação nos Lucros e Resultados - PLR | L14: =SUMIFS(Tab_RIT_BMP[SALDO],Tab_RIT_BMP[CONTA],610530507,Tab_RIT_BMP[ANO],$L$7)+SUMIFS(Tab_RIT_BMP[SALDO],Tab_RIT_BMP[CONTA],610550507,Tab_RIT_BMP[ANO],$L$7)+SUMIFS(Tab_RIT_BMP[SALDO],Tab_RIT_BMP[CONTA],610532507,Tab_RIT_BMP[ANO],$L$7)+SUMIFS(Tab_RIT_BMP[SALDO],Tab_RIT_BMP[CONTA],610552507,Tab_RIT_BMP[ANO],$L$7) -> 3392408.73 | M14: =SUMIFS(Tab_RIT_BMP[SALDO],Tab_RIT_BMP[CONTA],610530507,Tab_RIT_BMP[ANO],$M$7)+SUMIFS(Tab_RIT_BMP[SALDO],Tab_RIT_BMP[CONTA],610550507,Tab_RIT_BMP[ANO],$M$7)+ SUMIFS(Tab_RIT_BMP[SALDO],Tab_RIT_BMP[CONTA],610532507,Tab_RIT_BMP[ANO],$M$7)+SUMIFS(Tab_RIT_BMP[SALDO],Tab_RIT_BMP[CONTA],610552507,Tab_RIT_BMP[ANO],$M$7) -> 8774293.5 | P14: Serviços de avaliação técnica e aferição de medidores. | Q14: =SUMIFS(Tab_Uderor[R$],Tab_Uderor[Competencia],Entrada!Q$7,Tab_Uderor[TipoReceita],Entrada!$P14)*0+R14 -> 0 | R14: =SUMIFS(Tab_Uderor[R$],Tab_Uderor[Competencia],Entrada!R$7,Tab_Uderor[TipoReceita],Entrada!$P14) -> 0 | S14: =SUMIFS(Tab_Uderor[R$],Tab_Uderor[Competencia],Entrada!S$7,Tab_Uderor[TipoReceita],Entrada!$P14) -> 0 | T14: =SUMIFS(Tab_Uderor[R$],Tab_Uderor[Competencia],Entrada!T$7,Tab_Uderor[TipoReceita],Entrada!$P14) -> 0 | U14: =SUMIFS(Tab_Uderor[R$],Tab_Uderor[Competencia],Entrada!U$7,Tab_Uderor[TipoReceita],Entrada!$P14) -> 0 | V14: =SUMIFS(Tab_Uderor[R$],Tab_Uderor[Competencia],Entrada!V$7,Tab_Uderor[TipoReceita],Entrada!$P14) -> 0 | W14: =SUMIFS(Tab_Uderor[R$],Tab_Uderor[Competencia],Entrada!W$7,Tab_Uderor[TipoReceita],Entrada!$P14) -> 0 | X14: =SUMIFS(Tab_Uderor[R$],Tab_Uderor[Competencia],Entrada!X$7,Tab_Uderor[TipoReceita],Entrada!$P14) -> 0 | Y14: =SUMIFS(Tab_Uderor[R$],Tab_Uderor[Competencia],Entrada!Y$7,Tab_Uderor[TipoReceita],Entrada!$P14) -> 0 | Z14: =SUMIFS(Tab_Uderor[R$],Tab_Uderor[Competencia],Entrada!Z$7,Tab_Uderor[TipoReceita],Entrada!$P14) -> 0 | AA14: =SUMIFS(Tab_Uderor[R$],Tab_Uderor[Competencia],Entrada!AA$7,Tab_Uderor[TipoReceita],Entrada!$P14) -> 0 | AB14: =SUMIFS(Tab_Uderor[R$],Tab_Uderor[Competencia],Entrada!AB$7,Tab_Uderor[TipoReceita],Entrada!$P14) -> 0 | AC14: =SUMIFS(Tab_Uderor[R$],Tab_Uderor[Competencia],Entrada!AC$7,Tab_Uderor[TipoReceita],Entrada!$P14)-AF14 -> 0 | AD14: =SUMIFS(Tab_Uderor[R$],Tab_Uderor[Competencia],Entrada!AD$7,Tab_Uderor[TipoReceita],Entrada!$P14)-AG14 -> 0 | AE14: =SUMIFS(Tab_Uderor[R$],Tab_Uderor[Competencia],Entrada!AE$7,Tab_Uderor[TipoReceita],Entrada!$P14)-AH14 -> 0
B15: ACR médio de 2023 | C15: 348.72 | D15: DSP 2.904/2022 | F15: (9) Valor da Base de Remuneração (VBR) | G15: =G13-G14 -> 1670426299 | J15: BMP - 610530599; 610550599; 610532599; 610552599 | K15: Outros | L15: =SUMIFS(Tab_RIT_BMP[SALDO],Tab_RIT_BMP[CONTA],610530599,Tab_RIT_BMP[ANO],$L$7)+SUMIFS(Tab_RIT_BMP[SALDO],Tab_RIT_BMP[CONTA],610550599,Tab_RIT_BMP[ANO],$L$7)+ SUMIFS(Tab_RIT_BMP[SALDO],Tab_RIT_BMP[CONTA],610532599,Tab_RIT_BMP[ANO],$L$7)+SUMIFS(Tab_RIT_BMP[SALDO],Tab_RIT_BMP[CONTA],610552599,Tab_RIT_BMP[ANO],$L$7) -> 7253920.96 | M15: =SUMIFS(Tab_RIT_BMP[SALDO],Tab_RIT_BMP[CONTA],610530599,Tab_RIT_BMP[ANO],$M$7)+SUMIFS(Tab_RIT_BMP[SALDO],Tab_RIT_BMP[CONTA],610550599,Tab_RIT_BMP[ANO],$M$7)+ SUMIFS(Tab_RIT_BMP[SALDO],Tab_RIT_BMP[CONTA],610532599,Tab_RIT_BMP[ANO],$M$7)+SUMIFS(Tab_RIT_BMP[SALDO],Tab_RIT_BMP[CONTA],610552599,Tab_RIT_BMP[ANO],$M$7) -> 0 | P15: Operacionalização de serviço de créditos tributários | Q15: =SUMIFS(Tab_Uderor[R$],Tab_Uderor[Competencia],Entrada!Q$7,Tab_Uderor[TipoReceita],Entrada!$P15)*0+R15 -> 0 | R15: =SUMIFS(Tab_Uderor[R$],Tab_Uderor[Competencia],Entrada!R$7,Tab_Uderor[TipoReceita],Entrada!$P15) -> 0 | S15: =SUMIFS(Tab_Uderor[R$],Tab_Uderor[Competencia],Entrada!S$7,Tab_Uderor[TipoReceita],Entrada!$P15) -> 0 | T15: =SUMIFS(Tab_Uderor[R$],Tab_Uderor[Competencia],Entrada!T$7,Tab_Uderor[TipoReceita],Entrada!$P15) -> 0 | U15: =SUMIFS(Tab_Uderor[R$],Tab_Uderor[Competencia],Entrada!U$7,Tab_Uderor[TipoReceita],Entrada!$P15) -> 0 | V15: =SUMIFS(Tab_Uderor[R$],Tab_Uderor[Competencia],Entrada!V$7,Tab_Uderor[TipoReceita],Entrada!$P15) -> 0 | W15: =SUMIFS(Tab_Uderor[R$],Tab_Uderor[Competencia],Entrada!W$7,Tab_Uderor[TipoReceita],Entrada!$P15) -> 0 | X15: =SUMIFS(Tab_Uderor[R$],Tab_Uderor[Competencia],Entrada!X$7,Tab_Uderor[TipoReceita],Entrada!$P15) -> 0 | Y15: =SUMIFS(Tab_Uderor[R$],Tab_Uderor[Competencia],Entrada!Y$7,Tab_Uderor[TipoReceita],Entrada!$P15) -> 0 | Z15: =SUMIFS(Tab_Uderor[R$],Tab_Uderor[Competencia],Entrada!Z$7,Tab_Uderor[TipoReceita],Entrada!$P15) -> 0 | AA15: =SUMIFS(Tab_Uderor[R$],Tab_Uderor[Competencia],Entrada!AA$7,Tab_Uderor[TipoReceita],Entrada!$P15) -> 0 | AB15: =SUMIFS(Tab_Uderor[R$],Tab_Uderor[Competencia],Entrada!AB$7,Tab_Uderor[TipoReceita],Entrada!$P15) -> 0 | AC15: =SUMIFS(Tab_Uderor[R$],Tab_Uderor[Competencia],Entrada!AC$7,Tab_Uderor[TipoReceita],Entrada!$P15)-AF15 -> 0 | AD15: =SUMIFS(Tab_Uderor[R$],Tab_Uderor[Competencia],Entrada!AD$7,Tab_Uderor[TipoReceita],Entrada!$P15)-AG15 -> 0 | AE15: =SUMIFS(Tab_Uderor[R$],Tab_Uderor[Competencia],Entrada!AE$7,Tab_Uderor[TipoReceita],Entrada!$P15)-AH15 -> 0
F16: (10) Almoxarifado em Operação | G16: =G80*VLOOKUP(DATE(YEAR(CAPA!$C$10),MONTH(CAPA!$C$10)-1,1),Índices!$B$135:$D$638,3,0)/VLOOKUP(DATE(YEAR($G$70),MONTH($G$70)-1,1),Índices!$B$135:$D$638,3,0) -> 9058099.858 | J16: BMP - 610530510; 610550510; 610532510; 610552510 | K16: (-) Créditos de Tributos Recuperáveis | L16: =SUMIFS(Tab_RIT_BMP[SALDO],Tab_RIT_BMP[CONTA],610530510,Tab_RIT_BMP[ANO],$L$7)+SUMIFS(Tab_RIT_BMP[SALDO],Tab_RIT_BMP[CONTA],610550510,Tab_RIT_BMP[ANO],$L$7)+ SUMIFS(Tab_RIT_BMP[SALDO],Tab_RIT_BMP[CONTA],610532510,Tab_RIT_BMP[ANO],$L$7)+SUMIFS(Tab_RIT_BMP[SALDO],Tab_RIT_BMP[CONTA],610552510,Tab_RIT_BMP[ANO],$L$7) -> 0 | M16: =SUMIFS(Tab_RIT_BMP[SALDO],Tab_RIT_BMP[CONTA],610530510,Tab_RIT_BMP[ANO],$M$7)+SUMIFS(Tab_RIT_BMP[SALDO],Tab_RIT_BMP[CONTA],610550510,Tab_RIT_BMP[ANO],$M$7)+ SUMIFS(Tab_RIT_BMP[SALDO],Tab_RIT_BMP[CONTA],610532510,Tab_RIT_BMP[ANO],$M$7)+SUMIFS(Tab_RIT_BMP[SALDO],Tab_RIT_BMP[CONTA],610552510,Tab_RIT_BMP[ANO],$M$7) -> 0 | P16: Elaboração de projeto, construção, operação, manutenção ou reforma de: | Q16: =SUMIFS(Tab_Uderor[R$],Tab_Uderor[Competencia],Entrada!Q$7,Tab_Uderor[TipoReceita],Entrada!$P16)*0+R16 -> 0 | R16: =SUMIFS(Tab_Uderor[R$],Tab_Uderor[Competencia],Entrada!R$7,Tab_Uderor[TipoReceita],Entrada!$P16) -> 0 | S16: =SUMIFS(Tab_Uderor[R$],Tab_Uderor[Competencia],Entrada!S$7,Tab_Uderor[TipoReceita],Entrada!$P16) -> 0 | T16: =SUMIFS(Tab_Uderor[R$],Tab_Uderor[Competencia],Entrada!T$7,Tab_Uderor[TipoReceita],Entrada!$P16) -> 0 | U16: =SUMIFS(Tab_Uderor[R$],Tab_Uderor[Competencia],Entrada!U$7,Tab_Uderor[TipoReceita],Entrada!$P16) -> 0 | V16: =SUMIFS(Tab_Uderor[R$],Tab_Uderor[Competencia],Entrada!V$7,Tab_Uderor[TipoReceita],Entrada!$P16) -> 0 | W16: =SUMIFS(Tab_Uderor[R$],Tab_Uderor[Competencia],Entrada!W$7,Tab_Uderor[TipoReceita],Entrada!$P16) -> 0 | X16: =SUMIFS(Tab_Uderor[R$],Tab_Uderor[Competencia],Entrada!X$7,Tab_Uderor[TipoReceita],Entrada!$P16) -> 0 | Y16: =SUMIFS(Tab_Uderor[R$],Tab_Uderor[Competencia],Entrada!Y$7,Tab_Uderor[TipoReceita],Entrada!$P16) -> 0 | Z16: =SUMIFS(Tab_Uderor[R$],Tab_Uderor[Competencia],Entrada!Z$7,Tab_Uderor[TipoReceita],Entrada!$P16) -> 0 | AA16: =SUMIFS(Tab_Uderor[R$],Tab_Uderor[Competencia],Entrada!AA$7,Tab_Uderor[TipoReceita],Entrada!$P16) -> 0 | AB16: =SUMIFS(Tab_Uderor[R$],Tab_Uderor[Competencia],Entrada!AB$7,Tab_Uderor[TipoReceita],Entrada!$P16) -> 0 | AC16: =SUMIFS(Tab_Uderor[R$],Tab_Uderor[Competencia],Entrada!AC$7,Tab_Uderor[TipoReceita],Entrada!$P16)-AF16 -> 0 | AD16: =SUMIFS(Tab_Uderor[R$],Tab_Uderor[Competencia],Entrada!AD$7,Tab_Uderor[TipoReceita],Entrada!$P16)-AG16 -> 0 | AE16: =SUMIFS(Tab_Uderor[R$],Tab_Uderor[Competencia],Entrada!AE$7,Tab_Uderor[TipoReceita],Entrada!$P16)-AH16 -> 0
F17: (11) Ativo Diferido | G17: =G81*VLOOKUP(DATE(YEAR(CAPA!$C$10),MONTH(CAPA!$C$10)-1,1),Índices!$B$135:$D$638,3,0)/VLOOKUP(DATE(YEAR($G$70),MONTH($G$70)-1,1),Índices!$B$135:$D$638,3,0) -> 0 | J17: BMP - 6105306; 6105506; 6105326; 6105526 | K17: Administradores | L17: =SUMIFS(Tab_RIT_BMP[SALDO],Tab_RIT_BMP[CONTA],6105306,Tab_RIT_BMP[ANO],$L$7)+SUMIFS(Tab_RIT_BMP[SALDO],Tab_RIT_BMP[CONTA],6105506,Tab_RIT_BMP[ANO],$L$7)+ SUMIFS(Tab_RIT_BMP[SALDO],Tab_RIT_BMP[CONTA],6105326,Tab_RIT_BMP[ANO],$L$7)+SUMIFS(Tab_RIT_BMP[SALDO],Tab_RIT_BMP[CONTA],6105526,Tab_RIT_BMP[ANO],$L$7) -> 3178771.52 | M17: =SUMIFS(Tab_RIT_BMP[SALDO],Tab_RIT_BMP[CONTA],6105306,Tab_RIT_BMP[ANO],$M$7)+SUMIFS(Tab_RIT_BMP[SALDO],Tab_RIT_BMP[CONTA],6105506,Tab_RIT_BMP[ANO],$M$7)+ SUMIFS(Tab_RIT_BMP[SALDO],Tab_RIT_BMP[CONTA],6105326,Tab_RIT_BMP[ANO],$M$7)+SUMIFS(Tab_RIT_BMP[SALDO],Tab_RIT_BMP[CONTA],6105526,Tab_RIT_BMP[ANO],$M$7) -> 3264407.37 | P17: (1) redes de distribuição de energia elétrica destinadas à regularização fundiária de interesse específico e ao atendimento dos empreendimentos de múltiplas unidades consumidoras; | Q17: =SUMIFS(Tab_Uderor[R$],Tab_Uderor[Competencia],Entrada!Q$7,Tab_Uderor[TipoReceita],Entrada!$P17)*0+R17 -> 0 | R17: =SUMIFS(Tab_Uderor[R$],Tab_Uderor[Competencia],Entrada!R$7,Tab_Uderor[TipoReceita],Entrada!$P17) -> 0 | S17: =SUMIFS(Tab_Uderor[R$],Tab_Uderor[Competencia],Entrada!S$7,Tab_Uderor[TipoReceita],Entrada!$P17) -> 0 | T17: =SUMIFS(Tab_Uderor[R$],Tab_Uderor[Competencia],Entrada!T$7,Tab_Uderor[TipoReceita],Entrada!$P17) -> 0 | U17: =SUMIFS(Tab_Uderor[R$],Tab_Uderor[Competencia],Entrada!U$7,Tab_Uderor[TipoReceita],Entrada!$P17) -> 0 | V17: =SUMIFS(Tab_Uderor[R$],Tab_Uderor[Competencia],Entrada!V$7,Tab_Uderor[TipoReceita],Entrada!$P17) -> 0 | W17: =SUMIFS(Tab_Uderor[R$],Tab_Uderor[Competencia],Entrada!W$7,Tab_Uderor[TipoReceita],Entrada!$P17) -> 0 | X17: =SUMIFS(Tab_Uderor[R$],Tab_Uderor[Competencia],Entrada!X$7,Tab_Uderor[TipoReceita],Entrada!$P17) -> 0 | Y17: =SUMIFS(Tab_Uderor[R$],Tab_Uderor[Competencia],Entrada!Y$7,Tab_Uderor[TipoReceita],Entrada!$P17) -> 0 | Z17: =SUMIFS(Tab_Uderor[R$],Tab_Uderor[Competencia],Entrada!Z$7,Tab_Uderor[TipoReceita],Entrada!$P17) -> 0 | AA17: =SUMIFS(Tab_Uderor[R$],Tab_Uderor[Competencia],Entrada!AA$7,Tab_Uderor[TipoReceita],Entrada!$P17) -> 0 | AB17: =SUMIFS(Tab_Uderor[R$],Tab_Uderor[Competencia],Entrada!AB$7,Tab_Uderor[TipoReceita],Entrada!$P17) -> 0 | AC17: =SUMIFS(Tab_Uderor[R$],Tab_Uderor[Competencia],Entrada!AC$7,Tab_Uderor[TipoReceita],Entrada!$P17)-AF17 -> 0 | AD17: =SUMIFS(Tab_Uderor[R$],Tab_Uderor[Competencia],Entrada!AD$7,Tab_Uderor[TipoReceita],Entrada!$P17)-AG17 -> 0 | AE17: =SUMIFS(Tab_Uderor[R$],Tab_Uderor[Competencia],Entrada!AE$7,Tab_Uderor[TipoReceita],Entrada!$P17)-AH17 -> 0
F18: (12) Obrigações Especiais Líquida | G18: =G82*VLOOKUP(DATE(YEAR(CAPA!$C$10),MONTH(CAPA!$C$10)-1,1),Índices!$B$135:$D$638,3,0)/VLOOKUP(DATE(YEAR($G$70),MONTH($G$70)-1,1),Índices!$B$135:$D$638,3,0) -> 655206291.9 | K18: Subtotal | L18: =SUM(L9:L17) -> 65609305.3 | M18: =SUM(M9:M17) -> 64769129.37 | P18: (2) redes de energia elétrica destinadas ao acesso dos sistemas de distribuição ou transmissão; | Q18: =SUMIFS(Tab_Uderor[R$],Tab_Uderor[Competencia],Entrada!Q$7,Tab_Uderor[TipoReceita],Entrada!$P18)*0+R18 -> 0 | R18: =SUMIFS(Tab_Uderor[R$],Tab_Uderor[Competencia],Entrada!R$7,Tab_Uderor[TipoReceita],Entrada!$P18) -> 0 | S18: =SUMIFS(Tab_Uderor[R$],Tab_Uderor[Competencia],Entrada!S$7,Tab_Uderor[TipoReceita],Entrada!$P18) -> 0 | T18: =SUMIFS(Tab_Uderor[R$],Tab_Uderor[Competencia],Entrada!T$7,Tab_Uderor[TipoReceita],Entrada!$P18) -> 0 | U18: =SUMIFS(Tab_Uderor[R$],Tab_Uderor[Competencia],Entrada!U$7,Tab_Uderor[TipoReceita],Entrada!$P18) -> 0 | V18: =SUMIFS(Tab_Uderor[R$],Tab_Uderor[Competencia],Entrada!V$7,Tab_Uderor[TipoReceita],Entrada!$P18) -> 0 | W18: =SUMIFS(Tab_Uderor[R$],Tab_Uderor[Competencia],Entrada!W$7,Tab_Uderor[TipoReceita],Entrada!$P18) -> 0 | X18: =SUMIFS(Tab_Uderor[R$],Tab_Uderor[Competencia],Entrada!X$7,Tab_Uderor[TipoReceita],Entrada!$P18) -> 0 | Y18: =SUMIFS(Tab_Uderor[R$],Tab_Uderor[Competencia],Entrada!Y$7,Tab_Uderor[TipoReceita],Entrada!$P18) -> 0 | Z18: =SUMIFS(Tab_Uderor[R$],Tab_Uderor[Competencia],Entrada!Z$7,Tab_Uderor[TipoReceita],Entrada!$P18) -> 0 | AA18: =SUMIFS(Tab_Uderor[R$],Tab_Uderor[Competencia],Entrada!AA$7,Tab_Uderor[TipoReceita],Entrada!$P18) -> 0 | AB18: =SUMIFS(Tab_Uderor[R$],Tab_Uderor[Competencia],Entrada!AB$7,Tab_Uderor[TipoReceita],Entrada!$P18) -> 0 | AC18: =SUMIFS(Tab_Uderor[R$],Tab_Uderor[Competencia],Entrada!AC$7,Tab_Uderor[TipoReceita],Entrada!$P18)-AF18 -> 0 | AD18: =SUMIFS(Tab_Uderor[R$],Tab_Uderor[Competencia],Entrada!AD$7,Tab_Uderor[TipoReceita],Entrada!$P18)-AG18 -> 0 | AE18: =SUMIFS(Tab_Uderor[R$],Tab_Uderor[Competencia],Entrada!AE$7,Tab_Uderor[TipoReceita],Entrada!$P18)-AH18 -> 0
F19: (13) Terrenos e Servidões | G19: =G83*VLOOKUP(DATE(YEAR(CAPA!$C$10),MONTH(CAPA!$C$10)-1,1),Índices!$B$135:$D$638,3,0)/VLOOKUP(DATE(YEAR($G$70),MONTH($G$70)-1,1),Índices!$B$135:$D$638,3,0) -> 18763976.92 | J19: CONTA MATERIAIS | P19: (3) subestações de energia; | Q19: =SUMIFS(Tab_Uderor[R$],Tab_Uderor[Competencia],Entrada!Q$7,Tab_Uderor[TipoReceita],Entrada!$P19)*0+R19 -> 0 | R19: =SUMIFS(Tab_Uderor[R$],Tab_Uderor[Competencia],Entrada!R$7,Tab_Uderor[TipoReceita],Entrada!$P19) -> 0 | S19: =SUMIFS(Tab_Uderor[R$],Tab_Uderor[Competencia],Entrada!S$7,Tab_Uderor[TipoReceita],Entrada!$P19) -> 0 | T19: =SUMIFS(Tab_Uderor[R$],Tab_Uderor[Competencia],Entrada!T$7,Tab_Uderor[TipoReceita],Entrada!$P19) -> 0 | U19: =SUMIFS(Tab_Uderor[R$],Tab_Uderor[Competencia],Entrada!U$7,Tab_Uderor[TipoReceita],Entrada!$P19) -> 0 | V19: =SUMIFS(Tab_Uderor[R$],Tab_Uderor[Competencia],Entrada!V$7,Tab_Uderor[TipoReceita],Entrada!$P19) -> 0 | W19: =SUMIFS(Tab_Uderor[R$],Tab_Uderor[Competencia],Entrada!W$7,Tab_Uderor[TipoReceita],Entrada!$P19) -> 0 | X19: =SUMIFS(Tab_Uderor[R$],Tab_Uderor[Competencia],Entrada!X$7,Tab_Uderor[TipoReceita],Entrada!$P19) -> 0 | Y19: =SUMIFS(Tab_Uderor[R$],Tab_Uderor[Competencia],Entrada!Y$7,Tab_Uderor[TipoReceita],Entrada!$P19) -> 0 | Z19: =SUMIFS(Tab_Uderor[R$],Tab_Uderor[Competencia],Entrada!Z$7,Tab_Uderor[TipoReceita],Entrada!$P19) -> 0 | AA19: =SUMIFS(Tab_Uderor[R$],Tab_Uderor[Competencia],Entrada!AA$7,Tab_Uderor[TipoReceita],Entrada!$P19) -> 0 | AB19: =SUMIFS(Tab_Uderor[R$],Tab_Uderor[Competencia],Entrada!AB$7,Tab_Uderor[TipoReceita],Entrada!$P19) -> 0 | AC19: =SUMIFS(Tab_Uderor[R$],Tab_Uderor[Competencia],Entrada!AC$7,Tab_Uderor[TipoReceita],Entrada!$P19)-AF19 -> 0 | AD19: =SUMIFS(Tab_Uderor[R$],Tab_Uderor[Competencia],Entrada!AD$7,Tab_Uderor[TipoReceita],Entrada!$P19)-AG19 -> 0 | AE19: =SUMIFS(Tab_Uderor[R$],Tab_Uderor[Competencia],Entrada!AE$7,Tab_Uderor[TipoReceita],Entrada!$P19)-AH19 -> 0
F20: (14) Base de Rem. Líquida Total = (1)-(6)-(8)+(10)+(11)-(12)+(13) | G20: =G15+G16+G17-G18+G19 -> 1043042084 | J20: BMP - 610530701; 610550701; 610532701; 610552701 | K20: Materiais | L20: =SUMIFS(Tab_RIT_BMP[SALDO],Tab_RIT_BMP[CONTA],610530701,Tab_RIT_BMP[ANO],$L$7)+SUMIFS(Tab_RIT_BMP[SALDO],Tab_RIT_BMP[CONTA],610550701,Tab_RIT_BMP[ANO],$L$7)+ SUMIFS(Tab_RIT_BMP[SALDO],Tab_RIT_BMP[CONTA],610532701,Tab_RIT_BMP[ANO],$L$7)+SUMIFS(Tab_RIT_BMP[SALDO],Tab_RIT_BMP[CONTA],610552701,Tab_RIT_BMP[ANO],$L$7) -> 9176732.61 | M20: =SUMIFS(Tab_RIT_BMP[SALDO],Tab_RIT_BMP[CONTA],610530701,Tab_RIT_BMP[ANO],$M$7)+SUMIFS(Tab_RIT_BMP[SALDO],Tab_RIT_BMP[CONTA],610550701,Tab_RIT_BMP[ANO],$M$7)+ SUMIFS(Tab_RIT_BMP[SALDO],Tab_RIT_BMP[CONTA],610532701,Tab_RIT_BMP[ANO],$M$7)+SUMIFS(Tab_RIT_BMP[SALDO],Tab_RIT_BMP[CONTA],610552701,Tab_RIT_BMP[ANO],$M$7) -> 10796937.72 | P20: (4) instalações elétricas internas de unidades consumidoras; | Q20: =SUMIFS(Tab_Uderor[R$],Tab_Uderor[Competencia],Entrada!Q$7,Tab_Uderor[TipoReceita],Entrada!$P20)*0+R20 -> 0 | R20: =SUMIFS(Tab_Uderor[R$],Tab_Uderor[Competencia],Entrada!R$7,Tab_Uderor[TipoReceita],Entrada!$P20) -> 0 | S20: =SUMIFS(Tab_Uderor[R$],Tab_Uderor[Competencia],Entrada!S$7,Tab_Uderor[TipoReceita],Entrada!$P20) -> 0 | T20: =SUMIFS(Tab_Uderor[R$],Tab_Uderor[Competencia],Entrada!T$7,Tab_Uderor[TipoReceita],Entrada!$P20) -> 0 | U20: =SUMIFS(Tab_Uderor[R$],Tab_Uderor[Competencia],Entrada!U$7,Tab_Uderor[TipoReceita],Entrada!$P20) -> 0 | V20: =SUMIFS(Tab_Uderor[R$],Tab_Uderor[Competencia],Entrada!V$7,Tab_Uderor[TipoReceita],Entrada!$P20) -> 0 | W20: =SUMIFS(Tab_Uderor[R$],Tab_Uderor[Competencia],Entrada!W$7,Tab_Uderor[TipoReceita],Entrada!$P20) -> 0 | X20: =SUMIFS(Tab_Uderor[R$],Tab_Uderor[Competencia],Entrada!X$7,Tab_Uderor[TipoReceita],Entrada!$P20) -> 0 | Y20: =SUMIFS(Tab_Uderor[R$],Tab_Uderor[Competencia],Entrada!Y$7,Tab_Uderor[TipoReceita],Entrada!$P20) -> 0 | Z20: =SUMIFS(Tab_Uderor[R$],Tab_Uderor[Competencia],Entrada!Z$7,Tab_Uderor[TipoReceita],Entrada!$P20) -> 0 | AA20: =SUMIFS(Tab_Uderor[R$],Tab_Uderor[Competencia],Entrada!AA$7,Tab_Uderor[TipoReceita],Entrada!$P20) -> 0 | AB20: =SUMIFS(Tab_Uderor[R$],Tab_Uderor[Competencia],Entrada!AB$7,Tab_Uderor[TipoReceita],Entrada!$P20) -> 0 | AC20: =SUMIFS(Tab_Uderor[R$],Tab_Uderor[Competencia],Entrada!AC$7,Tab_Uderor[TipoReceita],Entrada!$P20)-AF20 -> 0 | AD20: =SUMIFS(Tab_Uderor[R$],Tab_Uderor[Competencia],Entrada!AD$7,Tab_Uderor[TipoReceita],Entrada!$P20)-AG20 -> 0 | AE20: =SUMIFS(Tab_Uderor[R$],Tab_Uderor[Competencia],Entrada!AE$7,Tab_Uderor[TipoReceita],Entrada!$P20)-AH20 -> 0
F21: (15) Saldo RGR PLPT | G21: =G85*VLOOKUP(DATE(YEAR(CAPA!$C$10),MONTH(CAPA!$C$10)-1,1),Índices!$B$135:$D$638,3,0)/VLOOKUP(DATE(YEAR($G$70),MONTH($G$70)-1,1),Índices!$B$135:$D$638,3,0) -> 0 | J21: BMP - 610530799; 610550799; 610532799; 610552799 | K21: Outros | L21: =SUMIFS(Tab_RIT_BMP[SALDO],Tab_RIT_BMP[CONTA],610530799,Tab_RIT_BMP[ANO],$L$7)+SUMIFS(Tab_RIT_BMP[SALDO],Tab_RIT_BMP[CONTA],610550799,Tab_RIT_BMP[ANO],$L$7)+ SUMIFS(Tab_RIT_BMP[SALDO],Tab_RIT_BMP[CONTA],610532799,Tab_RIT_BMP[ANO],$L$7)+SUMIFS(Tab_RIT_BMP[SALDO],Tab_RIT_BMP[CONTA],610552799,Tab_RIT_BMP[ANO],$L$7) -> 3876654.85 | M21: =SUMIFS(Tab_RIT_BMP[SALDO],Tab_RIT_BMP[CONTA],610530799,Tab_RIT_BMP[ANO],$M$7)+SUMIFS(Tab_RIT_BMP[SALDO],Tab_RIT_BMP[CONTA],610550799,Tab_RIT_BMP[ANO],$M$7)+ SUMIFS(Tab_RIT_BMP[SALDO],Tab_RIT_BMP[CONTA],610532799,Tab_RIT_BMP[ANO],$M$7)+SUMIFS(Tab_RIT_BMP[SALDO],Tab_RIT_BMP[CONTA],610552799,Tab_RIT_BMP[ANO],$M$7) -> 885130.37 | P21: (5) banco de capacitores; | Q21: =SUMIFS(Tab_Uderor[R$],Tab_Uderor[Competencia],Entrada!Q$7,Tab_Uderor[TipoReceita],Entrada!$P21)*0+R21 -> 0 | R21: =SUMIFS(Tab_Uderor[R$],Tab_Uderor[Competencia],Entrada!R$7,Tab_Uderor[TipoReceita],Entrada!$P21) -> 0 | S21: =SUMIFS(Tab_Uderor[R$],Tab_Uderor[Competencia],Entrada!S$7,Tab_Uderor[TipoReceita],Entrada!$P21) -> 0 | T21: =SUMIFS(Tab_Uderor[R$],Tab_Uderor[Competencia],Entrada!T$7,Tab_Uderor[TipoReceita],Entrada!$P21) -> 0 | U21: =SUMIFS(Tab_Uderor[R$],Tab_Uderor[Competencia],Entrada!U$7,Tab_Uderor[TipoReceita],Entrada!$P21) -> 0 | V21: =SUMIFS(Tab_Uderor[R$],Tab_Uderor[Competencia],Entrada!V$7,Tab_Uderor[TipoReceita],Entrada!$P21) -> 0 | W21: =SUMIFS(Tab_Uderor[R$],Tab_Uderor[Competencia],Entrada!W$7,Tab_Uderor[TipoReceita],Entrada!$P21) -> 0 | X21: =SUMIFS(Tab_Uderor[R$],Tab_Uderor[Competencia],Entrada!X$7,Tab_Uderor[TipoReceita],Entrada!$P21) -> 0 | Y21: =SUMIFS(Tab_Uderor[R$],Tab_Uderor[Competencia],Entrada!Y$7,Tab_Uderor[TipoReceita],Entrada!$P21) -> 0 | Z21: =SUMIFS(Tab_Uderor[R$],Tab_Uderor[Competencia],Entrada!Z$7,Tab_Uderor[TipoReceita],Entrada!$P21) -> 0 | AA21: =SUMIFS(Tab_Uderor[R$],Tab_Uderor[Competencia],Entrada!AA$7,Tab_Uderor[TipoReceita],Entrada!$P21) -> 0 | AB21: =SUMIFS(Tab_Uderor[R$],Tab_Uderor[Competencia],Entrada!AB$7,Tab_Uderor[TipoReceita],Entrada!$P21) -> 0 | AC21: =SUMIFS(Tab_Uderor[R$],Tab_Uderor[Competencia],Entrada!AC$7,Tab_Uderor[TipoReceita],Entrada!$P21)-AF21 -> 0 | AD21: =SUMIFS(Tab_Uderor[R$],Tab_Uderor[Competencia],Entrada!AD$7,Tab_Uderor[TipoReceita],Entrada!$P21)-AG21 -> 0 | AE21: =SUMIFS(Tab_Uderor[R$],Tab_Uderor[Competencia],Entrada!AE$7,Tab_Uderor[TipoReceita],Entrada!$P21)-AH21 -> 0
F22: (16) Saldo RGR Demais Investimentos | G22: =G86*VLOOKUP(DATE(YEAR(CAPA!$C$10),MONTH(CAPA!$C$10)-1,1),Índices!$B$135:$D$638,3,0)/VLOOKUP(DATE(YEAR($G$70),MONTH($G$70)-1,1),Índices!$B$135:$D$638,3,0) -> 0 | J22: BMP - 610530710; 610550710; 610532710; 610552710 | K22: (-) Créditos de Tributos Recuperáveis | L22: =SUMIFS(Tab_RIT_BMP[SALDO],Tab_RIT_BMP[CONTA],610530710,Tab_RIT_BMP[ANO],$L$7)+SUMIFS(Tab_RIT_BMP[SALDO],Tab_RIT_BMP[CONTA],610550710,Tab_RIT_BMP[ANO],$L$7)+ SUMIFS(Tab_RIT_BMP[SALDO],Tab_RIT_BMP[CONTA],610532710,Tab_RIT_BMP[ANO],$L$7)+SUMIFS(Tab_RIT_BMP[SALDO],Tab_RIT_BMP[CONTA],610552710,Tab_RIT_BMP[ANO],$L$7) -> -5955.32 | M22: =SUMIFS(Tab_RIT_BMP[SALDO],Tab_RIT_BMP[CONTA],610530710,Tab_RIT_BMP[ANO],$M$7)+SUMIFS(Tab_RIT_BMP[SALDO],Tab_RIT_BMP[CONTA],610550710,Tab_RIT_BMP[ANO],$M$7)+ SUMIFS(Tab_RIT_BMP[SALDO],Tab_RIT_BMP[CONTA],610532710,Tab_RIT_BMP[ANO],$M$7)+SUMIFS(Tab_RIT_BMP[SALDO],Tab_RIT_BMP[CONTA],610552710,Tab_RIT_BMP[ANO],$M$7) -> -17203.66 | P22: (6) padrões de entrada de unidades consumidoras atendidas em baixa tensão; | Q22: =SUMIFS(Tab_Uderor[R$],Tab_Uderor[Competencia],Entrada!Q$7,Tab_Uderor[TipoReceita],Entrada!$P22)*0+R22 -> 0 | R22: =SUMIFS(Tab_Uderor[R$],Tab_Uderor[Competencia],Entrada!R$7,Tab_Uderor[TipoReceita],Entrada!$P22) -> 0 | S22: =SUMIFS(Tab_Uderor[R$],Tab_Uderor[Competencia],Entrada!S$7,Tab_Uderor[TipoReceita],Entrada!$P22) -> 0 | T22: =SUMIFS(Tab_Uderor[R$],Tab_Uderor[Competencia],Entrada!T$7,Tab_Uderor[TipoReceita],Entrada!$P22) -> 0 | U22: =SUMIFS(Tab_Uderor[R$],Tab_Uderor[Competencia],Entrada!U$7,Tab_Uderor[TipoReceita],Entrada!$P22) -> 0 | V22: =SUMIFS(Tab_Uderor[R$],Tab_Uderor[Competencia],Entrada!V$7,Tab_Uderor[TipoReceita],Entrada!$P22) -> 0 | W22: =SUMIFS(Tab_Uderor[R$],Tab_Uderor[Competencia],Entrada!W$7,Tab_Uderor[TipoReceita],Entrada!$P22) -> 0 | X22: =SUMIFS(Tab_Uderor[R$],Tab_Uderor[Competencia],Entrada!X$7,Tab_Uderor[TipoReceita],Entrada!$P22) -> 0 | Y22: =SUMIFS(Tab_Uderor[R$],Tab_Uderor[Competencia],Entrada!Y$7,Tab_Uderor[TipoReceita],Entrada!$P22) -> 0 | Z22: =SUMIFS(Tab_Uderor[R$],Tab_Uderor[Competencia],Entrada!Z$7,Tab_Uderor[TipoReceita],Entrada!$P22) -> 0 | AA22: =SUMIFS(Tab_Uderor[R$],Tab_Uderor[Competencia],Entrada!AA$7,Tab_Uderor[TipoReceita],Entrada!$P22) -> 0 | AB22: =SUMIFS(Tab_Uderor[R$],Tab_Uderor[Competencia],Entrada!AB$7,Tab_Uderor[TipoReceita],Entrada!$P22) -> 0 | AC22: =SUMIFS(Tab_Uderor[R$],Tab_Uderor[Competencia],Entrada!AC$7,Tab_Uderor[TipoReceita],Entrada!$P22)-AF22 -> 0 | AD22: =SUMIFS(Tab_Uderor[R$],Tab_Uderor[Competencia],Entrada!AD$7,Tab_Uderor[TipoReceita],Entrada!$P22)-AG22 -> 0 | AE22: =SUMIFS(Tab_Uderor[R$],Tab_Uderor[Competencia],Entrada!AE$7,Tab_Uderor[TipoReceita],Entrada!$P22)-AH22 -> 0
F23: (17) Taxa de Depreciação | G23: =G87 -> 0.0405 | K23: Subtotal | L23: =SUM(L20:L22) -> 13047432.14 | M23: =SUM(M20:M22) -> 11664864.43 | P23: (7) sistemas de medição de energia elétrica; | Q23: =SUMIFS(Tab_Uderor[R$],Tab_Uderor[Competencia],Entrada!Q$7,Tab_Uderor[TipoReceita],Entrada!$P23)*0+R23 -> 0 | R23: =SUMIFS(Tab_Uderor[R$],Tab_Uderor[Competencia],Entrada!R$7,Tab_Uderor[TipoReceita],Entrada!$P23) -> 0 | S23: =SUMIFS(Tab_Uderor[R$],Tab_Uderor[Competencia],Entrada!S$7,Tab_Uderor[TipoReceita],Entrada!$P23) -> 0 | T23: =SUMIFS(Tab_Uderor[R$],Tab_Uderor[Competencia],Entrada!T$7,Tab_Uderor[TipoReceita],Entrada!$P23) -> 0 | U23: =SUMIFS(Tab_Uderor[R$],Tab_Uderor[Competencia],Entrada!U$7,Tab_Uderor[TipoReceita],Entrada!$P23) -> 0 | V23: =SUMIFS(Tab_Uderor[R$],Tab_Uderor[Competencia],Entrada!V$7,Tab_Uderor[TipoReceita],Entrada!$P23) -> 0 | W23: =SUMIFS(Tab_Uderor[R$],Tab_Uderor[Competencia],Entrada!W$7,Tab_Uderor[TipoReceita],Entrada!$P23) -> 0 | X23: =SUMIFS(Tab_Uderor[R$],Tab_Uderor[Competencia],Entrada!X$7,Tab_Uderor[TipoReceita],Entrada!$P23) -> 0 | Y23: =SUMIFS(Tab_Uderor[R$],Tab_Uderor[Competencia],Entrada!Y$7,Tab_Uderor[TipoReceita],Entrada!$P23) -> 0 | Z23: =SUMIFS(Tab_Uderor[R$],Tab_Uderor[Competencia],Entrada!Z$7,Tab_Uderor[TipoReceita],Entrada!$P23) -> 0 | AA23: =SUMIFS(Tab_Uderor[R$],Tab_Uderor[Competencia],Entrada!AA$7,Tab_Uderor[TipoReceita],Entrada!$P23) -> 0 | AB23: =SUMIFS(Tab_Uderor[R$],Tab_Uderor[Competencia],Entrada!AB$7,Tab_Uderor[TipoReceita],Entrada!$P23) -> 0 | AC23: =SUMIFS(Tab_Uderor[R$],Tab_Uderor[Competencia],Entrada!AC$7,Tab_Uderor[TipoReceita],Entrada!$P23)-AF23 -> 0 | AD23: =SUMIFS(Tab_Uderor[R$],Tab_Uderor[Competencia],Entrada!AD$7,Tab_Uderor[TipoReceita],Entrada!$P23)-AG23 -> 0 | AE23: =SUMIFS(Tab_Uderor[R$],Tab_Uderor[Competencia],Entrada!AE$7,Tab_Uderor[TipoReceita],Entrada!$P23)-AH23 -> 0
F24: (18) Quota de Reintegração Regulatória = (5) * (17) | G24: =G23*G11 -> 57781869.8 | J24: CONTA TERCEIROS | P24: (8) geradores, incluindo-se unidades de microgeração e minigeração distribuída; | Q24: =SUMIFS(Tab_Uderor[R$],Tab_Uderor[Competencia],Entrada!Q$7,Tab_Uderor[TipoReceita],Entrada!$P24)*0+R24 -> 0 | R24: =SUMIFS(Tab_Uderor[R$],Tab_Uderor[Competencia],Entrada!R$7,Tab_Uderor[TipoReceita],Entrada!$P24) -> 0 | S24: =SUMIFS(Tab_Uderor[R$],Tab_Uderor[Competencia],Entrada!S$7,Tab_Uderor[TipoReceita],Entrada!$P24) -> 0 | T24: =SUMIFS(Tab_Uderor[R$],Tab_Uderor[Competencia],Entrada!T$7,Tab_Uderor[TipoReceita],Entrada!$P24) -> 0 | U24: =SUMIFS(Tab_Uderor[R$],Tab_Uderor[Competencia],Entrada!U$7,Tab_Uderor[TipoReceita],Entrada!$P24) -> 0 | V24: =SUMIFS(Tab_Uderor[R$],Tab_Uderor[Competencia],Entrada!V$7,Tab_Uderor[TipoReceita],Entrada!$P24) -> 0 | W24: =SUMIFS(Tab_Uderor[R$],Tab_Uderor[Competencia],Entrada!W$7,Tab_Uderor[TipoReceita],Entrada!$P24) -> 0 | X24: =SUMIFS(Tab_Uderor[R$],Tab_Uderor[Competencia],Entrada!X$7,Tab_Uderor[TipoReceita],Entrada!$P24) -> 0 | Y24: =SUMIFS(Tab_Uderor[R$],Tab_Uderor[Competencia],Entrada!Y$7,Tab_Uderor[TipoReceita],Entrada!$P24) -> 0 | Z24: =SUMIFS(Tab_Uderor[R$],Tab_Uderor[Competencia],Entrada!Z$7,Tab_Uderor[TipoReceita],Entrada!$P24) -> 0 | AA24: =SUMIFS(Tab_Uderor[R$],Tab_Uderor[Competencia],Entrada!AA$7,Tab_Uderor[TipoReceita],Entrada!$P24) -> 0 | AB24: =SUMIFS(Tab_Uderor[R$],Tab_Uderor[Competencia],Entrada!AB$7,Tab_Uderor[TipoReceita],Entrada!$P24) -> 0 | AC24: =SUMIFS(Tab_Uderor[R$],Tab_Uderor[Competencia],Entrada!AC$7,Tab_Uderor[TipoReceita],Entrada!$P24)-AF24 -> 0 | AD24: =SUMIFS(Tab_Uderor[R$],Tab_Uderor[Competencia],Entrada!AD$7,Tab_Uderor[TipoReceita],Entrada!$P24)-AG24 -> 0 | AE24: =SUMIFS(Tab_Uderor[R$],Tab_Uderor[Competencia],Entrada!AE$7,Tab_Uderor[TipoReceita],Entrada!$P24)-AH24 -> 0
J25: RIT - RP 800 - Célula F20 | K25: Manut. e Conserv. Bens e Instalações vinculadas ao Serviço Concedido | L25: =SUMIFS(Tab_RIT_BMP[SALDO],Tab_RIT_BMP[CONTA],1,Tab_RIT_BMP[ANO],$L$7) -> 32180648.1 | M25: =SUMIFS(Tab_RIT_BMP[SALDO],Tab_RIT_BMP[CONTA],1,Tab_RIT_BMP[ANO],$M$7) -> 14849427.93 | P25: (9) sistemas de iluminação pública. | Q25: =SUMIFS(Tab_Uderor[R$],Tab_Uderor[Competencia],Entrada!Q$7,Tab_Uderor[TipoReceita],Entrada!$P25)*0+R25 -> 0 | R25: =SUMIFS(Tab_Uderor[R$],Tab_Uderor[Competencia],Entrada!R$7,Tab_Uderor[TipoReceita],Entrada!$P25) -> 0 | S25: =SUMIFS(Tab_Uderor[R$],Tab_Uderor[Competencia],Entrada!S$7,Tab_Uderor[TipoReceita],Entrada!$P25) -> 0 | T25: =SUMIFS(Tab_Uderor[R$],Tab_Uderor[Competencia],Entrada!T$7,Tab_Uderor[TipoReceita],Entrada!$P25) -> 0 | U25: =SUMIFS(Tab_Uderor[R$],Tab_Uderor[Competencia],Entrada!U$7,Tab_Uderor[TipoReceita],Entrada!$P25) -> 0 | V25: =SUMIFS(Tab_Uderor[R$],Tab_Uderor[Competencia],Entrada!V$7,Tab_Uderor[TipoReceita],Entrada!$P25) -> 0 | W25: =SUMIFS(Tab_Uderor[R$],Tab_Uderor[Competencia],Entrada!W$7,Tab_Uderor[TipoReceita],Entrada!$P25) -> 0 | X25: =SUMIFS(Tab_Uderor[R$],Tab_Uderor[Competencia],Entrada!X$7,Tab_Uderor[TipoReceita],Entrada!$P25) -> 0 | Y25: =SUMIFS(Tab_Uderor[R$],Tab_Uderor[Competencia],Entrada!Y$7,Tab_Uderor[TipoReceita],Entrada!$P25) -> 0 | Z25: =SUMIFS(Tab_Uderor[R$],Tab_Uderor[Competencia],Entrada!Z$7,Tab_Uderor[TipoReceita],Entrada!$P25) -> 0 | AA25: =SUMIFS(Tab_Uderor[R$],Tab_Uderor[Competencia],Entrada!AA$7,Tab_Uderor[TipoReceita],Entrada!$P25) -> 0 | AB25: =SUMIFS(Tab_Uderor[R$],Tab_Uderor[Competencia],Entrada!AB$7,Tab_Uderor[TipoReceita],Entrada!$P25) -> 0 | AC25: =SUMIFS(Tab_Uderor[R$],Tab_Uderor[Competencia],Entrada!AC$7,Tab_Uderor[TipoReceita],Entrada!$P25)-AF25 -> 0 | AD25: =SUMIFS(Tab_Uderor[R$],Tab_Uderor[Competencia],Entrada!AD$7,Tab_Uderor[TipoReceita],Entrada!$P25)-AG25 -> 0 | AE25: =SUMIFS(Tab_Uderor[R$],Tab_Uderor[Competencia],Entrada!AE$7,Tab_Uderor[TipoReceita],Entrada!$P25)-AH25 -> 0
F26: Gasto do Conselho de Consumidores | J26: RIT - RP 800 - Célula F21 | K26: Auditoria e Consultoria | L26: =SUMIFS(Tab_RIT_BMP[SALDO],Tab_RIT_BMP[CONTA],2,Tab_RIT_BMP[ANO],$L$7) -> 504284.96 | M26: =SUMIFS(Tab_RIT_BMP[SALDO],Tab_RIT_BMP[CONTA],2,Tab_RIT_BMP[ANO],$M$7) -> 380765.35 | P26: (10) estações de recarga de veículos elétricos, incluindo a prestação de serviços aos usuários | Q26: =SUMIFS(Tab_Uderor[R$],Tab_Uderor[Competencia],Entrada!Q$7,Tab_Uderor[TipoReceita],Entrada!$P26)*0+R26 -> 0 | R26: =SUMIFS(Tab_Uderor[R$],Tab_Uderor[Competencia],Entrada!R$7,Tab_Uderor[TipoReceita],Entrada!$P26) -> 0 | S26: =SUMIFS(Tab_Uderor[R$],Tab_Uderor[Competencia],Entrada!S$7,Tab_Uderor[TipoReceita],Entrada!$P26) -> 0 | T26: =SUMIFS(Tab_Uderor[R$],Tab_Uderor[Competencia],Entrada!T$7,Tab_Uderor[TipoReceita],Entrada!$P26) -> 0 | U26: =SUMIFS(Tab_Uderor[R$],Tab_Uderor[Competencia],Entrada!U$7,Tab_Uderor[TipoReceita],Entrada!$P26) -> 0 | V26: =SUMIFS(Tab_Uderor[R$],Tab_Uderor[Competencia],Entrada!V$7,Tab_Uderor[TipoReceita],Entrada!$P26) -> 0 | W26: =SUMIFS(Tab_Uderor[R$],Tab_Uderor[Competencia],Entrada!W$7,Tab_Uderor[TipoReceita],Entrada!$P26) -> 0 | X26: =SUMIFS(Tab_Uderor[R$],Tab_Uderor[Competencia],Entrada!X$7,Tab_Uderor[TipoReceita],Entrada!$P26) -> 0 | Y26: =SUMIFS(Tab_Uderor[R$],Tab_Uderor[Competencia],Entrada!Y$7,Tab_Uderor[TipoReceita],Entrada!$P26) -> 0 | Z26: =SUMIFS(Tab_Uderor[R$],Tab_Uderor[Competencia],Entrada!Z$7,Tab_Uderor[TipoReceita],Entrada!$P26) -> 0 | AA26: =SUMIFS(Tab_Uderor[R$],Tab_Uderor[Competencia],Entrada!AA$7,Tab_Uderor[TipoReceita],Entrada!$P26) -> 0 | AB26: =SUMIFS(Tab_Uderor[R$],Tab_Uderor[Competencia],Entrada!AB$7,Tab_Uderor[TipoReceita],Entrada!$P26) -> 0 | AC26: =SUMIFS(Tab_Uderor[R$],Tab_Uderor[Competencia],Entrada!AC$7,Tab_Uderor[TipoReceita],Entrada!$P26)-AF26 -> 0 | AD26: =SUMIFS(Tab_Uderor[R$],Tab_Uderor[Competencia],Entrada!AD$7,Tab_Uderor[TipoReceita],Entrada!$P26)-AG26 -> 0 | AE26: =SUMIFS(Tab_Uderor[R$],Tab_Uderor[Competencia],Entrada!AE$7,Tab_Uderor[TipoReceita],Entrada!$P26)-AH26 -> 0
F27: =Indexador!D132 -> Despesa 2022 | G27: 96057.31 | H27: 45233 | J27: RIT - RP 800 - Célula F22 | K27: Serviços Jurídicos | L27: =SUMIFS(Tab_RIT_BMP[SALDO],Tab_RIT_BMP[CONTA],3,Tab_RIT_BMP[ANO],$L$7) -> 0 | M27: =SUMIFS(Tab_RIT_BMP[SALDO],Tab_RIT_BMP[CONTA],3,Tab_RIT_BMP[ANO],$M$7) -> 0 | P27: Eficientização do consumo de energia elétrica e instalação de cogeração qualificada, desde que não enquadráveis nos projetos de Pesquisa e Desenvolvimento (P&D) ou de Eficiência Energética estabelecidos em lei | Q27: =SUMIFS(Tab_Uderor[R$],Tab_Uderor[Competencia],Entrada!Q$7,Tab_Uderor[TipoReceita],Entrada!$P27)*0+R27 -> 0 | R27: =SUMIFS(Tab_Uderor[R$],Tab_Uderor[Competencia],Entrada!R$7,Tab_Uderor[TipoReceita],Entrada!$P27) -> 0 | S27: =SUMIFS(Tab_Uderor[R$],Tab_Uderor[Competencia],Entrada!S$7,Tab_Uderor[TipoReceita],Entrada!$P27) -> 0 | T27: =SUMIFS(Tab_Uderor[R$],Tab_Uderor[Competencia],Entrada!T$7,Tab_Uderor[TipoReceita],Entrada!$P27) -> 0 | U27: =SUMIFS(Tab_Uderor[R$],Tab_Uderor[Competencia],Entrada!U$7,Tab_Uderor[TipoReceita],Entrada!$P27) -> 0 | V27: =SUMIFS(Tab_Uderor[R$],Tab_Uderor[Competencia],Entrada!V$7,Tab_Uderor[TipoReceita],Entrada!$P27) -> 0 | W27: =SUMIFS(Tab_Uderor[R$],Tab_Uderor[Competencia],Entrada!W$7,Tab_Uderor[TipoReceita],Entrada!$P27) -> 0 | X27: =SUMIFS(Tab_Uderor[R$],Tab_Uderor[Competencia],Entrada!X$7,Tab_Uderor[TipoReceita],Entrada!$P27) -> 0 | Y27: =SUMIFS(Tab_Uderor[R$],Tab_Uderor[Competencia],Entrada!Y$7,Tab_Uderor[TipoReceita],Entrada!$P27) -> 0 | Z27: =SUMIFS(Tab_Uderor[R$],Tab_Uderor[Competencia],Entrada!Z$7,Tab_Uderor[TipoReceita],Entrada!$P27) -> 0 | AA27: =SUMIFS(Tab_Uderor[R$],Tab_Uderor[Competencia],Entrada!AA$7,Tab_Uderor[TipoReceita],Entrada!$P27) -> 0 | AB27: =SUMIFS(Tab_Uderor[R$],Tab_Uderor[Competencia],Entrada!AB$7,Tab_Uderor[TipoReceita],Entrada!$P27) -> 0 | AC27: =SUMIFS(Tab_Uderor[R$],Tab_Uderor[Competencia],Entrada!AC$7,Tab_Uderor[TipoReceita],Entrada!$P27)-AF27 -> 0 | AD27: =SUMIFS(Tab_Uderor[R$],Tab_Uderor[Competencia],Entrada!AD$7,Tab_Uderor[TipoReceita],Entrada!$P27)-AG27 -> 0 | AE27: =SUMIFS(Tab_Uderor[R$],Tab_Uderor[Competencia],Entrada!AE$7,Tab_Uderor[TipoReceita],Entrada!$P27)-AH27 -> 0
F28: =Indexador!E132 -> Despesa 2021 | G28: 26907.93 | J28: RIT - RP 800 - Célula F23 | K28: Serviços de Informática | L28: =SUMIFS(Tab_RIT_BMP[SALDO],Tab_RIT_BMP[CONTA],4,Tab_RIT_BMP[ANO],$L$7)+SUMIFS(Tab_RIT_BMP[SALDO],Tab_RIT_BMP[CONTA],5,Tab_RIT_BMP[ANO],$L$7) -> 80331.99 | M28: =SUMIFS(Tab_RIT_BMP[SALDO],Tab_RIT_BMP[CONTA],4,Tab_RIT_BMP[ANO],$M$7)+SUMIFS(Tab_RIT_BMP[SALDO],Tab_RIT_BMP[CONTA],5,Tab_RIT_BMP[ANO],$M$7) -> 3681.83 | P28: Serviços de comunicação de dados | Q28: =SUMIFS(Tab_Uderor[R$],Tab_Uderor[Competencia],Entrada!Q$7,Tab_Uderor[TipoReceita],Entrada!$P28)*0+R28 -> 0 | R28: =SUMIFS(Tab_Uderor[R$],Tab_Uderor[Competencia],Entrada!R$7,Tab_Uderor[TipoReceita],Entrada!$P28) -> 0 | S28: =SUMIFS(Tab_Uderor[R$],Tab_Uderor[Competencia],Entrada!S$7,Tab_Uderor[TipoReceita],Entrada!$P28) -> 0 | T28: =SUMIFS(Tab_Uderor[R$],Tab_Uderor[Competencia],Entrada!T$7,Tab_Uderor[TipoReceita],Entrada!$P28) -> 0 | U28: =SUMIFS(Tab_Uderor[R$],Tab_Uderor[Competencia],Entrada!U$7,Tab_Uderor[TipoReceita],Entrada!$P28) -> 0 | V28: =SUMIFS(Tab_Uderor[R$],Tab_Uderor[Competencia],Entrada!V$7,Tab_Uderor[TipoReceita],Entrada!$P28) -> 0 | W28: =SUMIFS(Tab_Uderor[R$],Tab_Uderor[Competencia],Entrada!W$7,Tab_Uderor[TipoReceita],Entrada!$P28) -> 0 | X28: =SUMIFS(Tab_Uderor[R$],Tab_Uderor[Competencia],Entrada!X$7,Tab_Uderor[TipoReceita],Entrada!$P28) -> 0 | Y28: =SUMIFS(Tab_Uderor[R$],Tab_Uderor[Competencia],Entrada!Y$7,Tab_Uderor[TipoReceita],Entrada!$P28) -> 0 | Z28: =SUMIFS(Tab_Uderor[R$],Tab_Uderor[Competencia],Entrada!Z$7,Tab_Uderor[TipoReceita],Entrada!$P28) -> 0 | AA28: =SUMIFS(Tab_Uderor[R$],Tab_Uderor[Competencia],Entrada!AA$7,Tab_Uderor[TipoReceita],Entrada!$P28) -> 0 | AB28: =SUMIFS(Tab_Uderor[R$],Tab_Uderor[Competencia],Entrada!AB$7,Tab_Uderor[TipoReceita],Entrada!$P28) -> 0 | AC28: =SUMIFS(Tab_Uderor[R$],Tab_Uderor[Competencia],Entrada!AC$7,Tab_Uderor[TipoReceita],Entrada!$P28)-AF28 -> 0 | AD28: =SUMIFS(Tab_Uderor[R$],Tab_Uderor[Competencia],Entrada!AD$7,Tab_Uderor[TipoReceita],Entrada!$P28)-AG28 -> 0 | AE28: =SUMIFS(Tab_Uderor[R$],Tab_Uderor[Competencia],Entrada!AE$7,Tab_Uderor[TipoReceita],Entrada!$P28)-AH28 -> 0
F29: =Indexador!F132 -> Despesa 2020 | G29: 19850.24 | J29: RIT - RP 800 - Célula F26 | K29: Viagens (Passagens Aéreas, etc) | L29: =SUMIFS(Tab_RIT_BMP[SALDO],Tab_RIT_BMP[CONTA],6,Tab_RIT_BMP[ANO],$L$7) -> 733781.1 | M29: =SUMIFS(Tab_RIT_BMP[SALDO],Tab_RIT_BMP[CONTA],6,Tab_RIT_BMP[ANO],$M$7) -> 1215399.57 | P29: Serviços de consultoria | Q29: =SUMIFS(Tab_Uderor[R$],Tab_Uderor[Competencia],Entrada!Q$7,Tab_Uderor[TipoReceita],Entrada!$P29)*0+R29 -> 0 | R29: =SUMIFS(Tab_Uderor[R$],Tab_Uderor[Competencia],Entrada!R$7,Tab_Uderor[TipoReceita],Entrada!$P29) -> 0 | S29: =SUMIFS(Tab_Uderor[R$],Tab_Uderor[Competencia],Entrada!S$7,Tab_Uderor[TipoReceita],Entrada!$P29) -> 0 | T29: =SUMIFS(Tab_Uderor[R$],Tab_Uderor[Competencia],Entrada!T$7,Tab_Uderor[TipoReceita],Entrada!$P29) -> 0 | U29: =SUMIFS(Tab_Uderor[R$],Tab_Uderor[Competencia],Entrada!U$7,Tab_Uderor[TipoReceita],Entrada!$P29) -> 0 | V29: =SUMIFS(Tab_Uderor[R$],Tab_Uderor[Competencia],Entrada!V$7,Tab_Uderor[TipoReceita],Entrada!$P29) -> 0 | W29: =SUMIFS(Tab_Uderor[R$],Tab_Uderor[Competencia],Entrada!W$7,Tab_Uderor[TipoReceita],Entrada!$P29) -> 0 | X29: =SUMIFS(Tab_Uderor[R$],Tab_Uderor[Competencia],Entrada!X$7,Tab_Uderor[TipoReceita],Entrada!$P29) -> 0 | Y29: =SUMIFS(Tab_Uderor[R$],Tab_Uderor[Competencia],Entrada!Y$7,Tab_Uderor[TipoReceita],Entrada!$P29) -> 0 | Z29: =SUMIFS(Tab_Uderor[R$],Tab_Uderor[Competencia],Entrada!Z$7,Tab_Uderor[TipoReceita],Entrada!$P29) -> 0 | AA29: =SUMIFS(Tab_Uderor[R$],Tab_Uderor[Competencia],Entrada!AA$7,Tab_Uderor[TipoReceita],Entrada!$P29) -> 0 | AB29: =SUMIFS(Tab_Uderor[R$],Tab_Uderor[Competencia],Entrada!AB$7,Tab_Uderor[TipoReceita],Entrada!$P29) -> 0 | AC29: =SUMIFS(Tab_Uderor[R$],Tab_Uderor[Competencia],Entrada!AC$7,Tab_Uderor[TipoReceita],Entrada!$P29)-AF29 -> 0 | AD29: =SUMIFS(Tab_Uderor[R$],Tab_Uderor[Competencia],Entrada!AD$7,Tab_Uderor[TipoReceita],Entrada!$P29)-AG29 -> 0 | AE29: =SUMIFS(Tab_Uderor[R$],Tab_Uderor[Competencia],Entrada!AE$7,Tab_Uderor[TipoReceita],Entrada!$P29)-AH29 -> 0
F30: =Indexador!G132 -> Despesa 2019 | G30: 109139.01 | J30: RIT - RP 800 - Célula F27 | K30: Transportes (inclui Fretes) | L30: =SUMIFS(Tab_RIT_BMP[SALDO],Tab_RIT_BMP[CONTA],7,Tab_RIT_BMP[ANO],$L$7) -> 250085.31 | M30: =SUMIFS(Tab_RIT_BMP[SALDO],Tab_RIT_BMP[CONTA],7,Tab_RIT_BMP[ANO],$M$7) -> 198870.02 | P30: Receita proveniente da comercialização de resultados de projetos de P&D COM comprovação | Q30: =SUMIFS(Tab_Uderor[R$],Tab_Uderor[Competencia],Entrada!Q$7,Tab_Uderor[TipoReceita],Entrada!$P30)*0+R30 -> 0 | R30: =SUMIFS(Tab_Uderor[R$],Tab_Uderor[Competencia],Entrada!R$7,Tab_Uderor[TipoReceita],Entrada!$P30) -> 0 | S30: =SUMIFS(Tab_Uderor[R$],Tab_Uderor[Competencia],Entrada!S$7,Tab_Uderor[TipoReceita],Entrada!$P30) -> 0 | T30: =SUMIFS(Tab_Uderor[R$],Tab_Uderor[Competencia],Entrada!T$7,Tab_Uderor[TipoReceita],Entrada!$P30) -> 0 | U30: =SUMIFS(Tab_Uderor[R$],Tab_Uderor[Competencia],Entrada!U$7,Tab_Uderor[TipoReceita],Entrada!$P30) -> 0 | V30: =SUMIFS(Tab_Uderor[R$],Tab_Uderor[Competencia],Entrada!V$7,Tab_Uderor[TipoReceita],Entrada!$P30) -> 0 | W30: =SUMIFS(Tab_Uderor[R$],Tab_Uderor[Competencia],Entrada!W$7,Tab_Uderor[TipoReceita],Entrada!$P30) -> 0 | X30: =SUMIFS(Tab_Uderor[R$],Tab_Uderor[Competencia],Entrada!X$7,Tab_Uderor[TipoReceita],Entrada!$P30) -> 0 | Y30: =SUMIFS(Tab_Uderor[R$],Tab_Uderor[Competencia],Entrada!Y$7,Tab_Uderor[TipoReceita],Entrada!$P30) -> 0 | Z30: =SUMIFS(Tab_Uderor[R$],Tab_Uderor[Competencia],Entrada!Z$7,Tab_Uderor[TipoReceita],Entrada!$P30) -> 0 | AA30: =SUMIFS(Tab_Uderor[R$],Tab_Uderor[Competencia],Entrada!AA$7,Tab_Uderor[TipoReceita],Entrada!$P30) -> 0 | AB30: =SUMIFS(Tab_Uderor[R$],Tab_Uderor[Competencia],Entrada!AB$7,Tab_Uderor[TipoReceita],Entrada!$P30) -> 0 | AC30: =SUMIFS(Tab_Uderor[R$],Tab_Uderor[Competencia],Entrada!AC$7,Tab_Uderor[TipoReceita],Entrada!$P30)-AF30 -> 0 | AD30: =SUMIFS(Tab_Uderor[R$],Tab_Uderor[Competencia],Entrada!AD$7,Tab_Uderor[TipoReceita],Entrada!$P30)-AG30 -> 0 | AE30: =SUMIFS(Tab_Uderor[R$],Tab_Uderor[Competencia],Entrada!AE$7,Tab_Uderor[TipoReceita],Entrada!$P30)-AH30 -> 0
F31: =Indexador!H132 -> Despesa 2018 | J31: RIT - RP 800 - Célula F28 | K31: Propaganda e Publicidade (exceto Publicações Oficiais) | L31: =SUMIFS(Tab_RIT_BMP[SALDO],Tab_RIT_BMP[CONTA],8,Tab_RIT_BMP[ANO],$L$7) -> 160569.1 | M31: =SUMIFS(Tab_RIT_BMP[SALDO],Tab_RIT_BMP[CONTA],8,Tab_RIT_BMP[ANO],$M$7) -> 0 | P31: Receita proveniente da comercialização de resultados de projetos de P&D SEM comprovação | Q31: =SUMIFS(Tab_Uderor[R$],Tab_Uderor[Competencia],Entrada!Q$7,Tab_Uderor[TipoReceita],Entrada!$P31)*0+R31 -> 0 | R31: =SUMIFS(Tab_Uderor[R$],Tab_Uderor[Competencia],Entrada!R$7,Tab_Uderor[TipoReceita],Entrada!$P31) -> 0 | S31: =SUMIFS(Tab_Uderor[R$],Tab_Uderor[Competencia],Entrada!S$7,Tab_Uderor[TipoReceita],Entrada!$P31) -> 0 | T31: =SUMIFS(Tab_Uderor[R$],Tab_Uderor[Competencia],Entrada!T$7,Tab_Uderor[TipoReceita],Entrada!$P31) -> 0 | U31: =SUMIFS(Tab_Uderor[R$],Tab_Uderor[Competencia],Entrada!U$7,Tab_Uderor[TipoReceita],Entrada!$P31) -> 0 | V31: =SUMIFS(Tab_Uderor[R$],Tab_Uderor[Competencia],Entrada!V$7,Tab_Uderor[TipoReceita],Entrada!$P31) -> 0 | W31: =SUMIFS(Tab_Uderor[R$],Tab_Uderor[Competencia],Entrada!W$7,Tab_Uderor[TipoReceita],Entrada!$P31) -> 0 | X31: =SUMIFS(Tab_Uderor[R$],Tab_Uderor[Competencia],Entrada!X$7,Tab_Uderor[TipoReceita],Entrada!$P31) -> 0 | Y31: =SUMIFS(Tab_Uderor[R$],Tab_Uderor[Competencia],Entrada!Y$7,Tab_Uderor[TipoReceita],Entrada!$P31) -> 0 | Z31: =SUMIFS(Tab_Uderor[R$],Tab_Uderor[Competencia],Entrada!Z$7,Tab_Uderor[TipoReceita],Entrada!$P31) -> 0 | AA31: =SUMIFS(Tab_Uderor[R$],Tab_Uderor[Competencia],Entrada!AA$7,Tab_Uderor[TipoReceita],Entrada!$P31) -> 0 | AB31: =SUMIFS(Tab_Uderor[R$],Tab_Uderor[Competencia],Entrada!AB$7,Tab_Uderor[TipoReceita],Entrada!$P31) -> 0 | AC31: =SUMIFS(Tab_Uderor[R$],Tab_Uderor[Competencia],Entrada!AC$7,Tab_Uderor[TipoReceita],Entrada!$P31)-AF31 -> 0 | AD31: =SUMIFS(Tab_Uderor[R$],Tab_Uderor[Competencia],Entrada!AD$7,Tab_Uderor[TipoReceita],Entrada!$P31)-AG31 -> 0 | AE31: =SUMIFS(Tab_Uderor[R$],Tab_Uderor[Competencia],Entrada!AE$7,Tab_Uderor[TipoReceita],Entrada!$P31)-AH31 -> 0
F32: Perdas Regulatórias | J32: RIT - RP 800 - Célula F29 | K32: Publicações Oficiais | L32: =SUMIFS(Tab_RIT_BMP[SALDO],Tab_RIT_BMP[CONTA],9,Tab_RIT_BMP[ANO],$L$7) -> 5607.7 | M32: =SUMIFS(Tab_RIT_BMP[SALDO],Tab_RIT_BMP[CONTA],9,Tab_RIT_BMP[ANO],$M$7) -> 0
F33: Perdas Não Técnicas | G33: 0.1240352248 | H33: 45252 | J33: RIT - RP 800 - Célula F30 | K33: Serviço de Engenharia e Supervisão de Obras | L33: =SUMIFS(Tab_RIT_BMP[SALDO],Tab_RIT_BMP[CONTA],10,Tab_RIT_BMP[ANO],$L$7) -> 0 | M33: =SUMIFS(Tab_RIT_BMP[SALDO],Tab_RIT_BMP[CONTA],10,Tab_RIT_BMP[ANO],$M$7) -> 0
F34: Perdas Técnicas | G34: 0.08879352438 | J34: RIT - RP 800 - Célula F31 | K34: Gestão Comercial | L34: =SUMIFS(Tab_RIT_BMP[SALDO],Tab_RIT_BMP[CONTA],11,Tab_RIT_BMP[ANO],$L$7) -> 3366158.8 | M34: =SUMIFS(Tab_RIT_BMP[SALDO],Tab_RIT_BMP[CONTA],11,Tab_RIT_BMP[ANO],$M$7) -> 2936051.02 | P34: Outras Receitas - Caso 3
J35: RIT - RP 800 - Célula F32 | K35: Outros Serviços Terceirizados | L35: =SUMIFS(Tab_RIT_BMP[SALDO],Tab_RIT_BMP[CONTA],12,Tab_RIT_BMP[ANO],$L$7) -> 13054101.26 | M35: =SUMIFS(Tab_RIT_BMP[SALDO],Tab_RIT_BMP[CONTA],12,Tab_RIT_BMP[ANO],$M$7) -> 11731647.77 | P35: Alíquota ISS
F36: Dados da Revisão Anterior - Componente Pd | J36: RIT - RP 800 - Célula F33 - BMP - 610530810,610550810,610532810,610552810 | K36: (-) Créditos de Tributos Recuperáveis | L36: =SUMIFS(Tab_RIT_BMP[SALDO],Tab_RIT_BMP[CONTA],610530810,Tab_RIT_BMP[ANO],$L$7)+SUMIFS(Tab_RIT_BMP[SALDO],Tab_RIT_BMP[CONTA],610550810,Tab_RIT_BMP[ANO],$L$7)+ SUMIFS(Tab_RIT_BMP[SALDO],Tab_RIT_BMP[CONTA],610532810,Tab_RIT_BMP[ANO],$L$7)+SUMIFS(Tab_RIT_BMP[SALDO],Tab_RIT_BMP[CONTA],610552810,Tab_RIT_BMP[ANO],$L$7) -> -2779120.36 | M36: =SUMIFS(Tab_RIT_BMP[SALDO],Tab_RIT_BMP[CONTA],610530810,Tab_RIT_BMP[ANO],$M$7)+SUMIFS(Tab_RIT_BMP[SALDO],Tab_RIT_BMP[CONTA],610550810,Tab_RIT_BMP[ANO],$M$7)+ SUMIFS(Tab_RIT_BMP[SALDO],Tab_RIT_BMP[CONTA],610532810,Tab_RIT_BMP[ANO],$M$7)+SUMIFS(Tab_RIT_BMP[SALDO],Tab_RIT_BMP[CONTA],610552810,Tab_RIT_BMP[ANO],$M$7) -> -1416336.36
F37: Data Base Ativos e Consumidores | G37: 43983 | H37: 45233 | J37: RIT - RP 800 - Célula F34 - BMP - 610532801,610552801 | K37: Transferências da Administração Central | L37: =SUMIFS(Tab_RIT_BMP[SALDO],Tab_RIT_BMP[CONTA],610532801,Tab_RIT_BMP[ANO],$L$7)+SUMIFS(Tab_RIT_BMP[SALDO],Tab_RIT_BMP[CONTA],610552801,Tab_RIT_BMP[ANO],$M$7) -> 33537382.28 | M37: =SUMIFS(Tab_RIT_BMP[SALDO],Tab_RIT_BMP[CONTA],610532801,Tab_RIT_BMP[ANO],$M$7)+SUMIFS(Tab_RIT_BMP[SALDO],Tab_RIT_BMP[CONTA],610552801,Tab_RIT_BMP[ANO],$L$7) -> 33032687.89 | P37: Tipo de Receita | Q37: =Q7 -> 2023-11-01 | R37: 2023-10-01 | S37: 2023-09-01 | T37: 2023-08-01 | U37: 2023-07-01 | V37: 2023-06-01 | W37: 2023-05-01 | X37: 2023-04-01 | Y37: 2023-03-01 | Z37: 2023-02-01 | AA37: 2023-01-01 | AB37: 2022-12-01
F38: Mercado AT (MWh) | G38: 0 | K38: Subtotal | L38: =SUM(L25:L37) -> 81093830.24 | M38: =SUM(M25:M37) -> 62932195.02 | P38: Serviços Cobráveis
F39: Mercado MT (MWh) | G39: 253909.724 | J39: CONTA SEGUROS | P39: Encargos de Conexão
F40: Mercado BT (MWh) | G40: 844013.34 | J40: BMP - 610531001; 610551001; 610533001; 610553001 | K40: Seguros | L40: =SUMIFS(Tab_RIT_BMP[SALDO],Tab_RIT_BMP[CONTA],610531001,Tab_RIT_BMP[ANO],$L$7)+SUMIFS(Tab_RIT_BMP[SALDO],Tab_RIT_BMP[CONTA],610551001,Tab_RIT_BMP[ANO],$L$7)+ SUMIFS(Tab_RIT_BMP[SALDO],Tab_RIT_BMP[CONTA],610533001,Tab_RIT_BMP[ANO],$L$7)+SUMIFS(Tab_RIT_BMP[SALDO],Tab_RIT_BMP[CONTA],610553001,Tab_RIT_BMP[ANO],$L$7) -> 459136.02 | M40: =SUMIFS(Tab_RIT_BMP[SALDO],Tab_RIT_BMP[CONTA],610531001,Tab_RIT_BMP[ANO],$M$7)+SUMIFS(Tab_RIT_BMP[SALDO],Tab_RIT_BMP[CONTA],610551001,Tab_RIT_BMP[ANO],$M$7)+ SUMIFS(Tab_RIT_BMP[SALDO],Tab_RIT_BMP[CONTA],610533001,Tab_RIT_BMP[ANO],$M$7)+SUMIFS(Tab_RIT_BMP[SALDO],Tab_RIT_BMP[CONTA],610553001,Tab_RIT_BMP[ANO],$M$7) -> 580351.51 | P40: Compartilhamento de Infraestrutura
F41: Número de unidades consumidoras | G41: 270852 | J41: BMP - 610531099; 610551099; 610533099; 610553099 | K41: Outros | L41: =SUMIFS(Tab_RIT_BMP[SALDO],Tab_RIT_BMP[CONTA],610531099,Tab_RIT_BMP[ANO],$L$7)+SUMIFS(Tab_RIT_BMP[SALDO],Tab_RIT_BMP[CONTA],610551099,Tab_RIT_BMP[ANO],$L$7)+ SUMIFS(Tab_RIT_BMP[SALDO],Tab_RIT_BMP[CONTA],610533099,Tab_RIT_BMP[ANO],$L$7)+SUMIFS(Tab_RIT_BMP[SALDO],Tab_RIT_BMP[CONTA],610553099,Tab_RIT_BMP[ANO],$L$7) -> 0 | M41: =SUMIFS(Tab_RIT_BMP[SALDO],Tab_RIT_BMP[CONTA],610531099,Tab_RIT_BMP[ANO],$M$7)+SUMIFS(Tab_RIT_BMP[SALDO],Tab_RIT_BMP[CONTA],610551099,Tab_RIT_BMP[ANO],$M$7)+ SUMIFS(Tab_RIT_BMP[SALDO],Tab_RIT_BMP[CONTA],610533099,Tab_RIT_BMP[ANO],$M$7)+SUMIFS(Tab_RIT_BMP[SALDO],Tab_RIT_BMP[CONTA],610553099,Tab_RIT_BMP[ANO],$M$7) -> 0 | P41: Sistemas de Comunicação (PLC)
J42: BMP - 610531010; 610551010; 610533010; 610553010 | K42: (-) Créditos de Tributos Recuperáveis | L42: =SUMIFS(Tab_RIT_BMP[SALDO],Tab_RIT_BMP[CONTA],610531010,Tab_RIT_BMP[ANO],$L$7)+SUMIFS(Tab_RIT_BMP[SALDO],Tab_RIT_BMP[CONTA],610551010,Tab_RIT_BMP[ANO],$L$7)+ SUMIFS(Tab_RIT_BMP[SALDO],Tab_RIT_BMP[CONTA],610533010,Tab_RIT_BMP[ANO],$L$7)+SUMIFS(Tab_RIT_BMP[SALDO],Tab_RIT_BMP[CONTA],610553010,Tab_RIT_BMP[ANO],$L$7) -> 0 | M42: =SUMIFS(Tab_RIT_BMP[SALDO],Tab_RIT_BMP[CONTA],610531010,Tab_RIT_BMP[ANO],$M$7)+SUMIFS(Tab_RIT_BMP[SALDO],Tab_RIT_BMP[CONTA],610551010,Tab_RIT_BMP[ANO],$M$7)+ SUMIFS(Tab_RIT_BMP[SALDO],Tab_RIT_BMP[CONTA],610533010,Tab_RIT_BMP[ANO],$M$7)+SUMIFS(Tab_RIT_BMP[SALDO],Tab_RIT_BMP[CONTA],610553010,Tab_RIT_BMP[ANO],$M$7) -> 0 | P42: Serviços de Consultoria
F43: OPEX | K43: Subtotal | L43: =SUM(L40:L42) -> 459136.02 | M43: =SUM(M40:M42) -> 580351.51 | P43: Serviços de O&M
F44: Extensão de redes subterrâneas (Km) | G44: 0.71 | H44: 45253 | J44: CONTA TRIBUTOS | P44: Serviços de Comunicação
F45: Extensão de rede de distribuição aérea (Km) | G45: 21619.63 | J45: BMP - 6105316; 6105516; 6105336; 6105536 | K45: Tributos | L45: =SUMIFS(Tab_RIT_BMP[SALDO],Tab_RIT_BMP[CONTA],6105316,Tab_RIT_BMP[ANO],$L$7)+SUMIFS(Tab_RIT_BMP[SALDO],Tab_RIT_BMP[CONTA],6105516,Tab_RIT_BMP[ANO],$L$7)+ SUMIFS(Tab_RIT_BMP[SALDO],Tab_RIT_BMP[CONTA],6105336,Tab_RIT_BMP[ANO],$L$7)+SUMIFS(Tab_RIT_BMP[SALDO],Tab_RIT_BMP[CONTA],6105536,Tab_RIT_BMP[ANO],$L$7) -> 339963.81 | M45: =SUMIFS(Tab_RIT_BMP[SALDO],Tab_RIT_BMP[CONTA],6105316,Tab_RIT_BMP[ANO],$M$7)+SUMIFS(Tab_RIT_BMP[SALDO],Tab_RIT_BMP[CONTA],6105516,Tab_RIT_BMP[ANO],$M$7)+ SUMIFS(Tab_RIT_BMP[SALDO],Tab_RIT_BMP[CONTA],6105336,Tab_RIT_BMP[ANO],$M$7)+SUMIFS(Tab_RIT_BMP[SALDO],Tab_RIT_BMP[CONTA],6105536,Tab_RIT_BMP[ANO],$M$7) -> 311975.74 | P45: Serviços de Engenharia
F46: Extensão de rede de alta tensão (Km) | G46: 790.32077 | K46: (+) Créditos de Tributos Recuperáveis | L46: =L45 -> 339963.81 | M46: =M45 -> 311975.74 | P46: Convênios
F47: ="% PNT / BT Real de "&IF(MONTH(LnkTxtDRPData)>6,YEAR(LnkTxtDRPData)-1,YEAR(LnkTxtDRPData)-2) & " (Medido)" -> % PNT / BT Real de 2022 (Medido) | G47: 0.117976769 | J47: CONTA OUTROS
F48: ="% PNT / BT Real de "&IF(MONTH(LnkTxtDRPData)>6,YEAR(LnkTxtDRPData)-1,YEAR(LnkTxtDRPData)-2)-1 & " (Medido)" -> % PNT / BT Real de 2021 (Medido) | G48: 0.1352642581 | J48: BMP - 610531901; 610551901; 610533901; 610553901 | K48: Indenização por Perdas e Danos | L48: =SUMIFS(Tab_RIT_BMP[SALDO],Tab_RIT_BMP[CONTA],610531901,Tab_RIT_BMP[ANO],$L$7)+SUMIFS(Tab_RIT_BMP[SALDO],Tab_RIT_BMP[CONTA],610551901,Tab_RIT_BMP[ANO],$L$7)+ SUMIFS(Tab_RIT_BMP[SALDO],Tab_RIT_BMP[CONTA],610533901,Tab_RIT_BMP[ANO],$L$7)+SUMIFS(Tab_RIT_BMP[SALDO],Tab_RIT_BMP[CONTA],610553901,Tab_RIT_BMP[ANO],$L$7) -> 4618136.38 | M48: =SUMIFS(Tab_RIT_BMP[SALDO],Tab_RIT_BMP[CONTA],610531901,Tab_RIT_BMP[ANO],$M$7)+SUMIFS(Tab_RIT_BMP[SALDO],Tab_RIT_BMP[CONTA],610551901,Tab_RIT_BMP[ANO],$M$7)+ SUMIFS(Tab_RIT_BMP[SALDO],Tab_RIT_BMP[CONTA],610533901,Tab_RIT_BMP[ANO],$M$7)+SUMIFS(Tab_RIT_BMP[SALDO],Tab_RIT_BMP[CONTA],610553901,Tab_RIT_BMP[ANO],$M$7) -> 420152.4 | P48: UDER
F49: ="% PNT / BT Real de "&IF(MONTH(LnkTxtDRPData)>6,YEAR(LnkTxtDRPData)-1,YEAR(LnkTxtDRPData)-2)-2 & " (Medido)" -> % PNT / BT Real de 2020 (Medido) | G49: 0.1890769036 | J49: BMP - 610531902; 610551902; 610533902; 610553902 | K49: Consumo Próprio de Energia | L49: =SUMIFS(Tab_RIT_BMP[SALDO],Tab_RIT_BMP[CONTA],610531902,Tab_RIT_BMP[ANO],$L$7)+SUMIFS(Tab_RIT_BMP[SALDO],Tab_RIT_BMP[CONTA],610551902,Tab_RIT_BMP[ANO],$L$7)+ SUMIFS(Tab_RIT_BMP[SALDO],Tab_RIT_BMP[CONTA],610533902,Tab_RIT_BMP[ANO],$L$7)+SUMIFS(Tab_RIT_BMP[SALDO],Tab_RIT_BMP[CONTA],610553902,Tab_RIT_BMP[ANO],$L$7) -> 1622766.78 | M49: =SUMIFS(Tab_RIT_BMP[SALDO],Tab_RIT_BMP[CONTA],610531902,Tab_RIT_BMP[ANO],$M$7)+SUMIFS(Tab_RIT_BMP[SALDO],Tab_RIT_BMP[CONTA],610551902,Tab_RIT_BMP[ANO],$M$7)+ SUMIFS(Tab_RIT_BMP[SALDO],Tab_RIT_BMP[CONTA],610533902,Tab_RIT_BMP[ANO],$M$7)+SUMIFS(Tab_RIT_BMP[SALDO],Tab_RIT_BMP[CONTA],610553902,Tab_RIT_BMP[ANO],$M$7) -> 1526585.55 | AC49: =AC6 -> Diferenças em relação ao RTA 2022 | AG49: =AG6 -> Valores RTA 2022
F50: ="DEC Apurado "&IF(MONTH(LnkTxtDRPData)>3,YEAR(LnkTxtDRPData)-1,YEAR(LnkTxtDRPData)-2) -> DEC Apurado 2022 | G50: 25.51 | J50: BMP - 610531905 | K50: Despesas com Conselho de Consumidores | L50: =SUMIFS(Tab_RIT_BMP[SALDO],Tab_RIT_BMP[CONTA],610531905,Tab_RIT_BMP[ANO],$L$7) -> 0 | M50: =SUMIFS(Tab_RIT_BMP[SALDO],Tab_RIT_BMP[CONTA],610531905,Tab_RIT_BMP[ANO],$M$7) -> 0 | Q50: =$Q$7 -> 2023-11-01 | R50: =DATE(YEAR(Q50),MONTH(Q50)-1,1) -> 2023-10-01 | S50: =DATE(YEAR(R50),MONTH(R50)-1,1) -> 2023-09-01 | T50: 2023-08-01 | U50: 2023-07-01 | V50: 2023-06-01 | W50: 2023-05-01 | X50: 2023-04-01 | Y50: 2023-03-01 | Z50: 2023-02-01 | AA50: 2023-01-01 | AB50: 2022-12-01 | AC50: =EDATE(AB50,-1) -> 2022-11-01 | AD50: =EDATE(AC50,-1) -> 2022-10-01 | AE50: 2022-09-01 | AF50: =AC50 -> 2022-11-01 | AG50: =AD50 -> 2022-10-01 | AH50: 2022-09-01
F51: ="DEC Apurado "&IF(MONTH(LnkTxtDRPData)>3,YEAR(LnkTxtDRPData)-1,YEAR(LnkTxtDRPData)-2)-1 -> DEC Apurado 2021 | G51: 27.85 | J51: BMP - 610531908; 610533907 | K51: Comunicação e Reprografia | L51: =SUMIFS(Tab_RIT_BMP[SALDO],Tab_RIT_BMP[CONTA],610531908,Tab_RIT_BMP[ANO],$L$7)+SUMIFS(Tab_RIT_BMP[SALDO],Tab_RIT_BMP[CONTA],610533907,Tab_RIT_BMP[ANO],$L$7) -> 0 | M51: =SUMIFS(Tab_RIT_BMP[SALDO],Tab_RIT_BMP[CONTA],610531908,Tab_RIT_BMP[ANO],$M$7)+SUMIFS(Tab_RIT_BMP[SALDO],Tab_RIT_BMP[CONTA],610533907,Tab_RIT_BMP[ANO],$M$7) -> 2656304.54 | P51: Ultrapassagem de Demanda | Q51: =SUMIFS(Tab_Uderor[R$],Tab_Uderor[Competencia],Entrada!Q$50,Tab_Uderor[TipoReceita],Entrada!$P$51)*0+R51 -> 379907.12 | R51: =SUMIFS(Tab_Uderor[R$],Tab_Uderor[Competencia],Entrada!R$50,Tab_Uderor[TipoReceita],Entrada!$P$51) -> 379907.12 | S51: =SUMIFS(Tab_Uderor[R$],Tab_Uderor[Competencia],Entrada!S$50,Tab_Uderor[TipoReceita],Entrada!$P$51) -> 332165.74 | T51: =SUMIFS(Tab_Uderor[R$],Tab_Uderor[Competencia],Entrada!T$50,Tab_Uderor[TipoReceita],Entrada!$P$51) -> 321825.44 | U51: =SUMIFS(Tab_Uderor[R$],Tab_Uderor[Competencia],Entrada!U$50,Tab_Uderor[TipoReceita],Entrada!$P$51) -> 231162.42 | V51: =SUMIFS(Tab_Uderor[R$],Tab_Uderor[Competencia],Entrada!V$50,Tab_Uderor[TipoReceita],Entrada!$P$51) -> 204961.46 | W51: =SUMIFS(Tab_Uderor[R$],Tab_Uderor[Competencia],Entrada!W$50,Tab_Uderor[TipoReceita],Entrada!$P$51) -> 206008.37 | X51: =SUMIFS(Tab_Uderor[R$],Tab_Uderor[Competencia],Entrada!X$50,Tab_Uderor[TipoReceita],Entrada!$P$51) -> 198400.43 | Y51: =SUMIFS(Tab_Uderor[R$],Tab_Uderor[Competencia],Entrada!Y$50,Tab_Uderor[TipoReceita],Entrada!$P$51) -> 181458.4 | Z51: =SUMIFS(Tab_Uderor[R$],Tab_Uderor[Competencia],Entrada!Z$50,Tab_Uderor[TipoReceita],Entrada!$P$51) -> 147901.07 | AA51: =SUMIFS(Tab_Uderor[R$],Tab_Uderor[Competencia],Entrada!AA$50,Tab_Uderor[TipoReceita],Entrada!$P$51) -> 202363.71 | AB51: =SUMIFS(Tab_Uderor[R$],Tab_Uderor[Competencia],Entrada!AB$50,Tab_Uderor[TipoReceita],Entrada!$P$51) -> 259952.08 | AC51: =SUMIFS(Tab_Uderor[R$],Tab_Uderor[Competencia],Entrada!AC$50,Tab_Uderor[TipoReceita],Entrada!$P51)-AF51 -> -11596.25 | AD51: =SUMIFS(Tab_Uderor[R$],Tab_Uderor[Competencia],Entrada!AD$50,Tab_Uderor[TipoReceita],Entrada!$P51)-AG51 -> 0 | AE51: =SUMIFS(Tab_Uderor[R$],Tab_Uderor[Competencia],Entrada!AE$50,Tab_Uderor[TipoReceita],Entrada!$P51)-AH51 -> 0 | AF51: 295998.19 | AG51: 295998.19 | AH51: 270465.7
F52: ="DEC Apurado "&IF(MONTH(LnkTxtDRPData)>3,YEAR(LnkTxtDRPData)-1,YEAR(LnkTxtDRPData)-2)-2 -> DEC Apurado 2020 | G52: 30.49 | J52: BMP - 610531903; 610551903; 610533903; 610553903 | K52: Taxa de Arrecadação | L52: =SUMIFS(Tab_RIT_BMP[SALDO],Tab_RIT_BMP[CONTA],610531903,Tab_RIT_BMP[ANO],$L$7)+SUMIFS(Tab_RIT_BMP[SALDO],Tab_RIT_BMP[CONTA],610551903,Tab_RIT_BMP[ANO],$L$7)+ SUMIFS(Tab_RIT_BMP[SALDO],Tab_RIT_BMP[CONTA],610533903,Tab_RIT_BMP[ANO],$L$7)+SUMIFS(Tab_RIT_BMP[SALDO],Tab_RIT_BMP[CONTA],610553903,Tab_RIT_BMP[ANO],$L$7) -> 0 | M52: =SUMIFS(Tab_RIT_BMP[SALDO],Tab_RIT_BMP[CONTA],610531903,Tab_RIT_BMP[ANO],$M$7)+SUMIFS(Tab_RIT_BMP[SALDO],Tab_RIT_BMP[CONTA],610551903,Tab_RIT_BMP[ANO],$M$7)+ SUMIFS(Tab_RIT_BMP[SALDO],Tab_RIT_BMP[CONTA],610533903,Tab_RIT_BMP[ANO],$M$7)+SUMIFS(Tab_RIT_BMP[SALDO],Tab_RIT_BMP[CONTA],610553903,Tab_RIT_BMP[ANO],$M$7) -> 0 | P52: Excedente Reativo | Q52: =SUMIFS(Tab_Uderor[R$],Tab_Uderor[Competencia],Entrada!Q$50,Tab_Uderor[TipoReceita],Entrada!$P$51)*0+R52 -> 322839.26 | R52: =SUMIFS(Tab_Uderor[R$],Tab_Uderor[Competencia],Entrada!R$50,Tab_Uderor[TipoReceita],Entrada!$P$52) -> 322839.26 | S52: =SUMIFS(Tab_Uderor[R$],Tab_Uderor[Competencia],Entrada!S$50,Tab_Uderor[TipoReceita],Entrada!$P$52) -> 325233.39 | T52: =SUMIFS(Tab_Uderor[R$],Tab_Uderor[Competencia],Entrada!T$50,Tab_Uderor[TipoReceita],Entrada!$P$52) -> 340824.91 | U52: =SUMIFS(Tab_Uderor[R$],Tab_Uderor[Competencia],Entrada!U$50,Tab_Uderor[TipoReceita],Entrada!$P$52) -> 337356.22 | V52: =SUMIFS(Tab_Uderor[R$],Tab_Uderor[Competencia],Entrada!V$50,Tab_Uderor[TipoReceita],Entrada!$P$52) -> 376019.53 | W52: =SUMIFS(Tab_Uderor[R$],Tab_Uderor[Competencia],Entrada!W$50,Tab_Uderor[TipoReceita],Entrada!$P$52) -> 369414.74 | X52: =SUMIFS(Tab_Uderor[R$],Tab_Uderor[Competencia],Entrada!X$50,Tab_Uderor[TipoReceita],Entrada!$P$52) -> 358154.81 | Y52: =SUMIFS(Tab_Uderor[R$],Tab_Uderor[Competencia],Entrada!Y$50,Tab_Uderor[TipoReceita],Entrada!$P$52) -> 357784.96 | Z52: =SUMIFS(Tab_Uderor[R$],Tab_Uderor[Competencia],Entrada!Z$50,Tab_Uderor[TipoReceita],Entrada!$P$52) -> 345964.96 | AA52: =SUMIFS(Tab_Uderor[R$],Tab_Uderor[Competencia],Entrada!AA$50,Tab_Uderor[TipoReceita],Entrada!$P$52) -> 356379.58 | AB52: =SUMIFS(Tab_Uderor[R$],Tab_Uderor[Competencia],Entrada!AB$50,Tab_Uderor[TipoReceita],Entrada!$P$52) -> 317733.67 | AC52: =SUMIFS(Tab_Uderor[R$],Tab_Uderor[Competencia],Entrada!AC$50,Tab_Uderor[TipoReceita],Entrada!$P52)-AF52 -> 816.41 | AD52: =SUMIFS(Tab_Uderor[R$],Tab_Uderor[Competencia],Entrada!AD$50,Tab_Uderor[TipoReceita],Entrada!$P52)-AG52 -> 0 | AE52: =SUMIFS(Tab_Uderor[R$],Tab_Uderor[Competencia],Entrada!AE$50,Tab_Uderor[TipoReceita],Entrada!$P52)-AH52 -> 0 | AF52: 284818.54 | AG52: 284818.54 | AH52: 249600.4
F53: Meta de % PNT / BT (Medido) | G53: 0.1397616756 | J53: BMP - 610531904; 610551904; 610533904; 610553904 | K53: Taxas Bancárias | L53: =SUMIFS(Tab_RIT_BMP[SALDO],Tab_RIT_BMP[CONTA],610531904,Tab_RIT_BMP[ANO],$L$7)+SUMIFS(Tab_RIT_BMP[SALDO],Tab_RIT_BMP[CONTA],610551904,Tab_RIT_BMP[ANO],$L$7)+ SUMIFS(Tab_RIT_BMP[SALDO],Tab_RIT_BMP[CONTA],610533904,Tab_RIT_BMP[ANO],$L$7)+SUMIFS(Tab_RIT_BMP[SALDO],Tab_RIT_BMP[CONTA],610553904,Tab_RIT_BMP[ANO],$L$7) -> 0 | M53: =SUMIFS(Tab_RIT_BMP[SALDO],Tab_RIT_BMP[CONTA],610531904,Tab_RIT_BMP[ANO],$M$7)+SUMIFS(Tab_RIT_BMP[SALDO],Tab_RIT_BMP[CONTA],610551904,Tab_RIT_BMP[ANO],$M$7)+ SUMIFS(Tab_RIT_BMP[SALDO],Tab_RIT_BMP[CONTA],610533904,Tab_RIT_BMP[ANO],$M$7)+SUMIFS(Tab_RIT_BMP[SALDO],Tab_RIT_BMP[CONTA],610553904,Tab_RIT_BMP[ANO],$M$7) -> 0
F54: DEC 8 anos (Limite V8) | G54: 32 | J54: BMP - 610531910; 610551910; 610533910; 610553910 | K54: (-) Créditos de Tributos Recuperáveis | L54: =SUMIFS(Tab_RIT_BMP[SALDO],Tab_RIT_BMP[CONTA],610531910,Tab_RIT_BMP[ANO],$L$7)+SUMIFS(Tab_RIT_BMP[SALDO],Tab_RIT_BMP[CONTA],610551910,Tab_RIT_BMP[ANO],$L$7)+ SUMIFS(Tab_RIT_BMP[SALDO],Tab_RIT_BMP[CONTA],610533910,Tab_RIT_BMP[ANO],$L$7)+SUMIFS(Tab_RIT_BMP[SALDO],Tab_RIT_BMP[CONTA],610553910,Tab_RIT_BMP[ANO],$L$7) -> -21235.23 | M54: =SUMIFS(Tab_RIT_BMP[SALDO],Tab_RIT_BMP[CONTA],610531910,Tab_RIT_BMP[ANO],$M$7)+SUMIFS(Tab_RIT_BMP[SALDO],Tab_RIT_BMP[CONTA],610551910,Tab_RIT_BMP[ANO],$M$7)+ SUMIFS(Tab_RIT_BMP[SALDO],Tab_RIT_BMP[CONTA],610533910,Tab_RIT_BMP[ANO],$M$7)+SUMIFS(Tab_RIT_BMP[SALDO],Tab_RIT_BMP[CONTA],610553910,Tab_RIT_BMP[ANO],$M$7) -> 0
K55: Subtotal | L55: =SUM(L48:L54) -> 6219667.93 | M55: =SUM(M48:M54) -> 4603042.49 | P55: UDER "Limbo"
J56: Demais
F57: Dados da última Revisão Tarifária | J57: BMP - 610531212; 610533212 | K57: Condenações Trabalhistas | L57: =SUMIFS(Tab_RIT_BMP[SALDO],Tab_RIT_BMP[CONTA],610531212,Tab_RIT_BMP[ANO],$L$7)+SUMIFS(Tab_RIT_BMP[SALDO],Tab_RIT_BMP[CONTA],610533212,Tab_RIT_BMP[ANO],$L$7) -> 0 | M57: =SUMIFS(Tab_RIT_BMP[SALDO],Tab_RIT_BMP[CONTA],610531212,Tab_RIT_BMP[ANO],$M$7)+SUMIFS(Tab_RIT_BMP[SALDO],Tab_RIT_BMP[CONTA],610533212,Tab_RIT_BMP[ANO],$M$7) -> -4715904.09 | P57: Preenchimento necessário apenas para cálculos de concessionárias que passaram por alteração contratual, conforme parágrafo 38 do Proret 2.1A.
F58: Custos Operacionais (CO3) | G58: 164387277.3 | H58: 45233 | J58: BMP - 610533908; 610531909 | K58: Gastos com CCEE | L58: =SUMIFS(Tab_RIT_BMP[SALDO],Tab_RIT_BMP[CONTA],610533908,Tab_RIT_BMP[ANO],$L$7)+SUMIFS(Tab_RIT_BMP[SALDO],Tab_RIT_BMP[CONTA],610531909,Tab_RIT_BMP[ANO],$L$7) -> 0 | M58: =SUMIFS(Tab_RIT_BMP[SALDO],Tab_RIT_BMP[CONTA],610533908,Tab_RIT_BMP[ANO],$M$7)+SUMIFS(Tab_RIT_BMP[SALDO],Tab_RIT_BMP[CONTA],610531909,Tab_RIT_BMP[ANO],$M$7) -> 40970.14 | P58: Mês correspondente à Data de Referência de Alteração Contratual - DRAC | Q58: 2017-02-01
F59: Receitas Irrecuperáveis - Encargos Setoriais (Vi) | J59: BMP - 611511401; 611512203; 611512103; 611512003; 611512303 | K59: Perdas na Alienação e Desativação | L59: =SUMIFS(Tab_RIT_BMP[SALDO],Tab_RIT_BMP[CONTA],611511401,Tab_RIT_BMP[ANO],$L$7)+SUMIFS(Tab_RIT_BMP[SALDO],Tab_RIT_BMP[CONTA],611512203,Tab_RIT_BMP[ANO],$L$7)+ SUMIFS(Tab_RIT_BMP[SALDO],Tab_RIT_BMP[CONTA], 611512103,Tab_RIT_BMP[ANO],$L$7)+SUMIFS(Tab_RIT_BMP[SALDO],Tab_RIT_BMP[CONTA],611512003,Tab_RIT_BMP[ANO],$L$7)+ SUMIFS(Tab_RIT_BMP[SALDO],Tab_RIT_BMP[CONTA],611512303,Tab_RIT_BMP[ANO],$L$7) -> 9850064.78 | M59: =SUMIFS(Tab_RIT_BMP[SALDO],Tab_RIT_BMP[CONTA],611511401,Tab_RIT_BMP[ANO],$M$7)+SUMIFS(Tab_RIT_BMP[SALDO],Tab_RIT_BMP[CONTA],611512203,Tab_RIT_BMP[ANO],$M$7)+ SUMIFS(Tab_RIT_BMP[SALDO],Tab_RIT_BMP[CONTA],611512103,Tab_RIT_BMP[ANO],$M$7)+SUMIFS(Tab_RIT_BMP[SALDO],Tab_RIT_BMP[CONTA],611512003,Tab_RIT_BMP[ANO],$M$7)+ SUMIFS(Tab_RIT_BMP[SALDO],Tab_RIT_BMP[CONTA],611512303,Tab_RIT_BMP[ANO],$M$7) -> 7040025.19 | P59: Sexto mês anterior à data da última RTP
F60: Demais Receitas Irrecuperáveis (Vse) | J60: BMP - 611112103; 611112203; 611112303; 611112403; 611112503 | K60: Ganhos na Alienação de Materiais | L60: =SUMIFS(Tab_RIT_BMP[SALDO],Tab_RIT_BMP[CONTA],611112103,Tab_RIT_BMP[ANO],$L$7)+SUMIFS(Tab_RIT_BMP[SALDO],Tab_RIT_BMP[CONTA],611112203, Tab_RIT_BMP[ANO],$L$7)+ SUMIFS(Tab_RIT_BMP[SALDO],Tab_RIT_BMP[CONTA],611112303,Tab_RIT_BMP[ANO],$L$7)+SUMIFS(Tab_RIT_BMP[SALDO],Tab_RIT_BMP[CONTA], 611112403,Tab_RIT_BMP[ANO],$L$7)+ SUMIFS(Tab_RIT_BMP[SALDO],Tab_RIT_BMP[CONTA],611112503,Tab_RIT_BMP[ANO],$L$7) -> -3089595.67 | M60: =SUMIFS(Tab_RIT_BMP[SALDO],Tab_RIT_BMP[CONTA],611112103,Tab_RIT_BMP[ANO],$M$7)+SUMIFS(Tab_RIT_BMP[SALDO],Tab_RIT_BMP[CONTA],611112203, Tab_RIT_BMP[ANO],$M$7)+ SUMIFS(Tab_RIT_BMP[SALDO],Tab_RIT_BMP[CONTA],611112303,Tab_RIT_BMP[ANO],$M$7)+SUMIFS(Tab_RIT_BMP[SALDO],Tab_RIT_BMP[CONTA], 611112403,Tab_RIT_BMP[ANO],$M$7)+ SUMIFS(Tab_RIT_BMP[SALDO],Tab_RIT_BMP[CONTA],611112503,Tab_RIT_BMP[ANO],$M$7) -> 0
F61: Remuneração do Capital (RC) | G61: 72507163.93 | P61: Preenchimento necessário apenas para cálculos de concessionárias que passaram por alteração contratual, conforme parágrafo 38 do Proret 2.1A.
F62: Quota de Reintegração Regulatória (QRR) | G62: 34450835.53 | Q62: =Q58 -> 2017-02-01 | R62: =DATE(YEAR(Q62),MONTH(Q62)-1,1) -> 2017-01-01 | S62: 2016-12-01 | T62: 2016-11-01 | U62: 2016-10-01 | V62: 2016-09-01 | W62: 2016-08-01 | X62: =DATE(YEAR(W62),MONTH(W62)-1,1) -> 2016-07-01 | Y62: =DATE(YEAR(X62),MONTH(X62)-1,1) -> 2016-06-01 | Z62: =DATE(YEAR(Y62),MONTH(Y62)-1,1) -> 2016-05-01 | AA62: =DATE(YEAR(Z62),MONTH(Z62)-1,1) -> 2016-04-01 | AB62: =DATE(YEAR(AA62),MONTH(AA62)-1,1) -> 2016-03-01 | AC62: =DATE(YEAR(AB62),MONTH(AB62)-1,1) -> 2016-02-01 | AD62: =DATE(YEAR(AC62),MONTH(AC62)-1,1) -> 2016-01-01 | AE62: =DATE(YEAR(AD62),MONTH(AD62)-1,1) -> 2015-12-01 | AF62: =DATE(YEAR(AE62),MONTH(AE62)-1,1) -> 2015-11-01 | AG62: =DATE(YEAR(AF62),MONTH(AF62)-1,1) -> 2015-10-01 | AH62: =DATE(YEAR(AG62),MONTH(AG62)-1,1) -> 2015-09-01 | AI62: =DATE(YEAR(AH62),MONTH(AH62)-1,1) -> 2015-08-01
F63: Custo anual das instalações móveis e imóveis (CAIMI) | G63: 22237751.98 | P63: Ultrapassagem de Demanda (valores brutos)
F64: Ajuste em função dos investimentos realizados (valor negativo) | G64: 0 | J64: Custo Médio do Capital - Atual | P64: Excedente Reativo (valores brutos)
F65: Índice de Produtividade + Mecanismo de Qualidade | G65: 0.001974312044 | J65: Tipo | K65: Norma | L65: Valor
F66: UDEROR (inserir o valor positivo) | G66: 5199067.547 | J66: WACC real antes de impostos | K66: Despacho n° 829, 24/03/2023 | L66: 0.112503
F67: Componente T - Última Revisão | G67: 0 | J67: Taxa RGR/PLPT real | K67: Despacho n° 829, 24/03/2023 | L67: 0.000797
J68: Taxa RGR Demais Investimentos | K68: Despacho n° 829, 24/03/2023 | L68: 0.000797
J69: Participação do Capital Próprio | K69: Despacho 829/2023 | L69: 0.524453
F70: Base de Ativios - SFF | G70: 45108 | H70: 45233 | J70: Prêmio de Risco do negócio e financeiro após impostos | K70: Despacho 829/2023 | L70: 0.089205
F71: (1) Ativo Imobilizado em Serviço (Valor Novo de Reposição) | G71: 2565515257
F72: (2) Índice de Aproveitamento Integral | G72: 13174918.91
F73: (3) Obrigações Especiais Bruta | G73: 946269774.6 | J73: Custo Médio do Capital - Ultima Revisão
F74: (4) Bens Totalmente Depreciados | G74: 195397265.8 | J74: Tipo | K74: Norma | L74: Valor
F75: (5) Base de Remuneração Bruta = (1)-(2)-(3)-(4) | G75: =G71-G72-G73-G74 -> 1410673297 | J75: WACC real antes de impostos | L75: 0.1108366985
F76: (6) Depreciação Acumulada | G76: 902777178.3 | J76: Taxa RGR/PLPT real | L76: 0.02281926149
F77: (7) AIS Líquido (Valor de Mercado em Uso) | G77: =G71-G76 -> 1662738078 | J77: Taxa RGR Demais Investimentos | L77: 0.02281926149
F78: (8) Índice de Aproveitamento Depreciado | G78: 11091216.94 | J78: Participação do Capital Próprio | L78: 0.5782307081
F79: (9) Valor da Base de Remuneração (VBR) | G79: =G77-G78 -> 1651646861 | J79: Prêmio de Risco do negócio e financeiro após impostos | L79: 0.05454633622
F80: (10) Almoxarifado em Operação | G80: 8956265.959
F81: (11) Ativo Diferido | G81: =G102*I81 -> 0
F82: (12) Obrigações Especiais Líquida | G82: 647840264.6
F83: (13) Terrenos e Servidões | G83: 18553026.61
F84: (14) Base de Rem. Líquida Total = (9)+(10)+(11)-(12)+(13) | G84: =G79+G80+G81-G82+G83 -> 1031315889
F85: (15) Saldo RGR PLPT
F86: (16) Saldo RGR Demais Investimentos
F87: (17) Taxa de Depreciação | G87: 0.0405
F88: (18) Quota de Reintegração Regulatória = (5) * (17) | G88: =G87*G75 -> 57132268.54
F91: Base de Ativios - Ciclo anterior | G91: 44166 | H91: 45233
F92: (1) Ativo Imobilizado em Serviço (Valor Novo de Reposição) | G92: 1503406817
F93: (2) Índice de Aproveitamento Integral | G93: 1413593.937
F94: (3) Obrigações Especiais Bruta | G94: 471386123.6
F95: (4) Bens Totalmente Depreciados | G95: 114361474.1
F96: (5) Base de Remuneração Bruta = (1)-(2)-(3)-(4) | G96: =G92-G93-G94-G95 -> 916245625.7
F97: (6) Depreciação Acumulada | G97: 603384653.2
F98: (7) AIS Líquido (Valor de Mercado em Uso) | G98: 900022164.1
F99: (8) Índice de Aproveitamento Depreciado | G99: 1367197.012
F100: (9) Valor da Base de Remuneração (VBR) | G100: 898654967
F101: (10) Almoxarifado em Operação | G101: 13473919.79
F102: (11) Ativo Diferido | G102: 0
F103: (12) Obrigações Especiais Líquida | G103: 319400984
F104: (13) Terrenos e Servidões | G104: 3272887.826
F105: (14) Base de Rem. Líquida Total = (1)-(6)-(8)+(10)+(11)-(12)+(13) | G105: =G92-G97-G99+G101+G102-G103+G104 -> 596000790.6
F106: (15) Saldo RGR PLPT | G106: 0
F107: (16) Saldo RGR Demais Investimentos | G107: 0
F109: (17) Taxa de Depreciação | G109: 0.0376
F110: (18) Quota de Reintegração Regulatória = (5) * (17) | G110: =G96*G109 -> 34450835.53
F111: Base de Anuidade Regulatória (BAR) | G111: 125800340.5
F113: Dados do último Reajuste Anual - Contrato Novo
F114: Parcela B sem desconto UDEROR | G114: =SUM(G115:G118) -> 344693113.6
F115: Outras Receitas (OR) | G115: 3025010.375
F116: Excedente de Reativos (ER) | G116: 1669640.971
F117: Ultrapassagem de Demanda (UD) | G117: 1279535.483
F118: Parcela B | G118: 338718926.7
F119: Fator PB | G119: =G114/G118 -> 1.017637594
F121: Dados do último Ciclo - Contrato Novo
F122: Número de processos até o primeiro reajuste contrato novo
F123: Número de processos no contrato novo antes da atual revisão
F125: Participação dos componentes da Parcela B no Ano Teste
F126: Descrição | G126: Valor
F127: Custos Operacionais | G127: =(G58*(1-G65)-(SUM(G58:G63)*(1-G65)-G66)*(1-(1-G67)^G122)-((SUM(G58:G63)*(1-G65)-G66)*(1-G67)^G122+G66-SUM(G59:G60)*(1-G65))*(1-(1-G67)^G123))/((((SUM(G58:G63)*(1-G65)-G66)*(1-G67)^G122)+G66-SUM(G59:G60)*(1-G65))*(1-G67)^G123) -> 0.5599345371
F128: Anuidades | G128: =(G63*(1-G65)/((((SUM(G58:G63)*(1-G65)-G66)*(1-G67)^G122)+G66-SUM(G59:G60)*(1-G65))*(1-G67)^G123)) -> 0.0757460405
F129: Remuneração | G129: =(G61*(1-G65)/((((SUM(G58:G63)*(1-G65)-G66)*(1-G67)^G122)+G66-SUM(G59:G60)*(1-G65))*(1-G67)^G123)) -> 0.2469732813
F130: Depreciação | G130: =(G62*(1-G65)/((((SUM(G58:G63)*(1-G65)-G66)*(1-G67)^G122)+G66-SUM(G59:G60)*(1-G65))*(1-G67)^G123)) -> 0.1173461412

Sheet Resultado
B1: =LnkTxtNomeCompleto -> Energisa Acre - Distribuidora de Energia S.A
B2: Resultado | F2: Parâmetros a serem considerados para os Reajustes subsequentes
B4: RA1 | D4: =D40+D45 -> 879375952.9 | E4: 880850729.3 | F4: FATOR X | K4: Última versão enviada: | L4: 25
B5: RA0 | D5: =Mercado!D24 -> 820037178.8 | E5: 820037178.8 | F5: Componente T do Fator X | G5: ='VPB e Fator X'!C36 -> 0.007326103346 | K5: Data de envio | L5: 2023-11-29T16:49:05
B6: Índice de Reposição/Reajuste | D6: =D4/D5-1 -> 0.07236107792 | E6: 0.07415950418 | F6: Componente Pd do Fator X | G6: ='VPB e Fator X'!C33 -> 0.01230255086
B7: Componentes Financeiros | D7: =Financeiros!E8 -> 0.05756308585 | E7: 0.05756297498 | K7: Efeito Consumidor | L7: Efeito
B8: Índice de Reposição/Reajuste com Financeiros | D8: =D6+D7 -> 0.1299241638 | E8: 0.1317224792 | F8: PERDAS | K8: Efeito Grupo A - Alta tensão | L8: 0.1848941693
F9: Perdas Não Técnicas | G9: =Entrada!G33 -> 0.1240352248 | K9: Efeito Grupo B - Baixa tensão | L9: 0.136199633
C10: DRA | D10: DRP | E10: DRP | F10: Perdas Técnicas | G10: =Entrada!G34 -> 0.08879352438 | K10: Efeito tarifário médio AT+BT | L10: 0.1452175525 | N10: =D13/(918349061.765771/(1+13.5646740808434%))-1 -> 0.1458250467
B11: TOTAL (Parcela A + Parcela B) | C11: =C45+C40 -> 820037178.8 | D11: =D45+D40 -> 879375952.9 | E11: 880850729.3 | K11: Tarifa B1 - Residencial (R$) | L11: 828.3106682
B12: Financeiros | D12: =Financeiros!D8 -> 47203870.52 | E12: 47203779.6 | F12: =LnkTxtIndiceIRT-E8 -> -0.001798315386
B13: Total com financeiros | D13: =D11+D12 -> 926579823.5 | E13: 928054508.9 | F13: =D13-E13 -> -1474685.476 | K13: Subvenção da CDE para descontos tarifários (Valores anuais) | M13: Ano anterior
K14: SUBSIDIO CARGA FONTE INCENTIVADA | L14: 8948626.888
K15: SUBSIDIO GERAÇÃO FONTE INCENTIVADA | L15: 0
B16: Parcela A | F16: Formação da Parcela B e Reposicionamento (Resumo) | K16: SUBSIDIO DISTRIBUIÇÃO | L16: 0
K17: SUBSIDIO ÁGUA, ESGOTO E SANEAMENTO | L17: 0
C18: Processo Anterior | D18: Processo Atual | E18: Processo Atual | K18: SUBSIDIO RURAL | L18: 0
B19: ENCARGOS | C19: =SUM(C20:C28) -> 89500214.47 | D19: =SUM(D20:D28) -> 132037427.7 | E19: 132057421.2 | F19: Custo de Administração, Operação e Manutenção (CAOM) | G19: =SUM(G20:G20) -> 169077699.3 | K19: SUBSIDIO IRRIGANTE/AQUICULTOR | L19: 30895.96026
B20: Reserva Global de Reversão – RGR | D20: =Encargos!C16 -> 0 | E20: 0 | F20: Custos Operacionais (CO) | G20: ='VPB e Fator X'!C121 -> 169077699.3 | K20: SUBSIDIO BAIXA RENDA | L20: 33593203.58
B21: Conta de Consumo de Combustíveis – CCC | D21: =Encargos!C9 -> 0 | E21: 0 | F21: Custo Anual dos Ativos (CAA) | G21: =SUM(G22:G24) -> 226519105.5 | K21: SUBSIDIO SCEE | L21: 828586.3929
B22: Taxa de Fisc. de Serviços de E.E. – TFSEE | C22: ='Votos e NTs'!BM274 -> 1374959.674 | D22: =Encargos!C17 -> 1539068.281 | E22: 1544460.927 | F22: Remuneração do Capital (RC) | G22: ='VPB e Fator X'!C95 -> 132416619.3 | K22: SUBSIDIO LEI 14.299/22 | L22: 0
B23: Conta de Desenvolvimento Energético – CDE | C23: =SUM('Votos e NTs'!BM275:BM281) -> 46147644.27 | D23: =Encargos!C10 -> 90255427.39 | E23: 90255427.39 | F23: Quota de Reintegração Regulatória (QRR) | G23: ='VPB e Fator X'!C77 -> 57781869.8
B24: Compensação financeira - CFURH | C24: ='Votos e NTs'!BM282 -> 0 | D24: =Encargos!C11 -> 0 | E24: 0 | F24: Custo anual das instalações móveis e imóveis (CAIMI) | G24: ='VPB e Fator X'!C67 -> 36320616.42
B25: Encargos Serv. Sist. - ESS e Energ. Reserv. - EER | C25: ='Votos e NTs'!BM283 -> 20138004.14 | D25: =Encargos!C12 -> 19769864.34 | E25: 19769864.34 | F25: Parcela B (VPB) | G25: =SUM(G21,G19) -> 395596804.8 | K25: Versão de Mercado
B26: PROINFA | C26: ='Votos e NTs'!BM284 -> 14333183.48 | D26: =Encargos!C13 -> 12197276.27 | E26: 12197276.27 | F26: Índice de Produtividade da Parcela B | G26: ='VPB e Fator X'!C33 -> 0.01230255086 | K26: Status de Sincronização de BDL | L26: Sincronizado
B27: P&D e Eficiência Energética | C27: ='Votos e NTs'!BM285 -> 7506422.909 | D27: =Encargos!C15 -> 8275791.458 | E27: 8290392.304 | F27: Mecanismo de Incentivo à Qualidade | G27: ='VPB1'!F42 -> -0.007878807461 | K27: Última Sincronização | L27: 2023-11-17T10:55:07
F28: Parcela B com ajustes | G28: =((1-G26-G27)*G25)+G38 -> 404399025.8 | L28: Trabalha na pasta de rede
B29: TRANSPORTE | C29: =SUM(C30:C37) -> 40032189.79 | D29: =SUM(D30:D37) -> 34814360.18 | E29: 34814754.39 | F29: Outras Receitas (OR) | G29: =UDEROR!C2 -> 2812167.003
B30: Rede Básica | C30: ='Votos e NTs'!BM288 -> 18112434.26 | D30: ='RB e Conexão'!E6 -> 20949617.92 | E30: 20949617.92 | F30: Ultrapassagem de Demanda (UD) | G30: =UDEROR!C6+'VPB e Fator X'!D179 -> 1492055.367
B31: Rede Básica Fronteira | C31: ='Votos e NTs'!BM289 -> 19861702.61 | D31: ='RB e Conexão'!E7 -> 12210696.99 | E31: 12210696.99 | F31: Excedente de Reativos (ER) | G31: =UDEROR!C7+'VPB e Fator X'!D180 -> 2043052.399
B32: Rede Básica ONS (A2) | C32: ='Votos e NTs'!BM290 -> 0 | D32: =VLOOKUP("TUSDg ONS DRP",TUSDG[],2,FALSE) -> 0 | E32: 0 | F32: Parcela B deduzidas as outras receitas | G32: =G28-SUM(G29:G31) -> 398051751.1
B33: Rede Básica Export. (A2) | C33: ='Votos e NTs'!BM291 -> 0 | D33: =VLOOKUP("TUSDg Export DRP",TUSDG[],2,FALSE) -> 0 | E33: 0
B34: MUST Itaipu | C34: ='Votos e NTs'!BM292 -> 0 | D34: ='RB e Conexão'!E8 -> 0 | E34: 0 | F34: 1. Receita Requerida (RR) | G34: =G28+D40 -> 885723227.7
B35: Transporte de Itaipu | C35: ='Votos e NTs'!BM293 -> 0 | D35: =SUMPRODUCT(itaiputransporte[Potência],itaiputransporte[Tarifa DRP]) -> 0 | E35: 0 | F35: 2. Outras Receitas (OR) | G35: =G29 -> 2812167.003
B36: Conexão | C36: ='Votos e NTs'!BM294 -> 2058052.918 | D36: ='RB e Conexão'!E9 -> 1654045.272 | E36: 1654439.477 | F36: 3. Receita Verificada (RV) | G36: =Mercado!D24 -> 820037178.8
B37: Uso do sistema de distribuição e CCD | C37: ='Votos e NTs'!BM295 -> 0 | D37: =CUSD!D14+CUSD!E14 -> 0 | E37: 0
B38: ENERGIA | C38: ='Votos e NTs'!BM296 -> 302311120.3 | D38: =Energia!D15 -> 300258450.6 | E38: 300295345.7 | F38: Ajuste de PB associado ao SCEE | G38: =G39+G40+G41 -> 10552239.76
B39: RECEITA IRRECUPERÁVEL | C39: ='Votos e NTs'!BM297 -> 13556330.3 | D39: =Mercado!H38 -> 14213963.36 | E39: 14236584.67 | F39: Mercado de Referência 12 meses | G39: =(12020256.73-544544.97-254011.53) -> 11221700.23
B40: VPA (ENCARGO + TRANSPORTE + ENERGIA+RI) | C40: =C19+C29+C38+C39 -> 445399854.9 | D40: =D19+D29+D38+D39 -> 481324201.9 | E40: 481404106 | F40: Componente Pd do Mercado de Referência | G40: =-696341.66 -> -696341.66
F41: TUSDg | G41: =26881.19 -> 26881.19
B42: Parcela B
D44: VPB1 | E44: VPB1
B45: ="Parcela B "&IF(CAPA!C7="Revisão","(menos Outras Receitas)",) -> Parcela B (menos Outras Receitas) | C45: ='Votos e NTs'!BM298 -> 374637323.9 | D45: =IF(CAPA!$C$7="Revisão",Resultado!$G$32,'VPB1'!$C$43) -> 398051751.1 | E45: 399446623.3

Sheet Subvenção Permissionária (hidden)
A1: Cooperativa
S2: Outras Receitas
A3: Cálculo PB | D3: Receita Agregada | K3: Subvenção
A4: UC | D4: Subgrupo | E4: Modalidade | F4: Classe | G4: Mercado TUSD | H4: Tarifa Fio B eco | I4: Receita | K4: Subvenção | R4: OUTRAS RECEITAS (R$) | W4: 44013 | X4: 43983 | Y4: 43952 | Z4: 43922 | AA4: 43891 | AB4: 43862 | AC4: 43831 | AD4: 43800 | AE4: 43770 | AF4: 43739 | AG4: 43709 | AH4: 43678
A5: Data Base | D5: A3 | E5: Azul | F5: Demanda azul P | I5: =G5*H5 -> 0 | K5: PB COM COOPERATIVA | L5: ='VPB e Fator X - Subvenção'!C26 -> 387499511.3 | R5: Tipo de Receita | Y5: 3 meses antes | Z5: 4 meses antes | AA5: 5 meses antes | AB5: 6 meses antes | AC5: 7 meses antes | AD5: 8 meses antes | AE5: 9 meses antes | AF5: 10 meses antes | AG5: 11 meses antes | AH5: 12 meses antes
A6: (1) Ativo Imobilizado em Serviço (Valor Novo de Reposição) | F6: Demanda azul FP | I6: =G6*H6 -> 0 | K6: PB ORIGINAL SUPRIDORA | L6: =Resultado!D45 -> 398051751.1 | R6: Serviços Cobráveis | V6: Atividade inerente ao serviço
A7: (2) Obrigações Especiais Bruta | F7: Energia TUSD azul | I7: 0 | K7: Diferença | L7: =L5-L6 -> -10552239.76 | R7: Arrecadação de convênios ou valores pela fatura | V7: Atividades acessórias próprias
A8: (3) Bens Totalmente Depreciados | E8: Geração | F8: Demanda Geração | I8: 0 | K8: Receita Agregada | L8: =I24 -> 0 | R8: Arrecadação de faturas de terceiros por estrutura própria
A9: (4) Base de Remuneração Bruta = (1)-(2)-(3) | K9: Subvenção | L9: =L7-L8 -> -10552239.76 | R9: Veiculação de publicidade
A10: (5) Depreciação Acumulada | D10: A4 | E10: Azul | F10: Demanda azul P | I10: 0 | R10: Aluguel ou cessão onerosa de imóveis e espaços físicos
A11: (6) Valor da Base de Remuneração (VBR) | F11: Demanda azul FP | I11: 0 | K11: subvenção de 2016 | R11: Compartilhamento de infraestrutura
A12: (7) Obrigações Especiais Líquida | F12: Energia TUSD azul E | I12: 0 | L12: =L9/L11-1 ->  | R12: Serviços de avaliação técnica e aferição de medidores.
A13: (8) Terrenos e Servidões | E13: Verde | F13: Demanda verde | I13: 0 | R13: Operacionalização de serviço de créditos tributários
A14: (9) Almoxarifado em Operação | F14: Energia TUSD verde EP | I14: 0 | K14: Item | L14: 2023 | M14: Calculo anterior | N14: variação | R14: Elaboração de projeto, construção, operação, manutenção ou reforma de: | V14: Atividades acessórias complementares
A15: (10) Base de Remuneração Líquida Total = (1)-(5)-(7)+(8)+(9) | F15: Energia TUSD verde EFP | I15: 0 | K15: Densidade Cooperativa | L15: =G24/B21 ->  | N15: =L15/M15-1 ->  | R15: (1) redes de distribuição de energia elétrica destinadas à regularização fundiária de interesse específico e ao atendimento dos empreendimentos de múltiplas unidades consumidoras;
A16: (11) Taxa de Depreciação | E16: Geração | F16: Demanda geração | I16: 0 | K16: Densidade Supridora | L16: =(Mercado!C24-Mercado!C17)/(Entrada!G44+Entrada!G45+Entrada!G46) -> 54.4975509 | N16: =L16/M16-1 ->  | R16: (2) redes de energia elétrica destinadas ao acesso dos sistemas de distribuição ou transmissão;
A17: (12) Quota de Reintegração Regulatória | K17: Mercado | L17: =G24 -> 0 | R17: (3) subestações de energia;
A18: (13) Remuneração de Capital (RC) = BRR líq x WACC | D18: BT | E18: Convencional | F18: Energia TUSD B | I18: =G18*H18 -> 0 | K18: Km de rede | L18: =B21 -> 0 | R18: (4) instalações elétricas internas de unidades consumidoras;
E19: Branca | F19: Ponta | I19: 0 | R19: (5) banco de capacitores:
B20: Valores | E20: Branca | F20: Fora Ponta | I20: 0 | R20: (6) padrões de entrada de unidades consumidoras atendidas em baixa tensão;
A21: Total de km de rede (linhas e redes de distribuição) | E21: Branca | F21: Intermediário | I21: 0 | R21: (7) sistemas de medição de energia elétrica;
E22: Iluminação | F22: Energia TUSD B4a | I22: 0 | R22: (8) geradores, incluindo-se unidades de microgeração e minigeração distribuída;
F23: Energia TUSD B4b | I23: =G23*H23 -> 0 | R23: (9) sistemas de iluminação pública.
D24: Total Energia | G24: =G7+G12+G14+G15+G18+G22+G23 -> 0 | H24: Receita total | I24: =SUM(I5:I23) -> 0 | R24: Eficientização do consumo de energia elétrica e instalação de cogeração qualificada, desde que não enquadráveis nos projetos de Pesquisa e Desenvolvimento (P&D) ou de Eficiência Energética estabelecidos em lei
D25: Total demanda | G25: =G5+G6+G8+G10+G11+G13+G16 -> 0 | R25: Serviços de comunicação de dados
R26: Serviços de consultoria

Sheet NT Revisao
B2: Tabelas
B4: Custo Operacional
B5: Remuneração do Capital e Quota de Reintegração
B6: CAIMI
B7: Parcela B Ajustada
B8: Outras Receitas
B9: Cálculo das Perdas
B10: Energia Requerida
B11: Transmissão
B12: Encargos Setoriais
B16: Custo Operacional | E16: Voltar
B17: Descrição | C17: Limite Inferior | D17: Centro | E17: Limite Superior
B18: 1. Eficiência | C18: ='VPB e Fator X'!C133 -> 0.600719942 | D18: ='VPB e Fator X'!C131 -> 0.6254179853 | E18: ='VPB e Fator X'!C132 -> 0.6522275367
B19: 2. OPEX Benchmarking (Atualizado) - R$ | C19: ='VPB e Fator X'!C136 -> 145532491 | D19: =(E19+C19)/2 -> 151771695 | E19: ='VPB e Fator X'!C135 -> 158010899.1
B21: Comparação com intervalo de CO eficientes
B22: Descrição | C22: Valor
B23: 3. OPEX nas tarifas - R$ | C23: ='VPB e Fator X'!C111 -> 171844399.3
B24: 4. Meta estudo de eficiência - R$ | C24: ='VPB e Fator X'!C114 -> 158010899.1
B25: 5. Variação Anual (%) | C25: ='VPB e Fator X'!C115 -> -0.01664499548
B26: 6. Meta do estudo de eficiência aplicado o limite de 5% a.a. | C26: ='VPB e Fator X'!C117 -> 158010899.1
B28: Avaliação do prêmio de eficiência
B29: Descrição | C29: Reais
B30: 7. OPEX Real - R$ | C30: ='VPB e Fator X'!C118 -> 178090382.1
B31: 8. Meta OPEX | C31: ='VPB e Fator X'!C114 -> 158010899.1
B32: 9. Relação Meta OPEX/ OPEX Real | C32: ='VPB e Fator X'!C119 -> 0.8872511652
B33: 10. Meta OPEX aplicada a regra de compartilhamento | C33: ='VPB e Fator X'!C120 -> 158010899.1
B35: 11. Número de anos no ciclo | C35: ='VPB e Fator X'!C11 -> 5
B36: 12. OPEX na revisão [ = 3. + (10. - 3.) / 11.] | C36: ='VPB e Fator X'!C121 -> 169077699.3
G39: Remuneração do Capital e Quota de Reintegração | H39: Voltar
G40: Descrição | I40: Colunas1
G41: (1) Ativo Imobilizado em Serviço (Valor Novo de Reposição) | H41: =Entrada!G7 -> 2594685496 | I41: =IF(H41=0,0,1) -> 1
G42: (2) Índice de Aproveitamento Integral | H42: =Entrada!G8 -> 13324719.44 | I42: 1
G43: (3) Obrigações Especiais Bruta | H43: =Entrada!G9 -> 957028983.9 | I43: 1
G44: (4) Bens Totalmente Depreciados | H44: =Entrada!G10 -> 197618957.9 | I44: 1
G45: (5) Base de Remuneração Bruta = (1)-(2)-(3)-(4) | H45: =Entrada!G11 -> 1426712835 | I45: 1
G46: (6) Depreciação Acumulada | H46: =Entrada!G12 -> 913041871.2 | I46: 1
G47: (7) AIS Líquido (Valor de Mercado em Uso) | H47: =Entrada!G13 -> 1681643625 | I47: 1
G48: (8) Índice de Aproveitamento Depreciado | H48: =Entrada!G14 -> 11217325.51 | I48: 1
G49: (9) Valor da Base de Remuneração (VBR) = (1)-(6)-(8) | H49: =Entrada!G15 -> 1670426299 | I49: 1
G50: (10) Almoxarifado em Operação | H50: =Entrada!G16 -> 9058099.858 | I50: 1
G51: (11) Ativo Diferido | H51: =Entrada!G17 -> 0
G52: (12) Obrigações Especiais Líquida | H52: =Entrada!G18 -> 655206291.9 | I52: 1
G53: (13) Terrenos e Servidões | H53: =Entrada!G19 -> 18763976.92 | I53: 1
G54: (14) Base de Remuneração Líquida Total = (9)+(10)+(11)-(12)+(13) | H54: =Entrada!G20 -> 1043042084 | I54: 1
G55: (15) Base de Remuneração Ativos Concessionária | H55: =H54-H61-H64 -> 1043042084 | I55: =IF(H55=0,0,1) -> 1
G56: (16) WACC antes de impostos | H56: ='VPB e Fator X'!F81 -> 0.112503 | I56: 1
G57: (17) Remuneração Ativos Concessionária | H57: =H55*H56 -> 117345363.6 | I57: 1
G58: (18) Base Obrigações Especiais | H58: ='VPB e Fator X'!G91 -> 957028983.9 | I58: =IF(H58=0,0,1) -> 1
G59: (19) Taxa de Remuneração das Obrigações Especiais | H59: =H60/H58 -> 0.01574796165 | I59: =IF(H58=0,0,1) -> 1
G60: (20) Remuneração de Obrigações Especiais | H60: ='VPB e Fator X'!G95 -> 15071255.74 | I60: =IF(H60=0,0,1) -> 1
G61: (21) Saldo RGR/PLPT | H61: ='VPB e Fator X'!C91 -> 0 | I61: 0
G62: (22) Taxa RGR/PLPT | H62: ='VPB e Fator X'!F82 -> 0.000797 | I62: =IF(H61=0,0,1) -> 0
G63: (23) Remuneração RGR/PLPT | H63: =H61*H62 -> 0 | I63: 0
G64: (24) Saldo RGR/Demais Investimentos | H64: ='VPB e Fator X'!C92 -> 0 | I64: =IF(H64=0,0,1) -> 0
G65: (25) Saldo RGR/Demais Investimentos | H65: ='VPB e Fator X'!F83 -> 0.000797 | I65: =IF(H64=0,0,1) -> 0
G66: (23) Remuneração RGR Demais Investimentos | H66: =H64*H65 -> 0 | I66: 0
G67: (24) Remuneração do Capital = (17)+(20)+(23) | H67: =H57+H60+H63+H66 -> 132416619.3 | I67: =IF(H67=0,0,1) -> 1
G68: (25) Taxa de Depreciação | H68: ='VPB e Fator X'!C76 -> 0.0405 | I68: 1
G69: (29) Quota de Reintegração Regulatória = (5) * (25) | H69: =H45*H68 -> 57781869.8 | I69: =IF(H69=0,0,1) -> 1
J71: CAIMI | K71: Voltar
J72: Descrição | K72: Valores (R$)
J73: ='VPB e Fator X'!B60 -> (1) Base de Anuidade Regulatória (BAR) | K73: ='VPB e Fator X'!C60 -> 204504111.3
J74: ='VPB e Fator X'!B61 -> (2) Base de Anuidade - Infraestrutura de imóveis e móveis administrativos (BARA) | K74: ='VPB e Fator X'!C61 -> 92026850.08
J75: ='VPB e Fator X'!B62 -> (3) Base de Anuidade - Veículos (BARV) | K75: ='VPB e Fator X'!C62 -> 24540493.36
J76: ='VPB e Fator X'!B63 -> (4) Base de Anuidade - Sistemas de Informática (BARI) | K76: ='VPB e Fator X'!C63 -> 87936767.86
J77: ='VPB e Fator X'!B64 -> (5) Anuidade - Infraestrutura de imóveis e móveis administrativos (CAL) | K77: ='VPB e Fator X'!C64 -> 9895974.003
J78: ='VPB e Fator X'!B65 -> (6) Anuidade - Veículos (CAV) | K78: ='VPB e Fator X'!C65 -> 4886224.327
J79: ='VPB e Fator X'!B66 -> (7) Anuidade - Sistemas de Informática (CAI) | K79: ='VPB e Fator X'!C66 -> 21538418.09
J80: ='VPB e Fator X'!B67 -> (8) CAIMI = (5)+(6)+(7) | K80: ='VPB e Fator X'!C67 -> 36320616.42
M82: Parcela B ajustada | N82: Voltar
M83: Descrição | N83: Valores
M84: Custo de Administração, Operação e Manutenção (CAOM) | N84: =Resultado!G19 -> 169077699.3
M85: Custos Operacionais (CO) | N85: =Resultado!G20 -> 169077699.3
M86: Custo Anual dos Ativos (CAA) | N86: =Resultado!G21 -> 226519105.5
M87: Remuneração do Capital (RC) | N87: =Resultado!G22 -> 132416619.3
M88: Quota de Reintegração Regulatória (QRR) | N88: =Resultado!G23 -> 57781869.8
M89: Custo anual das instalações móveis e imóveis (CAIMI) | N89: =Resultado!G24 -> 36320616.42
M90: Parcela B (VPB) | N90: =Resultado!G25 -> 395596804.8
M91: Índice de Produtividade da Parcela B | N91: =Resultado!G26 -> 0.01230255086
M92: Mecanismo de Incentivo à Qualidade | N92: =Resultado!G27 -> -0.007878807461
M93: Parcela B com ajustes PM e MIQ | N93: =N90*(1-LnkTxtFatorAjusteMercado-N92) -> 393846786.1
M94: Mercado de Referência 12 meses | N94: =Resultado!G39 -> 11221700.23
M95: Componente Pd do Mercado de Referência | N95: =Resultado!G40 -> -696341.66
M96: TUSDg | N96: =Resultado!G41 -> 26881.19
M97: Parcela B com ajustes | N97: =N93+N94+N95+N96 -> 404399025.8
M98: Outras Receitas (OR) | N98: =Resultado!G29 -> 2812167.003
M99: Excedente de Reativos (ER) | N99: =Resultado!G30 -> 1492055.367
M100: Ultrapassagem de Demanda (UD) | N100: =Resultado!G31 -> 2043052.399
M101: Parcela B deduzido UDEROR | N101: =N97-SUM(N98:N100) -> 398051751.1
P103: Outras Receitas | R103: Voltar
P104: Descrição das atividades | Q104: Compartilhamento | R104: Receita Regulatória | S104: Colunas1
P105: Serviços Cobráveis | Q105: 0.6 | R105: =UDEROR!D14 -> 642996.3538 | S105: =IF(R105=0,0,1) -> 1
P106: =UDEROR!B15 -> Arrecadação de convênios ou valores pela fatura | Q106: 0.6 | R106: =UDEROR!D15 -> 0 | S106: 0
P107: =UDEROR!B16 -> Arrecadação de faturas de terceiros por estrutura própria | Q107: 0.5 | R107: =UDEROR!D16 -> 0 | S107: 0
P108: =UDEROR!B17 -> Veiculação de publicidade | Q108: 0.6 | R108: =UDEROR!D17 -> 0 | S108: 0
P109: =UDEROR!B18 -> Aluguel ou cessão onerosa de imóveis e espaços físicos | Q109: 0.6 | R109: =UDEROR!D18 -> 0 | S109: 0
P110: =UDEROR!B19 -> Compartilhamento de infraestrutura | Q110: 0.6 | R110: =UDEROR!D19 -> 2169170.649 | S110: 1
P111: =UDEROR!B20 -> Serviços de avaliação técnica e aferição de medidores. | Q111: 0.6 | R111: =UDEROR!D20 -> 0 | S111: 0
P112: =UDEROR!B21 -> Operacionalização de serviço de créditos tributários | Q112: 0.6 | R112: =UDEROR!D21 -> 0 | S112: 0
P113: Elaboração de projeto, construção, operação, manutenção ou reforma de: | S113: 0
P114: (1) redes de distribuição de energia elétrica destinadas à regularização fundiária de interesse específico e ao atendimento dos empreendimentos de múltiplas unidades consumidoras; | Q114: 0.6 | R114: =UDEROR!D23 -> 0 | S114: 0
P115: (2) redes de energia elétrica destinadas ao acesso dos sistemas de distribuição ou transmissão; | Q115: 0.6 | R115: =UDEROR!D24 -> 0 | S115: 0
P116: (3) subestações de energia; | Q116: 0.6 | R116: =UDEROR!D25 -> 0 | S116: 0
P117: (4) instalações elétricas internas de unidades consumidoras; | Q117: 0.6 | R117: =UDEROR!D26 -> 0 | S117: 0
P118: (5) banco de capacitores: | Q118: 0.6 | R118: =UDEROR!D27 -> 0 | S118: 0
P119: (6) padrões de entrada de unidades consumidoras atendidas em baixa tensão; | Q119: 0.6 | R119: =UDEROR!D28 -> 0 | S119: 0
P120: (7) sistemas de medição de energia elétrica; | Q120: 0.6 | R120: =UDEROR!D29 -> 0 | S120: 0
P121: (8) geradores, incluindo-se unidades de microgeração e minigeração distribuída; | Q121: 0.3 | R121: =UDEROR!D30 -> 0 | S121: 0
P122: (9) sistemas de iluminação pública. | Q122: 0.6 | R122: =UDEROR!D31 -> 0 | S122: 0
P123: Eficientização do consumo de energia elétrica e instalação de cogeração qualificada, desde que não enquadráveis nos projetos de Pesquisa e Desenvolvimento (P&D) ou de Eficiência Energética estabelecidos em lei | Q123: 0.3 | R123: =UDEROR!D33 -> 0 | S123: 0
P124: Serviços de comunicação de dados | Q124: 0.3 | R124: =UDEROR!D34 -> 0 | S124: 0
P125: Serviços de consultoria | Q125: 0.6 | R125: =UDEROR!D35 -> 0 | S125: 0
P126: Total | R126: =SUM(R105:R125) -> 2812167.003 | S126: 1
T128: Calculo das Perdas | U128: Voltar
T129: Cálculo do Ponto de Partida
T130: Descrição | U130: PNT
T131: a. Meta Ciclo Anterior Faturada | U131: 0.1128
T132: b. Diferença entre Medido e Faturado | U132: 0.01572645071
T133: c. Meta Ciclo Anterior Medida [a + b] | U133: 0.1285264507
T134: d. Média Histórico Medida | U134: 0.1474393102
T135: e. Ponto de Partida Medido | U135: 0.1308905581
T136: f. Ponto de Partida Faturado [e - b] | U136: 0.1151641074
T138: Cálculo do Ponto de Chegada
T139: Descrição | U139: Benchmark
T140: g. Empresa Benchmark | U140: Enel SP
T141: h. Perda Benchmark (PNT/BT) | U141: 0.1283487868
T142: ="i. Perda "&LnkTxtNomeResumido&" (PNT/BT)" -> i. Perda EAC (PNT/BT) | U142: 0.1474393102
T143: j. Probabilidade de Comparação | U143: 0.4021699403
T144: k. Meta | U144: 0.1397616756
T145: l. Meta Benchmarks | U145: 0.1397616756
T146: m. Meta utilizada Medida | U146: 0.1397616756
T147: n. Ponto de Partida (PNT/BT) | U147: 0.1397616756
T148: o. Meta Ciclo Atual Faturada | U148: 0.1240352248
T150: Trajetória
T151: Descrição | U151: Ponto Partida | V151: =YEAR(LnkTxtDRPData) -> 2023 | W151: =V151+1 -> 2024 | X151: =W151+1 -> 2025 | Y151: 2026 | Z151: 2027
T152: Trajetória PNT/BT | U152: 0.1397616756 | V152: 0.1397616756 | W152: 0.1397616756 | X152: 0.1397616756 | Y152: 0.1397616756 | Z152: 0.1397616756
T153: Velocidade de Redução (a.a) | V153: 0 | W153: 0 | X153: 0 | Y153: 0 | Z153: 0
T154: Limite de Redução (a.a) | V154: 0 | W154: 0 | X154: 0 | Y154: 0 | Z154: 0
T155: PNT/BT Medido Regulatório | U155: 0.1397616756 | V155: 0.1397616756 | W155: 0.1397616756 | X155: 0.1397616756 | Y155: 0.1397616756 | Z155: 0.1397616756
T156: Diferença entre Medido e Faturado | U156: 0.01572645071 | V156: 0.01572645071 | W156: 0.01572645071 | X156: 0.01572645071 | Y156: 0.01572645071 | Z156: 0.01572645071
T157: PNT/BT Faturado Regulatório | U157: 0.1240352248 | V157: 0.1240352248 | W157: 0.1240352248 | X157: 0.1240352248 | Y157: 0.1240352248 | Z157: 0.1240352248
T158: PT/ Einjetada Regulatório | U158: 0.08879352438 | V158: 0.08879352438 | W158: 0.08879352438 | X158: 0.08879352438 | Y158: 0.08879352438 | Z158: 0.08879352438
T161: E injetada RTP Anterior | W161: Mercado BT RTP Anterior
U163: 2017 | V163: =U163+1 -> 2018 | W163: =V163+1 -> 2019 | X163: 2020 | Y163: 2021 | Z163: 2022
T164: PNT/BT última RTP | U164: 0.1879 | V164: 0.1646 | W164: 0.1646 | X164: 0.1646 | Y164: 0.1646 | Z164: 0.1646
T165: PNT/Einjetada última RTP | U165: =U164*$Y$161/$U$161 -> 
T166: PT/Einjetada última RTP
U168: =V151 -> 2023 | V168: =W151 -> 2024 | W168: 2025 | X168: 2026 | Y168: 2027
T169: PNT/Einjetada | U169: =V157*Energia!$I$13/Energia!$H$13 -> 0.09486071128 | V169: =W157*Energia!$I$13/Energia!$H$13 -> 0.09486071128 | W169: =X157*Energia!$I$13/Energia!$H$13 -> 0.09486071128 | X169: =Y157*Energia!$I$13/Energia!$H$13 -> 0.09486071128 | Y169: =Z157*Energia!$I$13/Energia!$H$13 -> 0.09486071128
AB171: Energia Requerida | AC171: Voltar
AB172: Descrição | AC172: Energia (MWh)
AB173: Perdas na Rede Básica | AC173: =Energia!H18+Energia!H19 -> 29526.3803
AB174: Perdas na Distribuição | AC174: =AC175+AC176 -> 251907.1903
AB175: Perdas Técnicas | AC175: =Energia!H17 -> 135524.3495
AB176: Perdas Não Técnicas | AC176: =Energia!H16 -> 116382.8408
AB177: Energia Vendida | AC177: =Energia!D6 -> 1160846.748
AB178: Energia Requerida | AC178: =SUM(AC173:AC174,AC177) -> 1442280.319
AE180: Transmissão | AF180: Voltar
AE181: Descrição | AF181: Valor (R$) | AG181: Colunas1
T182: PT/Einjetada | U182: =V158 -> 0.08879352438 | V182: =W158 -> 0.08879352438 | W182: 0.08879352438 | X182: 0.08879352438 | Y182: 0.08879352438 | AE182: Rede Básica | AF182: =Resultado!D30 -> 20949617.92 | AG182: =IF(AF182=0,0,1) -> 1
AE183: Rede Básica Fronteira | AF183: =Resultado!D31 -> 12210696.99 | AG183: =IF(AF183=0,0,1) -> 1
AE184: Rede Básica ONS (A2) | AF184: =Resultado!D32 -> 0 | AG184: 0
AE185: Rede Básica Export. (A2) | AF185: =Resultado!D33 -> 0 | AG185: 0
AE186: MUST Itaipu | AF186: =Resultado!D34 -> 0 | AG186: 0
AE187: Transporte de Itaipu | AF187: =Resultado!D35 -> 0 | AG187: 0
AE188: Conexão | AF188: =Resultado!D36 -> 1654045.272 | AG188: 1
AE189: Uso do sistema de distribuição | AF189: =Resultado!D37 -> 0 | AG189: 0
AE190: Total | AF190: =SUM(AF182:AF189) -> 34814360.18
AH192: Encargos Setoriais | AI192: Voltar
AH193: Descrição | AI193: Valor (R$) | AJ193: Dispositivo Legal | AK193: Colunas1
AH194: Taxa de Fisc. de Serviços de E.E. – TFSEE | AI194: =Resultado!D22 -> 1539068.281 | AJ194: =Encargos!D17 -> Conforme módulo 5.5 do PRORET | AK194: =IF(AI194=0,0,1) -> 1
AH195: Conta de Desenvolvimento Energético – CDE | AI195: =Resultado!D23 -> 90255427.39 | AJ195: =Encargos!D10 -> REH 3.175/2023, DSP 939/2021 e DSP 510/2023 | AK195: 1
AH196: Compensação financeira - CFURH | AI196: =Resultado!D24 -> 0 | AJ196: =Encargos!D11 -> 0 | AK196: 0
AH197: Encargos Serv. Sist. - ESS e Energ. Reserv. - EER | AI197: =Resultado!D25 -> 19769864.34 | AJ197: =Encargos!D12 -> DSP 2.983/2023 | AK197: 1
AH198: PROINFA | AI198: =Resultado!D26 -> 12197276.27 | AJ198: =Encargos!D13 -> ReH 3.147/2022 | AK198: 1
AH199: P&D, Efic.Energ e Ressarc.ICMS Sist.Isol. | AI199: =Resultado!D27 -> 8275791.458 | AJ199: Res. Normativa nº 316/2008 | AK199: 1
AH200: ONS | AI200: =Resultado!D28 -> 0 | AJ200: =Encargos!D14 -> 0 | AK200: 0
AH201: Total | AI201: =SUM(AI194:AI200) -> 132037427.7
AL203: TabRevAvalRTE
AM204: Receita Verificada (R$) | AN204: Receita Verificada (R$) | AO204: Receita Requerida (R$) | AP204: Variação | AQ204: Participação na Revisão | AR204: Participação na Receita
AL205: PARCELA A [Encargos+Transmissão+Energia+RI] | AM205: =AM206+AM220+AM229+AM230 -> 445400531.7 | AN205: =AN206+AN220+AN229+AN230 -> 445399854.9 | AO205: =AO206+AO220+AO229+AO230 -> 481324201.9 | AP205: =IFERROR(AO205/AN205-1,0) -> 0.08065639588 | AQ205: =IFERROR((AO205-AN205)/$AN$238,0) -> 0.04380819303 | AR205: =IFERROR(AO205/$AO$238,0) -> 0.5473474687
AL206: Encargos Setoriais | AM206: =SUM(AM207:AM219) -> 89500350.48 | AN206: =SUM(AN207:AN219) -> 89500214.47 | AO206: =SUM(AO207:AO219) -> 132037427.7 | AP206: =IFERROR(AO206/AN206-1,0) -> 0.4752749871 | AQ206: 0.05187229845 | AR206: 0.1501490089 | AS206: Colunas1 | AT206: Colunas2
AL207: Taxa de Fisc. de Serviços de E.E. – TFSEE | AM207: =SUM(DADOS_MercadoBase[TFSEE]) -> 1374961.763 | AN207: =AM207+AM207*($AN$238-$AM$238)/$AM$205 -> 1374959.674 | AO207: =Resultado!D22 -> 1539068.281 | AP207: 0.1193552154 | AQ207: 0.0002001233751 | AR207: 0.001750182361 | AS207: =IF(SUM(AM207:AO207)<>0,1,0) -> 1
AL208: Conta de Desenv. Energético – CDE (USO) | AM208: =SUM(DADOS_MercadoBase[CDE],DADOS_MercadoBase[RTE_CDE_E]) -> 36615557.65 | AN208: 36615502 | AO208: =Encargos!G22 -> 39071059.95 | AP208: 0.06706334245 | AQ208: 0.002994447097 | AR208: 0.04443043936 | AS208: =IF(SUM(AM208:AO208)<>0,1,0) -> 1
AL209: Conta de Desenv. Energético – CDE Conta-Covid (TUSD) | AM209: =SUM(DADOS_MercadoBase[covidTusdEco]) -> 22110130.68 | AN209: 22110097.08 | AO209: =Encargos!G23 -> 21196044.62 | AP209: -0.04134095182 | AQ209: -0.001114647582 | AR209: 0.02410350721 | AS209: 1
AL210: Conta de Desenv. Energético – CDE Conta-Covid (TE) | AM210: =SUM(DADOS_MercadoBase[covidTeEco],DADOS_MercadoBase[RTE_CDE_E_ACR]) -> 5747276.387 | AN210: 5747267.652 | AO210: =Encargos!G24 -> 5377709.54 | AP210: -0.06430153151 | AQ210: -0.0004506601916 | AR210: 0.006115370249 | AS210: 1
AL211: Conta de Desenv. Energético – CDE Eletrobrás | AM211: =SUM(DADOS_MercadoBase[CDE_Elet_Eco]) -> -18325250.31 | AN211: -18325222.46 | AO211: =Encargos!G25 -> -2067095.851 | AP211: =IFERROR(AO211/AN211-1,0) -> -0.8871994129 | AQ211: =IFERROR((AO211-AN211)/$AN$238,0) -> 0.01982608476 | AR211: =IFERROR(AO211/$AO$238,0) -> -0.002350639501 | AS211: 1
AL212: Conta de Desenv. Energético – CDE Conta-Escassez Hídrica (TUSD) | AM212: 0 | AN212: 0 | AO212: =Encargos!G26 -> 4499182.519 | AP212: 0 | AQ212: 0.00548655919 | AR212: 0.005116335629 | AS212: 1
AJ213: =AQ213+AQ212 -> 0.02905276751 | AL213: Conta de Desenv. Energético – CDE Conta-Escassez Hídrica (TE) | AM213: 0 | AN213: 0 | AO213: =Encargos!G27 -> 19325166.99 | AP213: 0 | AQ213: 0.02356620832 | AR213: 0.02197600119 | AS213: 1
AL214: Conta de Desenv. Energético – CDE GD | AM214: 0 | AN214: =AM214+AM214*($AN$238-$AM$238)/$AM$205 -> 0 | AO214: =Encargos!G28 -> 2853359.628 | AP214: =IFERROR(AO214/AN214-1,0) -> 0 | AQ214: =IFERROR((AO214-AN214)/$AN$238,0) -> 0.003479549101 | AR214: =IFERROR(AO214/$AO$238,0) -> 0.003244755122 | AS214: =IF(SUM(AQ213)<>0,1,0) -> 1
AL215: Compensação financeira - CFURH | AM215: =SUM(DADOS_MercadoBase[CFURH]) -> 0 | AN215: 0 | AO215: =Resultado!D24 -> 0 | AP215: 0 | AQ215: =IFERROR((AO215-AN215)/$AN$238,0) -> 0 | AR215: 0 | AS215: 0
AL216: Encargos Serv. Sist. - ESS e Energ. Reserv. - EER | AM216: =SUM(DADOS_MercadoBase[ESSERR]) -> 20138034.74 | AN216: 20138004.14 | AO216: =Resultado!D25 -> 19769864.34 | AP216: -0.01828084805 | AQ216: -0.0004489306134 | AR216: 0.0224816977 | AS216: 1
AL217: PROINFA | AM217: =SUM(DADOS_MercadoBase[PROINFA]) -> 14333205.26 | AN217: 14333183.48 | AO217: =Resultado!D26 -> 12197276.27 | AP217: -0.1490183399 | AQ217: -0.002604646792 | AR217: 0.01387037732 | AS217: =IF(SUM(AM217:AO217)<>0,1,0) -> 1
AL218: P&D, Efic.Energ e Ressarc.ICMS Sist.Isol. | AM218: =SUM(DADOS_MercadoBase[PeD],DADOS_MercadoBase[RTE_PeD]) -> 7506434.317 | AN218: 7506422.909 | AO218: =Resultado!D27 -> 8275791.458 | AP218: 0.102494698 | AQ218: 0.0009382117901 | AR218: 0.00941098222 | AS218: 1
AL219: ONS | AM219: =Resultado!C28 -> 0 | AN219: 0 | AO219: =Resultado!D28 -> 0 | AP219: 0 | AQ219: 0 | AR219: 0 | AS219: =IF(SUM(AM219:AO219)<>0,1,0) -> 0
AL220: Custos de Transmissão | AM220: =SUM(AM221:AM228) -> 40032250.63 | AN220: =SUM(AN221:AN228) -> 40032189.79 | AO220: =SUM(AO221:AO228) -> 34814360.18 | AP220: -0.130340849 | AQ220: -0.006362918343 | AR220: 0.03958984785 | AS220: 1
AL221: Rede Básica | AM221: =SUM(DADOS_MercadoBase[TUST_RB]) -> 18112461.79 | AN221: =AM221+AM221*($AN$238-$AM$238)/$AM$205 -> 18112434.26 | AO221: =Resultado!D30 -> 20949617.92 | AP221: 0.1566428685 | AQ221: 0.003459823203 | AR221: 0.02382327814 | AS221: 1
AL222: Rede Básica Fronteira | AM222: =SUM(DADOS_MercadoBase[TUST_FR]) -> 19861732.79 | AN222: 19861702.61 | AO222: =Resultado!D31 -> 12210696.99 | AP222: -0.3852139854 | AQ222: -0.009330071632 | AR222: 0.01388563896 | AS222: 1
AL223: Rede Básica ONS (A2) | AM223: =SUM(DADOS_MercadoBase[TUSDG_ONS]) -> 0 | AN223: 0 | AO223: =Resultado!D32 -> 0 | AP223: 0 | AQ223: 0 | AR223: 0 | AS223: 0
AL224: Rede Básica Export. (A2) | AM224: =SUM(DADOS_MercadoBase[TUSDG_T]) -> 0 | AN224: 0 | AO224: =Resultado!D33 -> 0 | AP224: 0 | AQ224: 0 | AR224: 0 | AS224: 0
... 79 more rows

Sheet Votos e NTs
B2: Tabelas | D2: Gráficos
B4: Consumidores | D4: Análise de Impacto da RTA na Tarfia | K4: Composição da Receita | P4: Composição da Receita com Tributos | U4: Composição da Receita com detalhamento de Encargos | Z4: Evolução da Tarifa B1 Residencial
B5: Mercado
B6: Encargos
B7: Custo do Transporte de Energia
B8: Perdas
B9: Energia Requerida
B10: Energia na DRA
B11: Contratos
B12: Fator X
B13: Parcela B
B14: CVA em Processamento
B15: Financeiros
B16: Subsídios
B17: Efeito Médio AT + BT
B18: Avaliação RTA
B19: Variação do Custo de Energia
B20: Dados dos Gráficos
E23: Impacto da RTA na Tarifa | K23: Composição da Receita | P23: Composição da Receita com Tributos | U23: Composição da Receita com detalhamento de Encargos | Z23: Data | AA23: Tipo | AC23: B1 - Residencial | AD23: IGPM | AE23: IPCA | AF23: Data
E24: Encargos Setoriais | H24: =IF(CAPA!C7="Reajuste",BP273,'NT Revisao'!AQ206) -> 0.05187229845 | K24: Custo de Distribuição | M24: =Resultado!D45 -> 398051751.1 | P24: Distribuição | R24: =M24/$R$32 -> 0.3542790628 | U24: Custo de Distribuição | W24: =Resultado!D45 -> 398051751.1 | Z24: =YEAR(BD!B79) -> 1900 | AA24: =(BD!C79) -> 0 | AB24: =CONCATENATE(AA24," ",Z24) -> 0 1900 | AC24: =BD!D79 -> 0 | AD24: =AC24 -> 0 | AE24: =AD24 -> 0 | AF24: =DATE(YEAR(BD!B79),MONTH(BD!B79)-1,1) -> 
E25: Custo de Transporte | H25: =IF(CAPA!C7="Reajuste",BP287,'NT Revisao'!AQ220) -> -0.006362918343 | K25: Custo de Energia | M25: =Resultado!D38 -> 300258450.6 | P25: Energia | R25: =M25/$R$32 -> 0.2672398305 | U25: Custo de Energia | W25: =Resultado!D38 -> 300258450.6 | Z25: =YEAR(BD!B78) -> 1900 | AA25: =(BD!C78) -> 0 | AB25: 0 1900 | AC25: =BD!D78 -> 0 | AD25: =AD24*VLOOKUP(AF25,Índices!$B$135:$F$627,2,0)/VLOOKUP(AF24,Índices!$B$135:$F$627,2,0) ->  | AE25: =AE24*VLOOKUP(AF25,Índices!$B$135:$F$627,3,0)/VLOOKUP(AF24,Índices!$B$135:$F$627,3,0) ->  | AF25: =DATE(YEAR(BD!B78),MONTH(BD!B78)-1,1) -> 
E26: Custo de Energia | H26: =IF(CAPA!C7="Reajuste",BP296,'NT Revisao'!AQ229) -> -0.002503142252 | K26: Custo de Transporte | M26: =Resultado!D29 -> 34814360.18 | P26: Transmissão | R26: =M26/$R$32 -> 0.03098591795 | U26: Custo de Transmissão | W26: =Resultado!D29 -> 34814360.18 | Z26: =YEAR(BD!B77) -> 1900 | AA26: =(BD!C77) -> 0 | AB26: 0 1900 | AC26: =BD!D77 -> 0 | AD26: =AD25*VLOOKUP(AF26,Índices!$B$135:$F$627,2,0)/VLOOKUP(AF25,Índices!$B$135:$F$627,2,0) ->  | AE26: =AE25*VLOOKUP(AF26,Índices!$B$135:$F$627,3,0)/VLOOKUP(AF25,Índices!$B$135:$F$627,3,0) ->  | AF26: =DATE(YEAR(BD!B77),MONTH(BD!B77)-1,1) -> 
E27: Receitas Irrecuperáveis | H27: =IF(CAPA!C7="Reajuste",BP297,'NT Revisao'!AQ230) -> 0.0008019551767 | K27: Encargos Setoriais | M27: =Resultado!D19 -> 132037427.7 | P27: Encargos | R27: =M27/$R$32 -> 0.1175176243 | U27: Receitas Irrecuperáveis | W27: =Resultado!D39 -> 14213963.36 | Z27: =YEAR(BD!B76) -> 1900 | AA27: =(BD!C76) -> 0 | AB27: 0 1900 | AC27: =BD!D76 -> 0 | AD27: =AD26*VLOOKUP(AF27,Índices!$B$135:$F$627,2,0)/VLOOKUP(AF26,Índices!$B$135:$F$627,2,0) ->  | AE27: =AE26*VLOOKUP(AF27,Índices!$B$135:$F$627,3,0)/VLOOKUP(AF26,Índices!$B$135:$F$627,3,0) ->  | AF27: =DATE(YEAR(BD!B76),MONTH(BD!B76)-1,1) -> 
E28: Distribuição | H28: =IF(CAPA!C7="Reajuste",BP298,'NT Revisao'!AQ231) -> 0.02855288489 | K28: Receitas Irrecuperáveis | M28: =Resultado!D39 -> 14213963.36 | P28: Receitas Irrecuperáveis | R28: =M28/R32 -> 0.01265089176 | U28: PROINFA | W28: =Resultado!D26 -> 12197276.27 | Z28: =YEAR(BD!B75) -> 1900 | AA28: =(BD!C75) -> 0 | AB28: 0 1900 | AC28: =BD!D75 -> 0 | AD28: =AD27*VLOOKUP(AF28,Índices!$B$135:$F$627,2,0)/VLOOKUP(AF27,Índices!$B$135:$F$627,2,0) ->  | AE28: =AE27*VLOOKUP(AF28,Índices!$B$135:$F$627,3,0)/VLOOKUP(AF27,Índices!$B$135:$F$627,3,0) ->  | AF28: =DATE(YEAR(BD!B75),MONTH(BD!B75)-1,1) -> 
E29: Componentes Financeiros | H29: =IF(CAPA!C7="Reajuste",BP301,'NT Revisao'!AQ240) -> 0.05756308585 | P29: ICMS | R29: =Mercado!G9 -> 0.1664249034 | U29: CDE | W29: =Resultado!D23 -> 90255427.39 | Z29: =YEAR(BD!B74) -> 1900 | AA29: =(BD!C74) -> 0 | AB29: 0 1900 | AC29: =BD!D74 -> 0 | AD29: =AD28*VLOOKUP(AF29,Índices!$B$135:$F$627,2,0)/VLOOKUP(AF28,Índices!$B$135:$F$627,2,0) ->  | AE29: =AE28*VLOOKUP(AF29,Índices!$B$135:$F$627,3,0)/VLOOKUP(AF28,Índices!$B$135:$F$627,3,0) ->  | AF29: =DATE(YEAR(BD!B74),MONTH(BD!B74)-1,1) -> 
E30: Retirada dos Financeiros Anteriores | H30: =IF(CAPA!C7="Reajuste",BP353,'NT Revisao'!AQ292) -> 0.0153 | P30: PIS/COFINS | R30: =Mercado!$G$10 -> 0.05090176936 | U30: ESS/EER | W30: =Resultado!D25 -> 19769864.34 | Z30: =YEAR(BD!B73) -> 1900 | AA30: =(BD!C73) -> 0 | AB30: 0 1900 | AC30: =BD!D73 -> 0 | AD30: =AD29*VLOOKUP(AF30,Índices!$B$135:$F$627,2,0)/VLOOKUP(AF29,Índices!$B$135:$F$627,2,0) ->  | AE30: =AE29*VLOOKUP(AF30,Índices!$B$135:$F$627,3,0)/VLOOKUP(AF29,Índices!$B$135:$F$627,3,0) ->  | AF30: =DATE(YEAR(BD!B73),MONTH(BD!B73)-1,1) -> 
E31: Efeito Médio Consumidor | H31: =BP354 -> 0.1452175525 | P31: Tributos por dentro | R31: =LnkTxtPisCofins+LnkTxtICMS -> 0.2173266727 | U31: Outros | W31: =Resultado!D27+Resultado!D28+Resultado!D24+Resultado!D22 -> 9814859.74 | Z31: =YEAR(BD!B72) -> 1900 | AA31: =(BD!C72) -> 0 | AB31: 0 1900 | AC31: =BD!D72 -> 0 | AD31: =AD30*VLOOKUP(AF31,Índices!$B$135:$F$627,2,0)/VLOOKUP(AF30,Índices!$B$135:$F$627,2,0) ->  | AE31: =AE30*VLOOKUP(AF31,Índices!$B$135:$F$627,3,0)/VLOOKUP(AF30,Índices!$B$135:$F$627,3,0) ->  | AF31: =DATE(YEAR(BD!B72),MONTH(BD!B72)-1,1) -> 
P32: Receita com Tributos | R32: =SUM(W24:W31)/(1-R29-R30) -> 1123554262 | Z32: =YEAR(BD!B71) -> 1900 | AA32: =(BD!C71) -> 0 | AB32: 0 1900 | AC32: =BD!D71 -> 0 | AD32: =AD31*VLOOKUP(AF32,Índices!$B$135:$F$627,2,0)/VLOOKUP(AF31,Índices!$B$135:$F$627,2,0) ->  | AE32: =AE31*VLOOKUP(AF32,Índices!$B$135:$F$627,3,0)/VLOOKUP(AF31,Índices!$B$135:$F$627,3,0) ->  | AF32: =DATE(YEAR(BD!B71),MONTH(BD!B71)-1,1) -> 
P33: Tributos Totais por Fora | R33: =(R29+R30)/(1-R29-R30) -> 0.2776722614 | Z33: =YEAR(BD!B70) -> 1900 | AA33: =(BD!C70) -> 0 | AB33: 0 1900 | AC33: =BD!D70 -> 0 | AD33: =AD32*VLOOKUP(AF33,Índices!$B$135:$F$627,2,0)/VLOOKUP(AF32,Índices!$B$135:$F$627,2,0) ->  | AE33: =AE32*VLOOKUP(AF33,Índices!$B$135:$F$627,3,0)/VLOOKUP(AF32,Índices!$B$135:$F$627,3,0) ->  | AF33: =DATE(YEAR(BD!B70),MONTH(BD!B70)-1,1) -> 
Z34: =YEAR(BD!B69) -> 1900 | AA34: =(BD!C69) -> 0 | AB34: 0 1900 | AC34: =BD!D69 -> 0 | AD34: =AD33*VLOOKUP(AF34,Índices!$B$135:$F$627,2,0)/VLOOKUP(AF33,Índices!$B$135:$F$627,2,0) ->  | AE34: =AE33*VLOOKUP(AF34,Índices!$B$135:$F$627,3,0)/VLOOKUP(AF33,Índices!$B$135:$F$627,3,0) ->  | AF34: =DATE(YEAR(BD!B69),MONTH(BD!B69)-1,1) -> 
Z35: =YEAR(BD!B68) -> 1900 | AA35: =(BD!C68) -> 0 | AB35: 0 1900 | AC35: =BD!D68 -> 0 | AD35: =AD34*VLOOKUP(AF35,Índices!$B$135:$F$627,2,0)/VLOOKUP(AF34,Índices!$B$135:$F$627,2,0) ->  | AE35: =AE34*VLOOKUP(AF35,Índices!$B$135:$F$627,3,0)/VLOOKUP(AF34,Índices!$B$135:$F$627,3,0) ->  | AF35: =DATE(YEAR(BD!B68),MONTH(BD!B68)-1,1) -> 
Z36: =YEAR(BD!B67) -> 1900 | AA36: =(BD!C67) -> 0 | AB36: 0 1900 | AC36: =BD!D67 -> 0 | AD36: =AD35*VLOOKUP(AF36,Índices!$B$135:$F$627,2,0)/VLOOKUP(AF35,Índices!$B$135:$F$627,2,0) ->  | AE36: =AE35*VLOOKUP(AF36,Índices!$B$135:$F$627,3,0)/VLOOKUP(AF35,Índices!$B$135:$F$627,3,0) ->  | AF36: =DATE(YEAR(BD!B67),MONTH(BD!B67)-1,1) -> 
Z37: =YEAR(BD!B66) -> 2023 | AA37: =(BD!C66) -> 1 | AB37: =CONCATENATE(IF(AA37=1,"Revisão","Reajuste")," ",Z37) -> Revisão 2023 | AC37: =BD!D66 -> 828.3106682 | AD37: =AD36*VLOOKUP(AF37,Índices!$B$135:$F$627,2,0)/VLOOKUP(AF36,Índices!$B$135:$F$627,2,0) ->  | AE37: =AE36*VLOOKUP(AF37,Índices!$B$135:$F$627,3,0)/VLOOKUP(AF36,Índices!$B$135:$F$627,3,0) ->  | AF37: =DATE(YEAR(BD!B66),MONTH(BD!B66)-1,1) -> 2023-11-01
AC38: =AC37/AC24-1 ->  | AD38: =AD37/AD24-1 -> 
B40: TabCons | E40: Voltar
B41: Classe de Consumo | C41: Nº de Unidades Consumidoras* | D41: Consumo de Energia (MWh) | E41: Participação no Consumo (%)
B42: Residencial | C42: =Mercado!E30 -> 244250 | D42: =Mercado!F30 -> 60054.078 | E42: =D42/$D$50 -> 0.5190980671
B43: Industrial | C43: =Mercado!E31 -> 334 | D43: =Mercado!F31 -> 9145.18 | E43: 0.07904950704
B44: Comercial | C44: =Mercado!E32 -> 23063 | D44: =Mercado!F32 -> 19594.617 | E44: 0.1693728078
B45: Rural | C45: =Mercado!E33 -> 19197 | D45: =Mercado!F33 -> 3971.91 | E45: 0.03433256945
B46: Iluminação Pública | C46: =Mercado!E34 -> 509 | D46: =Mercado!F34 -> 3823.32 | E46: 0.03304818071
B47: Poder Público | C47: =Mercado!E35 -> 3240 | D47: =Mercado!F35 -> 13318.249 | E47: 0.1151208635
B48: Serviço Público | C48: =Mercado!E36 -> 229 | D48: =Mercado!F36 -> 4539.938 | E48: 0.03924251473
B49: Demais classes | C49: =Mercado!E37 -> 68 | D49: =Mercado!F37 -> 1241.981 | E49: 0.01073548971
B50: Total | C50: =SUM(C42:C49) -> 290890 | D50: =SUM(D42:D49) -> 115689.273 | E50: =SUM(E42:E49) -> 1
B51: * Nota: dados do último mês informado pela empresa
G53: TabMercado | I53: Voltar
G54: Subgrupos | H54: Mercado (MWh) | I54: Receita (R$) | J54: Colunas1
G55: Fornecimento | H55: =SUM(H56:H62) -> 1152119.51 | I55: =SUM(I56:I62) -> 786336035.2 | J55: =IF(ABS(H55)+ABS(I55)>0,1,0) -> 1
G56: A1 (230 kV ou mais) | H56: =Mercado!C10 -> 0 | I56: =Mercado!D10 -> 0 | J56: 0
G57: A2 (88 a 138 kV) | H57: =Mercado!C11 -> 0 | I57: =Mercado!D11 -> 0 | J57: 0
G58: A3 (69 kV) | H58: =Mercado!C12 -> 0 | I58: =Mercado!D12 -> 0 | J58: 0
G59: A3a (30 kV a 44 kV) | H59: =Mercado!C13 -> 2632.173 | I59: =Mercado!D13 -> 1646237.745 | J59: 1
G60: A4 (2,3 kV a 25 kV) | H60: =Mercado!C14 -> 208954.056 | I60: =Mercado!D14 -> 114952296.1 | J60: 1
G61: As | H61: =Mercado!C15 -> 0 | I61: =Mercado!D15 -> 0 | J61: 0
G62: BT (menor que 2,3 kV) | H62: =Mercado!C16 -> 940533.281 | I62: =Mercado!D16 -> 669737501.3 | J62: 1
G63: Suprimento | H63: =Mercado!C17 -> 11225.011 | I63: =Mercado!D17 -> 2911682.859 | J63: 1
G64: Livres A1 | H64: =Mercado!C18 -> 0 | I64: =Mercado!D18 -> 0 | J64: 0
G65: Demais Livres | H65: =Mercado!C19 -> 69206.616 | I65: =Mercado!D19 -> 21503186.81 | J65: 1
G66: Distribuição | H66: =Mercado!C20 -> 0 | I66: =Mercado!D20 -> 0 | J66: 0
G67: Geração | H67: =Mercado!C21 -> 0 | I67: =Mercado!D21 -> 9286273.92 | J67: 1
G68: Total | H68: =SUM(H56:H67) -> 1232551.137 | I68: =SUM(I56:I67) -> 820037178.8
K70: TabEnc | N70: Voltar
K71: Encargos Setoriais | L71: Processo Anterior (R$) | M71: Processo Atual (R$) | N71: Dispositivo Legal | O71: Colunas1
K72: Taxa de Fisc. de Serviços de E.E. – TFSEE | L72: =Resultado!C22 -> 1374959.674 | M72: =Resultado!D22 -> 1539068.281 | N72: =Encargos!D17 -> Conforme módulo 5.5 do PRORET | O72: =IF(ABS(L72)+ABS(M72)>0,1,0) -> 1
K73: Conta de Desenv. Energético – CDE (USO) | L73: =BM275 -> 36615502 | M73: =BN275 -> 39071059.95 | N73: =VLOOKUP("CDE",EncargoDRP[],3,FALSE) -> REH 3.175/2023 | O73: 1
K74: Conta de Desenv. Energético – CDE Conta-Covid | L74: =BM276+BM277 -> 27857364.73 | M74: =BN276+BN277 -> 26573754.16 | N74: =VLOOKUP("CDE Covid",EncargoDRP[],3,FALSE) -> DSP 939/2021 | O74: =IF(ABS(L74)+ABS(M74)>0,1,0) -> 1
K75: Conta de Desenv. Energético – CDE Eletrobrás | L75: =BM278 -> -18325222.46 | M75: =BN278 -> -2067095.851 | N75: Desp. 1.959/2022 | O75: =IF(ABS(L75)+ABS(M75)>0,1,0) -> 1
K76: Conta de Desenv. Energético – CDE Conta-Escassez Hídrica | L76: =BM279+BM280 -> 0 | M76: =BN279+BN280 -> 23824349.5 | N76: =VLOOKUP("CDE Escassez Hidrica",EncargoDRP[],3,FALSE) -> DSP 510/2023 | O76: =IF(ABS(L76)+ABS(M76)>0,1,0) -> 1
K77: Conta de Desenv. Energético – CDE GD | L77: =BM281 -> 0 | M77: =BN281 -> 2853359.628 | N77: =VLOOKUP("CDE GD",EncargoDRP[],3,FALSE) -> REH 3.175/2023 | O77: =IF(ABS(L77)+ABS(M77)>0,1,0) -> 1
K78: Compensação financeira - CFURH | L78: 0 | M78: 0 | N78: 0 | O78: 0
K79: Encargos Serv. Sist. - ESS e Energ. Reserv. - EER | L79: =Resultado!C25 -> 20138004.14 | M79: =Resultado!D25 -> 19769864.34 | N79: =Encargos!D12 -> DSP 2.983/2023 | O79: 1
K80: PROINFA | L80: =Resultado!C26 -> 14333183.48 | M80: =Resultado!D26 -> 12197276.27 | N80: =Encargos!$D$13 -> ReH 3.147/2022 | O80: 1
K81: P&D e Eficiência Energética | L81: =Resultado!C27 -> 7506422.909 | M81: =Resultado!D27 -> 8275791.458 | N81: Res. Normativa nº 316/2008 | O81: 1
K82: Contribuição ONS | L82: 0 | M82: 0 | N82: 0 | O82: 0
K83: Total de Encargos Tarifários | L83: =SUM(L72:L82) -> 89500214.47 | M83: =SUM(M72:M82) -> 132037427.7
P85: TabTrans | R85: Voltar
P86: Componente | Q86: Processo Anterior (R$) | R86: Processo Atual (R$) | S86: Colunas1
P87: Rede Básica | Q87: =+Resultado!C30 -> 18112434.26 | R87: =+Resultado!D30 -> 20949617.92 | S87: =IF(ABS(Q87)+ABS(R87)>0,1,0) -> 1
P88: Rede Básica Fronteira | Q88: =+Resultado!C31 -> 19861702.61 | R88: =+Resultado!D31 -> 12210696.99 | S88: 1
P89: Rede Básica ONS (A2) | Q89: =+Resultado!C32 -> 0 | R89: =+Resultado!D32 -> 0 | S89: 0
P90: Rede Básica Export. (A2) | Q90: =+Resultado!C33 -> 0 | R90: =+Resultado!D33 -> 0 | S90: 0
P91: MUST Itaipu | Q91: =+Resultado!C34 -> 0 | R91: =+Resultado!D34 -> 0 | S91: 0
P92: Transporte de Itaipu | Q92: =+Resultado!C35 -> 0 | R92: =+Resultado!D35 -> 0 | S92: 0
P93: Conexão | Q93: =+Resultado!C36 -> 2058052.918 | R93: =+Resultado!D36 -> 1654045.272 | S93: 1
P94: Uso do sistema de distribuição | Q94: =+Resultado!C37 -> 0 | R94: =+Resultado!D37 -> 0 | S94: 0
P95: Total dos Custos de Transporte | Q95: =SUM(Q87:Q94) -> 40032189.79 | R95: =SUM(R87:R94) -> 34814360.18
T97: TabPerdas | W97: Voltar
T98: Perdas | U98: DRA | V98: DRP | W98: Referência
T99: Não Técnica (s/ Baixa Tensão) | U99: =Neutralidade!H14 -> 0.1646 | V99: =Energia!H13 -> 0.1240352248 | W99: REH XXX/2017
T100: Técnica (s/ merc. injetado) | U100: =Neutralidade!H15 -> 0.0985 | V100: =Energia!H14 -> 0.08879352438 | W100: =W99 -> REH XXX/2017
T101: Rede Básica (s/ merc. Injetado) | U101: =Neutralidade!H16 -> 0.02089987471 | V101: =Energia!H15 -> 0.02089987471 | W101: CCEE (últimos 12 meses) | Y101: Consumidores Livres | Z101: =Energia!H7 -> 69206.616 | AA101: =Z101 -> 69206.616
T102: Mercado Baixa Tensão (MWh) | U102: =Mercado!$C$16 -> 940533.281 | V102: =Mercado!$C$16 -> 940533.281 | W102: SAMP
Y104: TabEnergia | AA104: Voltar
Y105: Descrição | Z105: Processo Anterior (MWh) | AA105: Processo Atual (MWh)
Y106: Mercado Total (cativo + livres) | Z106: =AA106 -> 1160846.743 | AA106: =SUM(AA107:AA110) -> 1160846.743 | AB106: Colunas1
Y107: Fornecimento | Z107: =Energia!H5 -> 1149621.732 | AA107: =Z107 -> 1149621.732 | AB107: =IF(Z107<>0,1,0) -> 1
Y108: Suprimento | Z108: =Energia!H6 -> 11225.011 | AA108: =Z108 -> 11225.011 | AB108: =IF(Z108<>0,1,0) -> 1
Y109: Consumidores Rede B. | Z109: =Energia!H8 -> 0 | AA109: =Z109 -> 0 | AB109: 0
Y110: Consumidores Rede B. | Z110: =Energia!H8 -> 0 | AA110: =Z110 -> 0 | AB110: =IF(Z110<>0,1,0) -> 0
Y111: Perdas Totais | Z111: =SUM(Z112:Z113) -> 336648.1357 | AA111: =SUM(AA112:AA113) -> 281433.5706 | AB111: =IF(Z111<>0,1,0) -> 1
Y112: Perdas Rede Básica | Z112: =SUM(Neutralidade!H19:H20) -> 30656.73355 | AA112: =SUM(Energia!H18:H19) -> 29526.3803 | AB112: 1
Y113: Perdas na Distribuição | Z113: =SUM(Z114:Z115) -> 305991.4021 | AA113: =SUM(AA114:AA115) -> 251907.1903 | AB113: 1
Y114: Perda Não Técnica | Z114: =Neutralidade!H17 -> 154444.962 | AA114: =Energia!H16 -> 116382.8408 | AB114: 1
Y115: Perda Técnica | Z115: =Neutralidade!H18 -> 151546.4401 | AA115: =Energia!H17 -> 135524.3495 | AB115: 1
Y116: Energia Requerida | Z116: =Z107+Z108+Z110+Z111 -> 1497494.879 | AA116: =AA107+AA108+AA110+AA111 -> 1442280.314
AC118: TabEDRA | AE118: Voltar
AC119: Energia Requerida (MWh) | AD119: Tarifa Média (R$/MWh) | AE119: Energia Requerida (R$)
AC120: ='Votos e NTs'!Z116 -> 1497494.879 | AD120: =Energia!C14 -> 200.9190062 | AE120: =AD120*AC120 -> 300875182.8
AG122: TabContratos | AK122: Voltar
AG123: Contratos | AH123: Montante Contratado (MWh) | AI123: Montante Considerado (MWh) | AJ123: Tarifa (R$/MWh) | AK123: Despesa (R$) | AL123: Colunas1
AG124: AMBIENTE REGULADO - CCEAR | AH124: =SUM(AH125:AH129) -> 1380695.858 | AI124: =SUM(AI125:AI129) -> 1030092.872 | AJ124: =AK124/AI124 -> 193.4030494 | AK124: =SUM(AK125:AK129) -> 199223102.6 | AL124: =IF(AH124=0,0,1) -> 1
AG125: Existente - CCEAR-DSP | AH125: =SUMPRODUCT((Energia!$J$49:$J$140),(Energia!$T$49:$T$140=18)*(INT(Energia!$S$49:$S$140/10000)=2)) -> 0 | AI125: =SUMPRODUCT((Energia!$K$49:$K$140),(Energia!$T$49:$T$140=18)*(INT(Energia!$S$49:$S$140/10000)=2)) -> 0 | AJ125: =IFERROR(AK125/AI125,"") ->  | AK125: =(SUMPRODUCT((Energia!$L$49:$L$140),(Energia!$T$49:$T$140=18)*(INT(Energia!$S$49:$S$140/10000)=2))) -> 0 | AL125: 0
AG126: Existente - CCEAR-QTD | AH126: =SUMPRODUCT((Energia!$J$49:$J$140),(Energia!$T$49:$T$140=1)*(INT(Energia!$S$49:$S$140/10000)=2)) -> 493.156 | AI126: =SUMPRODUCT((Energia!$K$49:$K$140),(Energia!$T$49:$T$140=1)*(INT(Energia!$S$49:$S$140/10000)=2)) -> 367.9278659 | AJ126: =IFERROR(AK126/AI126,"") -> 447.0578137 | AK126: =(SUMPRODUCT((Energia!$L$49:$L$140),(Energia!$T$49:$T$140=1)*(INT(Energia!$S$49:$S$140/10000)=2))) -> 164485.0273 | AL126: 1
AG127: Nova e Alternativa- CCEAR-DSP | AH127: =SUMPRODUCT((Energia!$J$49:$J$140),(Energia!$T$49:$T$140=18)*(INT(Energia!$S$49:$S$140/10000)=1))+SUMPRODUCT((Energia!$J$49:$J$140),(Energia!$T$49:$T$140=18)*(INT(Energia!$S$49:$S$140/10000)=3)) -> 240318.5282 | AI127: =SUMPRODUCT((Energia!$K$49:$K$140),(Energia!$T$49:$T$140=18)*(INT(Energia!$S$49:$S$140/10000)=1))+SUMPRODUCT((Energia!$K$49:$K$140),(Energia!$T$49:$T$140=18)*(INT(Energia!$S$49:$S$140/10000)=3)) -> 179293.9419 | AJ127: 303.019629 | AK127: =(SUMPRODUCT((Energia!$L$49:$L$140),(Energia!$T$49:$T$140=18)*(INT(Energia!$S$49:$S$140/10000)=1))+SUMPRODUCT((Energia!$L$49:$L$140),(Energia!$T$49:$T$140=18)*(INT(Energia!$S$49:$S$140/10000)=3))) -> 54329583.75 | AL127: 1
AG128: Nova e Alternativa- CCEAR-QTD | AH128: =SUMPRODUCT((Energia!$J$49:$J$140),(Energia!$T$49:$T$140=1)*(INT(Energia!$S$49:$S$140/10000)=1))+SUMPRODUCT((Energia!$J$49:$J$140),(Energia!$T$49:$T$140=1)*(INT(Energia!$S$49:$S$140/10000)=3)) -> 462573.2724 | AI128: =SUMPRODUCT((Energia!$K$49:$K$140),(Energia!$T$49:$T$140=1)*(INT(Energia!$S$49:$S$140/10000)=1))+SUMPRODUCT((Energia!$K$49:$K$140),(Energia!$T$49:$T$140=1)*(INT(Energia!$S$49:$S$140/10000)=3)) -> 345111.0743 | AJ128: 170.5309678 | AK128: =(SUMPRODUCT((Energia!$L$49:$L$140),(Energia!$T$49:$T$140=1)*(INT(Energia!$S$49:$S$140/10000)=1))+SUMPRODUCT((Energia!$L$49:$L$140),(Energia!$T$49:$T$140=1)*(INT(Energia!$S$49:$S$140/10000)=3))) -> 58852125.5 | AL128: 1
AG129: Madeira e Belo Monte | AH129: =SUMPRODUCT((Energia!$J$49:$J$140)*(INT(Energia!$S$49:$S$140/10000)=5)) -> 677310.901 | AI129: =SUMPRODUCT((Energia!$K$49:$K$140)*(INT(Energia!$S$49:$S$140/10000)=5)) -> 505319.9279 | AJ129: 169.9456197 | AK129: =(SUMPRODUCT((Energia!L49:L140)*(INT(Energia!S49:S140/10000)=5))) -> 85876908.29 | AL129: 1
AG130: Bilaterais | AH130: =AH131 -> 32544 | AI130: =SUM(AI131:AI146) -> 222781.8284 | AJ130: =AK130/AI130 -> 302.5737534 | AK130: =SUM(AK131:AK146) -> 67407934 | AL130: 1
AG131: =Energia!B145 -> Brasil Biofuels - BBF ACRE | AH131: =Energia!H145 -> 32544 | AI131: =Energia!M145 -> 24280.03404 | AJ131: =Energia!L145 -> 302.5737534 | AK131: =AJ131*AI131 -> 7346501.033 | AL131: 1
AG132: =Energia!B146 -> Energias do Acre SPE Ltda | AH132: =Energia!H146 -> 266063.976 | AI132: =Energia!M146 -> 198501.7943 | AJ132: =Energia!L146 -> 302.5737534 | AK132: =AJ132*AI132 -> 60061432.97 | AL132: 1
AG133: =Energia!B147 -> 0 | AH133: =Energia!H147 -> 0 | AI133: =Energia!M147 -> 0 | AJ133: =Energia!L147 -> 0 | AK133: 0 | AL133: 0
AG134: =Energia!B148 -> 0 | AH134: =Energia!H148 -> 0 | AI134: =Energia!M148 -> 0 | AJ134: =Energia!L148 -> 0 | AK134: 0 | AL134: 0
AG135: =Energia!B149 -> 0 | AH135: =Energia!H149 -> 0 | AI135: =Energia!M149 -> 0 | AJ135: =Energia!L149 -> 0 | AK135: 0 | AL135: 0
AG136: =Energia!B150 -> 0 | AH136: =Energia!H150 -> 0 | AI136: =Energia!M150 -> 0 | AJ136: =Energia!L150 -> 0 | AK136: 0 | AL136: 0
AG137: =Energia!B151 -> 0 | AH137: =Energia!H151 -> 0 | AI137: =Energia!M151 -> 0 | AJ137: =Energia!L151 -> 0 | AK137: 0 | AL137: 0
AG138: =Energia!B152 -> 0 | AH138: =Energia!H152 -> 0 | AI138: =Energia!M152 -> 0 | AJ138: =Energia!L152 -> 0 | AK138: 0 | AL138: 0
AG139: =Energia!B153 -> 0 | AH139: =Energia!H153 -> 0 | AI139: =Energia!M153 -> 0 | AJ139: =Energia!L153 -> 0 | AK139: 0 | AL139: 0
AG140: =Energia!B154 -> 0 | AH140: =Energia!H154 -> 0 | AI140: =Energia!M154 -> 0 | AJ140: =Energia!L154 -> 0 | AK140: 0 | AL140: 0
AG141: =Energia!B155 -> 0 | AH141: =Energia!H155 -> 0 | AI141: =Energia!M155 -> 0 | AJ141: =Energia!L155 -> 0 | AK141: 0 | AL141: 0
AG142: =Energia!B156 -> 0 | AH142: =Energia!H156 -> 0 | AI142: =Energia!M156 -> 0 | AJ142: =Energia!L156 -> 0 | AK142: 0 | AL142: 0
AG143: =Energia!B157 -> 0 | AH143: =Energia!H157 -> 0 | AI143: =Energia!M157 -> 0 | AJ143: =Energia!L157 -> 0 | AK143: 0 | AL143: 0
AG144: =Energia!B158 -> 0 | AH144: =Energia!H158 -> 0 | AI144: =Energia!M158 -> 0 | AJ144: =Energia!L158 -> 0 | AK144: 0 | AL144: 0
AG145: 0 | AH145: =Energia!H159 -> 0 | AI145: =Energia!M159 -> 0 | AJ145: =Energia!L159 -> 0 | AK145: 0 | AL145: 0
AG146: 0 | AH146: 0 | AI146: 0 | AJ146: 0 | AK146: 0 | AL146: 0
AG147: =Energia!B20 -> Energia Base | AH147: =SUM(AH148:AH152) -> 245278.7667 | AI147: =SUM(AI148:AI152) -> 189405.6183 | AJ147: =AK147/AI147 -> 177.541798 | AK147: =SUM(AK148:AK152) -> 33627414.02 | AL147: 1
AG148: Geração Própria | AH148: =Energia!H33 -> 206.65 | AI148: =Energia!C21 -> 154.1749335 | AJ148: =Energia!D21 -> 302.5737534 | AK148: =AJ148*AI148 -> 46649.2883 | AL148: 1
AG149: =Energia!B22 -> Cota Angra I/Angra II | AH149: =Energia!H34 -> 39054.95491 | AI149: =Energia!C22 -> 29137.64856 | AJ149: =Energia!D22 -> 347.5 | AK149: =AJ149*AI149 -> 10125332.87 | AL149: 1
AG150: =Energia!B23 -> Cotas Lei n º 12783/2013 | AH150: =Energia!H35 -> 180770.2481 | AI150: =Energia!C23 -> 134866.8811 | AJ150: =Energia!D23 -> 173.9154318 | AK150: =AJ150*AI150 -> 23455431.86 | AL150: 1
AG151: =Energia!B24 -> Itaipu (tirando as perdas) | AH151: =Energia!H36 -> 0 | AI151: =Energia!C24 -> 0 | AJ151: =Energia!D24 -> 0 | AK151: =AJ151*AI151 -> 0 | AL151: 0
AG152: =Energia!B25 -> PROINFA | AH152: =Energia!C25 -> 25246.9137 | AI152: =Energia!C25 -> 25246.9137 | AJ152: =Energia!D25 -> 0 | AK152: =AJ152*AI152 -> 0 | AL152: 1
AG153: Total | AH153: =AH124+AH130+AH147 -> 1658518.624 | AI153: =AI124+AI130+AI147 -> 1442280.319 | AJ153: =AK153/AI153 -> 208.1831435 | AK153: =AK124+AK130+AK147 -> 300258450.6
AM155: TabFatorX | AN155: Voltar
AM156: Componentes | AN156: Valor
AM157: Componente Pd do Fator X | AN157: ='VPB1'!F40 -> 0.01230255086
AM158: Componente T do Fator X | AN158: ='VPB1'!F41 -> 0.007326103346
AM159: Componente Q do Fator X | AN159: ='VPB1'!F42 -> -0.007878807461
AM160: Fator X | AN160: ='VPB1'!F43 -> 0.01174984674
AP162: TabParcelaB | AR162: Voltar
AP163: Descrição | AQ163: Valores | AR163: Referência
AP164: (1) Parcela B Ano Anterior | AQ164: =+'VPB1'!C37 -> 374637323.9 | AR164: TUSD aplicada ao Mercado
AP165: (2) Fator DR1/Fator PB | AQ165: =+'VPB1'!C38 -> 1.017637594 | AR165: SGT/ANEEL
AP166: (3) Parcela B econômica = (1)*(2) | AQ166: =+'VPB1'!C39 -> 381245024.8 | AR166: SGT/ANEEL
AP167: (4) IPCA | AQ167: =+LnkTxtIPCA -> 0.04685500762 | AR167: Indicador econômico oficial
AP168: (5) Fator X | AQ168: =+AQ169+AQ170+AQ171 -> 0.01174984674
AP169: (5.1) Componente Pd do Fator X | AQ169: =+LnkTxtFatorPd -> 0.01230255086 | AR169: Pd Ex-Post | AS169: <-cuidado para verificar se é Reajuste depois de revisão. Se for reajuste pós revisão, deve se aplicar o Pd Expost.
AP170: (5.2) Componente T do Fator X | AQ170: =+LnkTxtFatorT -> 0.007326103346 | AR170: REH XXXX/XXXX
AP171: (5.3) Componente Q do Fator X | AQ171: =+LnkTxtFatorQ -> -0.007878807461 | AR171: PRORET 2.5 A
AP172: (6) UDEROR | AQ172: =SUM(AQ173:AQ175) -> 6347274.769
AP173: (6.1) Outras Receitas (OR) | AQ173: =+'VPB1'!C40 -> 2812167.003 | AR173: Valores fiscalizados - SFF
AP174: (6.2) Excedente de Reativos (ER) | AQ174: =+'VPB1'!C41 -> 2043052.399 | AR174: Valores fiscalizados - SFF
AP175: (6.3) Ultrapassagem de Demanda (UD) | AQ175: =+'VPB1'!C42 -> 1492055.367 | AR175: Valores fiscalizados - SFF
AP176: (5) ONS | AQ176: 0 | AR176: REA 6.981/2018
AP177: Parcela B - DRP (R$) = (3)*[{1)+(4)-(5)]-(6) | AQ177: =Resultado!D45 -> 398051751.1
AT179: TabCVA | AW179: Voltar
AT180: Descrição | AU180: Delta (R$) | AV180: 5° Dia Útil Anterior (R$) | AW180: 12 Meses Subseqüentes (R$) | AX180: Colunas1
AT181: CVA CCC | AU181: 0 | AV181: 0 | AW181: 0 | AX181: =IF(AU181<>0,1,0) -> 0
AT182: ="CVA "&CVA!B10 -> CVA CDE | AU182: =CVA!C10 -> 4023521.895 | AV182: =CVA!D10 -> 4301033.684 | AW182: =CVA!E10 -> 4544964.092 | AX182: 1
AT183: ="CVA "&CVA!B11 -> CVA CDE Covid | AU183: =CVA!C11 -> -0.0425 | AV183: =CVA!D11 -> -0.0453 | AW183: =CVA!E11 -> -0.0479 | AX183: 1
AT184: ="CVA "&CVA!B12 -> CVA Rede Básica | AU184: =CVA!C12 -> 4435955.234 | AV184: =CVA!D12 -> 4944798.125 | AW184: =CVA!E12 -> 5225239.227 | AX184: 1
AT185: ="CVA "&CVA!B13 -> CVA Compra Energia | AU185: =CVA!C13 -> 2322487.352 | AV185: =CVA!D13 -> 2607168.542 | AW185: =CVA!E13 -> 2755032.459 | AX185: 1
AT186: CVA CFURH | AU186: 0 | AV186: 0 | AW186: 0 | AX186: 0
AT187: ="CVA "&CVA!B15 -> CVA Transporte Itaipu | AU187: =CVA!C15 -> 0 | AV187: =CVA!D15 -> 0 | AW187: =CVA!E15 -> 0 | AX187: 0
AT188: ="CVA "&CVA!B16 -> CVA Proinfa | AU188: =CVA!C16 -> -1468165.963 | AV188: =CVA!D16 -> -1572197.228 | AW188: =CVA!E16 -> -1661363.4 | AX188: 1
AT189: ="CVA "&CVA!B17 -> CVA ESS/ERR | AU189: =CVA!C17 -> 1352895.779 | AV189: =CVA!D17 -> 1436249.974 | AW189: =CVA!E17 -> 1517705.985 | AX189: 1
AT190: Total | AU190: =SUM(AU181:AU189) -> 10666694.25 | AV190: =SUM(AV181:AV189) -> 11717053.05 | AW190: =SUM(AW181:AW189) -> 12381578.32
AY192: TabFin | BA192: Voltar
AY193: Componentes Financeiros | AZ193: Valor (R$) | BA193: Participação | BB193: Colunas1 | BC193: Coluna1
AY194: CVA em processamento - Energia | AZ194: =SUMIFS(Financeiros[Valor],Financeiros[idDet1],19,Financeiros[id_Grupo_TARIFA],2,Financeiros[idDet2],60,Financeiros[idDet3],999) -> 2755032.459 | BA194: =AZ194/Financeiros!$D$5 -> 0.003359643356 | BB194: =IF(AZ194<>0,1,0) -> 1
AY195: CVA em processamento - Transporte | AZ195: =SUMIFS(Financeiros[Valor],Financeiros[idDet1],19,Financeiros[id_Grupo_TARIFA],1,Financeiros[idDet2],60, Financeiros[idDet3],999) -> 5225239.227 | BA195: =AZ195/Financeiros!$D$5 -> 0.006371954056 | BB195: 1
AY196: CVA em processamento - Encargos Setoriais | AZ196: =SUMIFS(Financeiros[Valor],Financeiros[idDet1],19,Financeiros[id_Grupo_TARIFA],3,Financeiros[idDet2],60,Financeiros[idDet3],999)+SUMIFS(Financeiros[Valor],Financeiros[idDet1],19,Financeiros[id_Grupo_TARIFA],3,Financeiros[idDet2],60,Financeiros[idDet3],73)+SUMIFS(Financeiros[Valor],Financeiros[idDet1],19,Financeiros[id_Grupo_TARIFA],3,Financeiros[idDet2],60,Financeiros[idDet3],74) -> 4401306.628 | BA196: =AZ196/Financeiros!$D$5 -> 0.005367203759 | BB196: 1
AY197: Saldo a Compensar CVA-Ano Anterior + Ajustes | AZ197: =SUMIFS(Financeiros[Valor],Financeiros[idDet1],19,Financeiros[idDet2],64, Financeiros[idDet3],999)+SUMIFS(Financeiros[Valor],Financeiros[idDet1],19,Financeiros[idDet2],64, Financeiros[idDet3],73)+SUMIFS(Financeiros[Valor],Financeiros[idDet1],19,Financeiros[idDet2],64, Financeiros[idDet3],74) -> -1031342.668 | BA197: =AZ197/Financeiros!$D$5 -> -0.001257677938 | BB197: 1
AY198: Neutralidade de Parcela A- Energia | AZ198: =Financeiros!D44+Financeiros!D45+Financeiros!D46+Financeiros!D47+Financeiros!D48 -> -4306278.946 | BA198: =AZ198/Financeiros!$D$5 -> -0.005251321596 | BB198: 1
AY199: Neutralidade de Parcela A - Transporte | AZ199: =SUMIFS(Financeiros[Valor],Financeiros[idDet1],20,Financeiros[id_Grupo_TARIFA],1,Financeiros[idDet2],60, Financeiros[idDet3],999) -> -452860.9786 | BA199: =AZ199/Financeiros!$D$5 -> -0.0005522444473 | BB199: 1
AY200: Neutralidade de Parcela A - Encargos Setoriais | AZ200: =SUMIFS(Financeiros[Valor],Financeiros[idDet1],20,Financeiros[id_Grupo_TARIFA],3,Financeiros[idDet2],60,Financeiros[idDet3],999)+SUMIFS(Financeiros[Valor],Financeiros[idDet1],20,Financeiros[idDet2],60,Financeiros[idDet3],73)+SUMIFS(Financeiros[Valor],Financeiros[idDet1],20,Financeiros[idDet2],60,Financeiros[idDet3],74) -> -5241110.739 | BA200: =AZ200/Financeiros!$D$5 -> -0.006391308681 | BB200: 1
AY201: Neutralidade de Parcela A - Receita Irrecuperável | AZ201: =SUMIFS(Financeiros[Valor],Financeiros[idDet1],20,Financeiros[id_Grupo_TARIFA],5,Financeiros[idDet2],60, Financeiros[idDet3],999) -> -906924.7164 | BA201: =AZ201/Financeiros!$D$5 -> -0.001105955608 | BB201: 1
AY202: Neutralidade de Fin. Parcela B - Conta Covid | AZ202: =SUMIFS(Financeiros[Valor],Financeiros[idDet1],20,Financeiros[id_Grupo_TARIFA],4,Financeiros[idDet2],60, Financeiros[idDet3],999) -> 0 | BA202: =AZ202/Financeiros!$D$5 -> 0 | BB202: 0
AY203: Sobrecontratação/exposição de energia | AZ203: =SUMIFS(Financeiros[Valor],Financeiros[idDet1],22,Financeiros[id_Grupo_TARIFA],2,Financeiros[idDet2],60, Financeiros[idDet3],106)+SUMIFS(Financeiros[Valor],Financeiros[idDet1],22,Financeiros[id_Grupo_TARIFA],2,Financeiros[idDet2],60, Financeiros[idDet3],101) -> 49226951.04 | BA203: =AZ203/Financeiros!$D$5 -> 0.06003014536 | BB203: 1
AY204: Garantias financeiras na contratação regulada de energia (CCEAR) | AZ204: =SUMIFS(Financeiros[Valor],Financeiros[idDet1],22,Financeiros[id_Grupo_TARIFA],2,Financeiros[idDet2],60, Financeiros[idDet3],102) -> 105437.0258 | BA204: =AZ204/Financeiros!$D$5 -> 0.0001285759092 | BB204: 1
AY205: Compensação ref. acordos bilaterais de CCEAR | AZ205: =SUMIFS(Financeiros[Valor],Financeiros[idDet1],22,Financeiros[id_Grupo_TARIFA],2,Financeiros[idDet2],60, Financeiros[idDet3],230) -> 0 | BA205: =AZ205/Financeiros!$D$5 -> 0 | BB205: 0
AY206: Ajuste Liminar Abrace | AZ206: =SUMIFS(Financeiros[Valor],Financeiros[idDet1],22,Financeiros[id_Grupo_TARIFA],3,Financeiros[idDet2],85, Financeiros[idDet3],85) -> 0 | BA206: =AZ206/Financeiros!$D$5 -> 0 | BB206: 0
AY207: Ajuste ref. equilíbrio econômico-financeiro TUSDg (A3a) | AZ207: =SUMIFS(Financeiros[Valor],Financeiros[idDet1],22,Financeiros[id_Grupo_TARIFA],4,Financeiros[idDet2],60, Financeiros[idDet3],137) -> 0 | BA207: =AZ207/Financeiros!$D$5 -> 0 | BB207: 0
AY208: Repasse de ultrapassagem de Supridas/Permissionárias de Energia | AZ208: =SUMIFS(Financeiros[Valor],Financeiros[idDet1],22,Financeiros[id_Grupo_TARIFA],2,Financeiros[idDet2],60, Financeiros[idDet3],187) -> 0 | BA208: =AZ208/Financeiros!$D$5 -> 0 | BB208: 0
AY209: Reversão do Financeiro de Reperfilamento dos custos de RBSE | AZ209: =SUMIFS(Financeiros[Valor],Financeiros[idDet1],22,Financeiros[idDet2],60, Financeiros[idDet3],999,Financeiros[id_Grupo_TARIFA],1) -> 0 | BA209: =AZ209/Financeiros!$D$5 -> 0 | BB209: 0
AY210: Ajuste CUSD | AZ210: =SUMIFS(Financeiros[Valor],Financeiros[idDet1],22,Financeiros[id_Grupo_TARIFA],1,Financeiros[idDet2],60, Financeiros[idDet3],119) -> 0 | BA210: =AZ210/Financeiros!$D$5 -> 0 | BB210: 0
AY211: Repasse de compensação DIC/FIC | AZ211: =Financeiros!D128 -> 0 | BA211: =AZ211/Financeiros!$D$5 -> 0 | BB211: 0
AY212: Previsão do Risco Hidrológico | AZ212: =SUMIFS(Financeiros[Valor],Financeiros[idDet1],22,Financeiros[id_Grupo_TARIFA],2,Financeiros[idDet2],60, Financeiros[idDet3],220) -> 19142967.1 | BA212: =AZ212/Financeiros!$D$5 -> 0.02334402342 | BB212: 1
AY213: Reversão do Risco Hidrológico | AZ213: =SUMIFS(Financeiros[Valor],Financeiros[idDet1],22,Financeiros[id_Grupo_TARIFA],2,Financeiros[idDet2],62, Financeiros[idDet3],220) -> -18197531.04 | BA213: =AZ213/Financeiros!$D$5 -> -0.02219110488 | BB213: 1
AY214: Ressarcimento de P&D | AZ214: =SUMIFS(Financeiros[Valor],Financeiros[idDet1],22,Financeiros[id_Grupo_TARIFA],3,Financeiros[idDet2],60, Financeiros[idDet3],231) -> 0 | BA214: =AZ214/Financeiros!$D$5 -> 0 | BB214: 0
AY215: Reversão Conta-Covid - CVA em processamento - Energia | AZ215: =SUMIFS(Financeiros[Valor],Financeiros[idDet1],19,Financeiros[id_Grupo_TARIFA],2,Financeiros[idDet2],60,Financeiros[idDet3],233) -> 0 | BA215: =AZ215/Financeiros!$D$5 -> 0 | BB215: 0
AY216: Reversão Conta-Covid - CVA em processamento -Transporte | AZ216: =SUMIFS(Financeiros[Valor],Financeiros[idDet1],19,Financeiros[id_Grupo_TARIFA],1,Financeiros[idDet2],60,Financeiros[idDet3],233) -> 0 | BA216: =AZ216/Financeiros!$D$5 -> 0 | BB216: 0
... 208 more rows

Sheet Apresentação
B2: Efeito Médio | L2: Efeito Médio CP x Final | U2: Composição Tarifária - Tributos | Z2: Composição Tarifária - ICMS & PIS/COFINS | AD2: Composição Tarifária - sem Tributos
U19: =Z19 -> Custo de Distribuição | W19: =AB19 -> 0.3542790628 | Z19: Custo de Distribuição | AB19: =AF19/$AB$26 -> 0.3542790628 | AD19: Custo de Distribuição | AF19: =IF(CAPA!$C$7="Reajuste",'Votos e NTs'!BN298,'NT Revisao'!AO231) -> 398051751.1
U20: =Z20 -> Custo de Energia | W20: =AB20 -> 0.2672398305 | Z20: Custo de Energia | AB20: =AF20/$AB$26 -> 0.2672398305 | AD20: Custo de Energia | AF20: =IF(CAPA!$C$7="Reajuste",'Votos e NTs'!BN296,'NT Revisao'!AO229) -> 300258450.6 | AP20: Custos Operacionais | AS20: ='NT Revisao'!AQ232 -> -0.05504934986
U21: =Z21 -> Custo de Transporte | W21: =AB21 -> 0.03098591795 | Z21: Custo de Transporte | AB21: =AF21/$AB$26 -> 0.03098591795 | AD21: Custo de Transporte | AF21: =IF(CAPA!$C$7="Reajuste",'Votos e NTs'!BN287,'NT Revisao'!AO220) -> 34814360.18 | AP21: Anuidades | AS21: ='NT Revisao'!AQ233 -> 0.008880258639
U22: =Z22 -> Encargos Setoriais | W22: =AB22 -> 0.1175176243 | Z22: Encargos Setoriais | AB22: =SUM(AF23:AF26/$AB$26) -> 0.1175176243 | AD22: Receitas Irrecuperáveis | AF22: =IF(CAPA!$C$7="Reajuste",'Votos e NTs'!BN297,'NT Revisao'!AO230) -> 14213963.36 | AP22: Remuneração | AS22: ='NT Revisao'!AQ234 -> 0.04594121877
C23: Impacto da RTA na Tarifa | M23: Impacto da RTA na Tarifa | P23: CP | Q23: Final | U23: =Z23 -> Receitas Irrecuperáveis | W23: =AB23 -> 0.01265089176 | Z23: Receitas Irrecuperáveis | AB23: =AF22/$AB$26 -> 0.01265089176 | AD23: PROINFA | AF23: =IF(CAPA!$C$7="Reajuste",'Votos e NTs'!BN284,'NT Revisao'!AO217) -> 12197276.27 | AP23: Depreciação | AS23: ='NT Revisao'!AQ235 -> 0.01559517723
C24: Encargos Setoriais | F24: =IF(CAPA!C7="Reajuste",'Votos e NTs'!BP273,'NT Revisao'!AQ206) -> 0.05187229845 | M24: Encargos | P24: ='AP x Final'!I4 -> 0.05866277133 | Q24: =F24 -> 0.05187229845 | U24: Tributos | W24: =AB24+AB25 -> 0.2173266727 | Z24: ICMS | AB24: ='Votos e NTs'!R29 -> 0.1664249034 | AD24: CDE | AF24: =IF(CAPA!C7="Reajuste",SUM('Votos e NTs'!BN275:BN281),SUM('NT Revisao'!AO208:AO214)) -> 90255427.39 | AP24: UDEROR | AS24: ='NT Revisao'!AQ236 -> 0.0003175784768
C25: Transporte | F25: =IF(CAPA!C7="Reajuste",'Votos e NTs'!BP287,'NT Revisao'!AQ220) -> -0.006362918343 | M25: Transporte | P25: ='AP x Final'!I18 -> -0.005741003525 | Q25: -0.006362918343 | Z25: PIS/COFINS | AB25: ='Votos e NTs'!R30 -> 0.05090176936 | AD25: ESS/EER | AF25: =IF(CAPA!$C$7="Reajuste",'Votos e NTs'!BN283,'NT Revisao'!AO216) -> 19769864.34 | AP25: SCEE | AS25: ='NT Revisao'!AQ237 -> 0.01286800164
C26: Compra de Energia | F26: =IF(CAPA!C7="Reajuste",'Votos e NTs'!BP296,'NT Revisao'!AQ229) -> -0.002503142252 | M26: Energia | P26: ='AP x Final'!I27 -> -0.006991171639 | Q26: -0.002503142252 | Z26: TOTAL com tributos | AB26: =AF27/(1-AB24-AB25) -> 1123554262 | AD26: Outros | AF26: =AF27-SUM(AF19:AF25) -> 9814859.74 | AP26: Parcela B | AS26: =SUM(AS20:AS25) -> 0.02855288489
C27: Receitas Irrecuperáveis | F27: =IF(CAPA!C7="Reajuste",'Votos e NTs'!BP296,'NT Revisao'!AQ230) -> 0.0008019551767 | M27: RI | P27: ='AP x Final'!I28 -> 0.001546683997 | Q27: 0.0008019551767 | AD27: TOTAL | AF27: =IF(CAPA!$C$7="Reajuste",'Votos e NTs'!BN299,'NT Revisao'!AO238) -> 879375952.9
C28: Distribuição | F28: =IF(CAPA!C7="Reajuste",'Votos e NTs'!BP297,'NT Revisao'!AQ231) -> 0.02855288489 | M28: Distribuição | P28: ='AP x Final'!I29 -> 0.06264898965 | Q28: 0.02855288489
C29: Componentes Financeiros | F29: =IF(CAPA!C7="Reajuste",'Votos e NTs'!BP301,'NT Revisao'!AQ240)+F14 -> 0.05756308585 | M29: Financeiros | P29: ='AP x Final'!I38 -> 0.09482246547 | Q29: 0.05756308585
C30: Retirada dos Financeiros Anteriores | F30: =IF(CAPA!C7="Reajuste",'Votos e NTs'!BP353,'NT Revisao'!AQ292) -> 0.0153 | M30: Financeiros Anteriores | P30: =P31-SUM(P24:P29) -> 0.01571988233 | Q30: =F30 -> 0.0153
C31: Efeito Médio Consumidor | F31: =IF(CAPA!C7="Reajuste",'Votos e NTs'!BP354,'NT Revisao'!AQ293) -> 0.1452175525 | M31: Efeito Médio | P31: ='AP x Final'!I79 -> 0.2206686176 | Q31: =F31 -> 0.1452175525
C34: Efeito Subgrupo
C35: SUBGRUPO | D35: EFEITO
C36: Grupo A | D36: =Resultado!L8 -> 0.1848941693
C37: Grupo B | D37: =Resultado!L9 -> 0.136199633
C38: Grupos A+B | D38: =Resultado!L10 -> 0.1452175525
F40: Compra de Energia
F41: Contratos | G41: Montantes (MWh) | J41: Preço (R$/MWh) | M41: Impacto Processo
G42: Processo Anterior | H42: Processo Atual | I42: Variação | J42: Processo Anterior | K42: Processo Atual | L42: Variação | N42: Colunas1
F43: CCEAR | G43: =(SUM('Votos e NTs'!BT360:BT363)+'Votos e NTs'!BT$373*SUM('Votos e NTs'!BT360:BT363)/SUM('Votos e NTs'!BT$360:BT$371)) -> 527272.0592 | H43: =(SUM('Votos e NTs'!BU360:BU363)+'Votos e NTs'!BU$373*SUM('Votos e NTs'!BU360:BU363)/SUM('Votos e NTs'!BU$360:BU$371)) -> 524772.9441 | I43: =IFERROR(H43/G43-1,"") -> -0.004739707141 | J43: =IFERROR(SUM('Votos e NTs'!BZ360:BZ363)/SUM('Votos e NTs'!BT360:BT363),"") -> 204.317604 | K43: =IFERROR(SUM('Votos e NTs'!CA360:CA363)/SUM('Votos e NTs'!BU360:BU363),"") -> 215.9909263 | L43: =IFERROR(K43/J43-1,"") -> 0.05713321833 | M43: =SUM('Votos e NTs'!CG380:CG383) -> 0.003476941648 | N43: =IF(G43+H43=0,0,1) -> 1
F44: Ajuste - CCEAR | G44: =('Votos e NTs'!BT364+'Votos e NTs'!BT$373*'Votos e NTs'!BT364/SUM('Votos e NTs'!$BT$360:$BT$371)) -> 0 | H44: =('Votos e NTs'!BU364+'Votos e NTs'!BU$373*'Votos e NTs'!BU364/SUM('Votos e NTs'!$BU$360:$BU$371)) -> 0 | J44: =IFERROR('Votos e NTs'!BZ364/'Votos e NTs'!BT364,"") ->  | K44: =IFERROR('Votos e NTs'!CA364/'Votos e NTs'!BU364,"") ->  | L44: =IFERROR(K44/J44-1,"") ->  | M44: ='Votos e NTs'!CG384 -> 0 | N44: 0
F45: Madeira e Belo Monte | G45: =('Votos e NTs'!BT365+'Votos e NTs'!BT$373*'Votos e NTs'!BT365/SUM('Votos e NTs'!$BT$360:$BT$371)) -> 509319.5837 | H45: =('Votos e NTs'!BU365+'Votos e NTs'!BU$373*'Votos e NTs'!BU365/SUM('Votos e NTs'!$BU$360:$BU$371)) -> 505319.9279 | I45: -0.007852939351 | J45: =IFERROR('Votos e NTs'!BZ365/'Votos e NTs'!BT365,"") -> 154.4127454 | K45: =IFERROR('Votos e NTs'!CA365/'Votos e NTs'!BU365,"") -> 169.9456197 | L45: =IFERROR(K45/J45-1,"") -> 0.1005932135 | M45: ='Votos e NTs'!CG385 -> 0.006336187709 | N45: 1
F46: Cota Angra I e Angra II | G46: =('Votos e NTs'!BT366+'Votos e NTs'!BT$373*'Votos e NTs'!BT366/SUM('Votos e NTs'!$BT$360:$BT$371)) -> 28239.44932 | H46: =('Votos e NTs'!BU366+'Votos e NTs'!BU$373*'Votos e NTs'!BU366/SUM('Votos e NTs'!$BU$360:$BU$371)) -> 29137.64856 | I46: 0.03180654241 | J46: =IFERROR('Votos e NTs'!BZ366/'Votos e NTs'!BT366,"") -> 349.15 | K46: =IFERROR('Votos e NTs'!CA366/'Votos e NTs'!BU366,"") -> 347.5 | L46: =IFERROR(K46/J46-1,"") -> -0.004725762566 | M46: ='Votos e NTs'!CG386 -> -0.0001355534916 | N46: 1
F47: Cotas Lei n º 12.783/2013 | G47: =('Votos e NTs'!BT367+'Votos e NTs'!BT$373*'Votos e NTs'!BT367/SUM('Votos e NTs'!$BT$360:$BT$371)) -> 188991.815 | H47: =('Votos e NTs'!BU367+'Votos e NTs'!BU$373*'Votos e NTs'!BU367/SUM('Votos e NTs'!$BU$360:$BU$371)) -> 134866.8811 | I47: -0.2863877143 | J47: =IFERROR('Votos e NTs'!BZ367/'Votos e NTs'!BT367,"") -> 155.1109132 | K47: =IFERROR('Votos e NTs'!CA367/'Votos e NTs'!BU367,"") -> 173.9154318 | L47: =IFERROR(K47/J47-1,"") -> 0.1212327243 | M47: ='Votos e NTs'!CG387 -> 0.005628527591 | N47: 1
F48: Itaipu | G48: =('Votos e NTs'!BT368+'Votos e NTs'!BT$373*'Votos e NTs'!BT368/SUM('Votos e NTs'!$BT$360:$BT$371)) -> 0 | H48: =('Votos e NTs'!BU368+'Votos e NTs'!BU$373*'Votos e NTs'!BU368/SUM('Votos e NTs'!$BU$360:$BU$371)) -> 0 | J48: =IFERROR('Votos e NTs'!BZ368/'Votos e NTs'!BT368,"") ->  | K48: =IFERROR('Votos e NTs'!CA368/'Votos e NTs'!BU368,"") ->  | M48: ='Votos e NTs'!CG388 -> 0 | N48: 0
F49: Bilateral | G49: =('Votos e NTs'!BT369+'Votos e NTs'!BT$373*'Votos e NTs'!BT369/SUM('Votos e NTs'!$BT$360:$BT$371)) -> 218747.2121 | H49: =('Votos e NTs'!BU369+'Votos e NTs'!BU$373*'Votos e NTs'!BU369/SUM('Votos e NTs'!$BU$360:$BU$371)) -> 222781.8284 | I49: 0.01844419498 | J49: =IFERROR('Votos e NTs'!BZ369/'Votos e NTs'!BT369,"") -> 345.5819547 | K49: =IFERROR('Votos e NTs'!CA369/'Votos e NTs'!BU369,"") -> 302.5737534 | L49: -0.124451525 | M49: ='Votos e NTs'!CG389 -> -0.01745374094 | N49: 1
F50: Geração Própria | G50: =('Votos e NTs'!BT370+'Votos e NTs'!BT$373*'Votos e NTs'!BT370/SUM('Votos e NTs'!$BT$360:$BT$371)) -> 155.8209832 | H50: =('Votos e NTs'!BU370+'Votos e NTs'!BU$373*'Votos e NTs'!BU370/SUM('Votos e NTs'!$BU$360:$BU$371)) -> 154.1749335 | I50: -0.01056372336 | J50: =IFERROR('Votos e NTs'!BZ370/'Votos e NTs'!BT370,"") -> 344.8309863 | K50: =IFERROR('Votos e NTs'!CA370/'Votos e NTs'!BU370,"") -> 302.5737534 | L50: -0.122544767 | M50: ='Votos e NTs'!CG390 -> -1.300904285e-05 | N50: 1
F51: Montante de Reposição | G51: =('Votos e NTs'!BT371+'Votos e NTs'!BT$373*'Votos e NTs'!BT371/SUM('Votos e NTs'!$BT$360:$BT$371)) -> 0 | H51: =('Votos e NTs'!BU371+'Votos e NTs'!BU$373*'Votos e NTs'!BU371/SUM('Votos e NTs'!$BU$360:$BU$371)) -> 0 | J51: =IFERROR('Votos e NTs'!BZ371/'Votos e NTs'!BT371,"") ->  | K51: =IFERROR('Votos e NTs'!CA371/'Votos e NTs'!BU371,"") ->  | M51: ='Votos e NTs'!CG391 -> 0 | N51: 0
F52: Proinfa | G52: ='Votos e NTs'!BT372 -> 24768.94336 | H52: ='Votos e NTs'!BU372 -> 25246.9137 | I52: 0.01929716305 | J52: 0 | K52: 0 | M52: ='Votos e NTs'!CG392 -> -0.0003424957291 | N52: 1
F53: Total | G53: =SUM(G43:G52) -> 1497494.884 | H53: =SUM(H43:H52) -> 1442280.319 | I53: -0.03687128798 | J53: ='Votos e NTs'!BW374 -> 201.8778986 | K53: ='Votos e NTs'!BX374 -> 208.1831435 | L53: 0.03123296296 | M53: =SUM(M43:M52) -> -0.002503142252
O55: Encargos Setoriais
O56: Encargos Setoriais | P56: Processo Anterior (mil R$) | Q56: Processo Atual (mil R$) | R56: Impacto Processo | S56: Colunas1
O57: TFSEE | P57: ='Votos e NTs'!BM274/1000 -> 1374.959674 | Q57: ='Votos e NTs'!BN274/1000 -> 1539.068281 | R57: ='Votos e NTs'!BP274 -> 0.0002001233751 | S57: =IF(P57+Q57=0,0,1) -> 1
O58: CDE (USO) | P58: ='Votos e NTs'!BM275/1000 -> 36615.502 | Q58: ='Votos e NTs'!BN275/1000 -> 39071.05995 | R58: ='Votos e NTs'!BP275 -> 0.002994447097 | S58: 1
O59: CDE Conta Covid | P59: =('Votos e NTs'!BM276+'Votos e NTs'!BM277)/1000 -> 27857.36473 | Q59: =('Votos e NTs'!BN276+'Votos e NTs'!BN277)/1000 -> 26573.75416 | R59: ='Votos e NTs'!BP276+'Votos e NTs'!BP277 -> -0.001565307773 | S59: 1
S60: 0
O61: CDE Modicidade Eletrobrás | P61: ='Votos e NTs'!BM278/1000 -> -18325.22246 | Q61: ='Votos e NTs'!BN278/1000 -> -2067.095851 | R61: ='Votos e NTs'!BP278 -> 0.01982608476 | S61: =IF(P61+Q61=0,0,1) -> 1
O62: CDE Conta Escassez Hídrica(TUSD) | P62: ='Votos e NTs'!BM279/1000 -> 0 | Q62: =('Votos e NTs'!BN279+'Votos e NTs'!BN280)/1000 -> 23824.3495 | R62: ='Votos e NTs'!BP279+'Votos e NTs'!BP280 -> 0.02905276751 | S62: =IF(P62+Q62=0,0,1) -> 1
S63: =IF(P63+Q63=0,0,1) -> 0
O64: CDE Conta GD | P64: ='Votos e NTs'!BM281/1000 -> 0 | Q64: ='Votos e NTs'!BN281/1000 -> 2853.359628 | R64: ='Votos e NTs'!BP281 -> 0.003479549101 | S64: =IF(P64+Q64=0,0,1) -> 1
O65: Compensação financeira - CFURH | P65: ='Votos e NTs'!BM282/1000 -> 0 | Q65: ='Votos e NTs'!BN282/1000 -> 0 | R65: ='Votos e NTs'!BP282 -> 0 | S65: 0
O66: ESS/EER | P66: ='Votos e NTs'!BM283/1000 -> 20138.00414 | Q66: ='Votos e NTs'!BN283/1000 -> 19769.86434 | R66: ='Votos e NTs'!BP283 -> -0.0004489306134 | S66: 1
O67: PROINFA | P67: ='Votos e NTs'!BM284/1000 -> 14333.18348 | Q67: ='Votos e NTs'!BN284/1000 -> 12197.27627 | R67: ='Votos e NTs'!BP284 -> -0.002604646792 | S67: 1
O68: P&D | P68: ='Votos e NTs'!BM285/1000 -> 7506.422909 | Q68: ='Votos e NTs'!BN285/1000 -> 8275.791458 | R68: ='Votos e NTs'!BP285 -> 0.0009382117901 | S68: 1
O69: ONS | P69: ='Votos e NTs'!BM286/1000 -> 0 | Q69: ='Votos e NTs'!BN286/1000 -> 0 | R69: ='Votos e NTs'!BP286 -> 0 | S69: 0
O70: Total de Encargos | P70: =SUM(P57:P69) -> 89500.21447 | Q70: =SUM(Q57:Q69) -> 132037.4277 | R70: =SUM(R57:R69) -> 0.05187229845
T72: Custos de Transporte
T73: Custos de Transporte | U73: Processo Anterior (mil R$) | V73: Processo Atual (mil R$) | W73: Impacto Processo | X73: Colunas1
T74: Rede Básica | U74: ='Votos e NTs'!BM288/1000 -> 18112.43426 | V74: ='Votos e NTs'!BN288/1000 -> 20949.61792 | W74: ='Votos e NTs'!BP288 -> 0.003459823203 | X74: =IF(U74+V74=0,0,1) -> 1
T75: Rede Básica Fronteira | U75: ='Votos e NTs'!BM289/1000 -> 19861.70261 | V75: ='Votos e NTs'!BN289/1000 -> 12210.69699 | W75: ='Votos e NTs'!BP289 -> -0.009330071632 | X75: 1
T76: Rede Básica ONS (A2) | U76: ='Votos e NTs'!BM290/1000 -> 0 | V76: ='Votos e NTs'!BN290/1000 -> 0 | W76: ='Votos e NTs'!BP290 -> 0 | X76: 0
T77: Rede Básica Export. (A2) | U77: ='Votos e NTs'!BM291/1000 -> 0 | V77: ='Votos e NTs'!BN291/1000 -> 0 | W77: ='Votos e NTs'!BP291 -> 0 | X77: 0
T78: MUST Itaipu | U78: ='Votos e NTs'!BM292/1000 -> 0 | V78: ='Votos e NTs'!BN292/1000 -> 0 | W78: ='Votos e NTs'!BP292 -> 0 | X78: 0
T79: Transporte de Itaipu | U79: ='Votos e NTs'!BM293/1000 -> 0 | V79: ='Votos e NTs'!BN293/1000 -> 0 | W79: ='Votos e NTs'!BP293 -> 0 | X79: 0
T80: Conexão | U80: ='Votos e NTs'!BM294/1000 -> 2058.052918 | V80: ='Votos e NTs'!BN294/1000 -> 1654.045272 | W80: ='Votos e NTs'!BP294 -> -0.000492669914 | X80: 1
T81: Uso do sistema de distribuição | U81: ='Votos e NTs'!BM295/1000 -> 0 | V81: ='Votos e NTs'!BN295/1000 -> 0 | W81: ='Votos e NTs'!BP295 -> 0 | X81: 0
T82: Total do Transporte | U82: =SUM(U74:U81) -> 40032.18979 | V82: =SUM(V74:V81) -> 34814.36018 | W82: =SUM(W74:W81) -> -0.006362918343
Y84: Parcela B - Reajuste
Y85: Descrição | AA85: Valor | AB85: Referência
Y86: (1) Parcela B Processo Anterior (mil R$) | AA86: ='Votos e NTs'!AQ164/1000 -> 374637.3239 | AB86: TUSD fio B aplicada ao Mercado
Y87: (2) Fator DR1/Fator PB | AA87: ='VPB1'!C38 -> 1.017637594 | AB87: SGT/ANEEL
Y88: (3) Parcela B Processo Anterior sem UDEROR (mil R$) | AA88: =AA86*AA87 -> 381245.0248 | AB88: SGT/ANEEL
Y89: (4) IPCA | AA89: 0.04005113905 | AB89: Indicador econômico oficial
Y90: (5) Fator X | AA90: =SUM(AA91:AA93) -> 0.01174984674 | AB90: Pd + T + Q
Y91: (5.1) Componente Pd do Fator X | AA91: ='VPB1'!F40 -> 0.01230255086 | AB91: PRORET 2.5 A
Y92: (5.2) Componente T do Fator X | AA92: ='VPB1'!F41 -> 0.007326103346 | AB92: REH nº 2.377/2018
Y93: (5.3) Componente Q do Fator X | AA93: ='VPB1'!F42 -> -0.007878807461 | AB93: PRORET 2.5 A
Y94: (6) UDEROR | AA94: =SUM(AA95:AA97) -> 6347.274769 | AB94: UD + ER + OR
Y95: (6.1) Outras Receitas (OR) | AA95: ='Votos e NTs'!AQ173/1000 -> 2812.167003 | AB95: Valores fiscalizados - SFF
Y96: (6.2) Excedente de Reativos (ER) | AA96: ='Votos e NTs'!AQ174/1000 -> 2043.052399 | AB96: Valores fiscalizados - SFF
Y97: (6.3) Ultrapassagem de Demanda (UD) | AA97: ='Votos e NTs'!AQ175/1000 -> 1492.055367 | AB97: Valores fiscalizados - SFF
Y98: (7) ONS | AB98: 0
Y99: Parcela B Atual (mil R$) | AA99: =AA88*(1+AA89-AA90)-AA94 -> 385687.4769
AD101: Financeiros
AD102: Componentes Financeiros | AF102: Valor (mil R$) | AG102: Impacto Processo
AD103: CVA em processamento - Energia | AF103: =SUMIFS(Financeiros[Valor],Financeiros[idDet1],19,Financeiros[id_Grupo_TARIFA],2,Financeiros[idDet2],60,Financeiros[idDet3],999)/1000 -> 2755.032459 | AG103: =1000*AF103/Financeiros!$D$5 -> 0.003359643356
AD104: CVA em processamento -Transporte | AF104: =SUMIFS(Financeiros[Valor],Financeiros[idDet1],19,Financeiros[id_Grupo_TARIFA],1,Financeiros[idDet2],60,Financeiros[idDet3],999)/1000 -> 5225.239227 | AG104: =1000*AF104/Financeiros!$D$5 -> 0.006371954056
AD105: CVA em processamento - Encargos Setoriais | AF105: =SUMIFS(Financeiros[Valor],Financeiros[idDet1],19,Financeiros[id_Grupo_TARIFA],3,Financeiros[idDet2],60,Financeiros[idDet3],999)/1000 -> 4401.306676 | AG105: =1000*AF105/Financeiros!$D$5 -> 0.005367203818
AD106: Saldo a Compensar CVA-Ano Anterior + Ajustes | AF106: ='NT Revisao'!AO244/1000 -> -1031.342668 | AG106: =1000*AF106/Financeiros!$D$5 -> -0.001257677938
AD107: Neutralidade de Parcela A | AF107: =('Votos e NTs'!AZ198+'Votos e NTs'!AZ199+'Votos e NTs'!AZ200+'Votos e NTs'!AZ201)/1000 -> -10907.17538 | AG107: =1000*AF107/Financeiros!$D$5 -> -0.01330083033
AD108: Sobrecontratação/exposição de energia | AF108: =SUMIFS(Financeiros[Valor],Financeiros[idDet1],22,Financeiros[id_Grupo_TARIFA],2,Financeiros[idDet2],60, Financeiros[idDet3],106)/1000+SUMIFS(Financeiros[Valor],Financeiros[idDet1],22,Financeiros[id_Grupo_TARIFA],2,Financeiros[idDet2],60, Financeiros[idDet3],101)/1000 -> 49226.95104 | AG108: =1000*AF108/Financeiros!$D$5 -> 0.06003014536
AD109: Previsão de Risco Hidrológico | AF109: =SUMIFS(Financeiros[Valor],Financeiros[idDet1],22,Financeiros[id_Grupo_TARIFA],2,Financeiros[idDet2],60, Financeiros[idDet3],220)/1000 -> 19142.9671 | AG109: =1000*AF109/Financeiros!$D$5 -> 0.02334402342
AD110: Reversão do Risco Hidrológico | AF110: =SUMIFS(Financeiros[Valor],Financeiros[idDet1],22,Financeiros[id_Grupo_TARIFA],2,Financeiros[idDet2],62, Financeiros[idDet3],220)/1000 -> -18197.53104 | AG110: =1000*AF110/Financeiros!$D$5 -> -0.02219110488
AD111: Garantias financeiras (CCEAR) | AF111: ='NT Revisao'!AO251/1000 -> 105.4370258 | AG111: =1000*AF111/Financeiros!$D$5 -> 0.0001285759092
AD112: Excedente de custeio do Conselho de Consumidores | AF112: ='NT Revisao'!AO271/1000 -> -381.4779412 | AG112: =1000*AF112/Financeiros!$D$5 -> -0.0004651959095
AD113: Reversão de Créditos REN 1.000 | AF113: ='NT Revisao'!AO272/1000 -> -920.24002 | AG113: =1000*AF113/Financeiros!$D$5 -> -0.001122193047
AD114: Arrecadação CDE Covid dos migrantes (Of. Circular 20/21) | AF114: ='NT Revisao'!AO274/1000 -> -48.82597119 | AG114: =1000*AF114/Financeiros!$D$5 -> -5.954116771e-05
AD115: Financeiro CDE Modicidade Eletrobrás | AF115: ='NT Revisao'!AO275/1000 -> -691.1847882 | AG115: =1000*AF115/Financeiros!$D$5 -> -0.0008428700627
AD116: Créditos de Pis/Cofins | AF116: ='NT Revisao'!AO277/1000 -> -2139.223561 | AG116: =1000*AF116/Financeiros!$D$5 -> -0.002608690942
AD117: Neutralidade de Créditos de Pis/Cofins | AF117: ='NT Revisao'!AO278/1000 -> 6027.804006 | AG117: =1000*AF117/Financeiros!$D$5 -> 0.007350647218
AD118: Spread da Conta Escassez Hídrica - Art 12 - REH 1008/2022 | AF118: ='NT Revisao'!AO279/1000 -> -5363.865599 | AG118: =1000*AF118/Financeiros!$D$5 -> -0.006541002943
AD119: Outros | AF119: =AF120-SUM(AF103:AF118) -> -4.790000094e-05 | AG119: =1000*AF119/Financeiros!$D$5 -> -5.841198689e-11
AD120: Total | AF120: ='Votos e NTs'!AZ250/1000 -> 47203.87052 | AG120: =SUM(AG103:AG118) -> 0.05756308591
AI122: B1 x Inflação
AJ123: Variação
AI124: IGP-M | AJ124: ='Votos e NTs'!AD38 -> 
AI125: IPCA | AJ125: ='Votos e NTs'!AE38 -> 
AI126: Tarifa B1 | AJ126: ='Votos e NTs'!AC38 -> 
AL128: Financeiros
AL129: Resultado Bandeiras Tarifárias | AM129: Valor (mil R$) | AN129: Impacto Processo
AL130: Usinas com contrato por disponibilidade - CCEAR-D | AM130: -66519.46164 | AN130: -0.01144423021
AL131: Risco Hidrológico das usinas que repactuaram | AM131: 128197.3185 | AN131: 0.02205549458
AL132: Risco Hidrológico das usinas cotistas - CCGF | AM132: 103147.5557 | AN132: 0.01774584977
AL133: Risco Hidrológico da UHE ITAIPU | AM133: 87452.43744 | AN133: 0.01504560924
AL134: Encargos de Energia de Reserva - EER e de Serviço do Sistema - ESS | AM134: -102050.9453 | AN134: -0.01755718527
AL135: Resultado Mercado de Curto Prazo - MCP | AM135: 28529.54764 | AN135: 0.004908318602
AL136: Custo Total | AM136: 178756.4523 | AN136: 0.03075385671
AL137: Recolhimento pelas Bandeiras Tarifárias | AM137: -162443.7101 | AN137: -0.0279473581
AL138: Previsão do Risco Hidrológico no Processo Tarifário de 2018 | AM138: -162780.8718 | AN138: -0.02800536451
AL139: Receita Total | AM139: =AM137+AM138 -> -325224.5819 | AN139: =AN138+AN137 -> -0.05595272261
AL140: Custo não coberto antecipadamente | AM140: -146468.1296 | AN140: -0.0251988659
AP142: Remuneração do Capital
AP143: Descrição | AQ143: Ciclo Anterior | AR143: Ciclo Atual
AP144: Base Líquida (mil R$) | AQ144: ='Avaliação Parcela B'!J127/1000 -> 594824.0991 | AR144: ='Avaliação Parcela B'!K127/1000 -> 1038427.934
AP145: Remuneração | AQ145: ='Avaliação Parcela B'!G128 -> 0.1216613924 | AR145: ='Avaliação Parcela B'!H128 -> 0.1269523266
AT147: Quota de Reintegração
AT148: Descrição | AU148: Ciclo Anterior | AV148: Ciclo Atual
AT149: Base Bruta (mil R$) | AU149: ='Avaliação Parcela B'!J159/1000 -> 914436.6709 | AV149: ='Avaliação Parcela B'!K159/1000 -> 1420401.423
AT150: Depreciação | AU150: ='Avaliação Parcela B'!G160 -> 0.03760161905 | AV150: ='Avaliação Parcela B'!H160 -> 0.0405
AX152: Parcela B - Revisão
AX153: Descrição | AY153: Processo Anterior (mil R$) | AZ153: Processo Atual (mil R$) | BA153: Variação | BB153: Participação na Revisão
AX154: ='NT Revisao'!AL232 -> Custos Operacionais | AY154: ='NT Revisao'!AN232/1000 -> 213472.2565 | AZ154: ='NT Revisao'!AO232/1000 -> 168329.7429 | BA154: ='NT Revisao'!AP232 -> -0.2114678239 | BB154: ='NT Revisao'!AQ232 -> -0.05504934986
AX155: ='NT Revisao'!AL233 -> Anuidades | AY155: ='NT Revisao'!AN233/1000 -> 28877.80109 | AZ155: ='NT Revisao'!AO233/1000 -> 36159.94333 | BA155: ='NT Revisao'!AP233 -> 0.2521709398 | BB155: ='NT Revisao'!AQ233 -> 0.008880258639
AX156: ='NT Revisao'!AL234 -> Remuneração | AY156: ='NT Revisao'!AN234/1000 -> 94157.33475 | AZ156: ='NT Revisao'!AO234/1000 -> 131830.8422 | BA156: ='NT Revisao'!AP234 -> 0.4001122963 | BB156: ='NT Revisao'!AQ234 -> 0.04594121877
AX157: ='NT Revisao'!AL235 -> Depreciação | AY157: ='NT Revisao'!AN235/1000 -> 44737.6325 | AZ157: ='NT Revisao'!AO235/1000 -> 57526.25763 | BA157: ='NT Revisao'!AP235 -> 0.2858583349 | BB157: ='NT Revisao'!AQ235 -> 0.01559517723
AX158: ='NT Revisao'!AL236 -> UD+ER+OR | AY158: ='NT Revisao'!AN236/1000 -> -6607.700927 | AZ158: ='NT Revisao'!AO236/1000 -> -6347.274769 | BA158: ='NT Revisao'!AP236 -> -0.039412522 | BB158: ='NT Revisao'!AQ236 -> 0.0003175784768
AX159: ='NT Revisao'!AL237 -> Ajuste de PB associado ao SCEE | AY159: ='NT Revisao'!AN237/1000 -> 0 | AZ159: ='NT Revisao'!AO237/1000 -> 10552.23976 | BA159: ='NT Revisao'!AP237 -> - | BB159: ='NT Revisao'!AQ237 -> 0.01286800164
AX161: PARCELA B | AY161: =SUM(AY154:AY160) -> 374637.3239 | AZ161: =SUM(AZ154:AZ160) -> 398051.7511 | BA161: =IF(ISERROR(AZ161/AY161-1),0,AZ161/AY161-1) -> 0.06249891742 | BB161: =IF(ISERROR((AZ161-AY161)/LnkTxtRA*1000),0,(AZ161-AY161)/LnkTxtRA*1000) -> 0.02855288489
BD165: Enel RJ | BE165: 683.87 | BG165: 1 | BH165: Enel RJ | BJ165: 714.44
BD166: Celpa | BE166: 683.6 | BG166: 2 | BH166: Celpa | BJ166: 703.21
BD167: AmE | BE167: 664.84 | BG167: =BG166+1 -> 3 | BH167: EMS | BJ167: 700.36
BD168: Light | BE168: 663.1 | BG168: =BG167+1 -> 4 | BH168: Light | BJ168: 694.05
BD169: ENF | BE169: 649.89 | BG169: 5 | BH169: AmE | BJ169: 693.49
BD170: Eflul | BE170: 648.12 | BG170: 6 | BH170: EMT | BJ170: 690.12
BD171: EFLJC | BE171: 639.05 | BG171: 7 | BH171: ENF | BJ171: 662.44
BD172: Sulgipe | BE172: 636.31 | BG172: 8 | BH172: Forcel | BJ172: 654.63
BD173: Cemar | BE173: 630.18 | BG173: 9 | BH173: ETO | BJ173: 647.35
BD174: Cemig-D | BE174: 628.33 | BG174: 10 | BH174: Cemig | BJ174: 644.23
BD175: EMT | BE175: 626.84 | BG175: 11 | BH175: Eflul | BJ175: 641.69
BD176: Forcel | BE176: 619.01 | BG176: 12 | BH176: EFLJC | BJ176: 639.85
BD177: Roraima Energia | BE177: 617.77 | BG177: 13 | BH177: Celpe 2021 | BI177: Celpe 2021 | BJ177: 628.4189439
BD178: EMS | BE178: 608.65 | BG178: 14 | BH178: Cemar | BJ178: 628.21
BD179: Hidropan | BE179: 600.74 | BG179: 15 | BH179: EMG | BJ179: 627.73
BD180: ETO | BE180: 600.08 | BG180: 16 | BH180: Coelba | BJ180: 624.64
BD181: EMG | BE181: 595.83 | BG181: 17 | BH181: Sulgipe | BJ181: 619.22
BD182: Ceron | BE182: 576.82 | BG182: 18 | BH182: Hidropan | BJ182: 602.62
BD183: Chesp | BE183: 573.14 | BG183: 19 | BH183: CPFL Paulista | BJ183: 601.57
BD184: Uhenpal | BE184: 572.49 | BG184: 20 | BH184: Chesp | BJ184: 599.53
BD185: Eletroacre | BE185: 569.84 | BG185: 21 | BH185: Enel CE | BJ185: 594.36
BD186: Cepisa | BE186: 569.48 | BG186: 22 | BH186: ELFSM | BJ186: 593.39
BD187: RGE | BE187: 560.27 | BG187: 23 | BH187: RGE (agrupada) | BJ187: 589.57
BD188: Cocel | BE188: 557.12 | BG188: 24 | BH188: ESE | BJ188: 585.6
BD189: Coelba | BE189: 552.13 | BG189: 25 | BH189: Ceal | BJ189: 583.31
BD190: Celpe | BE190: 549.33 | BG190: 26 | BH190: Eletroacre | BJ190: 581.91
BD191: CPFL Santa Cruz | BE191: 547.69 | BG191: 27 | BH191: Cepisa | BJ191: 581.82
